Workbook

Sheet Totaaloverzicht
B13: Uitslagen 'Bossche Boules 2021'
B14: Laatste wijziging: 8-7-2021
B17: Bepaling finalisten per wijktoernooi
B18: Bij winst (lees: het is 13 of men staat voor als er wordt 'afgefloten') krijgt een speler 3 punten, bij gelijkspel 2 punten en bij verlies 0 punten. Door op één avond 3 partijen te winnen kan een speler dus maximaal 9 punten behalen. Daarnaast worden de saldopunten van alle wedstrijden opgeteld om een eindrangschikking mogelijk te maken. Alleen de spelers die van de in totaal 12 wedstrijden (lees: 4 avonden) tenminste 6 wedstrijden (lees: 2 avonden) hebben gespeeld maken kans om namens hun wijk de finale op de Bossche Parade te spelen. De uitslagen van deze spelers worden omgeslagen naar percentages op basis waarvan de eindrangschikking plaatsvindt. De finale wordt gespeeld op woensdagavond 14 juli 2021. Over uitslagen kan niet worden gecorrespondeerd.
B20: LET OP: alleen wedstrijden die daadwerkelijk gespeeld zijn in de wijk waarvoor jij je hebt ingeschreven tellen mee (en worden hieronder getoond)!
B24: Naam | C24: Wijk van initiële inschrijving (met shirtkleur finaledag) | D24: Gespeeld | E24: Gewonnen | F24: Gewonnen | G24: Verloren | H24: % gewonnen | I24: % gelijk | J24: % verloren | K24: Wedstrijd-punten | L24: Saldo-punten | M24: Saldo-punten per wedstrijd
B25: Ad Schellekens | C25: =IF(B25="","-",IF(INDIRECT(CONCATENATE("'",B25,"'!wijk_van_inschrijving"))="","-",INDIRECT(CONCATENATE("'",B25,"'!wijk_van_inschrijving")))) -> De Hambaken | D25: =IF(B25="","-",INDIRECT(CONCATENATE("'",B25,"'!gespeeld"))) -> 6 | E25: =IF(B25="","-",INDIRECT(CONCATENATE("'",B25,"'!gewonnen"))) -> 3 | F25: =IF(B25="","-",INDIRECT(CONCATENATE("'",B25,"'!gelijk"))) -> 0 | G25: =IF(B25="","-",INDIRECT(CONCATENATE("'",B25,"'!verloren"))) -> 3 | H25: =IF(B25="","-",INDIRECT(CONCATENATE("'",B25,"'!perc_gewonnen"))) -> 0.5 | I25: =IF(B25="","-",INDIRECT(CONCATENATE("'",B25,"'!perc_gelijk"))) -> 0 | J25: =IF(B25="","-",INDIRECT(CONCATENATE("'",B25,"'!perc_verloren"))) -> 0.5 | K25: =IF(B25="","-",INDIRECT(CONCATENATE("'",B25,"'!wedstrijdpunten"))) -> 9 | L25: =IF(B25="","-",INDIRECT(CONCATENATE("'",B25,"'!saldopunten"))) -> -6 | M25: =IF(B25="","-",INDIRECT(CONCATENATE("'",B25,"'!saldopunten_per_wedstrijd"))) -> -1
B26: André Abdoella | C26: 's-Hertogenbosch Zuid | D26: 12 | E26: 10 | F26: 0 | G26: 2 | H26: 0.8333333333 | I26: 0 | J26: 0.1666666667 | K26: 30 | L26: 56 | M26: 4.666666667
B27: Annie Liebrand | C27: 's-Hertogenbosch Zuid | D27: 12 | E27: 5 | F27: 0 | G27: 7 | H27: 0.4166666667 | I27: 0 | J27: 0.5833333333 | K27: 15 | L27: -30 | M27: -2.5
B28: Anne-Louise Westelaken | C28: Hondsberg (Rosmalen) | D28: 3 | E28: 1 | F28: 0 | G28: 2 | H28: 0.3333333333 | I28: 0 | J28: 0.6666666667 | K28: 3 | L28: -6 | M28: -2
B29: Antoinette Brok | C29: De Schutskamp | D29: 5 | E29: 4 | F29: 1 | G29: 0 | H29: 0.8 | I29: 0.2 | J29: 0 | K29: 14 | L29: 30 | M29: 6
B30: Antoon van Mil | C30: 's-Hertogenbosch Zuid | D30: 5 | E30: 2 | F30: 0 | G30: 3 | H30: 0.4 | I30: 0 | J30: 0.6 | K30: 6 | L30: 7 | M30: 1.4
B31: Bart Blatter | C31: De Schutskamp | D31: 3 | E31: 1 | F31: 0 | G31: 2 | H31: 0.3333333333 | I31: 0 | J31: 0.6666666667 | K31: 3 | L31: -10 | M31: -3.333333333
B32: Bas Peters | C32: De Schutskamp | D32: 2 | E32: 1 | F32: 0 | G32: 1 | H32: 0.5 | I32: 0 | J32: 0.5 | K32: 3 | L32: 0 | M32: 0
B33: Ben Kok | C33: De Schutskamp | D33: 9 | E33: 3 | F33: 2 | G33: 4 | H33: 0.3333333333 | I33: 0.2222222222 | J33: 0.4444444444 | K33: 13 | L33: -11 | M33: -1.222222222
B34: Bep Bosters | C34: De Schutskamp | D34: 3 | E34: 2 | F34: 0 | G34: 1 | H34: 0.6666666667 | I34: 0 | J34: 0.3333333333 | K34: 6 | L34: 10 | M34: 3.333333333
B35: Bernard van der Wielen | C35: De Schutskamp | D35: 1 | E35: 1 | F35: 0 | G35: 0 | H35: 1 | I35: 0 | J35: 0 | K35: 3 | L35: 10 | M35: 10
B36: Casper Westelaken | C36: Hondsberg (Rosmalen) | D36: 3 | E36: 0 | F36: 0 | G36: 3 | H36: 0 | I36: 0 | J36: 1 | K36: 0 | L36: -11 | M36: -3.666666667
B37: Chantal Stuiver | C37: Hondsberg (Rosmalen) | D37: 2 | E37: 1 | F37: 0 | G37: 1 | H37: 0.5 | I37: 0 | J37: 0.5 | K37: 3 | L37: 1 | M37: 0.5
B38: Christ van Esch | C38: 's-Hertogenbosch Zuid | D38: 3 | E38: 2 | F38: 0 | G38: 1 | H38: 0.6666666667 | I38: 0 | J38: 0.3333333333 | K38: 6 | L38: 11 | M38: 3.666666667
B39: Clara van Kessel | C39: 's-Hertogenbosch Zuid | D39: 3 | E39: 0 | F39: 0 | G39: 3 | H39: 0 | I39: 0 | J39: 1 | K39: 0 | L39: -24 | M39: -8
B40: Clemens de Mol | C40: 's-Hertogenbosch Zuid | D40: 3 | E40: 0 | F40: 1 | G40: 2 | H40: 0 | I40: 0.3333333333 | J40: 0.6666666667 | K40: 2 | L40: -24 | M40: -8
B41: Coby Hendriks | C41: De Schutskamp | D41: 12 | E41: 1 | F41: 0 | G41: 11 | H41: 0.08333333333 | I41: 0 | J41: 0.9166666667 | K41: 3 | L41: -74 | M41: -6.166666667
B42: Coen van den Bogaard | C42: De Hambaken | D42: 3 | E42: 0 | F42: 0 | G42: 3 | H42: 0 | I42: 0 | J42: 1 | K42: 0 | L42: -13 | M42: -4.333333333
B43: Cor Geerts | C43: Hondsberg (Rosmalen) | D43: 8 | E43: 3 | F43: 0 | G43: 5 | H43: 0.375 | I43: 0 | J43: 0.625 | K43: 9 | L43: 1 | M43: 0.125
B44: Corrie van Mil - de Looijer | C44: De Schutskamp | D44: 9 | E44: 8 | F44: 1 | G44: 0 | H44: 0.8888888889 | I44: 0.1111111111 | J44: 0 | K44: 26 | L44: 36 | M44: 4
B45: Denice Sprengers | C45: 's-Hertogenbosch Zuid | D45: 1 | E45: 0 | F45: 0 | G45: 1 | H45: 0 | I45: 0 | J45: 1 | K45: 0 | L45: -13 | M45: -13
B46: Dewi van Maaren | C46: De Schutskamp | D46: 3 | E46: 0 | F46: 1 | G46: 2 | H46: 0 | I46: 0.3333333333 | J46: 0.6666666667 | K46: 2 | L46: -6 | M46: -2
B47: Dick van Huijstee | C47: De Hambaken | D47: 3 | E47: 3 | F47: 0 | G47: 0 | H47: 1 | I47: 0 | J47: 0 | K47: 9 | L47: 7 | M47: 2.333333333
B48: Diny Lommers | C48: De Schutskamp | D48: 9 | E48: 2 | F48: 0 | G48: 7 | H48: 0.2222222222 | I48: 0 | J48: 0.7777777778 | K48: 6 | L48: -14 | M48: -1.555555556
B49: Diny van de Weijenberg | C49: De Schutskamp | D49: 6 | E49: 1 | F49: 0 | G49: 5 | H49: 0.1666666667 | I49: 0 | J49: 0.8333333333 | K49: 3 | L49: -51 | M49: -8.5
B50: Driss Lamjaata | C50: De Schutskamp | D50: 12 | E50: 5 | F50: 0 | G50: 7 | H50: 0.4166666667 | I50: 0 | J50: 0.5833333333 | K50: 15 | L50: -18 | M50: -1.5
B51: Ed van de Braak | C51: 's-Hertogenbosch Zuid | D51: 1 | E51: 0 | F51: 0 | G51: 1 | H51: 0 | I51: 0 | J51: 1 | K51: 0 | L51: -9 | M51: -9
B52: Ed van der Burgh | C52: De Hambaken | D52: 12 | E52: 7 | F52: 0 | G52: 5 | H52: 0.5833333333 | I52: 0 | J52: 0.4166666667 | K52: 21 | L52: 16 | M52: 1.333333333
B53: Els Kuijpers - Hermsen | C53: De Schutskamp | D53: 3 | E53: 1 | F53: 1 | G53: 1 | H53: 0.3333333333 | I53: 0.3333333333 | J53: 0.3333333333 | K53: 5 | L53: 1 | M53: 0.3333333333
B54: Enn Tulkens | C54: 's-Hertogenbosch Zuid | D54: 3 | E54: 2 | F54: 0 | G54: 1 | H54: 0.6666666667 | I54: 0 | J54: 0.3333333333 | K54: 6 | L54: 2 | M54: 0.6666666667
B55: Evy Pappot | C55: De Hambaken | D55: 4 | E55: 1 | F55: 0 | G55: 3 | H55: 0.25 | I55: 0 | J55: 0.75 | K55: 3 | L55: -16 | M55: -4
B56: Fien Bertrums | C56: 's-Hertogenbosch Zuid | D56: 6 | E56: 0 | F56: 0 | G56: 6 | H56: 0 | I56: 0 | J56: 1 | K56: 0 | L56: -39 | M56: -6.5
B57: Franka van Aerle | C57: =IF(B57="","-",IF(INDIRECT(CONCATENATE("'",B57,"'!wijk_van_inschrijving"))="","-",INDIRECT(CONCATENATE("'",B57,"'!wijk_van_inschrijving")))) -> De Hambaken | D57: =IF(B57="","-",INDIRECT(CONCATENATE("'",B57,"'!gespeeld"))) -> 9 | E57: =IF(B57="","-",INDIRECT(CONCATENATE("'",B57,"'!gewonnen"))) -> 5 | F57: =IF(B57="","-",INDIRECT(CONCATENATE("'",B57,"'!gelijk"))) -> 0 | G57: =IF(B57="","-",INDIRECT(CONCATENATE("'",B57,"'!verloren"))) -> 4 | H57: =IF(B57="","-",INDIRECT(CONCATENATE("'",B57,"'!perc_gewonnen"))) -> 0.5555555556 | I57: =IF(B57="","-",INDIRECT(CONCATENATE("'",B57,"'!perc_gelijk"))) -> 0 | J57: =IF(B57="","-",INDIRECT(CONCATENATE("'",B57,"'!perc_verloren"))) -> 0.4444444444 | K57: =IF(B57="","-",INDIRECT(CONCATENATE("'",B57,"'!wedstrijdpunten"))) -> 15 | L57: =IF(B57="","-",INDIRECT(CONCATENATE("'",B57,"'!saldopunten"))) -> 28 | M57: =IF(B57="","-",INDIRECT(CONCATENATE("'",B57,"'!saldopunten_per_wedstrijd"))) -> 3.111111111
B58: Frans Baert | C58: 's-Hertogenbosch Zuid | D58: 9 | E58: 6 | F58: 1 | G58: 2 | H58: 0.6666666667 | I58: 0.1111111111 | J58: 0.2222222222 | K58: 20 | L58: 36 | M58: 4
B59: Fred Eskens | C59: De Schutskamp | D59: 3 | E59: 0 | F59: 1 | G59: 2 | H59: 0 | I59: 0.3333333333 | J59: 0.6666666667 | K59: 2 | L59: -9 | M59: -3
B60: Geert Hollander | C60: 's-Hertogenbosch Zuid | D60: 8 | E60: 4 | F60: 1 | G60: 3 | H60: 0.5 | I60: 0.125 | J60: 0.375 | K60: 14 | L60: 11 | M60: 1.375
B61: Gerard van der Loo | C61: De Schutskamp | D61: 12 | E61: 10 | F61: 1 | G61: 1 | H61: 0.8333333333 | I61: 0.08333333333 | J61: 0.08333333333 | K61: 32 | L61: 83 | M61: 6.916666667
B62: Gert Hagemans | C62: Hondsberg (Rosmalen) | D62: 6 | E62: 2 | F62: 0 | G62: 4 | H62: 0.3333333333 | I62: 0 | J62: 0.6666666667 | K62: 6 | L62: -9 | M62: -1.5
B63: Hans Fleuren | C63: =IF(B63="","-",IF(INDIRECT(CONCATENATE("'",B63,"'!wijk_van_inschrijving"))="","-",INDIRECT(CONCATENATE("'",B63,"'!wijk_van_inschrijving")))) -> Hondsberg (Rosmalen) | D63: =IF(B63="","-",INDIRECT(CONCATENATE("'",B63,"'!gespeeld"))) -> 3 | E63: =IF(B63="","-",INDIRECT(CONCATENATE("'",B63,"'!gewonnen"))) -> 1 | F63: =IF(B63="","-",INDIRECT(CONCATENATE("'",B63,"'!gelijk"))) -> 0 | G63: =IF(B63="","-",INDIRECT(CONCATENATE("'",B63,"'!verloren"))) -> 2 | H63: =IF(B63="","-",INDIRECT(CONCATENATE("'",B63,"'!perc_gewonnen"))) -> 0.3333333333 | I63: =IF(B63="","-",INDIRECT(CONCATENATE("'",B63,"'!perc_gelijk"))) -> 0 | J63: =IF(B63="","-",INDIRECT(CONCATENATE("'",B63,"'!perc_verloren"))) -> 0.6666666667 | K63: =IF(B63="","-",INDIRECT(CONCATENATE("'",B63,"'!wedstrijdpunten"))) -> 3 | L63: =IF(B63="","-",INDIRECT(CONCATENATE("'",B63,"'!saldopunten"))) -> -14 | M63: =IF(B63="","-",INDIRECT(CONCATENATE("'",B63,"'!saldopunten_per_wedstrijd"))) -> -4.666666667
B64: Hans van Woerkum | C64: De Schutskamp | D64: 12 | E64: 9 | F64: 1 | G64: 2 | H64: 0.75 | I64: 0.08333333333 | J64: 0.1666666667 | K64: 29 | L64: 68 | M64: 5.666666667
B65: Harm Schilders | C65: De Schutskamp | D65: 5 | E65: 4 | F65: 0 | G65: 1 | H65: 0.8 | I65: 0 | J65: 0.2 | K65: 12 | L65: 22 | M65: 4.4
B66: Henk Hermes | C66: 's-Hertogenbosch Zuid | D66: 12 | E66: 11 | F66: 0 | G66: 1 | H66: 0.9166666667 | I66: 0 | J66: 0.08333333333 | K66: 33 | L66: 70 | M66: 5.833333333
B67: Henk Kuijs | C67: 's-Hertogenbosch Zuid | D67: 3 | E67: 2 | F67: 0 | G67: 1 | H67: 0.6666666667 | I67: 0 | J67: 0.3333333333 | K67: 6 | L67: 4 | M67: 1.333333333
B68: Ilse van Mil | C68: Hondsberg (Rosmalen) | D68: 7 | E68: 3 | F68: 0 | G68: 4 | H68: 0.4285714286 | I68: 0 | J68: 0.5714285714 | K68: 9 | L68: 0 | M68: 0
B69: Ineke Poort | C69: 's-Hertogenbosch Zuid | D69: 6 | E69: 5 | F69: 0 | G69: 1 | H69: 0.8333333333 | I69: 0 | J69: 0.1666666667 | K69: 15 | L69: 41 | M69: 6.833333333
B70: Iris Vriend | C70: 's-Hertogenbosch Zuid | D70: 10 | E70: 0 | F70: 0 | G70: 10 | H70: 0 | I70: 0 | J70: 1 | K70: 0 | L70: -64 | M70: -6.4
B71: Jaap Faber | C71: 's-Hertogenbosch Zuid | D71: 12 | E71: 2 | F71: 1 | G71: 9 | H71: 0.1666666667 | I71: 0.08333333333 | J71: 0.75 | K71: 8 | L71: -80 | M71: -6.666666667
B72: Jacques Tulkens | C72: 's-Hertogenbosch Zuid | D72: 3 | E72: 0 | F72: 1 | G72: 2 | H72: 0 | I72: 0.3333333333 | J72: 0.6666666667 | K72: 2 | L72: -15 | M72: -5
B73: Jan Rovers | C73: De Hambaken | D73: 9 | E73: 3 | F73: 0 | G73: 6 | H73: 0.3333333333 | I73: 0 | J73: 0.6666666667 | K73: 9 | L73: -11 | M73: -1.222222222
B74: Jan van Alebeek | C74: 's-Hertogenbosch Zuid | D74: 9 | E74: 6 | F74: 1 | G74: 2 | H74: 0.6666666667 | I74: 0.1111111111 | J74: 0.2222222222 | K74: 20 | L74: 28 | M74: 3.111111111
B75: Jan van den Akker | C75: De Schutskamp | D75: 10 | E75: 5 | F75: 0 | G75: 5 | H75: 0.5 | I75: 0 | J75: 0.5 | K75: 15 | L75: 6 | M75: 0.6
B76: Jan van den Broek | C76: Hondsberg (Rosmalen) | D76: 7 | E76: 4 | F76: 1 | G76: 2 | H76: 0.5714285714 | I76: 0.1428571429 | J76: 0.2857142857 | K76: 14 | L76: 11 | M76: 1.571428571
B77: Jan Wijnhoven | C77: De Schutskamp | D77: 9 | E77: 3 | F77: 0 | G77: 6 | H77: 0.3333333333 | I77: 0 | J77: 0.6666666667 | K77: 9 | L77: -34 | M77: -3.777777778
B78: Jilali Hasnaoui | C78: De Schutskamp | D78: 4 | E78: 1 | F78: 0 | G78: 3 | H78: 0.25 | I78: 0 | J78: 0.75 | K78: 3 | L78: -6 | M78: -1.5
B79: John den Houter | C79: Hondsberg (Rosmalen) | D79: 8 | E79: 3 | F79: 0 | G79: 5 | H79: 0.375 | I79: 0 | J79: 0.625 | K79: 9 | L79: -10 | M79: -1.25
B80: John Kuijpers | C80: De Schutskamp | D80: 12 | E80: 9 | F80: 0 | G80: 3 | H80: 0.75 | I80: 0 | J80: 0.25 | K80: 27 | L80: 41 | M80: 3.416666667
B81: Jonne Schophuizen | C81: De Schutskamp | D81: 9 | E81: 3 | F81: 2 | G81: 4 | H81: 0.3333333333 | I81: 0.2222222222 | J81: 0.4444444444 | K81: 13 | L81: 1 | M81: 0.1111111111
B82: Jos de Kort | C82: De Schutskamp | D82: 3 | E82: 2 | F82: 0 | G82: 1 | H82: 0.6666666667 | I82: 0 | J82: 0.3333333333 | K82: 6 | L82: 5 | M82: 1.666666667
B83: José van den Broek | C83: Hondsberg (Rosmalen) | D83: 7 | E83: 2 | F83: 2 | G83: 3 | H83: 0.2857142857 | I83: 0.2857142857 | J83: 0.4285714286 | K83: 10 | L83: -13 | M83: -1.857142857
B84: Jürgen Cools | C84: De Schutskamp | D84: 3 | E84: 3 | F84: 0 | G84: 0 | H84: 1 | I84: 0 | J84: 0 | K84: 9 | L84: 25 | M84: 8.333333333
B85: Lenie van Triest - Guijt | C85: Hondsberg (Rosmalen) | D85: 7 | E85: 3 | F85: 0 | G85: 4 | H85: 0.4285714286 | I85: 0 | J85: 0.5714285714 | K85: 9 | L85: -22 | M85: -3.142857143
B86: Leo Leenders | C86: De Schutskamp | D86: 3 | E86: 3 | F86: 0 | G86: 0 | H86: 1 | I86: 0 | J86: 0 | K86: 9 | L86: 19 | M86: 6.333333333
B87: Lia Jansen | C87: Hondsberg (Rosmalen) | D87: 7 | E87: 3 | F87: 0 | G87: 4 | H87: 0.4285714286 | I87: 0 | J87: 0.5714285714 | K87: 9 | L87: 1 | M87: 0.1428571429
B88: Loek Zweekhorst | C88: Hondsberg (Rosmalen) | D88: 5 | E88: 3 | F88: 0 | G88: 2 | H88: 0.6 | I88: 0 | J88: 0.4 | K88: 9 | L88: 2 | M88: 0.4
B89: Maik van Zutphen | C89: De Schutskamp | D89: 3 | E89: 0 | F89: 0 | G89: 3 | H89: 0 | I89: 0 | J89: 1 | K89: 0 | L89: -12 | M89: -4
B90: Mari van Kessel | C90: =IF(B90="","-",IF(INDIRECT(CONCATENATE("'",B90,"'!wijk_van_inschrijving"))="","-",INDIRECT(CONCATENATE("'",B90,"'!wijk_van_inschrijving")))) -> 's-Hertogenbosch Zuid | D90: =IF(B90="","-",INDIRECT(CONCATENATE("'",B90,"'!gespeeld"))) -> 12 | E90: =IF(B90="","-",INDIRECT(CONCATENATE("'",B90,"'!gewonnen"))) -> 4 | F90: =IF(B90="","-",INDIRECT(CONCATENATE("'",B90,"'!gelijk"))) -> 1 | G90: =IF(B90="","-",INDIRECT(CONCATENATE("'",B90,"'!verloren"))) -> 7 | H90: =IF(B90="","-",INDIRECT(CONCATENATE("'",B90,"'!perc_gewonnen"))) -> 0.3333333333 | I90: =IF(B90="","-",INDIRECT(CONCATENATE("'",B90,"'!perc_gelijk"))) -> 0.08333333333 | J90: =IF(B90="","-",INDIRECT(CONCATENATE("'",B90,"'!perc_verloren"))) -> 0.5833333333 | K90: =IF(B90="","-",INDIRECT(CONCATENATE("'",B90,"'!wedstrijdpunten"))) -> 14 | L90: =IF(B90="","-",INDIRECT(CONCATENATE("'",B90,"'!saldopunten"))) -> 6 | M90: =IF(B90="","-",INDIRECT(CONCATENATE("'",B90,"'!saldopunten_per_wedstrijd"))) -> 0.5
B91: Maria de Zwart | C91: Hondsberg (Rosmalen) | D91: 10 | E91: 6 | F91: 0 | G91: 4 | H91: 0.6 | I91: 0 | J91: 0.4 | K91: 18 | L91: 17 | M91: 1.7
B92: Maria Grove | C92: De Schutskamp | D92: 6 | E92: 1 | F92: 0 | G92: 5 | H92: 0.1666666667 | I92: 0 | J92: 0.8333333333 | K92: 3 | L92: -22 | M92: -3.666666667
B93: Marleen Kampert | C93: De Hambaken | D93: 9 | E93: 5 | F93: 0 | G93: 4 | H93: 0.5555555556 | I93: 0 | J93: 0.4444444444 | K93: 15 | L93: 25 | M93: 2.777777778
B94: Martha Clement | C94: De Schutskamp | D94: 3 | E94: 1 | F94: 0 | G94: 2 | H94: 0.3333333333 | I94: 0 | J94: 0.6666666667 | K94: 3 | L94: -18 | M94: -6
B95: Maurice Maas | C95: De Schutskamp | D95: 3 | E95: 0 | F95: 0 | G95: 3 | H95: 0 | I95: 0 | J95: 1 | K95: 0 | L95: -9 | M95: -3
B96: Mecheline Heijmans | C96: Hondsberg (Rosmalen) | D96: 7 | E96: 4 | F96: 1 | G96: 2 | H96: 0.5714285714 | I96: 0.1428571429 | J96: 0.2857142857 | K96: 14 | L96: 6 | M96: 0.8571428571
B97: Mels van der Doelen | C97: Hondsberg (Rosmalen) | D97: 2 | E97: 0 | F97: 0 | G97: 2 | H97: 0 | I97: 0 | J97: 1 | K97: 0 | L97: -13 | M97: -6.5
B98: Mieke Lakwijk | C98: De Schutskamp | D98: 9 | E98: 3 | F98: 1 | G98: 5 | H98: 0.3333333333 | I98: 0.1111111111 | J98: 0.5555555556 | K98: 11 | L98: -41 | M98: -4.555555556
B99: Mien van Tilburg | C99: De Schutskamp | D99: 12 | E99: 4 | F99: 1 | G99: 7 | H99: 0.3333333333 | I99: 0.08333333333 | J99: 0.5833333333 | K99: 14 | L99: -31 | M99: -2.583333333
B100: Mohammed Nazih | C100: De Schutskamp | D100: 6 | E100: 3 | F100: 0 | G100: 3 | H100: 0.5 | I100: 0 | J100: 0.5 | K100: 9 | L100: -6 | M100: -1
B101: Mohammed Serraji | C101: De Schutskamp | D101: 12 | E101: 6 | F101: 1 | G101: 5 | H101: 0.5 | I101: 0.08333333333 | J101: 0.4166666667 | K101: 20 | L101: 0 | M101: 0
B102: Monique van Steeden | C102: 's-Hertogenbosch Zuid | D102: 9 | E102: 4 | F102: 1 | G102: 4 | H102: 0.4444444444 | I102: 0.1111111111 | J102: 0.4444444444 | K102: 14 | L102: 3 | M102: 0.3333333333
B103: Mustafa El Amouri | C103: De Schutskamp | D103: 3 | E103: 1 | F103: 0 | G103: 2 | H103: 0.3333333333 | I103: 0 | J103: 0.6666666667 | K103: 3 | L103: -11 | M103: -3.666666667
B104: Mustapha Soussi | C104: De Schutskamp | D104: 3 | E104: 2 | F104: 0 | G104: 1 | H104: 0.6666666667 | I104: 0 | J104: 0.3333333333 | K104: 6 | L104: 6 | M104: 2
B105: Paul van den Merkhof | C105: 's-Hertogenbosch Zuid | D105: 9 | E105: 5 | F105: 0 | G105: 4 | H105: 0.5555555556 | I105: 0 | J105: 0.4444444444 | K105: 15 | L105: 16 | M105: 1.777777778
B106: Peggy Roelofsen | C106: De Schutskamp | D106: 3 | E106: 2 | F106: 0 | G106: 1 | H106: 0.6666666667 | I106: 0 | J106: 0.3333333333 | K106: 6 | L106: 5 | M106: 1.666666667
B107: Pepijn de Leeuwen | C107: Hondsberg (Rosmalen) | D107: 2 | E107: 1 | F107: 0 | G107: 1 | H107: 0.5 | I107: 0 | J107: 0.5 | K107: 3 | L107: -5 | M107: -2.5
B108: Peter Ondersteijn | C108: 's-Hertogenbosch Zuid | D108: 9 | E108: 5 | F108: 1 | G108: 3 | H108: 0.5555555556 | I108: 0.1111111111 | J108: 0.3333333333 | K108: 17 | L108: 4 | M108: 0.4444444444
B109: Petra Schepers | C109: 's-Hertogenbosch Zuid | D109: 3 | E109: 1 | F109: 1 | G109: 1 | H109: 0.3333333333 | I109: 0.3333333333 | J109: 0.3333333333 | K109: 5 | L109: 8 | M109: 2.666666667
B110: Phil Roothans | C110: De Hambaken | D110: 2 | E110: 1 | F110: 0 | G110: 1 | H110: 0.5 | I110: 0 | J110: 0.5 | K110: 3 | L110: -4 | M110: -2
B111: Pierre Kisters | C111: Hondsberg (Rosmalen) | D111: 11 | E111: 5 | F111: 1 | G111: 5 | H111: 0.4545454545 | I111: 0.09090909091 | J111: 0.4545454545 | K111: 17 | L111: -2 | M111: -0.1818181818
B112: Raymond Nijsten | C112: De Schutskamp | D112: 9 | E112: 3 | F112: 0 | G112: 6 | H112: 0.3333333333 | I112: 0 | J112: 0.6666666667 | K112: 9 | L112: -27 | M112: -3
B113: Ria de Kort | C113: Hondsberg (Rosmalen) | D113: 10 | E113: 5 | F113: 1 | G113: 4 | H113: 0.5 | I113: 0.1 | J113: 0.4 | K113: 17 | L113: -7 | M113: -0.7
B114: Riet Geerts | C114: Hondsberg (Rosmalen) | D114: 10 | E114: 3 | F114: 1 | G114: 6 | H114: 0.3 | I114: 0.1 | J114: 0.6 | K114: 11 | L114: -26 | M114: -2.6
B115: Rikie van der Laar | C115: De Hambaken | D115: 3 | E115: 1 | F115: 0 | G115: 2 | H115: 0.3333333333 | I115: 0 | J115: 0.6666666667 | K115: 3 | L115: -5 | M115: -1.666666667
B116: Rikkie van der Wielen | C116: De Schutskamp | D116: 1 | E116: 1 | F116: 0 | G116: 0 | H116: 1 | I116: 0 | J116: 0 | K116: 3 | L116: 4 | M116: 4
B117: Ronald Schoo | C117: 's-Hertogenbosch Zuid | D117: 12 | E117: 6 | F117: 0 | G117: 6 | H117: 0.5 | I117: 0 | J117: 0.5 | K117: 18 | L117: 13 | M117: 1.083333333
B118: Roy van de Brink | C118: 's-Hertogenbosch Zuid | D118: 12 | E118: 6 | F118: 1 | G118: 5 | H118: 0.5 | I118: 0.08333333333 | J118: 0.4166666667 | K118: 20 | L118: 0 | M118: 0
B119: Ruud van Hintum | C119: De Hambaken | D119: =IF(B119="","-",INDIRECT(CONCATENATE("'",B119,"'!gespeeld"))) -> 3 | E119: =IF(B119="","-",INDIRECT(CONCATENATE("'",B119,"'!gewonnen"))) -> 3 | F119: =IF(B119="","-",INDIRECT(CONCATENATE("'",B119,"'!gelijk"))) -> 0 | G119: =IF(B119="","-",INDIRECT(CONCATENATE("'",B119,"'!verloren"))) -> 0 | H119: =IF(B119="","-",INDIRECT(CONCATENATE("'",B119,"'!perc_gewonnen"))) -> 1 | I119: =IF(B119="","-",INDIRECT(CONCATENATE("'",B119,"'!perc_gelijk"))) -> 0 | J119: =IF(B119="","-",INDIRECT(CONCATENATE("'",B119,"'!perc_verloren"))) -> 0 | K119: =IF(B119="","-",INDIRECT(CONCATENATE("'",B119,"'!wedstrijdpunten"))) -> 9 | L119: =IF(B119="","-",INDIRECT(CONCATENATE("'",B119,"'!saldopunten"))) -> 13 | M119: =IF(B119="","-",INDIRECT(CONCATENATE("'",B119,"'!saldopunten_per_wedstrijd"))) -> 4.333333333
B120: Sjan Ondersteijn | C120: 's-Hertogenbosch Zuid | D120: 12 | E120: 7 | F120: 1 | G120: 4 | H120: 0.5833333333 | I120: 0.08333333333 | J120: 0.3333333333 | K120: 23 | L120: 26 | M120: 2.166666667
B121: Sylvester … | C121: De Schutskamp | D121: 3 | E121: 2 | F121: 0 | G121: 1 | H121: 0.6666666667 | I121: 0 | J121: 0.3333333333 | K121: 6 | L121: -6 | M121: -2
B122: Tara van der Heijden | C122: De Schutskamp | D122: 3 | E122: 1 | F122: 0 | G122: 2 | H122: 0.3333333333 | I122: 0 | J122: 0.6666666667 | K122: 3 | L122: -9 | M122: -3
B123: Theo Craane | C123: =IF(B123="","-",IF(INDIRECT(CONCATENATE("'",B123,"'!wijk_van_inschrijving"))="","-",INDIRECT(CONCATENATE("'",B123,"'!wijk_van_inschrijving")))) -> Hondsberg (Rosmalen) | D123: =IF(B123="","-",INDIRECT(CONCATENATE("'",B123,"'!gespeeld"))) -> 10 | E123: =IF(B123="","-",INDIRECT(CONCATENATE("'",B123,"'!gewonnen"))) -> 3 | F123: =IF(B123="","-",INDIRECT(CONCATENATE("'",B123,"'!gelijk"))) -> 1 | G123: =IF(B123="","-",INDIRECT(CONCATENATE("'",B123,"'!verloren"))) -> 6 | H123: =IF(B123="","-",INDIRECT(CONCATENATE("'",B123,"'!perc_gewonnen"))) -> 0.3 | I123: =IF(B123="","-",INDIRECT(CONCATENATE("'",B123,"'!perc_gelijk"))) -> 0.1 | J123: =IF(B123="","-",INDIRECT(CONCATENATE("'",B123,"'!perc_verloren"))) -> 0.6 | K123: =IF(B123="","-",INDIRECT(CONCATENATE("'",B123,"'!wedstrijdpunten"))) -> 11 | L123: =IF(B123="","-",INDIRECT(CONCATENATE("'",B123,"'!saldopunten"))) -> -1 | M123: =IF(B123="","-",INDIRECT(CONCATENATE("'",B123,"'!saldopunten_per_wedstrijd"))) -> -0.1
B124: Tijs Verbruggen | C124: 's-Hertogenbosch Zuid | D124: 6 | E124: 1 | F124: 0 | G124: 5 | H124: 0.1666666667 | I124: 0 | J124: 0.8333333333 | K124: 3 | L124: -44 | M124: -7.333333333
B125: Tiny Heijmans | C125: Hondsberg (Rosmalen) | D125: 5 | E125: 3 | F125: 1 | G125: 1 | H125: 0.6 | I125: 0.2 | J125: 0.2 | K125: 11 | L125: 30 | M125: 6
B126: Tiny Smits | C126: De Hambaken | D126: 6 | E126: 3 | F126: 0 | G126: 3 | H126: 0.5 | I126: 0 | J126: 0.5 | K126: 9 | L126: -15 | M126: -2.5
B127: Ton van der Wel | C127: De Schutskamp | D127: 3 | E127: 2 | F127: 0 | G127: 1 | H127: 0.6666666667 | I127: 0 | J127: 0.3333333333 | K127: 6 | L127: 15 | M127: 5
B128: Ton van Huijstee | C128: De Hambaken | D128: 3 | E128: 0 | F128: 0 | G128: 3 | H128: 0 | I128: 0 | J128: 1 | K128: 0 | L128: -7 | M128: -2.333333333
B129: Vera Beunk - Veeken | C129: De Hambaken | D129: 9 | E129: 7 | F129: 0 | G129: 2 | H129: 0.7777777778 | I129: 0 | J129: 0.2222222222 | K129: 21 | L129: 25 | M129: 2.777777778
B130: Willem Hartman | C130: De Schutskamp | D130: 5 | E130: 4 | F130: 1 | G130: 0 | H130: 0.8 | I130: 0.2 | J130: 0 | K130: 14 | L130: 17 | M130: 3.4
B131: Willem Warnaar | C131: De Schutskamp | D131: 9 | E131: 3 | F131: 0 | G131: 6 | H131: 0.3333333333 | I131: 0 | J131: 0.6666666667 | K131: 9 | L131: -13 | M131: -1.444444444
B132: Willy van der Wielen | C132: De Hambaken | D132: 6 | E132: 1 | F132: 0 | G132: 5 | H132: 0.1666666667 | I132: 0 | J132: 0.8333333333 | K132: 3 | L132: -37 | M132: -6.166666667
B135: Mocht jouw naam verkeerd geschreven staan, stuur dan even een e-mail naar:
B136: info@puboisleduc.nl

Sheet Ad Schellekens
B13: Ad Schellekens
B16: Gespeeld | F16: =COUNTIF(G32:G57,"W")+COUNTIF(G32:G57,"G")+COUNTIF(G32:G57,"V") -> 6
B17: Gewonnen | F17: =COUNTIF(G32:G57,"W") -> 3
B18: Gelijk | F18: =COUNTIF(G32:G57,"G") -> 0
B19: Verloren | F19: =COUNTIF(G32:G57,"V") -> 3 | H19: Wijk van initiële inschrijving (met shirtkleur finaledag)
B20: % gewonnen | F20: =IF(F16=0,0,F17/F16) -> 0.5
B21: % gelijk | F21: =IF(F16=0,0,F18/F16) -> 0
B22: % verloren | F22: =IF(F16=0,0,F19/F16) -> 0.5 | H22: De Hambaken
B23: Wedstrijdpunten | F23: =SUM(H32:H57) -> 9
B24: Saldopunten | F24: =SUM(I32:I57) -> -6
B25: Saldopunten per wedstrijd | F25: =IF(F16=0,0,F24/F16) -> -1
B28: LET OP: alleen wedstrijden die daadwerkelijk gespeeld zijn in de wijk waarvoor jij je hebt ingeschreven tellen mee!
B31: Datum | C31: Locatie | D31: UITSLAGEN | G31: W, V of G? | H31: Wedstrijd-punten | I31: Saldo-punten
B32: 2021-06-16 | C32: De Hambaken | D32: 9 | E32: - | F32: 4 | G32: =IF(OR($B$13="",wijk_van_inschrijving=""),"-",IF(OR(wijk_van_inschrijving<>C32,D32="",F32=""),"-",IF(D32>F32,"W",IF(D32=F32,"G",IF(D32<F32,"V","-"))))) -> W | H32: =IF(OR($B$13="",wijk_van_inschrijving=""),"-",IF(OR(wijk_van_inschrijving<>C32,G32="-",G32=""),"-",IF(G32="W",3,IF(G32="G",2,IF(G32="V",0,0))))) -> 3 | I32: =IF(OR($B$13="",wijk_van_inschrijving=""),"-",IF(wijk_van_inschrijving<>C32,"-",IF(D32>=0,IF(F32="","-",D32-F32)))) -> 5
B33: 2021-06-16 | C33: De Hambaken | D33: 7 | E33: - | F33: 6 | G33: W | H33: 3 | I33: 1
B34: 2021-06-16 | C34: De Hambaken | D34: 7 | E34: - | F34: 6 | G34: W | H34: 3 | I34: 1
B35: 2021-06-23 | C35: De Hambaken | D35: 8 | E35: - | F35: 13 | G35: V | H35: 0 | I35: -5
B36: 2021-06-23 | C36: De Hambaken | D36: 4 | E36: - | F36: 9 | G36: V | H36: 0 | I36: -5
B37: 2021-06-23 | C37: De Hambaken | D37: 10 | E37: - | F37: 13 | G37: V | H37: 0 | I37: -3
E38: - | G38: - | H38: - | I38: -
E39: - | G39: - | H39: - | I39: -
E40: - | G40: - | H40: - | I40: -
E41: - | G41: - | H41: - | I41: -
E42: - | G42: - | H42: - | I42: -
E43: - | G43: - | H43: - | I43: -
E44: - | G44: - | H44: - | I44: -
E45: - | G45: - | H45: - | I45: -
E46: - | G46: - | H46: - | I46: -
E47: - | G47: - | H47: - | I47: -
E48: - | G48: - | H48: - | I48: -
E49: - | G49: - | H49: - | I49: -
E50: - | G50: - | H50: - | I50: -
E51: - | G51: - | H51: - | I51: -
E52: - | G52: - | H52: - | I52: -
E53: - | G53: - | H53: - | I53: -
E54: - | G54: - | H54: - | I54: -
E55: - | G55: - | H55: - | I55: -
E56: - | G56: - | H56: - | I56: -

Sheet André Abdoella
B13: André Abdoella
B16: Gespeeld | F16: =COUNTIF(G32:G57,"W")+COUNTIF(G32:G57,"G")+COUNTIF(G32:G57,"V") -> 12
B17: Gewonnen | F17: =COUNTIF(G32:G57,"W") -> 10
B18: Gelijk | F18: =COUNTIF(G32:G57,"G") -> 0
B19: Verloren | F19: =COUNTIF(G32:G57,"V") -> 2 | H19: Wijk van initiële inschrijving (met shirtkleur finaledag)
B20: % gewonnen | F20: =IF(F16=0,0,F17/F16) -> 0.8333333333
B21: % gelijk | F21: =IF(F16=0,0,F18/F16) -> 0
B22: % verloren | F22: =IF(F16=0,0,F19/F16) -> 0.1666666667 | H22: 's-Hertogenbosch Zuid
B23: Wedstrijdpunten | F23: =SUM(H32:H57) -> 30
B24: Saldopunten | F24: =SUM(I32:I57) -> 56
B25: Saldopunten per wedstrijd | F25: =IF(F16=0,0,F24/F16) -> 4.666666667
B28: LET OP: alleen wedstrijden die daadwerkelijk gespeeld zijn in de wijk waarvoor jij je hebt ingeschreven tellen mee!
B31: Datum | C31: Locatie | D31: UITSLAGEN | G31: W, V of G? | H31: Wedstrijd-punten | I31: Saldo-punten
B32: 2021-06-18 | C32: 's-Hertogenbosch Zuid | D32: 4 | E32: - | F32: 13 | G32: =IF(OR($B$13="",wijk_van_inschrijving=""),"-",IF(OR(wijk_van_inschrijving<>C32,D32="",F32=""),"-",IF(D32>F32,"W",IF(D32=F32,"G",IF(D32<F32,"V","-"))))) -> V | H32: =IF(OR($B$13="",wijk_van_inschrijving=""),"-",IF(OR(wijk_van_inschrijving<>C32,G32="-",G32=""),"-",IF(G32="W",3,IF(G32="G",2,IF(G32="V",0,0))))) -> 0 | I32: =IF(OR($B$13="",wijk_van_inschrijving=""),"-",IF(wijk_van_inschrijving<>C32,"-",IF(D32>=0,IF(F32="","-",D32-F32)))) -> -9
B33: 2021-06-18 | C33: 's-Hertogenbosch Zuid | D33: 7 | E33: - | F33: 5 | G33: W | H33: 3 | I33: 2
B34: 2021-06-18 | C34: 's-Hertogenbosch Zuid | D34: 13 | E34: - | F34: 1 | G34: W | H34: 3 | I34: 12
B35: 2021-06-25 | C35: 's-Hertogenbosch Zuid | D35: 13 | E35: - | F35: 9 | G35: W | H35: 3 | I35: 4
B36: 2021-06-25 | C36: 's-Hertogenbosch Zuid | D36: 13 | E36: - | F36: 0 | G36: W | H36: 3 | I36: 13
B37: 2021-06-25 | C37: 's-Hertogenbosch Zuid | D37: 13 | E37: - | F37: 9 | G37: W | H37: 3 | I37: 4
B38: 2021-07-01 | C38: 's-Hertogenbosch Zuid | D38: 12 | E38: - | F38: 7 | G38: W | H38: 3 | I38: 5
B39: 2021-07-01 | C39: 's-Hertogenbosch Zuid | D39: 4 | E39: - | F39: 13 | G39: V | H39: 0 | I39: -9
B40: 2021-07-01 | C40: 's-Hertogenbosch Zuid | D40: 13 | E40: - | F40: 0 | G40: W | H40: 3 | I40: 13
B41: 2021-07-08 | C41: 's-Hertogenbosch Zuid | D41: 13 | E41: - | F41: 3 | G41: W | H41: 3 | I41: 10
B42: 2021-07-08 | C42: 's-Hertogenbosch Zuid | D42: 10 | E42: - | F42: 3 | G42: W | H42: 3 | I42: 7
B43: 2021-07-08 | C43: 's-Hertogenbosch Zuid | D43: 12 | E43: - | F43: 8 | G43: W | H43: 3 | I43: 4
E44: - | G44: - | H44: - | I44: -
E45: - | G45: - | H45: - | I45: -
E46: - | G46: - | H46: - | I46: -
E47: - | G47: - | H47: - | I47: -
E48: - | G48: - | H48: - | I48: -
E49: - | G49: - | H49: - | I49: -
E50: - | G50: - | H50: - | I50: -
E51: - | G51: - | H51: - | I51: -
E52: - | G52: - | H52: - | I52: -
E53: - | G53: - | H53: - | I53: -
E54: - | G54: - | H54: - | I54: -
E55: - | G55: - | H55: - | I55: -
E56: - | G56: - | H56: - | I56: -

Sheet Annie Liebrand
B13: Annie Liebrand
B16: Gespeeld | F16: =COUNTIF(G32:G57,"W")+COUNTIF(G32:G57,"G")+COUNTIF(G32:G57,"V") -> 12
B17: Gewonnen | F17: =COUNTIF(G32:G57,"W") -> 5
B18: Gelijk | F18: =COUNTIF(G32:G57,"G") -> 0
B19: Verloren | F19: =COUNTIF(G32:G57,"V") -> 7 | H19: Wijk van initiële inschrijving (met shirtkleur finaledag)
B20: % gewonnen | F20: =IF(F16=0,0,F17/F16) -> 0.4166666667
B21: % gelijk | F21: =IF(F16=0,0,F18/F16) -> 0
B22: % verloren | F22: =IF(F16=0,0,F19/F16) -> 0.5833333333 | H22: 's-Hertogenbosch Zuid
B23: Wedstrijdpunten | F23: =SUM(H32:H57) -> 15
B24: Saldopunten | F24: =SUM(I32:I57) -> -30
B25: Saldopunten per wedstrijd | F25: =IF(F16=0,0,F24/F16) -> -2.5
B28: LET OP: alleen wedstrijden die daadwerkelijk gespeeld zijn in de wijk waarvoor jij je hebt ingeschreven tellen mee!
B31: Datum | C31: Locatie | D31: UITSLAGEN | G31: W, V of G? | H31: Wedstrijd-punten | I31: Saldo-punten
B32: 2021-06-18 | C32: 's-Hertogenbosch Zuid | D32: 13 | E32: - | F32: 4 | G32: =IF(OR($B$13="",wijk_van_inschrijving=""),"-",IF(OR(wijk_van_inschrijving<>C32,D32="",F32=""),"-",IF(D32>F32,"W",IF(D32=F32,"G",IF(D32<F32,"V","-"))))) -> W | H32: =IF(OR($B$13="",wijk_van_inschrijving=""),"-",IF(OR(wijk_van_inschrijving<>C32,G32="-",G32=""),"-",IF(G32="W",3,IF(G32="G",2,IF(G32="V",0,0))))) -> 3 | I32: =IF(OR($B$13="",wijk_van_inschrijving=""),"-",IF(wijk_van_inschrijving<>C32,"-",IF(D32>=0,IF(F32="","-",D32-F32)))) -> 9
B33: 2021-06-18 | C33: 's-Hertogenbosch Zuid | D33: 1 | E33: - | F33: 12 | G33: V | H33: 0 | I33: -11
B34: 2021-06-18 | C34: 's-Hertogenbosch Zuid | D34: 2 | E34: - | F34: 13 | G34: V | H34: 0 | I34: -11
B35: 2021-06-25 | C35: 's-Hertogenbosch Zuid | D35: 13 | E35: - | F35: 4 | G35: W | H35: 3 | I35: 9
B36: 2021-06-25 | C36: 's-Hertogenbosch Zuid | D36: 0 | E36: - | F36: 13 | G36: V | H36: 0 | I36: -13
B37: 2021-06-25 | C37: 's-Hertogenbosch Zuid | D37: 3 | E37: - | F37: 13 | G37: V | H37: 0 | I37: -10
B38: 2021-07-01 | C38: 's-Hertogenbosch Zuid | D38: 5 | E38: - | F38: 13 | G38: V | H38: 0 | I38: -8
B39: 2021-07-01 | C39: 's-Hertogenbosch Zuid | D39: 8 | E39: - | F39: 6 | G39: W | H39: 3 | I39: 2
B40: 2021-07-01 | C40: 's-Hertogenbosch Zuid | D40: 13 | E40: - | F40: 8 | G40: W | H40: 3 | I40: 5
B41: 2021-07-08 | C41: 's-Hertogenbosch Zuid | D41: 10 | E41: - | F41: 2 | G41: W | H41: 3 | I41: 8
B42: 2021-07-08 | C42: 's-Hertogenbosch Zuid | D42: 5 | E42: - | F42: 11 | G42: V | H42: 0 | I42: -6
B43: 2021-07-08 | C43: 's-Hertogenbosch Zuid | D43: 8 | E43: - | F43: 12 | G43: V | H43: 0 | I43: -4
E44: - | G44: - | H44: - | I44: -
E45: - | G45: - | H45: - | I45: -
E46: - | G46: - | H46: - | I46: -
E47: - | G47: - | H47: - | I47: -
E48: - | G48: - | H48: - | I48: -
E49: - | G49: - | H49: - | I49: -
E50: - | G50: - | H50: - | I50: -
E51: - | G51: - | H51: - | I51: -
E52: - | G52: - | H52: - | I52: -
E53: - | G53: - | H53: - | I53: -
E54: - | G54: - | H54: - | I54: -
E55: - | G55: - | H55: - | I55: -
E56: - | G56: - | H56: - | I56: -

Sheet Anne-Louise Westelaken
B13: Anne-Louise Westelaken
B16: Gespeeld | F16: =COUNTIF(G32:G57,"W")+COUNTIF(G32:G57,"G")+COUNTIF(G32:G57,"V") -> 3
B17: Gewonnen | F17: =COUNTIF(G32:G57,"W") -> 1
B18: Gelijk | F18: =COUNTIF(G32:G57,"G") -> 0
B19: Verloren | F19: =COUNTIF(G32:G57,"V") -> 2 | H19: Wijk van initiële inschrijving (met shirtkleur finaledag)
B20: % gewonnen | F20: =IF(F16=0,0,F17/F16) -> 0.3333333333
B21: % gelijk | F21: =IF(F16=0,0,F18/F16) -> 0
B22: % verloren | F22: =IF(F16=0,0,F19/F16) -> 0.6666666667 | H22: Hondsberg (Rosmalen)
B23: Wedstrijdpunten | F23: =SUM(H32:H57) -> 3
B24: Saldopunten | F24: =SUM(I32:I57) -> -6
B25: Saldopunten per wedstrijd | F25: =IF(F16=0,0,F24/F16) -> -2
B28: LET OP: alleen wedstrijden die daadwerkelijk gespeeld zijn in de wijk waarvoor jij je hebt ingeschreven tellen mee!
B31: Datum | C31: Locatie | D31: UITSLAGEN | G31: W, V of G? | H31: Wedstrijd-punten | I31: Saldo-punten
B32: 2021-06-15 | C32: Hondsberg (Rosmalen) | D32: 7 | E32: - | F32: 9 | G32: =IF(OR($B$13="",wijk_van_inschrijving=""),"-",IF(OR(wijk_van_inschrijving<>C32,D32="",F32=""),"-",IF(D32>F32,"W",IF(D32=F32,"G",IF(D32<F32,"V","-"))))) -> V | H32: =IF(OR($B$13="",wijk_van_inschrijving=""),"-",IF(OR(wijk_van_inschrijving<>C32,G32="-",G32=""),"-",IF(G32="W",3,IF(G32="G",2,IF(G32="V",0,0))))) -> 0 | I32: =IF(OR($B$13="",wijk_van_inschrijving=""),"-",IF(wijk_van_inschrijving<>C32,"-",IF(D32>=0,IF(F32="","-",D32-F32)))) -> -2
B33: 2021-06-15 | C33: Hondsberg (Rosmalen) | D33: 8 | E33: - | F33: 5 | G33: W | H33: 3 | I33: 3
B34: 2021-06-15 | C34: Hondsberg (Rosmalen) | D34: 6 | E34: - | F34: 13 | G34: V | H34: 0 | I34: -7
E35: - | G35: - | H35: - | I35: -
E36: - | G36: - | H36: - | I36: -
E37: - | G37: - | H37: - | I37: -
E38: - | G38: - | H38: - | I38: -
E39: - | G39: - | H39: - | I39: -
E40: - | G40: - | H40: - | I40: -
E41: - | G41: - | H41: - | I41: -
E42: - | G42: - | H42: - | I42: -
E43: - | G43: - | H43: - | I43: -
E44: - | G44: - | H44: - | I44: -
E45: - | G45: - | H45: - | I45: -
E46: - | G46: - | H46: - | I46: -
E47: - | G47: - | H47: - | I47: -
E48: - | G48: - | H48: - | I48: -
E49: - | G49: - | H49: - | I49: -
E50: - | G50: - | H50: - | I50: -
E51: - | G51: - | H51: - | I51: -
E52: - | G52: - | H52: - | I52: -
E53: - | G53: - | H53: - | I53: -
E54: - | G54: - | H54: - | I54: -
E55: - | G55: - | H55: - | I55: -
E56: - | G56: - | H56: - | I56: -

Sheet Antoinette Brok
B13: Antoinette Brok
B16: Gespeeld | F16: =COUNTIF(G32:G57,"W")+COUNTIF(G32:G57,"G")+COUNTIF(G32:G57,"V") -> 5
B17: Gewonnen | F17: =COUNTIF(G32:G57,"W") -> 4
B18: Gelijk | F18: =COUNTIF(G32:G57,"G") -> 1
B19: Verloren | F19: =COUNTIF(G32:G57,"V") -> 0 | H19: Wijk van initiële inschrijving (met shirtkleur finaledag)
B20: % gewonnen | F20: =IF(F16=0,0,F17/F16) -> 0.8
B21: % gelijk | F21: =IF(F16=0,0,F18/F16) -> 0.2
B22: % verloren | F22: =IF(F16=0,0,F19/F16) -> 0 | H22: De Schutskamp
B23: Wedstrijdpunten | F23: =SUM(H32:H57) -> 14
B24: Saldopunten | F24: =SUM(I32:I57) -> 30
B25: Saldopunten per wedstrijd | F25: =IF(F16=0,0,F24/F16) -> 6
B28: LET OP: alleen wedstrijden die daadwerkelijk gespeeld zijn in de wijk waarvoor jij je hebt ingeschreven tellen mee!
B31: Datum | C31: Locatie | D31: UITSLAGEN | G31: W, V of G? | H31: Wedstrijd-punten | I31: Saldo-punten
B32: 2021-06-14 | C32: De Schutskamp | D32: 8 | E32: - | F32: 1 | G32: =IF(OR($B$13="",wijk_van_inschrijving=""),"-",IF(OR(wijk_van_inschrijving<>C32,D32="",F32=""),"-",IF(D32>F32,"W",IF(D32=F32,"G",IF(D32<F32,"V","-"))))) -> W | H32: =IF(OR($B$13="",wijk_van_inschrijving=""),"-",IF(OR(wijk_van_inschrijving<>C32,G32="-",G32=""),"-",IF(G32="W",3,IF(G32="G",2,IF(G32="V",0,0))))) -> 3 | I32: =IF(OR($B$13="",wijk_van_inschrijving=""),"-",IF(wijk_van_inschrijving<>C32,"-",IF(D32>=0,IF(F32="","-",D32-F32)))) -> 7
B33: 2021-06-14 | C33: De Schutskamp | D33: 13 | E33: - | F33: 4 | G33: W | H33: 3 | I33: 9
B34: 2021-06-24 | C34: De Schutskamp | D34: 13 | E34: - | F34: 3 | G34: W | H34: 3 | I34: 10
B35: 2021-06-24 | C35: De Schutskamp | D35: 10 | E35: - | F35: 6 | G35: W | H35: 3 | I35: 4
B36: 2021-06-24 | C36: De Schutskamp | D36: 11 | E36: - | F36: 11 | G36: G | H36: 2 | I36: 0
E37: - | G37: - | H37: - | I37: -
E38: - | G38: - | H38: - | I38: -
E39: - | G39: - | H39: - | I39: -
E40: - | G40: - | H40: - | I40: -
E41: - | G41: - | H41: - | I41: -
E42: - | G42: - | H42: - | I42: -
E43: - | G43: - | H43: - | I43: -
E44: - | G44: - | H44: - | I44: -
E45: - | G45: - | H45: - | I45: -
E46: - | G46: - | H46: - | I46: -
E47: - | G47: - | H47: - | I47: -
E48: - | G48: - | H48: - | I48: -
E49: - | G49: - | H49: - | I49: -
E50: - | G50: - | H50: - | I50: -
E51: - | G51: - | H51: - | I51: -
E52: - | G52: - | H52: - | I52: -
E53: - | G53: - | H53: - | I53: -
E54: - | G54: - | H54: - | I54: -
E55: - | G55: - | H55: - | I55: -
E56: - | G56: - | H56: - | I56: -

Sheet Antoon van Mil
B13: Antoon van Mil
B16: Gespeeld | F16: =COUNTIF(G32:G57,"W")+COUNTIF(G32:G57,"G")+COUNTIF(G32:G57,"V") -> 5
B17: Gewonnen | F17: =COUNTIF(G32:G57,"W") -> 2
B18: Gelijk | F18: =COUNTIF(G32:G57,"G") -> 0
B19: Verloren | F19: =COUNTIF(G32:G57,"V") -> 3 | H19: Wijk van initiële inschrijving (met shirtkleur finaledag)
B20: % gewonnen | F20: =IF(F16=0,0,F17/F16) -> 0.4
B21: % gelijk | F21: =IF(F16=0,0,F18/F16) -> 0
B22: % verloren | F22: =IF(F16=0,0,F19/F16) -> 0.6 | H22: 's-Hertogenbosch Zuid
B23: Wedstrijdpunten | F23: =SUM(H32:H57) -> 6
B24: Saldopunten | F24: =SUM(I32:I57) -> 7
B25: Saldopunten per wedstrijd | F25: =IF(F16=0,0,F24/F16) -> 1.4
B28: LET OP: alleen wedstrijden die daadwerkelijk gespeeld zijn in de wijk waarvoor jij je hebt ingeschreven tellen mee!
B31: Datum | C31: Locatie | D31: UITSLAGEN | G31: W, V of G? | H31: Wedstrijd-punten | I31: Saldo-punten
B32: 2021-07-01 | C32: 's-Hertogenbosch Zuid | D32: 11 | E32: - | F32: 3 | G32: =IF(OR($B$13="",wijk_van_inschrijving=""),"-",IF(OR(wijk_van_inschrijving<>C32,D32="",F32=""),"-",IF(D32>F32,"W",IF(D32=F32,"G",IF(D32<F32,"V","-"))))) -> W | H32: =IF(OR($B$13="",wijk_van_inschrijving=""),"-",IF(OR(wijk_van_inschrijving<>C32,G32="-",G32=""),"-",IF(G32="W",3,IF(G32="G",2,IF(G32="V",0,0))))) -> 3 | I32: =IF(OR($B$13="",wijk_van_inschrijving=""),"-",IF(wijk_van_inschrijving<>C32,"-",IF(D32>=0,IF(F32="","-",D32-F32)))) -> 8
B33: 2021-07-01 | C33: 's-Hertogenbosch Zuid | D33: 13 | E33: - | F33: 1 | G33: W | H33: 3 | I33: 12
B34: 2021-07-08 | C34: 's-Hertogenbosch Zuid | D34: 2 | E34: - | F34: 10 | G34: V | H34: 0 | I34: -8
B35: 2021-07-08 | C35: 's-Hertogenbosch Zuid | D35: 7 | E35: - | F35: 8 | G35: V | H35: 0 | I35: -1
B36: 2021-07-08 | C36: 's-Hertogenbosch Zuid | D36: 8 | E36: - | F36: 12 | G36: V | H36: 0 | I36: -4
E37: - | G37: - | H37: - | I37: -
E38: - | G38: - | H38: - | I38: -
E39: - | G39: - | H39: - | I39: -
E40: - | G40: - | H40: - | I40: -
E41: - | G41: - | H41: - | I41: -
E42: - | G42: - | H42: - | I42: -
E43: - | G43: - | H43: - | I43: -
E44: - | G44: - | H44: - | I44: -
E45: - | G45: - | H45: - | I45: -
E46: - | G46: - | H46: - | I46: -
E47: - | G47: - | H47: - | I47: -
E48: - | G48: - | H48: - | I48: -
E49: - | G49: - | H49: - | I49: -
E50: - | G50: - | H50: - | I50: -
E51: - | G51: - | H51: - | I51: -
E52: - | G52: - | H52: - | I52: -
E53: - | G53: - | H53: - | I53: -
E54: - | G54: - | H54: - | I54: -
E55: - | G55: - | H55: - | I55: -
E56: - | G56: - | H56: - | I56: -

Sheet Bart Blatter
B13: Bart Blatter
B16: Gespeeld | F16: =COUNTIF(G32:G57,"W")+COUNTIF(G32:G57,"G")+COUNTIF(G32:G57,"V") -> 3
B17: Gewonnen | F17: =COUNTIF(G32:G57,"W") -> 1
B18: Gelijk | F18: =COUNTIF(G32:G57,"G") -> 0
B19: Verloren | F19: =COUNTIF(G32:G57,"V") -> 2 | H19: Wijk van initiële inschrijving (met shirtkleur finaledag)
B20: % gewonnen | F20: =IF(F16=0,0,F17/F16) -> 0.3333333333
B21: % gelijk | F21: =IF(F16=0,0,F18/F16) -> 0
B22: % verloren | F22: =IF(F16=0,0,F19/F16) -> 0.6666666667 | H22: De Schutskamp
B23: Wedstrijdpunten | F23: =SUM(H32:H57) -> 3
B24: Saldopunten | F24: =SUM(I32:I57) -> -10
B25: Saldopunten per wedstrijd | F25: =IF(F16=0,0,F24/F16) -> -3.333333333
B28: LET OP: alleen wedstrijden die daadwerkelijk gespeeld zijn in de wijk waarvoor jij je hebt ingeschreven tellen mee!
B31: Datum | C31: Locatie | D31: UITSLAGEN | G31: W, V of G? | H31: Wedstrijd-punten | I31: Saldo-punten
B32: 2021-07-05 | C32: De Schutskamp | D32: 6 | E32: - | F32: 10 | G32: =IF(OR($B$13="",wijk_van_inschrijving=""),"-",IF(OR(wijk_van_inschrijving<>C32,D32="",F32=""),"-",IF(D32>F32,"W",IF(D32=F32,"G",IF(D32<F32,"V","-"))))) -> V | H32: =IF(OR($B$13="",wijk_van_inschrijving=""),"-",IF(OR(wijk_van_inschrijving<>C32,G32="-",G32=""),"-",IF(G32="W",3,IF(G32="G",2,IF(G32="V",0,0))))) -> 0 | I32: =IF(OR($B$13="",wijk_van_inschrijving=""),"-",IF(wijk_van_inschrijving<>C32,"-",IF(D32>=0,IF(F32="","-",D32-F32)))) -> -4
B33: 2021-07-05 | C33: De Schutskamp | D33: 12 | E33: - | F33: 8 | G33: W | H33: 3 | I33: 4
B34: 2021-07-05 | C34: De Schutskamp | D34: 3 | E34: - | F34: 13 | G34: V | H34: 0 | I34: -10
E35: - | G35: - | H35: - | I35: -
E36: - | G36: - | H36: - | I36: -
E37: - | G37: - | H37: - | I37: -
E38: - | G38: - | H38: - | I38: -
E39: - | G39: - | H39: - | I39: -
E40: - | G40: - | H40: - | I40: -
E41: - | G41: - | H41: - | I41: -
E42: - | G42: - | H42: - | I42: -
E43: - | G43: - | H43: - | I43: -
E44: - | G44: - | H44: - | I44: -
E45: - | G45: - | H45: - | I45: -
E46: - | G46: - | H46: - | I46: -
E47: - | G47: - | H47: - | I47: -
E48: - | G48: - | H48: - | I48: -
E49: - | G49: - | H49: - | I49: -
E50: - | G50: - | H50: - | I50: -
E51: - | G51: - | H51: - | I51: -
E52: - | G52: - | H52: - | I52: -
E53: - | G53: - | H53: - | I53: -
E54: - | G54: - | H54: - | I54: -
E55: - | G55: - | H55: - | I55: -
E56: - | G56: - | H56: - | I56: -

Sheet Bas Peters
B13: Bas Peters
B16: Gespeeld | F16: =COUNTIF(G32:G57,"W")+COUNTIF(G32:G57,"G")+COUNTIF(G32:G57,"V") -> 2
B17: Gewonnen | F17: =COUNTIF(G32:G57,"W") -> 1
B18: Gelijk | F18: =COUNTIF(G32:G57,"G") -> 0
B19: Verloren | F19: =COUNTIF(G32:G57,"V") -> 1 | H19: Wijk van initiële inschrijving (met shirtkleur finaledag)
B20: % gewonnen | F20: =IF(F16=0,0,F17/F16) -> 0.5
B21: % gelijk | F21: =IF(F16=0,0,F18/F16) -> 0
B22: % verloren | F22: =IF(F16=0,0,F19/F16) -> 0.5 | H22: De Schutskamp
B23: Wedstrijdpunten | F23: =SUM(H32:H57) -> 3
B24: Saldopunten | F24: =SUM(I32:I57) -> 0
B25: Saldopunten per wedstrijd | F25: =IF(F16=0,0,F24/F16) -> 0
B28: LET OP: alleen wedstrijden die daadwerkelijk gespeeld zijn in de wijk waarvoor jij je hebt ingeschreven tellen mee!
B31: Datum | C31: Locatie | D31: UITSLAGEN | G31: W, V of G? | H31: Wedstrijd-punten | I31: Saldo-punten
B32: 2021-07-05 | C32: De Schutskamp | D32: 13 | E32: - | F32: 9 | G32: =IF(OR($B$13="",wijk_van_inschrijving=""),"-",IF(OR(wijk_van_inschrijving<>C32,D32="",F32=""),"-",IF(D32>F32,"W",IF(D32=F32,"G",IF(D32<F32,"V","-"))))) -> W | H32: =IF(OR($B$13="",wijk_van_inschrijving=""),"-",IF(OR(wijk_van_inschrijving<>C32,G32="-",G32=""),"-",IF(G32="W",3,IF(G32="G",2,IF(G32="V",0,0))))) -> 3 | I32: =IF(OR($B$13="",wijk_van_inschrijving=""),"-",IF(wijk_van_inschrijving<>C32,"-",IF(D32>=0,IF(F32="","-",D32-F32)))) -> 4
B33: 2021-07-05 | C33: De Schutskamp | D33: 8 | E33: - | F33: 12 | G33: V | H33: 0 | I33: -4
E34: - | G34: - | H34: - | I34: -
E35: - | G35: - | H35: - | I35: -
E36: - | G36: - | H36: - | I36: -
E37: - | G37: - | H37: - | I37: -
E38: - | G38: - | H38: - | I38: -
E39: - | G39: - | H39: - | I39: -
E40: - | G40: - | H40: - | I40: -
E41: - | G41: - | H41: - | I41: -
E42: - | G42: - | H42: - | I42: -
E43: - | G43: - | H43: - | I43: -
E44: - | G44: - | H44: - | I44: -
E45: - | G45: - | H45: - | I45: -
E46: - | G46: - | H46: - | I46: -
E47: - | G47: - | H47: - | I47: -
E48: - | G48: - | H48: - | I48: -
E49: - | G49: - | H49: - | I49: -
E50: - | G50: - | H50: - | I50: -
E51: - | G51: - | H51: - | I51: -
E52: - | G52: - | H52: - | I52: -
E53: - | G53: - | H53: - | I53: -
E54: - | G54: - | H54: - | I54: -
E55: - | G55: - | H55: - | I55: -
E56: - | G56: - | H56: - | I56: -

Sheet Ben Kok
B13: Ben Kok
B16: Gespeeld | F16: =COUNTIF(G32:G57,"W")+COUNTIF(G32:G57,"G")+COUNTIF(G32:G57,"V") -> 9
B17: Gewonnen | F17: =COUNTIF(G32:G57,"W") -> 3
B18: Gelijk | F18: =COUNTIF(G32:G57,"G") -> 2
B19: Verloren | F19: =COUNTIF(G32:G57,"V") -> 4 | H19: Wijk van initiële inschrijving (met shirtkleur finaledag)
B20: % gewonnen | F20: =IF(F16=0,0,F17/F16) -> 0.3333333333
B21: % gelijk | F21: =IF(F16=0,0,F18/F16) -> 0.2222222222
B22: % verloren | F22: =IF(F16=0,0,F19/F16) -> 0.4444444444 | H22: De Schutskamp
B23: Wedstrijdpunten | F23: =SUM(H32:H57) -> 13
B24: Saldopunten | F24: =SUM(I32:I57) -> -11
B25: Saldopunten per wedstrijd | F25: =IF(F16=0,0,F24/F16) -> -1.222222222
B28: LET OP: alleen wedstrijden die daadwerkelijk gespeeld zijn in de wijk waarvoor jij je hebt ingeschreven tellen mee!
B31: Datum | C31: Locatie | D31: UITSLAGEN | G31: W, V of G? | H31: Wedstrijd-punten | I31: Saldo-punten
B32: 2021-06-14 | C32: De Schutskamp | D32: 0 | E32: - | F32: 13 | G32: =IF(OR($B$13="",wijk_van_inschrijving=""),"-",IF(OR(wijk_van_inschrijving<>C32,D32="",F32=""),"-",IF(D32>F32,"W",IF(D32=F32,"G",IF(D32<F32,"V","-"))))) -> V | H32: =IF(OR($B$13="",wijk_van_inschrijving=""),"-",IF(OR(wijk_van_inschrijving<>C32,G32="-",G32=""),"-",IF(G32="W",3,IF(G32="G",2,IF(G32="V",0,0))))) -> 0 | I32: =IF(OR($B$13="",wijk_van_inschrijving=""),"-",IF(wijk_van_inschrijving<>C32,"-",IF(D32>=0,IF(F32="","-",D32-F32)))) -> -13
B33: 2021-06-14 | C33: De Schutskamp | D33: 7 | E33: - | F33: 4 | G33: W | H33: 3 | I33: 3
B34: 2021-06-14 | C34: De Schutskamp | D34: 5 | E34: - | F34: 9 | G34: V | H34: 0 | I34: -4
B35: 2021-06-24 | C35: De Schutskamp | D35: 5 | E35: - | F35: 5 | G35: G | H35: 2 | I35: 0
B36: 2021-06-24 | C36: De Schutskamp | D36: 3 | E36: - | F36: 13 | G36: V | H36: 0 | I36: -10
B37: 2021-06-24 | C37: De Schutskamp | D37: 12 | E37: - | F37: 13 | G37: V | H37: 0 | I37: -1
B38: 2021-06-28 | C38: De Schutskamp | D38: 13 | E38: - | F38: 8 | G38: W | H38: 3 | I38: 5
B39: 2021-06-28 | C39: De Schutskamp | D39: 13 | E39: - | F39: 4 | G39: W | H39: 3 | I39: 9
B40: 2021-06-28 | C40: De Schutskamp | D40: 9 | E40: - | F40: 9 | G40: G | H40: 2 | I40: 0
E41: - | G41: - | H41: - | I41: -
E42: - | G42: - | H42: - | I42: -
E43: - | G43: - | H43: - | I43: -
E44: - | G44: - | H44: - | I44: -
E45: - | G45: - | H45: - | I45: -
E46: - | G46: - | H46: - | I46: -
E47: - | G47: - | H47: - | I47: -
E48: - | G48: - | H48: - | I48: -
E49: - | G49: - | H49: - | I49: -
E50: - | G50: - | H50: - | I50: -
E51: - | G51: - | H51: - | I51: -
E52: - | G52: - | H52: - | I52: -
E53: - | G53: - | H53: - | I53: -
E54: - | G54: - | H54: - | I54: -
E55: - | G55: - | H55: - | I55: -
E56: - | G56: - | H56: - | I56: -

Sheet Bep Bosters
B13: Bep Bosters
B16: Gespeeld | F16: =COUNTIF(G32:G57,"W")+COUNTIF(G32:G57,"G")+COUNTIF(G32:G57,"V") -> 3
B17: Gewonnen | F17: =COUNTIF(G32:G57,"W") -> 2
B18: Gelijk | F18: =COUNTIF(G32:G57,"G") -> 0
B19: Verloren | F19: =COUNTIF(G32:G57,"V") -> 1 | H19: Wijk van initiële inschrijving (met shirtkleur finaledag)
B20: % gewonnen | F20: =IF(F16=0,0,F17/F16) -> 0.6666666667
B21: % gelijk | F21: =IF(F16=0,0,F18/F16) -> 0
B22: % verloren | F22: =IF(F16=0,0,F19/F16) -> 0.3333333333 | H22: De Schutskamp
B23: Wedstrijdpunten | F23: =SUM(H32:H57) -> 6
B24: Saldopunten | F24: =SUM(I32:I57) -> 10
B25: Saldopunten per wedstrijd | F25: =IF(F16=0,0,F24/F16) -> 3.333333333
B28: LET OP: alleen wedstrijden die daadwerkelijk gespeeld zijn in de wijk waarvoor jij je hebt ingeschreven tellen mee!
B31: Datum | C31: Locatie | D31: UITSLAGEN | G31: W, V of G? | H31: Wedstrijd-punten | I31: Saldo-punten
B32: 2021-07-05 | C32: De Schutskamp | D32: 6 | E32: - | F32: 8 | G32: =IF(OR($B$13="",wijk_van_inschrijving=""),"-",IF(OR(wijk_van_inschrijving<>C32,D32="",F32=""),"-",IF(D32>F32,"W",IF(D32=F32,"G",IF(D32<F32,"V","-"))))) -> V | H32: =IF(OR($B$13="",wijk_van_inschrijving=""),"-",IF(OR(wijk_van_inschrijving<>C32,G32="-",G32=""),"-",IF(G32="W",3,IF(G32="G",2,IF(G32="V",0,0))))) -> 0 | I32: =IF(OR($B$13="",wijk_van_inschrijving=""),"-",IF(wijk_van_inschrijving<>C32,"-",IF(D32>=0,IF(F32="","-",D32-F32)))) -> -2
B33: 2021-07-05 | C33: De Schutskamp | D33: 9 | E33: - | F33: 3 | G33: W | H33: 3 | I33: 6
B34: 2021-07-05 | C34: De Schutskamp | D34: 9 | E34: - | F34: 3 | G34: W | H34: 3 | I34: 6
E35: - | G35: - | H35: - | I35: -
E36: - | G36: - | H36: - | I36: -
E37: - | G37: - | H37: - | I37: -
E38: - | G38: - | H38: - | I38: -
E39: - | G39: - | H39: - | I39: -
E40: - | G40: - | H40: - | I40: -
E41: - | G41: - | H41: - | I41: -
E42: - | G42: - | H42: - | I42: -
E43: - | G43: - | H43: - | I43: -
E44: - | G44: - | H44: - | I44: -
E45: - | G45: - | H45: - | I45: -
E46: - | G46: - | H46: - | I46: -
E47: - | G47: - | H47: - | I47: -
E48: - | G48: - | H48: - | I48: -
E49: - | G49: - | H49: - | I49: -
E50: - | G50: - | H50: - | I50: -
E51: - | G51: - | H51: - | I51: -
E52: - | G52: - | H52: - | I52: -
E53: - | G53: - | H53: - | I53: -
E54: - | G54: - | H54: - | I54: -
E55: - | G55: - | H55: - | I55: -
E56: - | G56: - | H56: - | I56: -

Sheet Bernard van der Wielen
B13: Bernard van der Wielen
B16: Gespeeld | F16: =COUNTIF(G32:G57,"W")+COUNTIF(G32:G57,"G")+COUNTIF(G32:G57,"V") -> 1
B17: Gewonnen | F17: =COUNTIF(G32:G57,"W") -> 1
B18: Gelijk | F18: =COUNTIF(G32:G57,"G") -> 0
B19: Verloren | F19: =COUNTIF(G32:G57,"V") -> 0 | H19: Wijk van initiële inschrijving (met shirtkleur finaledag)
B20: % gewonnen | F20: =IF(F16=0,0,F17/F16) -> 1
B21: % gelijk | F21: =IF(F16=0,0,F18/F16) -> 0
B22: % verloren | F22: =IF(F16=0,0,F19/F16) -> 0 | H22: De Schutskamp
B23: Wedstrijdpunten | F23: =SUM(H32:H57) -> 3
B24: Saldopunten | F24: =SUM(I32:I57) -> 10
B25: Saldopunten per wedstrijd | F25: =IF(F16=0,0,F24/F16) -> 10
B28: LET OP: alleen wedstrijden die daadwerkelijk gespeeld zijn in de wijk waarvoor jij je hebt ingeschreven tellen mee!
B31: Datum | C31: Locatie | D31: UITSLAGEN | G31: W, V of G? | H31: Wedstrijd-punten | I31: Saldo-punten
B32: 2021-06-14 | C32: De Schutskamp | D32: 13 | E32: - | F32: 3 | G32: =IF(OR($B$13="",wijk_van_inschrijving=""),"-",IF(OR(wijk_van_inschrijving<>C32,D32="",F32=""),"-",IF(D32>F32,"W",IF(D32=F32,"G",IF(D32<F32,"V","-"))))) -> W | H32: =IF(OR($B$13="",wijk_van_inschrijving=""),"-",IF(OR(wijk_van_inschrijving<>C32,G32="-",G32=""),"-",IF(G32="W",3,IF(G32="G",2,IF(G32="V",0,0))))) -> 3 | I32: =IF(OR($B$13="",wijk_van_inschrijving=""),"-",IF(wijk_van_inschrijving<>C32,"-",IF(D32>=0,IF(F32="","-",D32-F32)))) -> 10
E33: - | G33: - | H33: - | I33: -
E34: - | G34: - | H34: - | I34: -
E35: - | G35: - | H35: - | I35: -
E36: - | G36: - | H36: - | I36: -
E37: - | G37: - | H37: - | I37: -
E38: - | G38: - | H38: - | I38: -
E39: - | G39: - | H39: - | I39: -
E40: - | G40: - | H40: - | I40: -
E41: - | G41: - | H41: - | I41: -
E42: - | G42: - | H42: - | I42: -
E43: - | G43: - | H43: - | I43: -
E44: - | G44: - | H44: - | I44: -
E45: - | G45: - | H45: - | I45: -
E46: - | G46: - | H46: - | I46: -
E47: - | G47: - | H47: - | I47: -
E48: - | G48: - | H48: - | I48: -
E49: - | G49: - | H49: - | I49: -
E50: - | G50: - | H50: - | I50: -
E51: - | G51: - | H51: - | I51: -
E52: - | G52: - | H52: - | I52: -
E53: - | G53: - | H53: - | I53: -
E54: - | G54: - | H54: - | I54: -
E55: - | G55: - | H55: - | I55: -
E56: - | G56: - | H56: - | I56: -

Sheet Casper Westelaken
B13: Casper Westelaken
B16: Gespeeld | F16: =COUNTIF(G32:G57,"W")+COUNTIF(G32:G57,"G")+COUNTIF(G32:G57,"V") -> 3
B17: Gewonnen | F17: =COUNTIF(G32:G57,"W") -> 0
B18: Gelijk | F18: =COUNTIF(G32:G57,"G") -> 0
B19: Verloren | F19: =COUNTIF(G32:G57,"V") -> 3 | H19: Wijk van initiële inschrijving (met shirtkleur finaledag)
B20: % gewonnen | F20: =IF(F16=0,0,F17/F16) -> 0
B21: % gelijk | F21: =IF(F16=0,0,F18/F16) -> 0
B22: % verloren | F22: =IF(F16=0,0,F19/F16) -> 1 | H22: Hondsberg (Rosmalen)
B23: Wedstrijdpunten | F23: =SUM(H32:H57) -> 0
B24: Saldopunten | F24: =SUM(I32:I57) -> -11
B25: Saldopunten per wedstrijd | F25: =IF(F16=0,0,F24/F16) -> -3.666666667
B28: LET OP: alleen wedstrijden die daadwerkelijk gespeeld zijn in de wijk waarvoor jij je hebt ingeschreven tellen mee!
B31: Datum | C31: Locatie | D31: UITSLAGEN | G31: W, V of G? | H31: Wedstrijd-punten | I31: Saldo-punten
B32: 2021-06-15 | C32: Hondsberg (Rosmalen) | D32: 7 | E32: - | F32: 9 | G32: =IF(OR($B$13="",wijk_van_inschrijving=""),"-",IF(OR(wijk_van_inschrijving<>C32,D32="",F32=""),"-",IF(D32>F32,"W",IF(D32=F32,"G",IF(D32<F32,"V","-"))))) -> V | H32: =IF(OR($B$13="",wijk_van_inschrijving=""),"-",IF(OR(wijk_van_inschrijving<>C32,G32="-",G32=""),"-",IF(G32="W",3,IF(G32="G",2,IF(G32="V",0,0))))) -> 0 | I32: =IF(OR($B$13="",wijk_van_inschrijving=""),"-",IF(wijk_van_inschrijving<>C32,"-",IF(D32>=0,IF(F32="","-",D32-F32)))) -> -2
B33: 2021-06-15 | C33: Hondsberg (Rosmalen) | D33: 6 | E33: - | F33: 8 | G33: V | H33: 0 | I33: -2
B34: 2021-06-15 | C34: Hondsberg (Rosmalen) | D34: 6 | E34: - | F34: 13 | G34: V | H34: 0 | I34: -7
E35: - | G35: - | H35: - | I35: -
E36: - | G36: - | H36: - | I36: -
E37: - | G37: - | H37: - | I37: -
E38: - | G38: - | H38: - | I38: -
E39: - | G39: - | H39: - | I39: -
E40: - | G40: - | H40: - | I40: -
E41: - | G41: - | H41: - | I41: -
E42: - | G42: - | H42: - | I42: -
E43: - | G43: - | H43: - | I43: -
E44: - | G44: - | H44: - | I44: -
E45: - | G45: - | H45: - | I45: -
E46: - | G46: - | H46: - | I46: -
E47: - | G47: - | H47: - | I47: -
E48: - | G48: - | H48: - | I48: -
E49: - | G49: - | H49: - | I49: -
E50: - | G50: - | H50: - | I50: -
E51: - | G51: - | H51: - | I51: -
E52: - | G52: - | H52: - | I52: -
E53: - | G53: - | H53: - | I53: -
E54: - | G54: - | H54: - | I54: -
E55: - | G55: - | H55: - | I55: -
E56: - | G56: - | H56: - | I56: -

Sheet Chantal Stuiver
B13: Chantal Stuiver
B16: Gespeeld | F16: =COUNTIF(G32:G57,"W")+COUNTIF(G32:G57,"G")+COUNTIF(G32:G57,"V") -> 2
B17: Gewonnen | F17: =COUNTIF(G32:G57,"W") -> 1
B18: Gelijk | F18: =COUNTIF(G32:G57,"G") -> 0
B19: Verloren | F19: =COUNTIF(G32:G57,"V") -> 1 | H19: Wijk van initiële inschrijving (met shirtkleur finaledag)
B20: % gewonnen | F20: =IF(F16=0,0,F17/F16) -> 0.5
B21: % gelijk | F21: =IF(F16=0,0,F18/F16) -> 0
B22: % verloren | F22: =IF(F16=0,0,F19/F16) -> 0.5 | H22: Hondsberg (Rosmalen)
B23: Wedstrijdpunten | F23: =SUM(H32:H57) -> 3
B24: Saldopunten | F24: =SUM(I32:I57) -> 1
B25: Saldopunten per wedstrijd | F25: =IF(F16=0,0,F24/F16) -> 0.5
B28: LET OP: alleen wedstrijden die daadwerkelijk gespeeld zijn in de wijk waarvoor jij je hebt ingeschreven tellen mee!
B31: Datum | C31: Locatie | D31: UITSLAGEN | G31: W, V of G? | H31: Wedstrijd-punten | I31: Saldo-punten
B32: 2021-06-30 | C32: Hondsberg (Rosmalen) | D32: 3 | E32: - | F32: 6 | G32: =IF(OR($B$13="",wijk_van_inschrijving=""),"-",IF(OR(wijk_van_inschrijving<>C32,D32="",F32=""),"-",IF(D32>F32,"W",IF(D32=F32,"G",IF(D32<F32,"V","-"))))) -> V | H32: =IF(OR($B$13="",wijk_van_inschrijving=""),"-",IF(OR(wijk_van_inschrijving<>C32,G32="-",G32=""),"-",IF(G32="W",3,IF(G32="G",2,IF(G32="V",0,0))))) -> 0 | I32: =IF(OR($B$13="",wijk_van_inschrijving=""),"-",IF(wijk_van_inschrijving<>C32,"-",IF(D32>=0,IF(F32="","-",D32-F32)))) -> -3
B33: 2021-06-30 | C33: Hondsberg (Rosmalen) | D33: 9 | E33: - | F33: 5 | G33: W | H33: 3 | I33: 4
E34: - | G34: - | H34: - | I34: -
E35: - | G35: - | H35: - | I35: -
E36: - | G36: - | H36: - | I36: -
E37: - | G37: - | H37: - | I37: -
E38: - | G38: - | H38: - | I38: -
E39: - | G39: - | H39: - | I39: -
E40: - | G40: - | H40: - | I40: -
E41: - | G41: - | H41: - | I41: -
E42: - | G42: - | H42: - | I42: -
E43: - | G43: - | H43: - | I43: -
E44: - | G44: - | H44: - | I44: -
E45: - | G45: - | H45: - | I45: -
E46: - | G46: - | H46: - | I46: -
E47: - | G47: - | H47: - | I47: -
E48: - | G48: - | H48: - | I48: -
E49: - | G49: - | H49: - | I49: -
E50: - | G50: - | H50: - | I50: -
E51: - | G51: - | H51: - | I51: -
E52: - | G52: - | H52: - | I52: -
E53: - | G53: - | H53: - | I53: -
E54: - | G54: - | H54: - | I54: -
E55: - | G55: - | H55: - | I55: -
E56: - | G56: - | H56: - | I56: -

Sheet Christ van Esch
B13: Christ van Esch
B16: Gespeeld | F16: =COUNTIF(G32:G57,"W")+COUNTIF(G32:G57,"G")+COUNTIF(G32:G57,"V") -> 3
B17: Gewonnen | F17: =COUNTIF(G32:G57,"W") -> 2
B18: Gelijk | F18: =COUNTIF(G32:G57,"G") -> 0
B19: Verloren | F19: =COUNTIF(G32:G57,"V") -> 1 | H19: Wijk van initiële inschrijving (met shirtkleur finaledag)
B20: % gewonnen | F20: =IF(F16=0,0,F17/F16) -> 0.6666666667
B21: % gelijk | F21: =IF(F16=0,0,F18/F16) -> 0
B22: % verloren | F22: =IF(F16=0,0,F19/F16) -> 0.3333333333 | H22: 's-Hertogenbosch Zuid
B23: Wedstrijdpunten | F23: =SUM(H32:H57) -> 6
B24: Saldopunten | F24: =SUM(I32:I57) -> 11
B25: Saldopunten per wedstrijd | F25: =IF(F16=0,0,F24/F16) -> 3.666666667
B28: LET OP: alleen wedstrijden die daadwerkelijk gespeeld zijn in de wijk waarvoor jij je hebt ingeschreven tellen mee!
B31: Datum | C31: Locatie | D31: UITSLAGEN | G31: W, V of G? | H31: Wedstrijd-punten | I31: Saldo-punten
B32: 2021-06-18 | C32: 's-Hertogenbosch Zuid | D32: 13 | E32: - | F32: 1 | G32: =IF(OR($B$13="",wijk_van_inschrijving=""),"-",IF(OR(wijk_van_inschrijving<>C32,D32="",F32=""),"-",IF(D32>F32,"W",IF(D32=F32,"G",IF(D32<F32,"V","-"))))) -> W | H32: =IF(OR($B$13="",wijk_van_inschrijving=""),"-",IF(OR(wijk_van_inschrijving<>C32,G32="-",G32=""),"-",IF(G32="W",3,IF(G32="G",2,IF(G32="V",0,0))))) -> 3 | I32: =IF(OR($B$13="",wijk_van_inschrijving=""),"-",IF(wijk_van_inschrijving<>C32,"-",IF(D32>=0,IF(F32="","-",D32-F32)))) -> 12
B33: 2021-06-18 | C33: 's-Hertogenbosch Zuid | D33: 5 | E33: - | F33: 7 | G33: V | H33: 0 | I33: -2
B34: 2021-06-18 | C34: 's-Hertogenbosch Zuid | D34: 11 | E34: - | F34: 10 | G34: W | H34: 3 | I34: 1
E35: - | G35: - | H35: - | I35: -
E36: - | G36: - | H36: - | I36: -
E37: - | G37: - | H37: - | I37: -
E38: - | G38: - | H38: - | I38: -
E39: - | G39: - | H39: - | I39: -
E40: - | G40: - | H40: - | I40: -
E41: - | G41: - | H41: - | I41: -
E42: - | G42: - | H42: - | I42: -
E43: - | G43: - | H43: - | I43: -
E44: - | G44: - | H44: - | I44: -
E45: - | G45: - | H45: - | I45: -
E46: - | G46: - | H46: - | I46: -
E47: - | G47: - | H47: - | I47: -
E48: - | G48: - | H48: - | I48: -
E49: - | G49: - | H49: - | I49: -
E50: - | G50: - | H50: - | I50: -
E51: - | G51: - | H51: - | I51: -
E52: - | G52: - | H52: - | I52: -
E53: - | G53: - | H53: - | I53: -
E54: - | G54: - | H54: - | I54: -
E55: - | G55: - | H55: - | I55: -
E56: - | G56: - | H56: - | I56: -

Sheet Clara van Kessel
B13: Clara van Kessel
B16: Gespeeld | F16: =COUNTIF(G32:G57,"W")+COUNTIF(G32:G57,"G")+COUNTIF(G32:G57,"V") -> 3
B17: Gewonnen | F17: =COUNTIF(G32:G57,"W") -> 0
B18: Gelijk | F18: =COUNTIF(G32:G57,"G") -> 0
B19: Verloren | F19: =COUNTIF(G32:G57,"V") -> 3 | H19: Wijk van initiële inschrijving (met shirtkleur finaledag)
B20: % gewonnen | F20: =IF(F16=0,0,F17/F16) -> 0
B21: % gelijk | F21: =IF(F16=0,0,F18/F16) -> 0
B22: % verloren | F22: =IF(F16=0,0,F19/F16) -> 1 | H22: 's-Hertogenbosch Zuid
B23: Wedstrijdpunten | F23: =SUM(H32:H57) -> 0
B24: Saldopunten | F24: =SUM(I32:I57) -> -24
B25: Saldopunten per wedstrijd | F25: =IF(F16=0,0,F24/F16) -> -8
B28: LET OP: alleen wedstrijden die daadwerkelijk gespeeld zijn in de wijk waarvoor jij je hebt ingeschreven tellen mee!
B31: Datum | C31: Locatie | D31: UITSLAGEN | G31: W, V of G? | H31: Wedstrijd-punten | I31: Saldo-punten
B32: 2021-06-25 | C32: 's-Hertogenbosch Zuid | D32: 9 | E32: - | F32: 13 | G32: =IF(OR($B$13="",wijk_van_inschrijving=""),"-",IF(OR(wijk_van_inschrijving<>C32,D32="",F32=""),"-",IF(D32>F32,"W",IF(D32=F32,"G",IF(D32<F32,"V","-"))))) -> V | H32: =IF(OR($B$13="",wijk_van_inschrijving=""),"-",IF(OR(wijk_van_inschrijving<>C32,G32="-",G32=""),"-",IF(G32="W",3,IF(G32="G",2,IF(G32="V",0,0))))) -> 0 | I32: =IF(OR($B$13="",wijk_van_inschrijving=""),"-",IF(wijk_van_inschrijving<>C32,"-",IF(D32>=0,IF(F32="","-",D32-F32)))) -> -4
B33: 2021-06-25 | C33: 's-Hertogenbosch Zuid | D33: 0 | E33: - | F33: 13 | G33: V | H33: 0 | I33: -13
B34: 2021-06-25 | C34: 's-Hertogenbosch Zuid | D34: 5 | E34: - | F34: 12 | G34: V | H34: 0 | I34: -7
E35: - | G35: - | H35: - | I35: -
E36: - | G36: - | H36: - | I36: -
E37: - | G37: - | H37: - | I37: -
E38: - | G38: - | H38: - | I38: -
E39: - | G39: - | H39: - | I39: -
E40: - | G40: - | H40: - | I40: -
E41: - | G41: - | H41: - | I41: -
E42: - | G42: - | H42: - | I42: -
E43: - | G43: - | H43: - | I43: -
E44: - | G44: - | H44: - | I44: -
E45: - | G45: - | H45: - | I45: -
E46: - | G46: - | H46: - | I46: -
E47: - | G47: - | H47: - | I47: -
E48: - | G48: - | H48: - | I48: -
E49: - | G49: - | H49: - | I49: -
E50: - | G50: - | H50: - | I50: -
E51: - | G51: - | H51: - | I51: -
E52: - | G52: - | H52: - | I52: -
E53: - | G53: - | H53: - | I53: -
E54: - | G54: - | H54: - | I54: -
E55: - | G55: - | H55: - | I55: -
E56: - | G56: - | H56: - | I56: -

Sheet Clemens de Mol
B13: Clemens de Mol
B16: Gespeeld | F16: =COUNTIF(G32:G57,"W")+COUNTIF(G32:G57,"G")+COUNTIF(G32:G57,"V") -> 3
B17: Gewonnen | F17: =COUNTIF(G32:G57,"W") -> 0
B18: Gelijk | F18: =COUNTIF(G32:G57,"G") -> 1
B19: Verloren | F19: =COUNTIF(G32:G57,"V") -> 2 | H19: Wijk van initiële inschrijving (met shirtkleur finaledag)
B20: % gewonnen | F20: =IF(F16=0,0,F17/F16) -> 0
B21: % gelijk | F21: =IF(F16=0,0,F18/F16) -> 0.3333333333
B22: % verloren | F22: =IF(F16=0,0,F19/F16) -> 0.6666666667 | H22: 's-Hertogenbosch Zuid
B23: Wedstrijdpunten | F23: =SUM(H32:H57) -> 2
B24: Saldopunten | F24: =SUM(I32:I57) -> -24
B25: Saldopunten per wedstrijd | F25: =IF(F16=0,0,F24/F16) -> -8
B28: LET OP: alleen wedstrijden die daadwerkelijk gespeeld zijn in de wijk waarvoor jij je hebt ingeschreven tellen mee!
B31: Datum | C31: Locatie | D31: UITSLAGEN | G31: W, V of G? | H31: Wedstrijd-punten | I31: Saldo-punten
B32: 2021-06-18 | C32: 's-Hertogenbosch Zuid | D32: 1 | E32: - | F32: 13 | G32: =IF(OR($B$13="",wijk_van_inschrijving=""),"-",IF(OR(wijk_van_inschrijving<>C32,D32="",F32=""),"-",IF(D32>F32,"W",IF(D32=F32,"G",IF(D32<F32,"V","-"))))) -> V | H32: =IF(OR($B$13="",wijk_van_inschrijving=""),"-",IF(OR(wijk_van_inschrijving<>C32,G32="-",G32=""),"-",IF(G32="W",3,IF(G32="G",2,IF(G32="V",0,0))))) -> 0 | I32: =IF(OR($B$13="",wijk_van_inschrijving=""),"-",IF(wijk_van_inschrijving<>C32,"-",IF(D32>=0,IF(F32="","-",D32-F32)))) -> -12
B33: 2021-06-18 | C33: 's-Hertogenbosch Zuid | D33: 4 | E33: - | F33: 4 | G33: G | H33: 2 | I33: 0
B34: 2021-06-18 | C34: 's-Hertogenbosch Zuid | D34: 1 | E34: - | F34: 13 | G34: V | H34: 0 | I34: -12
E35: - | G35: - | H35: - | I35: -
E36: - | G36: - | H36: - | I36: -
E37: - | G37: - | H37: - | I37: -
E38: - | G38: - | H38: - | I38: -
E39: - | G39: - | H39: - | I39: -
E40: - | G40: - | H40: - | I40: -
E41: - | G41: - | H41: - | I41: -
E42: - | G42: - | H42: - | I42: -
E43: - | G43: - | H43: - | I43: -
E44: - | G44: - | H44: - | I44: -
E45: - | G45: - | H45: - | I45: -
E46: - | G46: - | H46: - | I46: -
E47: - | G47: - | H47: - | I47: -
E48: - | G48: - | H48: - | I48: -
E49: - | G49: - | H49: - | I49: -
E50: - | G50: - | H50: - | I50: -
E51: - | G51: - | H51: - | I51: -
E52: - | G52: - | H52: - | I52: -
E53: - | G53: - | H53: - | I53: -
E54: - | G54: - | H54: - | I54: -
E55: - | G55: - | H55: - | I55: -
E56: - | G56: - | H56: - | I56: -

Sheet Coby Hendriks
B13: Coby Hendriks
B16: Gespeeld | F16: =COUNTIF(G32:G57,"W")+COUNTIF(G32:G57,"G")+COUNTIF(G32:G57,"V") -> 12
B17: Gewonnen | F17: =COUNTIF(G32:G57,"W") -> 1
B18: Gelijk | F18: =COUNTIF(G32:G57,"G") -> 0
B19: Verloren | F19: =COUNTIF(G32:G57,"V") -> 11 | H19: Wijk van initiële inschrijving (met shirtkleur finaledag)
B20: % gewonnen | F20: =IF(F16=0,0,F17/F16) -> 0.08333333333
B21: % gelijk | F21: =IF(F16=0,0,F18/F16) -> 0
B22: % verloren | F22: =IF(F16=0,0,F19/F16) -> 0.9166666667 | H22: De Schutskamp
B23: Wedstrijdpunten | F23: =SUM(H32:H57) -> 3
B24: Saldopunten | F24: =SUM(I32:I57) -> -74
B25: Saldopunten per wedstrijd | F25: =IF(F16=0,0,F24/F16) -> -6.166666667
B28: LET OP: alleen wedstrijden die daadwerkelijk gespeeld zijn in de wijk waarvoor jij je hebt ingeschreven tellen mee!
B31: Datum | C31: Locatie | D31: UITSLAGEN | G31: W, V of G? | H31: Wedstrijd-punten | I31: Saldo-punten
B32: 2021-06-14 | C32: De Schutskamp | D32: 4 | E32: - | F32: 7 | G32: =IF(OR($B$13="",wijk_van_inschrijving=""),"-",IF(OR(wijk_van_inschrijving<>C32,D32="",F32=""),"-",IF(D32>F32,"W",IF(D32=F32,"G",IF(D32<F32,"V","-"))))) -> V | H32: =IF(OR($B$13="",wijk_van_inschrijving=""),"-",IF(OR(wijk_van_inschrijving<>C32,G32="-",G32=""),"-",IF(G32="W",3,IF(G32="G",2,IF(G32="V",0,0))))) -> 0 | I32: =IF(OR($B$13="",wijk_van_inschrijving=""),"-",IF(wijk_van_inschrijving<>C32,"-",IF(D32>=0,IF(F32="","-",D32-F32)))) -> -3
B33: 2021-06-14 | C33: De Schutskamp | D33: 4 | E33: - | F33: 7 | G33: V | H33: 0 | I33: -3
B34: 2021-06-14 | C34: De Schutskamp | D34: 4 | E34: - | F34: 13 | G34: V | H34: 0 | I34: -9
B35: 2021-06-24 | C35: De Schutskamp | D35: 13 | E35: - | F35: 8 | G35: W | H35: 3 | I35: 5
B36: 2021-06-24 | C36: De Schutskamp | D36: 1 | E36: - | F36: 13 | G36: V | H36: 0 | I36: -12
B37: 2021-06-24 | C37: De Schutskamp | D37: 8 | E37: - | F37: 12 | G37: V | H37: 0 | I37: -4
B38: 2021-06-28 | C38: De Schutskamp | D38: 4 | E38: - | F38: 8 | G38: V | H38: 0 | I38: -4
B39: 2021-06-28 | C39: De Schutskamp | D39: 1 | E39: - | F39: 13 | G39: V | H39: 0 | I39: -12
B40: 2021-06-28 | C40: De Schutskamp | D40: 1 | E40: - | F40: 7 | G40: V | H40: 0 | I40: -6
B41: 2021-07-05 | C41: De Schutskamp | D41: 5 | E41: - | F41: 7 | G41: V | H41: 0 | I41: -2
B42: 2021-07-05 | C42: De Schutskamp | D42: 2 | E42: - | F42: 13 | G42: V | H42: 0 | I42: -11
B43: 2021-07-05 | C43: De Schutskamp | D43: 0 | E43: - | F43: 13 | G43: V | H43: 0 | I43: -13
E44: - | G44: - | H44: - | I44: -
E45: - | G45: - | H45: - | I45: -
E46: - | G46: - | H46: - | I46: -
E47: - | G47: - | H47: - | I47: -
E48: - | G48: - | H48: - | I48: -
E49: - | G49: - | H49: - | I49: -
E50: - | G50: - | H50: - | I50: -
E51: - | G51: - | H51: - | I51: -
E52: - | G52: - | H52: - | I52: -
E53: - | G53: - | H53: - | I53: -
E54: - | G54: - | H54: - | I54: -
E55: - | G55: - | H55: - | I55: -
E56: - | G56: - | H56: - | I56: -

Sheet Coen van den Bogaard
B13: Coen van den Bogaard
B16: Gespeeld | F16: =COUNTIF(G32:G57,"W")+COUNTIF(G32:G57,"G")+COUNTIF(G32:G57,"V") -> 3
B17: Gewonnen | F17: =COUNTIF(G32:G57,"W") -> 0
B18: Gelijk | F18: =COUNTIF(G32:G57,"G") -> 0
B19: Verloren | F19: =COUNTIF(G32:G57,"V") -> 3 | H19: Wijk van initiële inschrijving (met shirtkleur finaledag)
B20: % gewonnen | F20: =IF(F16=0,0,F17/F16) -> 0
B21: % gelijk | F21: =IF(F16=0,0,F18/F16) -> 0
B22: % verloren | F22: =IF(F16=0,0,F19/F16) -> 1 | H22: De Hambaken
B23: Wedstrijdpunten | F23: =SUM(H32:H57) -> 0
B24: Saldopunten | F24: =SUM(I32:I57) -> -13
B25: Saldopunten per wedstrijd | F25: =IF(F16=0,0,F24/F16) -> -4.333333333
B28: LET OP: alleen wedstrijden die daadwerkelijk gespeeld zijn in de wijk waarvoor jij je hebt ingeschreven tellen mee!
B31: Datum | C31: Locatie | D31: UITSLAGEN | G31: W, V of G? | H31: Wedstrijd-punten | I31: Saldo-punten
B32: 2021-06-29 | C32: De Hambaken | D32: 4 | E32: - | F32: 10 | G32: =IF(OR($B$13="",wijk_van_inschrijving=""),"-",IF(OR(wijk_van_inschrijving<>C32,D32="",F32=""),"-",IF(D32>F32,"W",IF(D32=F32,"G",IF(D32<F32,"V","-"))))) -> V | H32: =IF(OR($B$13="",wijk_van_inschrijving=""),"-",IF(OR(wijk_van_inschrijving<>C32,G32="-",G32=""),"-",IF(G32="W",3,IF(G32="G",2,IF(G32="V",0,0))))) -> 0 | I32: =IF(OR($B$13="",wijk_van_inschrijving=""),"-",IF(wijk_van_inschrijving<>C32,"-",IF(D32>=0,IF(F32="","-",D32-F32)))) -> -6
B33: 2021-06-29 | C33: De Hambaken | D33: 2 | E33: - | F33: 8 | G33: V | H33: 0 | I33: -6
B34: 2021-06-29 | C34: De Hambaken | D34: 12 | E34: - | F34: 13 | G34: V | H34: 0 | I34: -1
E35: - | G35: - | H35: - | I35: -
E36: - | G36: - | H36: - | I36: -
E37: - | G37: - | H37: - | I37: -
E38: - | G38: - | H38: - | I38: -
E39: - | G39: - | H39: - | I39: -
E40: - | G40: - | H40: - | I40: -
E41: - | G41: - | H41: - | I41: -
E42: - | G42: - | H42: - | I42: -
E43: - | G43: - | H43: - | I43: -
E44: - | G44: - | H44: - | I44: -
E45: - | G45: - | H45: - | I45: -
E46: - | G46: - | H46: - | I46: -
E47: - | G47: - | H47: - | I47: -
E48: - | G48: - | H48: - | I48: -
E49: - | G49: - | H49: - | I49: -
E50: - | G50: - | H50: - | I50: -
E51: - | G51: - | H51: - | I51: -
E52: - | G52: - | H52: - | I52: -
E53: - | G53: - | H53: - | I53: -
E54: - | G54: - | H54: - | I54: -
E55: - | G55: - | H55: - | I55: -
E56: - | G56: - | H56: - | I56: -

Sheet Cor Geerts
B13: Cor Geerts
B16: Gespeeld | F16: =COUNTIF(G32:G57,"W")+COUNTIF(G32:G57,"G")+COUNTIF(G32:G57,"V") -> 8
B17: Gewonnen | F17: =COUNTIF(G32:G57,"W") -> 3
B18: Gelijk | F18: =COUNTIF(G32:G57,"G") -> 0
B19: Verloren | F19: =COUNTIF(G32:G57,"V") -> 5 | H19: Wijk van initiële inschrijving (met shirtkleur finaledag)
B20: % gewonnen | F20: =IF(F16=0,0,F17/F16) -> 0.375
B21: % gelijk | F21: =IF(F16=0,0,F18/F16) -> 0
B22: % verloren | F22: =IF(F16=0,0,F19/F16) -> 0.625 | H22: Hondsberg (Rosmalen)
B23: Wedstrijdpunten | F23: =SUM(H32:H57) -> 9
B24: Saldopunten | F24: =SUM(I32:I57) -> 1
B25: Saldopunten per wedstrijd | F25: =IF(F16=0,0,F24/F16) -> 0.125
B28: LET OP: alleen wedstrijden die daadwerkelijk gespeeld zijn in de wijk waarvoor jij je hebt ingeschreven tellen mee!
B31: Datum | C31: Locatie | D31: UITSLAGEN | G31: W, V of G? | H31: Wedstrijd-punten | I31: Saldo-punten
B32: 2021-06-15 | C32: Hondsberg (Rosmalen) | D32: 5 | E32: - | F32: 8 | G32: =IF(OR($B$13="",wijk_van_inschrijving=""),"-",IF(OR(wijk_van_inschrijving<>C32,D32="",F32=""),"-",IF(D32>F32,"W",IF(D32=F32,"G",IF(D32<F32,"V","-"))))) -> V | H32: =IF(OR($B$13="",wijk_van_inschrijving=""),"-",IF(OR(wijk_van_inschrijving<>C32,G32="-",G32=""),"-",IF(G32="W",3,IF(G32="G",2,IF(G32="V",0,0))))) -> 0 | I32: =IF(OR($B$13="",wijk_van_inschrijving=""),"-",IF(wijk_van_inschrijving<>C32,"-",IF(D32>=0,IF(F32="","-",D32-F32)))) -> -3
B33: 2021-06-15 | C33: Hondsberg (Rosmalen) | D33: 5 | E33: - | F33: 8 | G33: V | H33: 0 | I33: -3
B34: 2021-06-15 | C34: Hondsberg (Rosmalen) | D34: 13 | E34: - | F34: 6 | G34: W | H34: 3 | I34: 7
B35: 2021-06-22 | C35: Hondsberg (Rosmalen) | D35: 4 | E35: - | F35: 10 | G35: V | H35: 0 | I35: -6
B36: 2021-06-22 | C36: Hondsberg (Rosmalen) | D36: 11 | E36: - | F36: 5 | G36: W | H36: 3 | I36: 6
B37: 2021-07-07 | C37: Hondsberg (Rosmalen) | D37: 5 | E37: - | F37: 3 | G37: W | H37: 3 | I37: 2
B38: 2021-07-07 | C38: Hondsberg (Rosmalen) | D38: 11 | E38: - | F38: 12 | G38: V | H38: 0 | I38: -1
B39: 2021-07-07 | C39: Hondsberg (Rosmalen) | D39: 5 | E39: - | F39: 6 | G39: V | H39: 0 | I39: -1
E40: - | G40: - | H40: - | I40: -
E41: - | G41: - | H41: - | I41: -
E42: - | G42: - | H42: - | I42: -
E43: - | G43: - | H43: - | I43: -
E44: - | G44: - | H44: - | I44: -
E45: - | G45: - | H45: - | I45: -
E46: - | G46: - | H46: - | I46: -
E47: - | G47: - | H47: - | I47: -
E48: - | G48: - | H48: - | I48: -
E49: - | G49: - | H49: - | I49: -
E50: - | G50: - | H50: - | I50: -
E51: - | G51: - | H51: - | I51: -
E52: - | G52: - | H52: - | I52: -
E53: - | G53: - | H53: - | I53: -
E54: - | G54: - | H54: - | I54: -
E55: - | G55: - | H55: - | I55: -
E56: - | G56: - | H56: - | I56: -

Sheet Corrie van Mil - de Looijer
B13: Corrie van Mil - de Looijer
B16: Gespeeld | F16: =COUNTIF(G32:G57,"W")+COUNTIF(G32:G57,"G")+COUNTIF(G32:G57,"V") -> 9
B17: Gewonnen | F17: =COUNTIF(G32:G57,"W") -> 8
B18: Gelijk | F18: =COUNTIF(G32:G57,"G") -> 1
B19: Verloren | F19: =COUNTIF(G32:G57,"V") -> 0 | H19: Wijk van initiële inschrijving (met shirtkleur finaledag)
B20: % gewonnen | F20: =IF(F16=0,0,F17/F16) -> 0.8888888889
B21: % gelijk | F21: =IF(F16=0,0,F18/F16) -> 0.1111111111
B22: % verloren | F22: =IF(F16=0,0,F19/F16) -> 0 | H22: De Schutskamp
B23: Wedstrijdpunten | F23: =SUM(H32:H57) -> 26
B24: Saldopunten | F24: =SUM(I32:I57) -> 36
B25: Saldopunten per wedstrijd | F25: =IF(F16=0,0,F24/F16) -> 4
B28: LET OP: alleen wedstrijden die daadwerkelijk gespeeld zijn in de wijk waarvoor jij je hebt ingeschreven tellen mee!
B31: Datum | C31: Locatie | D31: UITSLAGEN | G31: W, V of G? | H31: Wedstrijd-punten | I31: Saldo-punten
B32: 2021-06-14 | C32: De Schutskamp | D32: 8 | E32: - | F32: 4 | G32: =IF(OR($B$13="",wijk_van_inschrijving=""),"-",IF(OR(wijk_van_inschrijving<>C32,D32="",F32=""),"-",IF(D32>F32,"W",IF(D32=F32,"G",IF(D32<F32,"V","-"))))) -> W | H32: =IF(OR($B$13="",wijk_van_inschrijving=""),"-",IF(OR(wijk_van_inschrijving<>C32,G32="-",G32=""),"-",IF(G32="W",3,IF(G32="G",2,IF(G32="V",0,0))))) -> 3 | I32: =IF(OR($B$13="",wijk_van_inschrijving=""),"-",IF(wijk_van_inschrijving<>C32,"-",IF(D32>=0,IF(F32="","-",D32-F32)))) -> 4
B33: 2021-06-14 | C33: De Schutskamp | D33: 7 | E33: - | F33: 4 | G33: W | H33: 3 | I33: 3
B34: 2021-06-14 | C34: De Schutskamp | D34: 9 | E34: - | F34: 5 | G34: W | H34: 3 | I34: 4
B35: 2021-06-24 | C35: De Schutskamp | D35: 5 | E35: - | F35: 5 | G35: G | H35: 2 | I35: 0
B36: 2021-06-24 | C36: De Schutskamp | D36: 13 | E36: - | F36: 1 | G36: W | H36: 3 | I36: 12
B37: 2021-06-24 | C37: De Schutskamp | D37: 9 | E37: - | F37: 8 | G37: W | H37: 3 | I37: 1
B38: 2021-07-05 | C38: De Schutskamp | D38: 13 | E38: - | F38: 6 | G38: W | H38: 3 | I38: 7
B39: 2021-07-05 | C39: De Schutskamp | D39: 12 | E39: - | F39: 8 | G39: W | H39: 3 | I39: 4
B40: 2021-07-05 | C40: De Schutskamp | D40: 6 | E40: - | F40: 5 | G40: W | H40: 3 | I40: 1
E41: - | G41: - | H41: - | I41: -
E42: - | G42: - | H42: - | I42: -
E43: - | G43: - | H43: - | I43: -
E44: - | G44: - | H44: - | I44: -
E45: - | G45: - | H45: - | I45: -
E46: - | G46: - | H46: - | I46: -
E47: - | G47: - | H47: - | I47: -
E48: - | G48: - | H48: - | I48: -
E49: - | G49: - | H49: - | I49: -
E50: - | G50: - | H50: - | I50: -
E51: - | G51: - | H51: - | I51: -
E52: - | G52: - | H52: - | I52: -
E53: - | G53: - | H53: - | I53: -
E54: - | G54: - | H54: - | I54: -
E55: - | G55: - | H55: - | I55: -
E56: - | G56: - | H56: - | I56: -

Sheet Denice Sprengers
B13: Denice Sprengers
B16: Gespeeld | F16: =COUNTIF(G32:G57,"W")+COUNTIF(G32:G57,"G")+COUNTIF(G32:G57,"V") -> 1
B17: Gewonnen | F17: =COUNTIF(G32:G57,"W") -> 0
B18: Gelijk | F18: =COUNTIF(G32:G57,"G") -> 0
B19: Verloren | F19: =COUNTIF(G32:G57,"V") -> 1 | H19: Wijk van initiële inschrijving (met shirtkleur finaledag)
B20: % gewonnen | F20: =IF(F16=0,0,F17/F16) -> 0
B21: % gelijk | F21: =IF(F16=0,0,F18/F16) -> 0
B22: % verloren | F22: =IF(F16=0,0,F19/F16) -> 1 | H22: 's-Hertogenbosch Zuid
B23: Wedstrijdpunten | F23: =SUM(H32:H57) -> 0
B24: Saldopunten | F24: =SUM(I32:I57) -> -13
B25: Saldopunten per wedstrijd | F25: =IF(F16=0,0,F24/F16) -> -13
B28: LET OP: alleen wedstrijden die daadwerkelijk gespeeld zijn in de wijk waarvoor jij je hebt ingeschreven tellen mee!
B31: Datum | C31: Locatie | D31: UITSLAGEN | G31: W, V of G? | H31: Wedstrijd-punten | I31: Saldo-punten
B32: 2021-07-01 | C32: 's-Hertogenbosch Zuid | D32: 0 | E32: - | F32: 13 | G32: =IF(OR($B$13="",wijk_van_inschrijving=""),"-",IF(OR(wijk_van_inschrijving<>C32,D32="",F32=""),"-",IF(D32>F32,"W",IF(D32=F32,"G",IF(D32<F32,"V","-"))))) -> V | H32: =IF(OR($B$13="",wijk_van_inschrijving=""),"-",IF(OR(wijk_van_inschrijving<>C32,G32="-",G32=""),"-",IF(G32="W",3,IF(G32="G",2,IF(G32="V",0,0))))) -> 0 | I32: =IF(OR($B$13="",wijk_van_inschrijving=""),"-",IF(wijk_van_inschrijving<>C32,"-",IF(D32>=0,IF(F32="","-",D32-F32)))) -> -13
E33: - | G33: - | H33: - | I33: -
E34: - | G34: - | H34: - | I34: -
E35: - | G35: - | H35: - | I35: -
E36: - | G36: - | H36: - | I36: -
E37: - | G37: - | H37: - | I37: -
E38: - | G38: - | H38: - | I38: -
E39: - | G39: - | H39: - | I39: -
E40: - | G40: - | H40: - | I40: -
E41: - | G41: - | H41: - | I41: -
E42: - | G42: - | H42: - | I42: -
E43: - | G43: - | H43: - | I43: -
E44: - | G44: - | H44: - | I44: -
E45: - | G45: - | H45: - | I45: -
E46: - | G46: - | H46: - | I46: -
E47: - | G47: - | H47: - | I47: -
E48: - | G48: - | H48: - | I48: -
E49: - | G49: - | H49: - | I49: -
E50: - | G50: - | H50: - | I50: -
E51: - | G51: - | H51: - | I51: -
E52: - | G52: - | H52: - | I52: -
E53: - | G53: - | H53: - | I53: -
E54: - | G54: - | H54: - | I54: -
E55: - | G55: - | H55: - | I55: -
E56: - | G56: - | H56: - | I56: -

Sheet Dewi van Maaren
B13: Dewi van Maaren
B16: Gespeeld | F16: =COUNTIF(G32:G57,"W")+COUNTIF(G32:G57,"G")+COUNTIF(G32:G57,"V") -> 3
B17: Gewonnen | F17: =COUNTIF(G32:G57,"W") -> 0
B18: Gelijk | F18: =COUNTIF(G32:G57,"G") -> 1
B19: Verloren | F19: =COUNTIF(G32:G57,"V") -> 2 | H19: Wijk van initiële inschrijving (met shirtkleur finaledag)
B20: % gewonnen | F20: =IF(F16=0,0,F17/F16) -> 0
B21: % gelijk | F21: =IF(F16=0,0,F18/F16) -> 0.3333333333
B22: % verloren | F22: =IF(F16=0,0,F19/F16) -> 0.6666666667 | H22: De Schutskamp
B23: Wedstrijdpunten | F23: =SUM(H32:H57) -> 2
B24: Saldopunten | F24: =SUM(I32:I57) -> -6
B25: Saldopunten per wedstrijd | F25: =IF(F16=0,0,F24/F16) -> -2
B28: LET OP: alleen wedstrijden die daadwerkelijk gespeeld zijn in de wijk waarvoor jij je hebt ingeschreven tellen mee!
B31: Datum | C31: Locatie | D31: UITSLAGEN | G31: W, V of G? | H31: Wedstrijd-punten | I31: Saldo-punten
B32: 2021-06-24 | C32: De Schutskamp | D32: 6 | E32: - | F32: 8 | G32: =IF(OR($B$13="",wijk_van_inschrijving=""),"-",IF(OR(wijk_van_inschrijving<>C32,D32="",F32=""),"-",IF(D32>F32,"W",IF(D32=F32,"G",IF(D32<F32,"V","-"))))) -> V | H32: =IF(OR($B$13="",wijk_van_inschrijving=""),"-",IF(OR(wijk_van_inschrijving<>C32,G32="-",G32=""),"-",IF(G32="W",3,IF(G32="G",2,IF(G32="V",0,0))))) -> 0 | I32: =IF(OR($B$13="",wijk_van_inschrijving=""),"-",IF(wijk_van_inschrijving<>C32,"-",IF(D32>=0,IF(F32="","-",D32-F32)))) -> -2
B33: 2021-06-24 | C33: De Schutskamp | D33: 6 | E33: - | F33: 10 | G33: V | H33: 0 | I33: -4
B34: 2021-06-24 | C34: De Schutskamp | D34: 11 | E34: - | F34: 11 | G34: G | H34: 2 | I34: 0
E35: - | G35: - | H35: - | I35: -
E36: - | G36: - | H36: - | I36: -
E37: - | G37: - | H37: - | I37: -
E38: - | G38: - | H38: - | I38: -
E39: - | G39: - | H39: - | I39: -
E40: - | G40: - | H40: - | I40: -
E41: - | G41: - | H41: - | I41: -
E42: - | G42: - | H42: - | I42: -
E43: - | G43: - | H43: - | I43: -
E44: - | G44: - | H44: - | I44: -
E45: - | G45: - | H45: - | I45: -
E46: - | G46: - | H46: - | I46: -
E47: - | G47: - | H47: - | I47: -
E48: - | G48: - | H48: - | I48: -
E49: - | G49: - | H49: - | I49: -
E50: - | G50: - | H50: - | I50: -
E51: - | G51: - | H51: - | I51: -
E52: - | G52: - | H52: - | I52: -
E53: - | G53: - | H53: - | I53: -
E54: - | G54: - | H54: - | I54: -
E55: - | G55: - | H55: - | I55: -
E56: - | G56: - | H56: - | I56: -

Sheet Dick van Huijstee
B13: Dick van Huijstee
B16: Gespeeld | F16: =COUNTIF(G32:G57,"W")+COUNTIF(G32:G57,"G")+COUNTIF(G32:G57,"V") -> 3
B17: Gewonnen | F17: =COUNTIF(G32:G57,"W") -> 3
B18: Gelijk | F18: =COUNTIF(G32:G57,"G") -> 0
B19: Verloren | F19: =COUNTIF(G32:G57,"V") -> 0 | H19: Wijk van initiële inschrijving (met shirtkleur finaledag)
B20: % gewonnen | F20: =IF(F16=0,0,F17/F16) -> 1
B21: % gelijk | F21: =IF(F16=0,0,F18/F16) -> 0
B22: % verloren | F22: =IF(F16=0,0,F19/F16) -> 0 | H22: De Hambaken
B23: Wedstrijdpunten | F23: =SUM(H32:H57) -> 9
B24: Saldopunten | F24: =SUM(I32:I57) -> 7
B25: Saldopunten per wedstrijd | F25: =IF(F16=0,0,F24/F16) -> 2.333333333
B28: LET OP: alleen wedstrijden die daadwerkelijk gespeeld zijn in de wijk waarvoor jij je hebt ingeschreven tellen mee!
B31: Datum | C31: Locatie | D31: UITSLAGEN | G31: W, V of G? | H31: Wedstrijd-punten | I31: Saldo-punten
B32: 2021-06-16 | C32: De Hambaken | D32: 9 | E32: - | F32: 4 | G32: =IF(OR($B$13="",wijk_van_inschrijving=""),"-",IF(OR(wijk_van_inschrijving<>C32,D32="",F32=""),"-",IF(D32>F32,"W",IF(D32=F32,"G",IF(D32<F32,"V","-"))))) -> W | H32: =IF(OR($B$13="",wijk_van_inschrijving=""),"-",IF(OR(wijk_van_inschrijving<>C32,G32="-",G32=""),"-",IF(G32="W",3,IF(G32="G",2,IF(G32="V",0,0))))) -> 3 | I32: =IF(OR($B$13="",wijk_van_inschrijving=""),"-",IF(wijk_van_inschrijving<>C32,"-",IF(D32>=0,IF(F32="","-",D32-F32)))) -> 5
B33: 2021-06-16 | C33: De Hambaken | D33: 7 | E33: - | F33: 6 | G33: W | H33: 3 | I33: 1
B34: 2021-06-16 | C34: De Hambaken | D34: 7 | E34: - | F34: 6 | G34: W | H34: 3 | I34: 1
E35: - | G35: - | H35: - | I35: -
E36: - | G36: - | H36: - | I36: -
E37: - | G37: - | H37: - | I37: -
E38: - | G38: - | H38: - | I38: -
E39: - | G39: - | H39: - | I39: -
E40: - | G40: - | H40: - | I40: -
E41: - | G41: - | H41: - | I41: -
E42: - | G42: - | H42: - | I42: -
E43: - | G43: - | H43: - | I43: -
E44: - | G44: - | H44: - | I44: -
E45: - | G45: - | H45: - | I45: -
E46: - | G46: - | H46: - | I46: -
E47: - | G47: - | H47: - | I47: -
E48: - | G48: - | H48: - | I48: -
E49: - | G49: - | H49: - | I49: -
E50: - | G50: - | H50: - | I50: -
E51: - | G51: - | H51: - | I51: -
E52: - | G52: - | H52: - | I52: -
E53: - | G53: - | H53: - | I53: -
E54: - | G54: - | H54: - | I54: -
E55: - | G55: - | H55: - | I55: -
E56: - | G56: - | H56: - | I56: -

Sheet Diny Lommers
B13: Diny Lommers
B16: Gespeeld | F16: =COUNTIF(G32:G57,"W")+COUNTIF(G32:G57,"G")+COUNTIF(G32:G57,"V") -> 9
B17: Gewonnen | F17: =COUNTIF(G32:G57,"W") -> 2
B18: Gelijk | F18: =COUNTIF(G32:G57,"G") -> 0
B19: Verloren | F19: =COUNTIF(G32:G57,"V") -> 7 | H19: Wijk van initiële inschrijving (met shirtkleur finaledag)
B20: % gewonnen | F20: =IF(F16=0,0,F17/F16) -> 0.2222222222
B21: % gelijk | F21: =IF(F16=0,0,F18/F16) -> 0
B22: % verloren | F22: =IF(F16=0,0,F19/F16) -> 0.7777777778 | H22: De Schutskamp
B23: Wedstrijdpunten | F23: =SUM(H32:H57) -> 6
B24: Saldopunten | F24: =SUM(I32:I57) -> -14
B25: Saldopunten per wedstrijd | F25: =IF(F16=0,0,F24/F16) -> -1.555555556
B28: LET OP: alleen wedstrijden die daadwerkelijk gespeeld zijn in de wijk waarvoor jij je hebt ingeschreven tellen mee!
B31: Datum | C31: Locatie | D31: UITSLAGEN | G31: W, V of G? | H31: Wedstrijd-punten | I31: Saldo-punten
B32: 2021-06-14 | C32: De Schutskamp | D32: 4 | E32: - | F32: 7 | G32: =IF(OR($B$13="",wijk_van_inschrijving=""),"-",IF(OR(wijk_van_inschrijving<>C32,D32="",F32=""),"-",IF(D32>F32,"W",IF(D32=F32,"G",IF(D32<F32,"V","-"))))) -> V | H32: =IF(OR($B$13="",wijk_van_inschrijving=""),"-",IF(OR(wijk_van_inschrijving<>C32,G32="-",G32=""),"-",IF(G32="W",3,IF(G32="G",2,IF(G32="V",0,0))))) -> 0 | I32: =IF(OR($B$13="",wijk_van_inschrijving=""),"-",IF(wijk_van_inschrijving<>C32,"-",IF(D32>=0,IF(F32="","-",D32-F32)))) -> -3
B33: 2021-06-14 | C33: De Schutskamp | D33: 3 | E33: - | F33: 4 | G33: V | H33: 0 | I33: -1
B34: 2021-06-14 | C34: De Schutskamp | D34: 5 | E34: - | F34: 9 | G34: V | H34: 0 | I34: -4
B35: 2021-06-24 | C35: De Schutskamp | D35: 8 | E35: - | F35: 13 | G35: V | H35: 0 | I35: -5
B36: 2021-06-24 | C36: De Schutskamp | D36: 6 | E36: - | F36: 10 | G36: V | H36: 0 | I36: -4
B37: 2021-06-24 | C37: De Schutskamp | D37: 7 | E37: - | F37: 11 | G37: V | H37: 0 | I37: -4
B38: 2021-06-28 | C38: De Schutskamp | D38: 13 | E38: - | F38: 5 | G38: W | H38: 3 | I38: 8
B39: 2021-06-28 | C39: De Schutskamp | D39: 3 | E39: - | F39: 5 | G39: V | H39: 0 | I39: -2
B40: 2021-06-28 | C40: De Schutskamp | D40: 8 | E40: - | F40: 7 | G40: W | H40: 3 | I40: 1
E41: - | G41: - | H41: - | I41: -
E42: - | G42: - | H42: - | I42: -
E43: - | G43: - | H43: - | I43: -
E44: - | G44: - | H44: - | I44: -
E45: - | G45: - | H45: - | I45: -
E46: - | G46: - | H46: - | I46: -
E47: - | G47: - | H47: - | I47: -
E48: - | G48: - | H48: - | I48: -
E49: - | G49: - | H49: - | I49: -
E50: - | G50: - | H50: - | I50: -
E51: - | G51: - | H51: - | I51: -
E52: - | G52: - | H52: - | I52: -
E53: - | G53: - | H53: - | I53: -
E54: - | G54: - | H54: - | I54: -
E55: - | G55: - | H55: - | I55: -
E56: - | G56: - | H56: - | I56: -

Sheet Diny van de Weijenberg
B13: Diny van de Weijenberg
B16: Gespeeld | F16: =COUNTIF(G32:G57,"W")+COUNTIF(G32:G57,"G")+COUNTIF(G32:G57,"V") -> 6
B17: Gewonnen | F17: =COUNTIF(G32:G57,"W") -> 1
B18: Gelijk | F18: =COUNTIF(G32:G57,"G") -> 0
B19: Verloren | F19: =COUNTIF(G32:G57,"V") -> 5 | H19: Wijk van initiële inschrijving (met shirtkleur finaledag)
B20: % gewonnen | F20: =IF(F16=0,0,F17/F16) -> 0.1666666667
B21: % gelijk | F21: =IF(F16=0,0,F18/F16) -> 0
B22: % verloren | F22: =IF(F16=0,0,F19/F16) -> 0.8333333333 | H22: De Schutskamp
B23: Wedstrijdpunten | F23: =SUM(H32:H57) -> 3
B24: Saldopunten | F24: =SUM(I32:I57) -> -51
B25: Saldopunten per wedstrijd | F25: =IF(F16=0,0,F24/F16) -> -8.5
B28: LET OP: alleen wedstrijden die daadwerkelijk gespeeld zijn in de wijk waarvoor jij je hebt ingeschreven tellen mee!
B31: Datum | C31: Locatie | D31: UITSLAGEN | G31: W, V of G? | H31: Wedstrijd-punten | I31: Saldo-punten
B32: 2021-06-28 | C32: De Schutskamp | D32: 3 | E32: - | F32: 12 | G32: =IF(OR($B$13="",wijk_van_inschrijving=""),"-",IF(OR(wijk_van_inschrijving<>C32,D32="",F32=""),"-",IF(D32>F32,"W",IF(D32=F32,"G",IF(D32<F32,"V","-"))))) -> V | H32: =IF(OR($B$13="",wijk_van_inschrijving=""),"-",IF(OR(wijk_van_inschrijving<>C32,G32="-",G32=""),"-",IF(G32="W",3,IF(G32="G",2,IF(G32="V",0,0))))) -> 0 | I32: =IF(OR($B$13="",wijk_van_inschrijving=""),"-",IF(wijk_van_inschrijving<>C32,"-",IF(D32>=0,IF(F32="","-",D32-F32)))) -> -9
B33: 2021-06-28 | C33: De Schutskamp | D33: 4 | E33: - | F33: 13 | G33: V | H33: 0 | I33: -9
B34: 2021-06-28 | C34: De Schutskamp | D34: 2 | E34: - | F34: 13 | G34: V | H34: 0 | I34: -11
B35: 2021-07-05 | C35: De Schutskamp | D35: 7 | E35: - | F35: 5 | G35: W | H35: 3 | I35: 2
B36: 2021-07-05 | C36: De Schutskamp | D36: 2 | E36: - | F36: 13 | G36: V | H36: 0 | I36: -11
B37: 2021-07-05 | C37: De Schutskamp | D37: 0 | E37: - | F37: 13 | G37: V | H37: 0 | I37: -13
E38: - | G38: - | H38: - | I38: -
E39: - | G39: - | H39: - | I39: -
E40: - | G40: - | H40: - | I40: -
E41: - | G41: - | H41: - | I41: -
E42: - | G42: - | H42: - | I42: -
E43: - | G43: - | H43: - | I43: -
E44: - | G44: - | H44: - | I44: -
E45: - | G45: - | H45: - | I45: -
E46: - | G46: - | H46: - | I46: -
E47: - | G47: - | H47: - | I47: -
E48: - | G48: - | H48: - | I48: -
E49: - | G49: - | H49: - | I49: -
E50: - | G50: - | H50: - | I50: -
E51: - | G51: - | H51: - | I51: -
E52: - | G52: - | H52: - | I52: -
E53: - | G53: - | H53: - | I53: -
E54: - | G54: - | H54: - | I54: -
E55: - | G55: - | H55: - | I55: -
E56: - | G56: - | H56: - | I56: -

Sheet Driss Lamjaata
B13: Driss Lamjaata
B16: Gespeeld | F16: =COUNTIF(G32:G57,"W")+COUNTIF(G32:G57,"G")+COUNTIF(G32:G57,"V") -> 12
B17: Gewonnen | F17: =COUNTIF(G32:G57,"W") -> 5
B18: Gelijk | F18: =COUNTIF(G32:G57,"G") -> 0
B19: Verloren | F19: =COUNTIF(G32:G57,"V") -> 7 | H19: Wijk van initiële inschrijving (met shirtkleur finaledag)
B20: % gewonnen | F20: =IF(F16=0,0,F17/F16) -> 0.4166666667
B21: % gelijk | F21: =IF(F16=0,0,F18/F16) -> 0
B22: % verloren | F22: =IF(F16=0,0,F19/F16) -> 0.5833333333 | H22: De Schutskamp
B23: Wedstrijdpunten | F23: =SUM(H32:H57) -> 15
B24: Saldopunten | F24: =SUM(I32:I57) -> -18
B25: Saldopunten per wedstrijd | F25: =IF(F16=0,0,F24/F16) -> -1.5
B28: LET OP: alleen wedstrijden die daadwerkelijk gespeeld zijn in de wijk waarvoor jij je hebt ingeschreven tellen mee!
B31: Datum | C31: Locatie | D31: UITSLAGEN | G31: W, V of G? | H31: Wedstrijd-punten | I31: Saldo-punten
B32: 2021-06-14 | C32: De Schutskamp | D32: 13 | E32: - | F32: 7 | G32: =IF(OR($B$13="",wijk_van_inschrijving=""),"-",IF(OR(wijk_van_inschrijving<>C32,D32="",F32=""),"-",IF(D32>F32,"W",IF(D32=F32,"G",IF(D32<F32,"V","-"))))) -> W | H32: =IF(OR($B$13="",wijk_van_inschrijving=""),"-",IF(OR(wijk_van_inschrijving<>C32,G32="-",G32=""),"-",IF(G32="W",3,IF(G32="G",2,IF(G32="V",0,0))))) -> 3 | I32: =IF(OR($B$13="",wijk_van_inschrijving=""),"-",IF(wijk_van_inschrijving<>C32,"-",IF(D32>=0,IF(F32="","-",D32-F32)))) -> 6
B33: 2021-06-14 | C33: De Schutskamp | D33: 5 | E33: - | F33: 8 | G33: V | H33: 0 | I33: -3
B34: 2021-06-14 | C34: De Schutskamp | D34: 4 | E34: - | F34: 13 | G34: V | H34: 0 | I34: -9
B35: 2021-06-24 | C35: De Schutskamp | D35: 3 | E35: - | F35: 13 | G35: V | H35: 0 | I35: -10
B36: 2021-06-24 | C36: De Schutskamp | D36: 6 | E36: - | F36: 9 | G36: V | H36: 0 | I36: -3
B37: 2021-06-24 | C37: De Schutskamp | D37: 13 | E37: - | F37: 12 | G37: W | H37: 3 | I37: 1
B38: 2021-06-28 | C38: De Schutskamp | D38: 12 | E38: - | F38: 3 | G38: W | H38: 3 | I38: 9
B39: 2021-06-28 | C39: De Schutskamp | D39: 8 | E39: - | F39: 7 | G39: W | H39: 3 | I39: 1
B40: 2021-06-28 | C40: De Schutskamp | D40: 7 | E40: - | F40: 1 | G40: W | H40: 3 | I40: 6
B41: 2021-07-05 | C41: De Schutskamp | D41: 9 | E41: - | F41: 13 | G41: V | H41: 0 | I41: -4
B42: 2021-07-05 | C42: De Schutskamp | D42: 3 | E42: - | F42: 9 | G42: V | H42: 0 | I42: -6
B43: 2021-07-05 | C43: De Schutskamp | D43: 3 | E43: - | F43: 9 | G43: V | H43: 0 | I43: -6
E44: - | G44: - | H44: - | I44: -
E45: - | G45: - | H45: - | I45: -
E46: - | G46: - | H46: - | I46: -
E47: - | G47: - | H47: - | I47: -
E48: - | G48: - | H48: - | I48: -
E49: - | G49: - | H49: - | I49: -
E50: - | G50: - | H50: - | I50: -
E51: - | G51: - | H51: - | I51: -
E52: - | G52: - | H52: - | I52: -
E53: - | G53: - | H53: - | I53: -
E54: - | G54: - | H54: - | I54: -
E55: - | G55: - | H55: - | I55: -
E56: - | G56: - | H56: - | I56: -

Sheet Ed van de Braak
B13: Ed van de Braak
B16: Gespeeld | F16: =COUNTIF(G32:G57,"W")+COUNTIF(G32:G57,"G")+COUNTIF(G32:G57,"V") -> 1
B17: Gewonnen | F17: =COUNTIF(G32:G57,"W") -> 0
B18: Gelijk | F18: =COUNTIF(G32:G57,"G") -> 0
B19: Verloren | F19: =COUNTIF(G32:G57,"V") -> 1 | H19: Wijk van initiële inschrijving (met shirtkleur finaledag)
B20: % gewonnen | F20: =IF(F16=0,0,F17/F16) -> 0
B21: % gelijk | F21: =IF(F16=0,0,F18/F16) -> 0
B22: % verloren | F22: =IF(F16=0,0,F19/F16) -> 1 | H22: 's-Hertogenbosch Zuid
B23: Wedstrijdpunten | F23: =SUM(H32:H57) -> 0
B24: Saldopunten | F24: =SUM(I32:I57) -> -9
B25: Saldopunten per wedstrijd | F25: =IF(F16=0,0,F24/F16) -> -9
B28: LET OP: alleen wedstrijden die daadwerkelijk gespeeld zijn in de wijk waarvoor jij je hebt ingeschreven tellen mee!
B31: Datum | C31: Locatie | D31: UITSLAGEN | G31: W, V of G? | H31: Wedstrijd-punten | I31: Saldo-punten
B32: 2021-06-25 | C32: 's-Hertogenbosch Zuid | D32: 4 | E32: - | F32: 13 | G32: =IF(OR($B$13="",wijk_van_inschrijving=""),"-",IF(OR(wijk_van_inschrijving<>C32,D32="",F32=""),"-",IF(D32>F32,"W",IF(D32=F32,"G",IF(D32<F32,"V","-"))))) -> V | H32: =IF(OR($B$13="",wijk_van_inschrijving=""),"-",IF(OR(wijk_van_inschrijving<>C32,G32="-",G32=""),"-",IF(G32="W",3,IF(G32="G",2,IF(G32="V",0,0))))) -> 0 | I32: =IF(OR($B$13="",wijk_van_inschrijving=""),"-",IF(wijk_van_inschrijving<>C32,"-",IF(D32>=0,IF(F32="","-",D32-F32)))) -> -9
E33: - | G33: - | H33: - | I33: -
E34: - | G34: - | H34: - | I34: -
E35: - | G35: - | H35: - | I35: -
E36: - | G36: - | H36: - | I36: -
E37: - | G37: - | H37: - | I37: -
E38: - | G38: - | H38: - | I38: -
E39: - | G39: - | H39: - | I39: -
E40: - | G40: - | H40: - | I40: -
E41: - | G41: - | H41: - | I41: -
E42: - | G42: - | H42: - | I42: -
E43: - | G43: - | H43: - | I43: -
E44: - | G44: - | H44: - | I44: -
E45: - | G45: - | H45: - | I45: -
E46: - | G46: - | H46: - | I46: -
E47: - | G47: - | H47: - | I47: -
E48: - | G48: - | H48: - | I48: -
E49: - | G49: - | H49: - | I49: -
E50: - | G50: - | H50: - | I50: -
E51: - | G51: - | H51: - | I51: -
E52: - | G52: - | H52: - | I52: -
E53: - | G53: - | H53: - | I53: -
E54: - | G54: - | H54: - | I54: -
E55: - | G55: - | H55: - | I55: -
E56: - | G56: - | H56: - | I56: -

Sheet Ed van der Burgh
B13: Ed van der Burgh
B16: Gespeeld | F16: =COUNTIF(G32:G57,"W")+COUNTIF(G32:G57,"G")+COUNTIF(G32:G57,"V") -> 12
B17: Gewonnen | F17: =COUNTIF(G32:G57,"W") -> 7
B18: Gelijk | F18: =COUNTIF(G32:G57,"G") -> 0
B19: Verloren | F19: =COUNTIF(G32:G57,"V") -> 5 | H19: Wijk van initiële inschrijving (met shirtkleur finaledag)
B20: % gewonnen | F20: =IF(F16=0,0,F17/F16) -> 0.5833333333
B21: % gelijk | F21: =IF(F16=0,0,F18/F16) -> 0
B22: % verloren | F22: =IF(F16=0,0,F19/F16) -> 0.4166666667 | H22: De Hambaken
B23: Wedstrijdpunten | F23: =SUM(H32:H57) -> 21
B24: Saldopunten | F24: =SUM(I32:I57) -> 16
B25: Saldopunten per wedstrijd | F25: =IF(F16=0,0,F24/F16) -> 1.333333333
B28: LET OP: alleen wedstrijden die daadwerkelijk gespeeld zijn in de wijk waarvoor jij je hebt ingeschreven tellen mee!
B31: Datum | C31: Locatie | D31: UITSLAGEN | G31: W, V of G? | H31: Wedstrijd-punten | I31: Saldo-punten
B32: 2021-06-16 | C32: De Hambaken | D32: 9 | E32: - | F32: 4 | G32: =IF(OR($B$13="",wijk_van_inschrijving=""),"-",IF(OR(wijk_van_inschrijving<>C32,D32="",F32=""),"-",IF(D32>F32,"W",IF(D32=F32,"G",IF(D32<F32,"V","-"))))) -> W | H32: =IF(OR($B$13="",wijk_van_inschrijving=""),"-",IF(OR(wijk_van_inschrijving<>C32,G32="-",G32=""),"-",IF(G32="W",3,IF(G32="G",2,IF(G32="V",0,0))))) -> 3 | I32: =IF(OR($B$13="",wijk_van_inschrijving=""),"-",IF(wijk_van_inschrijving<>C32,"-",IF(D32>=0,IF(F32="","-",D32-F32)))) -> 5
B33: 2021-06-16 | C33: De Hambaken | D33: 6 | E33: - | F33: 7 | G33: V | H33: 0 | I33: -1
B34: 2021-06-16 | C34: De Hambaken | D34: 6 | E34: - | F34: 7 | G34: V | H34: 0 | I34: -1
B35: 2021-06-23 | C35: De Hambaken | D35: 8 | E35: - | F35: 13 | G35: V | H35: 0 | I35: -5
B36: 2021-06-23 | C36: De Hambaken | D36: 9 | E36: - | F36: 4 | G36: W | H36: 3 | I36: 5
B37: 2021-06-23 | C37: De Hambaken | D37: 13 | E37: - | F37: 10 | G37: W | H37: 3 | I37: 3
B38: 2021-06-29 | C38: De Hambaken | D38: 4 | E38: - | F38: 10 | G38: V | H38: 0 | I38: -6
B39: 2021-06-29 | C39: De Hambaken | D39: 8 | E39: - | F39: 2 | G39: W | H39: 3 | I39: 6
B40: 2021-06-29 | C40: De Hambaken | D40: 13 | E40: - | F40: 12 | G40: W | H40: 3 | I40: 1
B41: 2021-07-06 | C41: De Hambaken | D41: 13 | E41: - | F41: 5 | G41: W | H41: 3 | I41: 8
B42: 2021-07-06 | C42: De Hambaken | D42: 3 | E42: - | F42: 9 | G42: V | H42: 0 | I42: -6
B43: 2021-07-06 | C43: De Hambaken | D43: 12 | E43: - | F43: 5 | G43: W | H43: 3 | I43: 7
E44: - | G44: - | H44: - | I44: -
E45: - | G45: - | H45: - | I45: -
E46: - | G46: - | H46: - | I46: -
E47: - | G47: - | H47: - | I47: -
E48: - | G48: - | H48: - | I48: -
E49: - | G49: - | H49: - | I49: -
E50: - | G50: - | H50: - | I50: -
E51: - | G51: - | H51: - | I51: -
E52: - | G52: - | H52: - | I52: -
E53: - | G53: - | H53: - | I53: -
E54: - | G54: - | H54: - | I54: -
E55: - | G55: - | H55: - | I55: -
E56: - | G56: - | H56: - | I56: -

Sheet Els Kuijpers - Hermsen
B13: Els Kuijpers - Hermsen
B16: Gespeeld | F16: =COUNTIF(G32:G57,"W")+COUNTIF(G32:G57,"G")+COUNTIF(G32:G57,"V") -> 3
B17: Gewonnen | F17: =COUNTIF(G32:G57,"W") -> 1
B18: Gelijk | F18: =COUNTIF(G32:G57,"G") -> 1
B19: Verloren | F19: =COUNTIF(G32:G57,"V") -> 1 | H19: Wijk van initiële inschrijving (met shirtkleur finaledag)
B20: % gewonnen | F20: =IF(F16=0,0,F17/F16) -> 0.3333333333
B21: % gelijk | F21: =IF(F16=0,0,F18/F16) -> 0.3333333333
B22: % verloren | F22: =IF(F16=0,0,F19/F16) -> 0.3333333333 | H22: De Schutskamp
B23: Wedstrijdpunten | F23: =SUM(H32:H57) -> 5
B24: Saldopunten | F24: =SUM(I32:I57) -> 1
B25: Saldopunten per wedstrijd | F25: =IF(F16=0,0,F24/F16) -> 0.3333333333
B28: LET OP: alleen wedstrijden die daadwerkelijk gespeeld zijn in de wijk waarvoor jij je hebt ingeschreven tellen mee!
B31: Datum | C31: Locatie | D31: UITSLAGEN | G31: W, V of G? | H31: Wedstrijd-punten | I31: Saldo-punten
B32: 2021-06-24 | C32: De Schutskamp | D32: 5 | E32: - | F32: 5 | G32: =IF(OR($B$13="",wijk_van_inschrijving=""),"-",IF(OR(wijk_van_inschrijving<>C32,D32="",F32=""),"-",IF(D32>F32,"W",IF(D32=F32,"G",IF(D32<F32,"V","-"))))) -> G | H32: =IF(OR($B$13="",wijk_van_inschrijving=""),"-",IF(OR(wijk_van_inschrijving<>C32,G32="-",G32=""),"-",IF(G32="W",3,IF(G32="G",2,IF(G32="V",0,0))))) -> 2 | I32: =IF(OR($B$13="",wijk_van_inschrijving=""),"-",IF(wijk_van_inschrijving<>C32,"-",IF(D32>=0,IF(F32="","-",D32-F32)))) -> 0
B33: 2021-06-24 | C33: De Schutskamp | D33: 10 | E33: - | F33: 5 | G33: W | H33: 3 | I33: 5
B34: 2021-06-24 | C34: De Schutskamp | D34: 7 | E34: - | F34: 11 | G34: V | H34: 0 | I34: -4
E35: - | G35: - | H35: - | I35: -
E36: - | G36: - | H36: - | I36: -
E37: - | G37: - | H37: - | I37: -
E38: - | G38: - | H38: - | I38: -
E39: - | G39: - | H39: - | I39: -
E40: - | G40: - | H40: - | I40: -
E41: - | G41: - | H41: - | I41: -
E42: - | G42: - | H42: - | I42: -
E43: - | G43: - | H43: - | I43: -
E44: - | G44: - | H44: - | I44: -
E45: - | G45: - | H45: - | I45: -
E46: - | G46: - | H46: - | I46: -
E47: - | G47: - | H47: - | I47: -
E48: - | G48: - | H48: - | I48: -
E49: - | G49: - | H49: - | I49: -
E50: - | G50: - | H50: - | I50: -
E51: - | G51: - | H51: - | I51: -
E52: - | G52: - | H52: - | I52: -
E53: - | G53: - | H53: - | I53: -
E54: - | G54: - | H54: - | I54: -
E55: - | G55: - | H55: - | I55: -
E56: - | G56: - | H56: - | I56: -

Sheet Enn Tulkens
B13: Enn Tulkens
B16: Gespeeld | F16: =COUNTIF(G32:G57,"W")+COUNTIF(G32:G57,"G")+COUNTIF(G32:G57,"V") -> 3
B17: Gewonnen | F17: =COUNTIF(G32:G57,"W") -> 2
B18: Gelijk | F18: =COUNTIF(G32:G57,"G") -> 0
B19: Verloren | F19: =COUNTIF(G32:G57,"V") -> 1 | H19: Wijk van initiële inschrijving (met shirtkleur finaledag)
B20: % gewonnen | F20: =IF(F16=0,0,F17/F16) -> 0.6666666667
B21: % gelijk | F21: =IF(F16=0,0,F18/F16) -> 0
B22: % verloren | F22: =IF(F16=0,0,F19/F16) -> 0.3333333333 | H22: 's-Hertogenbosch Zuid
B23: Wedstrijdpunten | F23: =SUM(H32:H57) -> 6
B24: Saldopunten | F24: =SUM(I32:I57) -> 2
B25: Saldopunten per wedstrijd | F25: =IF(F16=0,0,F24/F16) -> 0.6666666667
B28: LET OP: alleen wedstrijden die daadwerkelijk gespeeld zijn in de wijk waarvoor jij je hebt ingeschreven tellen mee!
B31: Datum | C31: Locatie | D31: UITSLAGEN | G31: W, V of G? | H31: Wedstrijd-punten | I31: Saldo-punten
B32: 2021-06-15 | C32: Hondsberg (Rosmalen) | D32: 8 | E32: - | F32: 5 | G32: =IF(OR($B$13="",wijk_van_inschrijving=""),"-",IF(OR(wijk_van_inschrijving<>C32,D32="",F32=""),"-",IF(D32>F32,"W",IF(D32=F32,"G",IF(D32<F32,"V","-"))))) -> - | H32: =IF(OR($B$13="",wijk_van_inschrijving=""),"-",IF(OR(wijk_van_inschrijving<>C32,G32="-",G32=""),"-",IF(G32="W",3,IF(G32="G",2,IF(G32="V",0,0))))) -> - | I32: =IF(OR($B$13="",wijk_van_inschrijving=""),"-",IF(wijk_van_inschrijving<>C32,"-",IF(D32>=0,IF(F32="","-",D32-F32)))) -> -
B33: 2021-06-15 | C33: Hondsberg (Rosmalen) | D33: 6 | E33: - | F33: 6 | G33: - | H33: - | I33: -
B34: 2021-06-15 | C34: Hondsberg (Rosmalen) | D34: 8 | E34: - | F34: 8 | G34: - | H34: - | I34: -
B35: 2021-06-18 | C35: 's-Hertogenbosch Zuid | D35: 1 | E35: - | F35: 13 | G35: V | H35: 0 | I35: -12
B36: 2021-06-18 | C36: 's-Hertogenbosch Zuid | D36: 12 | E36: - | F36: 1 | G36: W | H36: 3 | I36: 11
B37: 2021-06-18 | C37: 's-Hertogenbosch Zuid | D37: 9 | E37: - | F37: 6 | G37: W | H37: 3 | I37: 3
E38: - | G38: - | H38: - | I38: -
E39: - | G39: - | H39: - | I39: -
E40: - | G40: - | H40: - | I40: -
E41: - | G41: - | H41: - | I41: -
E42: - | G42: - | H42: - | I42: -
E43: - | G43: - | H43: - | I43: -
E44: - | G44: - | H44: - | I44: -
E45: - | G45: - | H45: - | I45: -
E46: - | G46: - | H46: - | I46: -
E47: - | G47: - | H47: - | I47: -
E48: - | G48: - | H48: - | I48: -
E49: - | G49: - | H49: - | I49: -
E50: - | G50: - | H50: - | I50: -
E51: - | G51: - | H51: - | I51: -
E52: - | G52: - | H52: - | I52: -
E53: - | G53: - | H53: - | I53: -
E54: - | G54: - | H54: - | I54: -
E55: - | G55: - | H55: - | I55: -
E56: - | G56: - | H56: - | I56: -

Sheet Evy Pappot
B13: Evy Pappot
B16: Gespeeld | F16: =COUNTIF(G32:G57,"W")+COUNTIF(G32:G57,"G")+COUNTIF(G32:G57,"V") -> 4
B17: Gewonnen | F17: =COUNTIF(G32:G57,"W") -> 1
B18: Gelijk | F18: =COUNTIF(G32:G57,"G") -> 0
B19: Verloren | F19: =COUNTIF(G32:G57,"V") -> 3 | H19: Wijk van initiële inschrijving (met shirtkleur finaledag)
B20: % gewonnen | F20: =IF(F16=0,0,F17/F16) -> 0.25
B21: % gelijk | F21: =IF(F16=0,0,F18/F16) -> 0
B22: % verloren | F22: =IF(F16=0,0,F19/F16) -> 0.75 | H22: De Hambaken
B23: Wedstrijdpunten | F23: =SUM(H32:H57) -> 3
B24: Saldopunten | F24: =SUM(I32:I57) -> -16
B25: Saldopunten per wedstrijd | F25: =IF(F16=0,0,F24/F16) -> -4
B28: LET OP: alleen wedstrijden die daadwerkelijk gespeeld zijn in de wijk waarvoor jij je hebt ingeschreven tellen mee!
B31: Datum | C31: Locatie | D31: UITSLAGEN | G31: W, V of G? | H31: Wedstrijd-punten | I31: Saldo-punten
B32: 2021-06-16 | C32: De Hambaken | D32: 6 | E32: - | F32: 7 | G32: =IF(OR($B$13="",wijk_van_inschrijving=""),"-",IF(OR(wijk_van_inschrijving<>C32,D32="",F32=""),"-",IF(D32>F32,"W",IF(D32=F32,"G",IF(D32<F32,"V","-"))))) -> V | H32: =IF(OR($B$13="",wijk_van_inschrijving=""),"-",IF(OR(wijk_van_inschrijving<>C32,G32="-",G32=""),"-",IF(G32="W",3,IF(G32="G",2,IF(G32="V",0,0))))) -> 0 | I32: =IF(OR($B$13="",wijk_van_inschrijving=""),"-",IF(wijk_van_inschrijving<>C32,"-",IF(D32>=0,IF(F32="","-",D32-F32)))) -> -1
B33: 2021-06-23 | C33: De Hambaken | D33: 0 | E33: - | F33: 13 | G33: V | H33: 0 | I33: -13
B34: 2021-06-23 | C34: De Hambaken | D34: 9 | E34: - | F34: 4 | G34: W | H34: 3 | I34: 5
B35: 2021-06-23 | C35: De Hambaken | D35: 5 | E35: - | F35: 12 | G35: V | H35: 0 | I35: -7
E36: - | G36: - | H36: - | I36: -
E37: - | G37: - | H37: - | I37: -
E38: - | G38: - | H38: - | I38: -
E39: - | G39: - | H39: - | I39: -
E40: - | G40: - | H40: - | I40: -
E41: - | G41: - | H41: - | I41: -
E42: - | G42: - | H42: - | I42: -
E43: - | G43: - | H43: - | I43: -
E44: - | G44: - | H44: - | I44: -
E45: - | G45: - | H45: - | I45: -
E46: - | G46: - | H46: - | I46: -
E47: - | G47: - | H47: - | I47: -
E48: - | G48: - | H48: - | I48: -
E49: - | G49: - | H49: - | I49: -
E50: - | G50: - | H50: - | I50: -
E51: - | G51: - | H51: - | I51: -
E52: - | G52: - | H52: - | I52: -
E53: - | G53: - | H53: - | I53: -
E54: - | G54: - | H54: - | I54: -
E55: - | G55: - | H55: - | I55: -
E56: - | G56: - | H56: - | I56: -

Sheet Fien Bertrums
B13: Fien Bertrums
B16: Gespeeld | F16: =COUNTIF(G32:G57,"W")+COUNTIF(G32:G57,"G")+COUNTIF(G32:G57,"V") -> 6
B17: Gewonnen | F17: =COUNTIF(G32:G57,"W") -> 0
B18: Gelijk | F18: =COUNTIF(G32:G57,"G") -> 0
B19: Verloren | F19: =COUNTIF(G32:G57,"V") -> 6 | H19: Wijk van initiële inschrijving (met shirtkleur finaledag)
B20: % gewonnen | F20: =IF(F16=0,0,F17/F16) -> 0
B21: % gelijk | F21: =IF(F16=0,0,F18/F16) -> 0
B22: % verloren | F22: =IF(F16=0,0,F19/F16) -> 1 | H22: 's-Hertogenbosch Zuid
B23: Wedstrijdpunten | F23: =SUM(H32:H57) -> 0
B24: Saldopunten | F24: =SUM(I32:I57) -> -39
B25: Saldopunten per wedstrijd | F25: =IF(F16=0,0,F24/F16) -> -6.5
B28: LET OP: alleen wedstrijden die daadwerkelijk gespeeld zijn in de wijk waarvoor jij je hebt ingeschreven tellen mee!
B31: Datum | C31: Locatie | D31: UITSLAGEN | G31: W, V of G? | H31: Wedstrijd-punten | I31: Saldo-punten
B32: 2021-07-01 | C32: 's-Hertogenbosch Zuid | D32: 4 | E32: - | F32: 9 | G32: =IF(OR($B$13="",wijk_van_inschrijving=""),"-",IF(OR(wijk_van_inschrijving<>C32,D32="",F32=""),"-",IF(D32>F32,"W",IF(D32=F32,"G",IF(D32<F32,"V","-"))))) -> V | H32: =IF(OR($B$13="",wijk_van_inschrijving=""),"-",IF(OR(wijk_van_inschrijving<>C32,G32="-",G32=""),"-",IF(G32="W",3,IF(G32="G",2,IF(G32="V",0,0))))) -> 0 | I32: =IF(OR($B$13="",wijk_van_inschrijving=""),"-",IF(wijk_van_inschrijving<>C32,"-",IF(D32>=0,IF(F32="","-",D32-F32)))) -> -5
B33: 2021-07-01 | C33: 's-Hertogenbosch Zuid | D33: 6 | E33: - | F33: 8 | G33: V | H33: 0 | I33: -2
B34: 2021-07-01 | C34: 's-Hertogenbosch Zuid | D34: 1 | E34: - | F34: 13 | G34: V | H34: 0 | I34: -12
B35: 2021-07-08 | C35: 's-Hertogenbosch Zuid | D35: 2 | E35: - | F35: 10 | G35: V | H35: 0 | I35: -8
B36: 2021-07-08 | C36: 's-Hertogenbosch Zuid | D36: 5 | E36: - | F36: 11 | G36: V | H36: 0 | I36: -6
B37: 2021-07-08 | C37: 's-Hertogenbosch Zuid | D37: 7 | E37: - | F37: 13 | G37: V | H37: 0 | I37: -6
E38: - | G38: - | H38: - | I38: -
E39: - | G39: - | H39: - | I39: -
E40: - | G40: - | H40: - | I40: -
E41: - | G41: - | H41: - | I41: -
E42: - | G42: - | H42: - | I42: -
E43: - | G43: - | H43: - | I43: -
E44: - | G44: - | H44: - | I44: -
E45: - | G45: - | H45: - | I45: -
E46: - | G46: - | H46: - | I46: -
E47: - | G47: - | H47: - | I47: -
E48: - | G48: - | H48: - | I48: -
E49: - | G49: - | H49: - | I49: -
E50: - | G50: - | H50: - | I50: -
E51: - | G51: - | H51: - | I51: -
E52: - | G52: - | H52: - | I52: -
E53: - | G53: - | H53: - | I53: -
E54: - | G54: - | H54: - | I54: -
E55: - | G55: - | H55: - | I55: -
E56: - | G56: - | H56: - | I56: -

Sheet Franka van Aerle
B13: Franka van Aerle
B16: Gespeeld | F16: =COUNTIF(G32:G57,"W")+COUNTIF(G32:G57,"G")+COUNTIF(G32:G57,"V") -> 9
B17: Gewonnen | F17: =COUNTIF(G32:G57,"W") -> 5
B18: Gelijk | F18: =COUNTIF(G32:G57,"G") -> 0
B19: Verloren | F19: =COUNTIF(G32:G57,"V") -> 4 | H19: Wijk van initiële inschrijving (met shirtkleur finaledag)
B20: % gewonnen | F20: =IF(F16=0,0,F17/F16) -> 0.5555555556
B21: % gelijk | F21: =IF(F16=0,0,F18/F16) -> 0
B22: % verloren | F22: =IF(F16=0,0,F19/F16) -> 0.4444444444 | H22: De Hambaken
B23: Wedstrijdpunten | F23: =SUM(H32:H57) -> 15
B24: Saldopunten | F24: =SUM(I32:I57) -> 28
B25: Saldopunten per wedstrijd | F25: =IF(F16=0,0,F24/F16) -> 3.111111111
B28: LET OP: alleen wedstrijden die daadwerkelijk gespeeld zijn in de wijk waarvoor jij je hebt ingeschreven tellen mee!
B31: Datum | C31: Locatie | D31: UITSLAGEN | G31: W, V of G? | H31: Wedstrijd-punten | I31: Saldo-punten
B32: 2021-06-23 | C32: De Hambaken | D32: 13 | E32: - | F32: 0 | G32: =IF(OR($B$13="",wijk_van_inschrijving=""),"-",IF(OR(wijk_van_inschrijving<>C32,D32="",F32=""),"-",IF(D32>F32,"W",IF(D32=F32,"G",IF(D32<F32,"V","-"))))) -> W | H32: =IF(OR($B$13="",wijk_van_inschrijving=""),"-",IF(OR(wijk_van_inschrijving<>C32,G32="-",G32=""),"-",IF(G32="W",3,IF(G32="G",2,IF(G32="V",0,0))))) -> 3 | I32: =IF(OR($B$13="",wijk_van_inschrijving=""),"-",IF(wijk_van_inschrijving<>C32,"-",IF(D32>=0,IF(F32="","-",D32-F32)))) -> 13
B33: 2021-06-23 | C33: De Hambaken | D33: 9 | E33: - | F33: 4 | G33: W | H33: 3 | I33: 5
B34: 2021-06-23 | C34: De Hambaken | D34: 10 | E34: - | F34: 13 | G34: V | H34: 0 | I34: -3
B35: 2021-06-29 | C35: De Hambaken | D35: 10 | E35: - | F35: 4 | G35: W | H35: 3 | I35: 6
B36: 2021-06-29 | C36: De Hambaken | D36: 13 | E36: - | F36: 2 | G36: W | H36: 3 | I36: 11
B37: 2021-06-29 | C37: De Hambaken | D37: 12 | E37: - | F37: 13 | G37: V | H37: 0 | I37: -1
B38: 2021-07-06 | C38: De Hambaken | D38: 5 | E38: - | F38: 13 | G38: V | H38: 0 | I38: -8
B39: 2021-07-06 | C39: De Hambaken | D39: 13 | E39: - | F39: 5 | G39: W | H39: 3 | I39: 8
B40: 2021-07-06 | C40: De Hambaken | D40: 6 | E40: - | F40: 9 | G40: V | H40: 0 | I40: -3
E41: - | G41: - | H41: - | I41: -
E42: - | G42: - | H42: - | I42: -
E43: - | G43: - | H43: - | I43: -
E44: - | G44: - | H44: - | I44: -
E45: - | G45: - | H45: - | I45: -
E46: - | G46: - | H46: - | I46: -
E47: - | G47: - | H47: - | I47: -
E48: - | G48: - | H48: - | I48: -
E49: - | G49: - | H49: - | I49: -
E50: - | G50: - | H50: - | I50: -
E51: - | G51: - | H51: - | I51: -
E52: - | G52: - | H52: - | I52: -
E53: - | G53: - | H53: - | I53: -
E54: - | G54: - | H54: - | I54: -
E55: - | G55: - | H55: - | I55: -
E56: - | G56: - | H56: - | I56: -

Sheet Frans Baert
B13: Frans Baert
B16: Gespeeld | F16: =COUNTIF(G32:G57,"W")+COUNTIF(G32:G57,"G")+COUNTIF(G32:G57,"V") -> 9
B17: Gewonnen | F17: =COUNTIF(G32:G57,"W") -> 6
B18: Gelijk | F18: =COUNTIF(G32:G57,"G") -> 1
B19: Verloren | F19: =COUNTIF(G32:G57,"V") -> 2 | H19: Wijk van initiële inschrijving (met shirtkleur finaledag)
B20: % gewonnen | F20: =IF(F16=0,0,F17/F16) -> 0.6666666667
B21: % gelijk | F21: =IF(F16=0,0,F18/F16) -> 0.1111111111
B22: % verloren | F22: =IF(F16=0,0,F19/F16) -> 0.2222222222 | H22: 's-Hertogenbosch Zuid
B23: Wedstrijdpunten | F23: =SUM(H32:H57) -> 20
B24: Saldopunten | F24: =SUM(I32:I57) -> 36
B25: Saldopunten per wedstrijd | F25: =IF(F16=0,0,F24/F16) -> 4
B28: LET OP: alleen wedstrijden die daadwerkelijk gespeeld zijn in de wijk waarvoor jij je hebt ingeschreven tellen mee!
B31: Datum | C31: Locatie | D31: UITSLAGEN | G31: W, V of G? | H31: Wedstrijd-punten | I31: Saldo-punten
B32: 2021-06-25 | C32: 's-Hertogenbosch Zuid | D32: 9 | E32: - | F32: 9 | G32: =IF(OR($B$13="",wijk_van_inschrijving=""),"-",IF(OR(wijk_van_inschrijving<>C32,D32="",F32=""),"-",IF(D32>F32,"W",IF(D32=F32,"G",IF(D32<F32,"V","-"))))) -> G | H32: =IF(OR($B$13="",wijk_van_inschrijving=""),"-",IF(OR(wijk_van_inschrijving<>C32,G32="-",G32=""),"-",IF(G32="W",3,IF(G32="G",2,IF(G32="V",0,0))))) -> 2 | I32: =IF(OR($B$13="",wijk_van_inschrijving=""),"-",IF(wijk_van_inschrijving<>C32,"-",IF(D32>=0,IF(F32="","-",D32-F32)))) -> 0
B33: 2021-06-25 | C33: 's-Hertogenbosch Zuid | D33: 13 | E33: - | F33: 0 | G33: W | H33: 3 | I33: 13
B34: 2021-06-25 | C34: 's-Hertogenbosch Zuid | D34: 9 | E34: - | F34: 4 | G34: W | H34: 3 | I34: 5
B35: 2021-07-01 | C35: 's-Hertogenbosch Zuid | D35: 13 | E35: - | F35: 0 | G35: W | H35: 3 | I35: 13
B36: 2021-07-01 | C36: 's-Hertogenbosch Zuid | D36: 5 | E36: - | F36: 9 | G36: V | H36: 0 | I36: -4
B37: 2021-07-01 | C37: 's-Hertogenbosch Zuid | D37: 12 | E37: - | F37: 8 | G37: W | H37: 3 | I37: 4
B38: 2021-07-08 | C38: 's-Hertogenbosch Zuid | D38: 3 | E38: - | F38: 11 | G38: V | H38: 0 | I38: -8
B39: 2021-07-08 | C39: 's-Hertogenbosch Zuid | D39: 10 | E39: - | F39: 3 | G39: W | H39: 3 | I39: 7
B40: 2021-07-08 | C40: 's-Hertogenbosch Zuid | D40: 13 | E40: - | F40: 7 | G40: W | H40: 3 | I40: 6
E41: - | G41: - | H41: - | I41: -
E42: - | G42: - | H42: - | I42: -
E43: - | G43: - | H43: - | I43: -
E44: - | G44: - | H44: - | I44: -
E45: - | G45: - | H45: - | I45: -
E46: - | G46: - | H46: - | I46: -
E47: - | G47: - | H47: - | I47: -
E48: - | G48: - | H48: - | I48: -
E49: - | G49: - | H49: - | I49: -
E50: - | G50: - | H50: - | I50: -
E51: - | G51: - | H51: - | I51: -
E52: - | G52: - | H52: - | I52: -
E53: - | G53: - | H53: - | I53: -
E54: - | G54: - | H54: - | I54: -
E55: - | G55: - | H55: - | I55: -
E56: - | G56: - | H56: - | I56: -

Sheet Fred Eskens
B13: Fred Eskens
B16: Gespeeld | F16: =COUNTIF(G32:G57,"W")+COUNTIF(G32:G57,"G")+COUNTIF(G32:G57,"V") -> 3
B17: Gewonnen | F17: =COUNTIF(G32:G57,"W") -> 0
B18: Gelijk | F18: =COUNTIF(G32:G57,"G") -> 1
B19: Verloren | F19: =COUNTIF(G32:G57,"V") -> 2 | H19: Wijk van initiële inschrijving (met shirtkleur finaledag)
B20: % gewonnen | F20: =IF(F16=0,0,F17/F16) -> 0
B21: % gelijk | F21: =IF(F16=0,0,F18/F16) -> 0.3333333333
B22: % verloren | F22: =IF(F16=0,0,F19/F16) -> 0.6666666667 | H22: De Schutskamp
B23: Wedstrijdpunten | F23: =SUM(H32:H57) -> 2
B24: Saldopunten | F24: =SUM(I32:I57) -> -9
B25: Saldopunten per wedstrijd | F25: =IF(F16=0,0,F24/F16) -> -3
B28: LET OP: alleen wedstrijden die daadwerkelijk gespeeld zijn in de wijk waarvoor jij je hebt ingeschreven tellen mee!
B31: Datum | C31: Locatie | D31: UITSLAGEN | G31: W, V of G? | H31: Wedstrijd-punten | I31: Saldo-punten
B32: 2021-06-24 | C32: De Schutskamp | D32: 5 | E32: - | F32: 5 | G32: =IF(OR($B$13="",wijk_van_inschrijving=""),"-",IF(OR(wijk_van_inschrijving<>C32,D32="",F32=""),"-",IF(D32>F32,"W",IF(D32=F32,"G",IF(D32<F32,"V","-"))))) -> G | H32: =IF(OR($B$13="",wijk_van_inschrijving=""),"-",IF(OR(wijk_van_inschrijving<>C32,G32="-",G32=""),"-",IF(G32="W",3,IF(G32="G",2,IF(G32="V",0,0))))) -> 2 | I32: =IF(OR($B$13="",wijk_van_inschrijving=""),"-",IF(wijk_van_inschrijving<>C32,"-",IF(D32>=0,IF(F32="","-",D32-F32)))) -> 0
B33: 2021-06-24 | C33: De Schutskamp | D33: 5 | E33: - | F33: 10 | G33: V | H33: 0 | I33: -5
B34: 2021-06-24 | C34: De Schutskamp | D34: 8 | E34: - | F34: 12 | G34: V | H34: 0 | I34: -4
E35: - | G35: - | H35: - | I35: -
E36: - | G36: - | H36: - | I36: -
E37: - | G37: - | H37: - | I37: -
E38: - | G38: - | H38: - | I38: -
E39: - | G39: - | H39: - | I39: -
E40: - | G40: - | H40: - | I40: -
E41: - | G41: - | H41: - | I41: -
E42: - | G42: - | H42: - | I42: -
E43: - | G43: - | H43: - | I43: -
E44: - | G44: - | H44: - | I44: -
E45: - | G45: - | H45: - | I45: -
E46: - | G46: - | H46: - | I46: -
E47: - | G47: - | H47: - | I47: -
E48: - | G48: - | H48: - | I48: -
E49: - | G49: - | H49: - | I49: -
E50: - | G50: - | H50: - | I50: -
E51: - | G51: - | H51: - | I51: -
E52: - | G52: - | H52: - | I52: -
E53: - | G53: - | H53: - | I53: -
E54: - | G54: - | H54: - | I54: -
E55: - | G55: - | H55: - | I55: -
E56: - | G56: - | H56: - | I56: -

Sheet Geert Hollander
B13: Geert Hollander
B16: Gespeeld | F16: =COUNTIF(G32:G57,"W")+COUNTIF(G32:G57,"G")+COUNTIF(G32:G57,"V") -> 8
B17: Gewonnen | F17: =COUNTIF(G32:G57,"W") -> 4
B18: Gelijk | F18: =COUNTIF(G32:G57,"G") -> 1
B19: Verloren | F19: =COUNTIF(G32:G57,"V") -> 3 | H19: Wijk van initiële inschrijving (met shirtkleur finaledag)
B20: % gewonnen | F20: =IF(F16=0,0,F17/F16) -> 0.5
B21: % gelijk | F21: =IF(F16=0,0,F18/F16) -> 0.125
B22: % verloren | F22: =IF(F16=0,0,F19/F16) -> 0.375 | H22: 's-Hertogenbosch Zuid
B23: Wedstrijdpunten | F23: =SUM(H32:H57) -> 14
B24: Saldopunten | F24: =SUM(I32:I57) -> 11
B25: Saldopunten per wedstrijd | F25: =IF(F16=0,0,F24/F16) -> 1.375
B28: LET OP: alleen wedstrijden die daadwerkelijk gespeeld zijn in de wijk waarvoor jij je hebt ingeschreven tellen mee!
B31: Datum | C31: Locatie | D31: UITSLAGEN | G31: W, V of G? | H31: Wedstrijd-punten | I31: Saldo-punten
B32: 2021-06-14 | C32: De Schutskamp | D32: 13 | E32: - | F32: 2 | G32: =IF(OR($B$13="",wijk_van_inschrijving=""),"-",IF(OR(wijk_van_inschrijving<>C32,D32="",F32=""),"-",IF(D32>F32,"W",IF(D32=F32,"G",IF(D32<F32,"V","-"))))) -> - | H32: =IF(OR($B$13="",wijk_van_inschrijving=""),"-",IF(OR(wijk_van_inschrijving<>C32,G32="-",G32=""),"-",IF(G32="W",3,IF(G32="G",2,IF(G32="V",0,0))))) -> - | I32: =IF(OR($B$13="",wijk_van_inschrijving=""),"-",IF(wijk_van_inschrijving<>C32,"-",IF(D32>=0,IF(F32="","-",D32-F32)))) -> -
B33: 2021-06-14 | C33: De Schutskamp | D33: 4 | E33: - | F33: 7 | G33: - | H33: - | I33: -
B34: 2021-06-14 | C34: De Schutskamp | D34: 4 | E34: - | F34: 9 | G34: - | H34: - | I34: -
B35: 2021-06-25 | C35: 's-Hertogenbosch Zuid | D35: 9 | E35: - | F35: 9 | G35: G | H35: 2 | I35: 0
B36: 2021-06-25 | C36: 's-Hertogenbosch Zuid | D36: 8 | E36: - | F36: 3 | G36: W | H36: 3 | I36: 5
B37: 2021-07-01 | C37: 's-Hertogenbosch Zuid | D37: 4 | E37: - | F37: 9 | G37: V | H37: 0 | I37: -5
B38: 2021-07-01 | C38: 's-Hertogenbosch Zuid | D38: 5 | E38: - | F38: 13 | G38: V | H38: 0 | I38: -8
B39: 2021-07-01 | C39: 's-Hertogenbosch Zuid | D39: 13 | E39: - | F39: 1 | G39: W | H39: 3 | I39: 12
B40: 2021-07-08 | C40: 's-Hertogenbosch Zuid | D40: 13 | E40: - | F40: 5 | G40: W | H40: 3 | I40: 8
B41: 2021-07-08 | C41: 's-Hertogenbosch Zuid | D41: 3 | E41: - | F41: 10 | G41: V | H41: 0 | I41: -7
B42: 2021-07-08 | C42: 's-Hertogenbosch Zuid | D42: 13 | E42: - | F42: 7 | G42: W | H42: 3 | I42: 6
E43: - | G43: - | H43: - | I43: -
E44: - | G44: - | H44: - | I44: -
E45: - | G45: - | H45: - | I45: -
E46: - | G46: - | H46: - | I46: -
E47: - | G47: - | H47: - | I47: -
E48: - | G48: - | H48: - | I48: -
E49: - | G49: - | H49: - | I49: -
E50: - | G50: - | H50: - | I50: -
E51: - | G51: - | H51: - | I51: -
E52: - | G52: - | H52: - | I52: -
E53: - | G53: - | H53: - | I53: -
E54: - | G54: - | H54: - | I54: -
E55: - | G55: - | H55: - | I55: -
E56: - | G56: - | H56: - | I56: -

Sheet Gerard van der Loo
B13: Gerard van der Loo
B16: Gespeeld | F16: =COUNTIF(G32:G57,"W")+COUNTIF(G32:G57,"G")+COUNTIF(G32:G57,"V") -> 12
B17: Gewonnen | F17: =COUNTIF(G32:G57,"W") -> 10
B18: Gelijk | F18: =COUNTIF(G32:G57,"G") -> 1
B19: Verloren | F19: =COUNTIF(G32:G57,"V") -> 1 | H19: Wijk van initiële inschrijving (met shirtkleur finaledag)
B20: % gewonnen | F20: =IF(F16=0,0,F17/F16) -> 0.8333333333
B21: % gelijk | F21: =IF(F16=0,0,F18/F16) -> 0.08333333333
B22: % verloren | F22: =IF(F16=0,0,F19/F16) -> 0.08333333333 | H22: De Schutskamp
B23: Wedstrijdpunten | F23: =SUM(H32:H57) -> 32
B24: Saldopunten | F24: =SUM(I32:I57) -> 83
B25: Saldopunten per wedstrijd | F25: =IF(F16=0,0,F24/F16) -> 6.916666667
B28: LET OP: alleen wedstrijden die daadwerkelijk gespeeld zijn in de wijk waarvoor jij je hebt ingeschreven tellen mee!
B31: Datum | C31: Locatie | D31: UITSLAGEN | G31: W, V of G? | H31: Wedstrijd-punten | I31: Saldo-punten
B32: 2021-06-14 | C32: De Schutskamp | D32: 13 | E32: - | F32: 0 | G32: =IF(OR($B$13="",wijk_van_inschrijving=""),"-",IF(OR(wijk_van_inschrijving<>C32,D32="",F32=""),"-",IF(D32>F32,"W",IF(D32=F32,"G",IF(D32<F32,"V","-"))))) -> W | H32: =IF(OR($B$13="",wijk_van_inschrijving=""),"-",IF(OR(wijk_van_inschrijving<>C32,G32="-",G32=""),"-",IF(G32="W",3,IF(G32="G",2,IF(G32="V",0,0))))) -> 3 | I32: =IF(OR($B$13="",wijk_van_inschrijving=""),"-",IF(wijk_van_inschrijving<>C32,"-",IF(D32>=0,IF(F32="","-",D32-F32)))) -> 13
B33: 2021-06-14 | C33: De Schutskamp | D33: 8 | E33: - | F33: 1 | G33: W | H33: 3 | I33: 7
B34: 2021-06-14 | C34: De Schutskamp | D34: 13 | E34: - | F34: 2 | G34: W | H34: 3 | I34: 11
B35: 2021-06-24 | C35: De Schutskamp | D35: 8 | E35: - | F35: 6 | G35: W | H35: 3 | I35: 2
B36: 2021-06-24 | C36: De Schutskamp | D36: 13 | E36: - | F36: 1 | G36: W | H36: 3 | I36: 12
B37: 2021-06-24 | C37: De Schutskamp | D37: 11 | E37: - | F37: 11 | G37: G | H37: 2 | I37: 0
B38: 2021-06-28 | C38: De Schutskamp | D38: 13 | E38: - | F38: 5 | G38: W | H38: 3 | I38: 8
B39: 2021-06-28 | C39: De Schutskamp | D39: 13 | E39: - | F39: 1 | G39: W | H39: 3 | I39: 12
B40: 2021-06-28 | C40: De Schutskamp | D40: 13 | E40: - | F40: 2 | G40: W | H40: 3 | I40: 11
B41: 2021-07-05 | C41: De Schutskamp | D41: 7 | E41: - | F41: 5 | G41: W | H41: 3 | I41: 2
B42: 2021-07-05 | C42: De Schutskamp | D42: 9 | E42: - | F42: 3 | G42: W | H42: 3 | I42: 6
B43: 2021-07-05 | C43: De Schutskamp | D43: 5 | E43: - | F43: 6 | G43: V | H43: 0 | I43: -1
E44: - | G44: - | H44: - | I44: -
E45: - | G45: - | H45: - | I45: -
E46: - | G46: - | H46: - | I46: -
E47: - | G47: - | H47: - | I47: -
E48: - | G48: - | H48: - | I48: -
E49: - | G49: - | H49: - | I49: -
E50: - | G50: - | H50: - | I50: -
E51: - | G51: - | H51: - | I51: -
E52: - | G52: - | H52: - | I52: -
E53: - | G53: - | H53: - | I53: -
E54: - | G54: - | H54: - | I54: -
E55: - | G55: - | H55: - | I55: -
E56: - | G56: - | H56: - | I56: -

Sheet Gert Hagemans
B13: Gert Hagemans
B16: Gespeeld | F16: =COUNTIF(G32:G57,"W")+COUNTIF(G32:G57,"G")+COUNTIF(G32:G57,"V") -> 6
B17: Gewonnen | F17: =COUNTIF(G32:G57,"W") -> 2
B18: Gelijk | F18: =COUNTIF(G32:G57,"G") -> 0
B19: Verloren | F19: =COUNTIF(G32:G57,"V") -> 4 | H19: Wijk van initiële inschrijving (met shirtkleur finaledag)
B20: % gewonnen | F20: =IF(F16=0,0,F17/F16) -> 0.3333333333
B21: % gelijk | F21: =IF(F16=0,0,F18/F16) -> 0
B22: % verloren | F22: =IF(F16=0,0,F19/F16) -> 0.6666666667 | H22: Hondsberg (Rosmalen)
B23: Wedstrijdpunten | F23: =SUM(H32:H57) -> 6
B24: Saldopunten | F24: =SUM(I32:I57) -> -9
B25: Saldopunten per wedstrijd | F25: =IF(F16=0,0,F24/F16) -> -1.5
B28: LET OP: alleen wedstrijden die daadwerkelijk gespeeld zijn in de wijk waarvoor jij je hebt ingeschreven tellen mee!
B31: Datum | C31: Locatie | D31: UITSLAGEN | G31: W, V of G? | H31: Wedstrijd-punten | I31: Saldo-punten
B32: 2021-06-30 | C32: Hondsberg (Rosmalen) | D32: 3 | E32: - | F32: 6 | G32: =IF(OR($B$13="",wijk_van_inschrijving=""),"-",IF(OR(wijk_van_inschrijving<>C32,D32="",F32=""),"-",IF(D32>F32,"W",IF(D32=F32,"G",IF(D32<F32,"V","-"))))) -> V | H32: =IF(OR($B$13="",wijk_van_inschrijving=""),"-",IF(OR(wijk_van_inschrijving<>C32,G32="-",G32=""),"-",IF(G32="W",3,IF(G32="G",2,IF(G32="V",0,0))))) -> 0 | I32: =IF(OR($B$13="",wijk_van_inschrijving=""),"-",IF(wijk_van_inschrijving<>C32,"-",IF(D32>=0,IF(F32="","-",D32-F32)))) -> -3
B33: 2021-06-30 | C33: Hondsberg (Rosmalen) | D33: 2 | E33: - | F33: 7 | G33: V | H33: 0 | I33: -5
B34: 2021-06-30 | C34: Hondsberg (Rosmalen) | D34: 13 | E34: - | F34: 5 | G34: W | H34: 3 | I34: 8
B35: 2021-07-07 | C35: Hondsberg (Rosmalen) | D35: 5 | E35: - | F35: 12 | G35: V | H35: 0 | I35: -7
B36: 2021-07-07 | C36: Hondsberg (Rosmalen) | D36: 3 | E36: - | F36: 11 | G36: V | H36: 0 | I36: -8
B37: 2021-07-07 | C37: Hondsberg (Rosmalen) | D37: 7 | E37: - | F37: 1 | G37: W | H37: 3 | I37: 6
E38: - | G38: - | H38: - | I38: -
E39: - | G39: - | H39: - | I39: -
E40: - | G40: - | H40: - | I40: -
E41: - | G41: - | H41: - | I41: -
E42: - | G42: - | H42: - | I42: -
E43: - | G43: - | H43: - | I43: -
E44: - | G44: - | H44: - | I44: -
E45: - | G45: - | H45: - | I45: -
E46: - | G46: - | H46: - | I46: -
E47: - | G47: - | H47: - | I47: -
E48: - | G48: - | H48: - | I48: -
E49: - | G49: - | H49: - | I49: -
E50: - | G50: - | H50: - | I50: -
E51: - | G51: - | H51: - | I51: -
E52: - | G52: - | H52: - | I52: -
E53: - | G53: - | H53: - | I53: -
E54: - | G54: - | H54: - | I54: -
E55: - | G55: - | H55: - | I55: -
E56: - | G56: - | H56: - | I56: -

Sheet Hans Fleuren
B13: Hans Fleuren
B16: Gespeeld | F16: =COUNTIF(G32:G57,"W")+COUNTIF(G32:G57,"G")+COUNTIF(G32:G57,"V") -> 3
B17: Gewonnen | F17: =COUNTIF(G32:G57,"W") -> 1
B18: Gelijk | F18: =COUNTIF(G32:G57,"G") -> 0
B19: Verloren | F19: =COUNTIF(G32:G57,"V") -> 2 | H19: Wijk van initiële inschrijving (met shirtkleur finaledag)
B20: % gewonnen | F20: =IF(F16=0,0,F17/F16) -> 0.3333333333
B21: % gelijk | F21: =IF(F16=0,0,F18/F16) -> 0
B22: % verloren | F22: =IF(F16=0,0,F19/F16) -> 0.6666666667 | H22: Hondsberg (Rosmalen)
B23: Wedstrijdpunten | F23: =SUM(H32:H57) -> 3
B24: Saldopunten | F24: =SUM(I32:I57) -> -14
B25: Saldopunten per wedstrijd | F25: =IF(F16=0,0,F24/F16) -> -4.666666667
B28: LET OP: alleen wedstrijden die daadwerkelijk gespeeld zijn in de wijk waarvoor jij je hebt ingeschreven tellen mee!
B31: Datum | C31: Locatie | D31: UITSLAGEN | G31: W, V of G? | H31: Wedstrijd-punten | I31: Saldo-punten
B32: 2021-06-14 | C32: De Schutskamp | D32: 8 | E32: - | F32: 4 | G32: =IF(OR($B$13="",wijk_van_inschrijving=""),"-",IF(OR(wijk_van_inschrijving<>C32,D32="",F32=""),"-",IF(D32>F32,"W",IF(D32=F32,"G",IF(D32<F32,"V","-"))))) -> - | H32: =IF(OR($B$13="",wijk_van_inschrijving=""),"-",IF(OR(wijk_van_inschrijving<>C32,G32="-",G32=""),"-",IF(G32="W",3,IF(G32="G",2,IF(G32="V",0,0))))) -> - | I32: =IF(OR($B$13="",wijk_van_inschrijving=""),"-",IF(wijk_van_inschrijving<>C32,"-",IF(D32>=0,IF(F32="","-",D32-F32)))) -> -
B33: 2021-06-14 | C33: De Schutskamp | D33: 8 | E33: - | F33: 5 | G33: - | H33: - | I33: -
B34: 2021-07-07 | C34: Hondsberg (Rosmalen) | D34: 9 | E34: - | F34: 6 | G34: W | H34: 3 | I34: 3
B35: 2021-07-07 | C35: Hondsberg (Rosmalen) | D35: 2 | E35: - | F35: 11 | G35: V | H35: 0 | I35: -9
B36: 2021-07-07 | C36: Hondsberg (Rosmalen) | D36: 3 | E36: - | F36: 11 | G36: V | H36: 0 | I36: -8
E37: - | G37: - | H37: - | I37: -
E38: - | G38: - | H38: - | I38: -
E39: - | G39: - | H39: - | I39: -
E40: - | G40: - | H40: - | I40: -
E41: - | G41: - | H41: - | I41: -
E42: - | G42: - | H42: - | I42: -
E43: - | G43: - | H43: - | I43: -
E44: - | G44: - | H44: - | I44: -
E45: - | G45: - | H45: - | I45: -
E46: - | G46: - | H46: - | I46: -
E47: - | G47: - | H47: - | I47: -
E48: - | G48: - | H48: - | I48: -
E49: - | G49: - | H49: - | I49: -
E50: - | G50: - | H50: - | I50: -
E51: - | G51: - | H51: - | I51: -
E52: - | G52: - | H52: - | I52: -
E53: - | G53: - | H53: - | I53: -
E54: - | G54: - | H54: - | I54: -
E55: - | G55: - | H55: - | I55: -
E56: - | G56: - | H56: - | I56: -

Sheet Hans van Woerkum
B13: Hans van Woerkum
B16: Gespeeld | F16: =COUNTIF(G32:G57,"W")+COUNTIF(G32:G57,"G")+COUNTIF(G32:G57,"V") -> 12
B17: Gewonnen | F17: =COUNTIF(G32:G57,"W") -> 9
B18: Gelijk | F18: =COUNTIF(G32:G57,"G") -> 1
B19: Verloren | F19: =COUNTIF(G32:G57,"V") -> 2 | H19: Wijk van initiële inschrijving (met shirtkleur finaledag)
B20: % gewonnen | F20: =IF(F16=0,0,F17/F16) -> 0.75
B21: % gelijk | F21: =IF(F16=0,0,F18/F16) -> 0.08333333333
B22: % verloren | F22: =IF(F16=0,0,F19/F16) -> 0.1666666667 | H22: De Schutskamp
B23: Wedstrijdpunten | F23: =SUM(H32:H57) -> 29
B24: Saldopunten | F24: =SUM(I32:I57) -> 68
B25: Saldopunten per wedstrijd | F25: =IF(F16=0,0,F24/F16) -> 5.666666667
B28: LET OP: alleen wedstrijden die daadwerkelijk gespeeld zijn in de wijk waarvoor jij je hebt ingeschreven tellen mee!
B31: Datum | C31: Locatie | D31: UITSLAGEN | G31: W, V of G? | H31: Wedstrijd-punten | I31: Saldo-punten
B32: 2021-06-14 | C32: De Schutskamp | D32: 4 | E32: - | F32: 8 | G32: =IF(OR($B$13="",wijk_van_inschrijving=""),"-",IF(OR(wijk_van_inschrijving<>C32,D32="",F32=""),"-",IF(D32>F32,"W",IF(D32=F32,"G",IF(D32<F32,"V","-"))))) -> V | H32: =IF(OR($B$13="",wijk_van_inschrijving=""),"-",IF(OR(wijk_van_inschrijving<>C32,G32="-",G32=""),"-",IF(G32="W",3,IF(G32="G",2,IF(G32="V",0,0))))) -> 0 | I32: =IF(OR($B$13="",wijk_van_inschrijving=""),"-",IF(wijk_van_inschrijving<>C32,"-",IF(D32>=0,IF(F32="","-",D32-F32)))) -> -4
B33: 2021-06-14 | C33: De Schutskamp | D33: 13 | E33: - | F33: 0 | G33: W | H33: 3 | I33: 13
B34: 2021-06-14 | C34: De Schutskamp | D34: 12 | E34: - | F34: 7 | G34: W | H34: 3 | I34: 5
B35: 2021-06-24 | C35: De Schutskamp | D35: 13 | E35: - | F35: 8 | G35: W | H35: 3 | I35: 5
B36: 2021-06-24 | C36: De Schutskamp | D36: 10 | E36: - | F36: 5 | G36: W | H36: 3 | I36: 5
B37: 2021-06-24 | C37: De Schutskamp | D37: 11 | E37: - | F37: 11 | G37: G | H37: 2 | I37: 0
B38: 2021-06-28 | C38: De Schutskamp | D38: 13 | E38: - | F38: 3 | G38: W | H38: 3 | I38: 10
B39: 2021-06-28 | C39: De Schutskamp | D39: 8 | E39: - | F39: 7 | G39: W | H39: 3 | I39: 1
B40: 2021-06-28 | C40: De Schutskamp | D40: 13 | E40: - | F40: 2 | G40: W | H40: 3 | I40: 11
B41: 2021-07-05 | C41: De Schutskamp | D41: 6 | E41: - | F41: 8 | G41: V | H41: 0 | I41: -2
B42: 2021-07-05 | C42: De Schutskamp | D42: 13 | E42: - | F42: 2 | G42: W | H42: 3 | I42: 11
B43: 2021-07-05 | C43: De Schutskamp | D43: 13 | E43: - | F43: 0 | G43: W | H43: 3 | I43: 13
E44: - | G44: - | H44: - | I44: -
E45: - | G45: - | H45: - | I45: -
E46: - | G46: - | H46: - | I46: -
E47: - | G47: - | H47: - | I47: -
E48: - | G48: - | H48: - | I48: -
E49: - | G49: - | H49: - | I49: -
E50: - | G50: - | H50: - | I50: -
E51: - | G51: - | H51: - | I51: -
E52: - | G52: - | H52: - | I52: -
E53: - | G53: - | H53: - | I53: -
E54: - | G54: - | H54: - | I54: -
E55: - | G55: - | H55: - | I55: -
E56: - | G56: - | H56: - | I56: -

Sheet Harm Schilders
B13: Harm Schilders
B16: Gespeeld | F16: =COUNTIF(G32:G57,"W")+COUNTIF(G32:G57,"G")+COUNTIF(G32:G57,"V") -> 5
B17: Gewonnen | F17: =COUNTIF(G32:G57,"W") -> 4
B18: Gelijk | F18: =COUNTIF(G32:G57,"G") -> 0
B19: Verloren | F19: =COUNTIF(G32:G57,"V") -> 1 | H19: Wijk van initiële inschrijving (met shirtkleur finaledag)
B20: % gewonnen | F20: =IF(F16=0,0,F17/F16) -> 0.8
B21: % gelijk | F21: =IF(F16=0,0,F18/F16) -> 0
B22: % verloren | F22: =IF(F16=0,0,F19/F16) -> 0.2 | H22: De Schutskamp
B23: Wedstrijdpunten | F23: =SUM(H32:H57) -> 12
B24: Saldopunten | F24: =SUM(I32:I57) -> 22
B25: Saldopunten per wedstrijd | F25: =IF(F16=0,0,F24/F16) -> 4.4
B28: LET OP: alleen wedstrijden die daadwerkelijk gespeeld zijn in de wijk waarvoor jij je hebt ingeschreven tellen mee!
B31: Datum | C31: Locatie | D31: UITSLAGEN | G31: W, V of G? | H31: Wedstrijd-punten | I31: Saldo-punten
B32: 2021-06-14 | C32: De Schutskamp | D32: 8 | E32: - | F32: 4 | G32: =IF(OR($B$13="",wijk_van_inschrijving=""),"-",IF(OR(wijk_van_inschrijving<>C32,D32="",F32=""),"-",IF(D32>F32,"W",IF(D32=F32,"G",IF(D32<F32,"V","-"))))) -> W | H32: =IF(OR($B$13="",wijk_van_inschrijving=""),"-",IF(OR(wijk_van_inschrijving<>C32,G32="-",G32=""),"-",IF(G32="W",3,IF(G32="G",2,IF(G32="V",0,0))))) -> 3 | I32: =IF(OR($B$13="",wijk_van_inschrijving=""),"-",IF(wijk_van_inschrijving<>C32,"-",IF(D32>=0,IF(F32="","-",D32-F32)))) -> 4
B33: 2021-06-14 | C33: De Schutskamp | D33: 8 | E33: - | F33: 5 | G33: W | H33: 3 | I33: 3
B34: 2021-06-23 | C34: De Hambaken | D34: 13 | E34: - | F34: 0 | G34: - | H34: - | I34: -
B35: 2021-06-23 | C35: De Hambaken | D35: 4 | E35: - | F35: 9 | G35: - | H35: - | I35: -
B36: 2021-06-23 | C36: De Hambaken | D36: 13 | E36: - | F36: 10 | G36: - | H36: - | I36: -
B37: 2021-06-28 | C37: De Schutskamp | D37: 12 | E37: - | F37: 3 | G37: W | H37: 3 | I37: 9
B38: 2021-06-28 | C38: De Schutskamp | D38: 13 | E38: - | F38: 1 | G38: W | H38: 3 | I38: 12
B39: 2021-06-28 | C39: De Schutskamp | D39: 6 | E39: - | F39: 12 | G39: V | H39: 0 | I39: -6
B40: 2021-07-07 | C40: Hondsberg (Rosmalen) | D40: 9 | E40: - | F40: 6 | G40: - | H40: - | I40: -
B41: 2021-07-07 | C41: Hondsberg (Rosmalen) | D41: 11 | E41: - | F41: 2 | G41: - | H41: - | I41: -
B42: 2021-07-07 | C42: Hondsberg (Rosmalen) | D42: 6 | E42: - | F42: 5 | G42: - | H42: - | I42: -
B43: 2021-07-08 | C43: 's-Hertogenbosch Zuid | D43: 11 | E43: - | F43: 3 | G43: - | H43: - | I43: -
B44: 2021-07-08 | C44: 's-Hertogenbosch Zuid | D44: 3 | E44: - | F44: 10 | G44: - | H44: - | I44: -
B45: 2021-07-08 | C45: 's-Hertogenbosch Zuid | D45: 12 | E45: - | F45: 8 | G45: - | H45: - | I45: -
E46: - | G46: - | H46: - | I46: -
E47: - | G47: - | H47: - | I47: -
E48: - | G48: - | H48: - | I48: -
E49: - | G49: - | H49: - | I49: -
E50: - | G50: - | H50: - | I50: -
E51: - | G51: - | H51: - | I51: -
E52: - | G52: - | H52: - | I52: -
E53: - | G53: - | H53: - | I53: -
E54: - | G54: - | H54: - | I54: -
E55: - | G55: - | H55: - | I55: -
E56: - | G56: - | H56: - | I56: -

Sheet Henk Hermes
B13: Henk Hermes
B16: Gespeeld | F16: =COUNTIF(G32:G57,"W")+COUNTIF(G32:G57,"G")+COUNTIF(G32:G57,"V") -> 12
B17: Gewonnen | F17: =COUNTIF(G32:G57,"W") -> 11
B18: Gelijk | F18: =COUNTIF(G32:G57,"G") -> 0
B19: Verloren | F19: =COUNTIF(G32:G57,"V") -> 1 | H19: Wijk van initiële inschrijving (met shirtkleur finaledag)
B20: % gewonnen | F20: =IF(F16=0,0,F17/F16) -> 0.9166666667
B21: % gelijk | F21: =IF(F16=0,0,F18/F16) -> 0
B22: % verloren | F22: =IF(F16=0,0,F19/F16) -> 0.08333333333 | H22: 's-Hertogenbosch Zuid
B23: Wedstrijdpunten | F23: =SUM(H32:H57) -> 33
B24: Saldopunten | F24: =SUM(I32:I57) -> 70
B25: Saldopunten per wedstrijd | F25: =IF(F16=0,0,F24/F16) -> 5.833333333
B28: LET OP: alleen wedstrijden die daadwerkelijk gespeeld zijn in de wijk waarvoor jij je hebt ingeschreven tellen mee!
B31: Datum | C31: Locatie | D31: UITSLAGEN | G31: W, V of G? | H31: Wedstrijd-punten | I31: Saldo-punten
B32: 2021-06-18 | C32: 's-Hertogenbosch Zuid | D32: 13 | E32: - | F32: 1 | G32: =IF(OR($B$13="",wijk_van_inschrijving=""),"-",IF(OR(wijk_van_inschrijving<>C32,D32="",F32=""),"-",IF(D32>F32,"W",IF(D32=F32,"G",IF(D32<F32,"V","-"))))) -> W | H32: =IF(OR($B$13="",wijk_van_inschrijving=""),"-",IF(OR(wijk_van_inschrijving<>C32,G32="-",G32=""),"-",IF(G32="W",3,IF(G32="G",2,IF(G32="V",0,0))))) -> 3 | I32: =IF(OR($B$13="",wijk_van_inschrijving=""),"-",IF(wijk_van_inschrijving<>C32,"-",IF(D32>=0,IF(F32="","-",D32-F32)))) -> 12
B33: 2021-06-18 | C33: 's-Hertogenbosch Zuid | D33: 12 | E33: - | F33: 1 | G33: W | H33: 3 | I33: 11
B34: 2021-06-18 | C34: 's-Hertogenbosch Zuid | D34: 11 | E34: - | F34: 10 | G34: W | H34: 3 | I34: 1
B35: 2021-06-25 | C35: 's-Hertogenbosch Zuid | D35: 13 | E35: - | F35: 9 | G35: W | H35: 3 | I35: 4
B36: 2021-06-25 | C36: 's-Hertogenbosch Zuid | D36: 8 | E36: - | F36: 3 | G36: W | H36: 3 | I36: 5
B37: 2021-06-25 | C37: 's-Hertogenbosch Zuid | D37: 13 | E37: - | F37: 3 | G37: W | H37: 3 | I37: 10
B38: 2021-07-01 | C38: 's-Hertogenbosch Zuid | D38: 13 | E38: - | F38: 5 | G38: W | H38: 3 | I38: 8
B39: 2021-07-01 | C39: 's-Hertogenbosch Zuid | D39: 13 | E39: - | F39: 5 | G39: W | H39: 3 | I39: 8
B40: 2021-07-01 | C40: 's-Hertogenbosch Zuid | D40: 8 | E40: - | F40: 9 | G40: V | H40: 0 | I40: -1
B41: 2021-07-08 | C41: 's-Hertogenbosch Zuid | D41: 13 | E41: - | F41: 3 | G41: W | H41: 3 | I41: 10
B42: 2021-07-08 | C42: 's-Hertogenbosch Zuid | D42: 8 | E42: - | F42: 7 | G42: W | H42: 3 | I42: 1
B43: 2021-07-08 | C43: 's-Hertogenbosch Zuid | D43: 6 | E43: - | F43: 5 | G43: W | H43: 3 | I43: 1
E44: - | G44: - | H44: - | I44: -
E45: - | G45: - | H45: - | I45: -
E46: - | G46: - | H46: - | I46: -
E47: - | G47: - | H47: - | I47: -
E48: - | G48: - | H48: - | I48: -
E49: - | G49: - | H49: - | I49: -
E50: - | G50: - | H50: - | I50: -
E51: - | G51: - | H51: - | I51: -
E52: - | G52: - | H52: - | I52: -
E53: - | G53: - | H53: - | I53: -
E54: - | G54: - | H54: - | I54: -
E55: - | G55: - | H55: - | I55: -
E56: - | G56: - | H56: - | I56: -

Sheet Henk Kuijs
B13: Henk Kuijs
B16: Gespeeld | F16: =COUNTIF(G32:G57,"W")+COUNTIF(G32:G57,"G")+COUNTIF(G32:G57,"V") -> 3
B17: Gewonnen | F17: =COUNTIF(G32:G57,"W") -> 2
B18: Gelijk | F18: =COUNTIF(G32:G57,"G") -> 0
B19: Verloren | F19: =COUNTIF(G32:G57,"V") -> 1 | H19: Wijk van initiële inschrijving (met shirtkleur finaledag)
B20: % gewonnen | F20: =IF(F16=0,0,F17/F16) -> 0.6666666667
B21: % gelijk | F21: =IF(F16=0,0,F18/F16) -> 0
B22: % verloren | F22: =IF(F16=0,0,F19/F16) -> 0.3333333333 | H22: 's-Hertogenbosch Zuid
B23: Wedstrijdpunten | F23: =SUM(H32:H57) -> 6
B24: Saldopunten | F24: =SUM(I32:I57) -> 4
B25: Saldopunten per wedstrijd | F25: =IF(F16=0,0,F24/F16) -> 1.333333333
B28: LET OP: alleen wedstrijden die daadwerkelijk gespeeld zijn in de wijk waarvoor jij je hebt ingeschreven tellen mee!
B31: Datum | C31: Locatie | D31: UITSLAGEN | G31: W, V of G? | H31: Wedstrijd-punten | I31: Saldo-punten
B32: 2021-07-01 | C32: 's-Hertogenbosch Zuid | D32: 7 | E32: - | F32: 12 | G32: =IF(OR($B$13="",wijk_van_inschrijving=""),"-",IF(OR(wijk_van_inschrijving<>C32,D32="",F32=""),"-",IF(D32>F32,"W",IF(D32=F32,"G",IF(D32<F32,"V","-"))))) -> V | H32: =IF(OR($B$13="",wijk_van_inschrijving=""),"-",IF(OR(wijk_van_inschrijving<>C32,G32="-",G32=""),"-",IF(G32="W",3,IF(G32="G",2,IF(G32="V",0,0))))) -> 0 | I32: =IF(OR($B$13="",wijk_van_inschrijving=""),"-",IF(wijk_van_inschrijving<>C32,"-",IF(D32>=0,IF(F32="","-",D32-F32)))) -> -5
B33: 2021-07-01 | C33: 's-Hertogenbosch Zuid | D33: 9 | E33: - | F33: 5 | G33: W | H33: 3 | I33: 4
B34: 2021-07-01 | C34: 's-Hertogenbosch Zuid | D34: 13 | E34: - | F34: 8 | G34: W | H34: 3 | I34: 5
E35: - | G35: - | H35: - | I35: -
E36: - | G36: - | H36: - | I36: -
E37: - | G37: - | H37: - | I37: -
E38: - | G38: - | H38: - | I38: -
E39: - | G39: - | H39: - | I39: -
E40: - | G40: - | H40: - | I40: -
E41: - | G41: - | H41: - | I41: -
E42: - | G42: - | H42: - | I42: -
E43: - | G43: - | H43: - | I43: -
E44: - | G44: - | H44: - | I44: -
E45: - | G45: - | H45: - | I45: -
E46: - | G46: - | H46: - | I46: -
E47: - | G47: - | H47: - | I47: -
E48: - | G48: - | H48: - | I48: -
E49: - | G49: - | H49: - | I49: -
E50: - | G50: - | H50: - | I50: -
E51: - | G51: - | H51: - | I51: -
E52: - | G52: - | H52: - | I52: -
E53: - | G53: - | H53: - | I53: -
E54: - | G54: - | H54: - | I54: -
E55: - | G55: - | H55: - | I55: -
E56: - | G56: - | H56: - | I56: -

Sheet Ilse van Mil
B13: Ilse van Mil
B16: Gespeeld | F16: =COUNTIF(G32:G57,"W")+COUNTIF(G32:G57,"G")+COUNTIF(G32:G57,"V") -> 7
B17: Gewonnen | F17: =COUNTIF(G32:G57,"W") -> 3
B18: Gelijk | F18: =COUNTIF(G32:G57,"G") -> 0
B19: Verloren | F19: =COUNTIF(G32:G57,"V") -> 4 | H19: Wijk van initiële inschrijving (met shirtkleur finaledag)
B20: % gewonnen | F20: =IF(F16=0,0,F17/F16) -> 0.4285714286
B21: % gelijk | F21: =IF(F16=0,0,F18/F16) -> 0
B22: % verloren | F22: =IF(F16=0,0,F19/F16) -> 0.5714285714 | H22: Hondsberg (Rosmalen)
B23: Wedstrijdpunten | F23: =SUM(H32:H57) -> 9
B24: Saldopunten | F24: =SUM(I32:I57) -> 0
B25: Saldopunten per wedstrijd | F25: =IF(F16=0,0,F24/F16) -> 0
B28: LET OP: alleen wedstrijden die daadwerkelijk gespeeld zijn in de wijk waarvoor jij je hebt ingeschreven tellen mee!
B31: Datum | C31: Locatie | D31: UITSLAGEN | G31: W, V of G? | H31: Wedstrijd-punten | I31: Saldo-punten
B32: 2021-06-22 | C32: Hondsberg (Rosmalen) | D32: 9 | E32: - | F32: 2 | G32: =IF(OR($B$13="",wijk_van_inschrijving=""),"-",IF(OR(wijk_van_inschrijving<>C32,D32="",F32=""),"-",IF(D32>F32,"W",IF(D32=F32,"G",IF(D32<F32,"V","-"))))) -> W | H32: =IF(OR($B$13="",wijk_van_inschrijving=""),"-",IF(OR(wijk_van_inschrijving<>C32,G32="-",G32=""),"-",IF(G32="W",3,IF(G32="G",2,IF(G32="V",0,0))))) -> 3 | I32: =IF(OR($B$13="",wijk_van_inschrijving=""),"-",IF(wijk_van_inschrijving<>C32,"-",IF(D32>=0,IF(F32="","-",D32-F32)))) -> 7
B33: 2021-06-22 | C33: Hondsberg (Rosmalen) | D33: 13 | E33: - | F33: 6 | G33: W | H33: 3 | I33: 7
B34: 2021-06-30 | C34: Hondsberg (Rosmalen) | D34: 5 | E34: - | F34: 13 | G34: V | H34: 0 | I34: -8
B35: 2021-06-30 | C35: Hondsberg (Rosmalen) | D35: 6 | E35: - | F35: 7 | G35: V | H35: 0 | I35: -1
B36: 2021-07-07 | C36: Hondsberg (Rosmalen) | D36: 6 | E36: - | F36: 9 | G36: V | H36: 0 | I36: -3
B37: 2021-07-07 | C37: Hondsberg (Rosmalen) | D37: 10 | E37: - | F37: 6 | G37: W | H37: 3 | I37: 4
B38: 2021-07-07 | C38: Hondsberg (Rosmalen) | D38: 1 | E38: - | F38: 7 | G38: V | H38: 0 | I38: -6
E39: - | G39: - | H39: - | I39: -
E40: - | G40: - | H40: - | I40: -
E41: - | G41: - | H41: - | I41: -
E42: - | G42: - | H42: - | I42: -
E43: - | G43: - | H43: - | I43: -
E44: - | G44: - | H44: - | I44: -
E45: - | G45: - | H45: - | I45: -
E46: - | G46: - | H46: - | I46: -
E47: - | G47: - | H47: - | I47: -
E48: - | G48: - | H48: - | I48: -
E49: - | G49: - | H49: - | I49: -
E50: - | G50: - | H50: - | I50: -
E51: - | G51: - | H51: - | I51: -
E52: - | G52: - | H52: - | I52: -
E53: - | G53: - | H53: - | I53: -
E54: - | G54: - | H54: - | I54: -
E55: - | G55: - | H55: - | I55: -
E56: - | G56: - | H56: - | I56: -

Sheet Ineke Poort
B13: Ineke Poort
B16: Gespeeld | F16: =COUNTIF(G32:G57,"W")+COUNTIF(G32:G57,"G")+COUNTIF(G32:G57,"V") -> 6
B17: Gewonnen | F17: =COUNTIF(G32:G57,"W") -> 5
B18: Gelijk | F18: =COUNTIF(G32:G57,"G") -> 0
B19: Verloren | F19: =COUNTIF(G32:G57,"V") -> 1 | H19: Wijk van initiële inschrijving (met shirtkleur finaledag)
B20: % gewonnen | F20: =IF(F16=0,0,F17/F16) -> 0.8333333333
B21: % gelijk | F21: =IF(F16=0,0,F18/F16) -> 0
B22: % verloren | F22: =IF(F16=0,0,F19/F16) -> 0.1666666667 | H22: 's-Hertogenbosch Zuid
B23: Wedstrijdpunten | F23: =SUM(H32:H57) -> 15
B24: Saldopunten | F24: =SUM(I32:I57) -> 41
B25: Saldopunten per wedstrijd | F25: =IF(F16=0,0,F24/F16) -> 6.833333333
B28: LET OP: alleen wedstrijden die daadwerkelijk gespeeld zijn in de wijk waarvoor jij je hebt ingeschreven tellen mee!
B31: Datum | C31: Locatie | D31: UITSLAGEN | G31: W, V of G? | H31: Wedstrijd-punten | I31: Saldo-punten
B32: 2021-06-14 | C32: De Schutskamp | D32: 13 | E32: - | F32: 2 | G32: =IF(OR($B$13="",wijk_van_inschrijving=""),"-",IF(OR(wijk_van_inschrijving<>C32,D32="",F32=""),"-",IF(D32>F32,"W",IF(D32=F32,"G",IF(D32<F32,"V","-"))))) -> - | H32: =IF(OR($B$13="",wijk_van_inschrijving=""),"-",IF(OR(wijk_van_inschrijving<>C32,G32="-",G32=""),"-",IF(G32="W",3,IF(G32="G",2,IF(G32="V",0,0))))) -> - | I32: =IF(OR($B$13="",wijk_van_inschrijving=""),"-",IF(wijk_van_inschrijving<>C32,"-",IF(D32>=0,IF(F32="","-",D32-F32)))) -> -
B33: 2021-06-14 | C33: De Schutskamp | D33: 5 | E33: - | F33: 8 | G33: - | H33: - | I33: -
B34: 2021-06-14 | C34: De Schutskamp | D34: 7 | E34: - | F34: 12 | G34: - | H34: - | I34: -
B35: 2021-06-25 | C35: 's-Hertogenbosch Zuid | D35: 9 | E35: - | F35: 13 | G35: V | H35: 0 | I35: -4
B36: 2021-06-25 | C36: 's-Hertogenbosch Zuid | D36: 13 | E36: - | F36: 0 | G36: W | H36: 3 | I36: 13
B37: 2021-06-25 | C37: 's-Hertogenbosch Zuid | D37: 9 | E37: - | F37: 4 | G37: W | H37: 3 | I37: 5
B38: 2021-07-01 | C38: 's-Hertogenbosch Zuid | D38: 9 | E38: - | F38: 4 | G38: W | H38: 3 | I38: 5
B39: 2021-07-01 | C39: 's-Hertogenbosch Zuid | D39: 13 | E39: - | F39: 4 | G39: W | H39: 3 | I39: 9
B40: 2021-07-01 | C40: 's-Hertogenbosch Zuid | D40: 13 | E40: - | F40: 0 | G40: W | H40: 3 | I40: 13
E41: - | G41: - | H41: - | I41: -
E42: - | G42: - | H42: - | I42: -
E43: - | G43: - | H43: - | I43: -
E44: - | G44: - | H44: - | I44: -
E45: - | G45: - | H45: - | I45: -
E46: - | G46: - | H46: - | I46: -
E47: - | G47: - | H47: - | I47: -
E48: - | G48: - | H48: - | I48: -
E49: - | G49: - | H49: - | I49: -
E50: - | G50: - | H50: - | I50: -
E51: - | G51: - | H51: - | I51: -
E52: - | G52: - | H52: - | I52: -
E53: - | G53: - | H53: - | I53: -
E54: - | G54: - | H54: - | I54: -
E55: - | G55: - | H55: - | I55: -
E56: - | G56: - | H56: - | I56: -

Sheet Iris Vriend
B13: Iris Vriend
B16: Gespeeld | F16: =COUNTIF(G32:G57,"W")+COUNTIF(G32:G57,"G")+COUNTIF(G32:G57,"V") -> 10
B17: Gewonnen | F17: =COUNTIF(G32:G57,"W") -> 0
B18: Gelijk | F18: =COUNTIF(G32:G57,"G") -> 0
B19: Verloren | F19: =COUNTIF(G32:G57,"V") -> 10 | H19: Wijk van initiële inschrijving (met shirtkleur finaledag)
B20: % gewonnen | F20: =IF(F16=0,0,F17/F16) -> 0
B21: % gelijk | F21: =IF(F16=0,0,F18/F16) -> 0
B22: % verloren | F22: =IF(F16=0,0,F19/F16) -> 1 | H22: 's-Hertogenbosch Zuid
B23: Wedstrijdpunten | F23: =SUM(H32:H57) -> 0
B24: Saldopunten | F24: =SUM(I32:I57) -> -64
B25: Saldopunten per wedstrijd | F25: =IF(F16=0,0,F24/F16) -> -6.4
B28: LET OP: alleen wedstrijden die daadwerkelijk gespeeld zijn in de wijk waarvoor jij je hebt ingeschreven tellen mee!
B31: Datum | C31: Locatie | D31: UITSLAGEN | G31: W, V of G? | H31: Wedstrijd-punten | I31: Saldo-punten
B32: 2021-06-18 | C32: 's-Hertogenbosch Zuid | D32: 2 | E32: - | F32: 13 | G32: =IF(OR($B$13="",wijk_van_inschrijving=""),"-",IF(OR(wijk_van_inschrijving<>C32,D32="",F32=""),"-",IF(D32>F32,"W",IF(D32=F32,"G",IF(D32<F32,"V","-"))))) -> V | H32: =IF(OR($B$13="",wijk_van_inschrijving=""),"-",IF(OR(wijk_van_inschrijving<>C32,G32="-",G32=""),"-",IF(G32="W",3,IF(G32="G",2,IF(G32="V",0,0))))) -> 0 | I32: =IF(OR($B$13="",wijk_van_inschrijving=""),"-",IF(wijk_van_inschrijving<>C32,"-",IF(D32>=0,IF(F32="","-",D32-F32)))) -> -11
B33: 2021-06-18 | C33: 's-Hertogenbosch Zuid | D33: 2 | E33: - | F33: 6 | G33: V | H33: 0 | I33: -4
B34: 2021-06-18 | C34: 's-Hertogenbosch Zuid | D34: 10 | E34: - | F34: 11 | G34: V | H34: 0 | I34: -1
B35: 2021-06-25 | C35: 's-Hertogenbosch Zuid | D35: 4 | E35: - | F35: 13 | G35: V | H35: 0 | I35: -9
B36: 2021-06-25 | C36: 's-Hertogenbosch Zuid | D36: 3 | E36: - | F36: 8 | G36: V | H36: 0 | I36: -5
B37: 2021-06-25 | C37: 's-Hertogenbosch Zuid | D37: 4 | E37: - | F37: 9 | G37: V | H37: 0 | I37: -5
B38: 2021-07-01 | C38: 's-Hertogenbosch Zuid | D38: 7 | E38: - | F38: 12 | G38: V | H38: 0 | I38: -5
B39: 2021-07-01 | C39: 's-Hertogenbosch Zuid | D39: 4 | E39: - | F39: 13 | G39: V | H39: 0 | I39: -9
B40: 2021-07-01 | C40: 's-Hertogenbosch Zuid | D40: 8 | E40: - | F40: 13 | G40: V | H40: 0 | I40: -5
B41: 2021-07-08 | C41: 's-Hertogenbosch Zuid | D41: 3 | E41: - | F41: 13 | G41: V | H41: 0 | I41: -10
E42: - | G42: - | H42: - | I42: -
E43: - | G43: - | H43: - | I43: -
E44: - | G44: - | H44: - | I44: -
E45: - | G45: - | H45: - | I45: -
E46: - | G46: - | H46: - | I46: -
E47: - | G47: - | H47: - | I47: -
E48: - | G48: - | H48: - | I48: -
E49: - | G49: - | H49: - | I49: -
E50: - | G50: - | H50: - | I50: -
E51: - | G51: - | H51: - | I51: -
E52: - | G52: - | H52: - | I52: -
E53: - | G53: - | H53: - | I53: -
E54: - | G54: - | H54: - | I54: -
E55: - | G55: - | H55: - | I55: -
E56: - | G56: - | H56: - | I56: -

Sheet Jaap Faber
B13: Jaap Faber
B16: Gespeeld | F16: =COUNTIF(G32:G57,"W")+COUNTIF(G32:G57,"G")+COUNTIF(G32:G57,"V") -> 12
B17: Gewonnen | F17: =COUNTIF(G32:G57,"W") -> 2
B18: Gelijk | F18: =COUNTIF(G32:G57,"G") -> 1
B19: Verloren | F19: =COUNTIF(G32:G57,"V") -> 9 | H19: Wijk van initiële inschrijving (met shirtkleur finaledag)
B20: % gewonnen | F20: =IF(F16=0,0,F17/F16) -> 0.1666666667
B21: % gelijk | F21: =IF(F16=0,0,F18/F16) -> 0.08333333333
B22: % verloren | F22: =IF(F16=0,0,F19/F16) -> 0.75 | H22: 's-Hertogenbosch Zuid
B23: Wedstrijdpunten | F23: =SUM(H32:H57) -> 8
B24: Saldopunten | F24: =SUM(I32:I57) -> -80
B25: Saldopunten per wedstrijd | F25: =IF(F16=0,0,F24/F16) -> -6.666666667
B28: LET OP: alleen wedstrijden die daadwerkelijk gespeeld zijn in de wijk waarvoor jij je hebt ingeschreven tellen mee!
B31: Datum | C31: Locatie | D31: UITSLAGEN | G31: W, V of G? | H31: Wedstrijd-punten | I31: Saldo-punten
B32: 2021-06-18 | C32: 's-Hertogenbosch Zuid | D32: 1 | E32: - | F32: 13 | G32: =IF(OR($B$13="",wijk_van_inschrijving=""),"-",IF(OR(wijk_van_inschrijving<>C32,D32="",F32=""),"-",IF(D32>F32,"W",IF(D32=F32,"G",IF(D32<F32,"V","-"))))) -> V | H32: =IF(OR($B$13="",wijk_van_inschrijving=""),"-",IF(OR(wijk_van_inschrijving<>C32,G32="-",G32=""),"-",IF(G32="W",3,IF(G32="G",2,IF(G32="V",0,0))))) -> 0 | I32: =IF(OR($B$13="",wijk_van_inschrijving=""),"-",IF(wijk_van_inschrijving<>C32,"-",IF(D32>=0,IF(F32="","-",D32-F32)))) -> -12
B33: 2021-06-18 | C33: 's-Hertogenbosch Zuid | D33: 6 | E33: - | F33: 2 | G33: W | H33: 3 | I33: 4
B34: 2021-06-18 | C34: 's-Hertogenbosch Zuid | D34: 1 | E34: - | F34: 13 | G34: V | H34: 0 | I34: -12
B35: 2021-06-25 | C35: 's-Hertogenbosch Zuid | D35: 4 | E35: - | F35: 13 | G35: V | H35: 0 | I35: -9
B36: 2021-06-25 | C36: 's-Hertogenbosch Zuid | D36: 0 | E36: - | F36: 13 | G36: V | H36: 0 | I36: -13
B37: 2021-06-25 | C37: 's-Hertogenbosch Zuid | D37: 5 | E37: - | F37: 12 | G37: V | H37: 0 | I37: -7
B38: 2021-07-01 | C38: 's-Hertogenbosch Zuid | D38: 7 | E38: - | F38: 7 | G38: G | H38: 2 | I38: 0
B39: 2021-07-01 | C39: 's-Hertogenbosch Zuid | D39: 8 | E39: - | F39: 6 | G39: W | H39: 3 | I39: 2
B40: 2021-07-01 | C40: 's-Hertogenbosch Zuid | D40: 0 | E40: - | F40: 13 | G40: V | H40: 0 | I40: -13
B41: 2021-07-08 | C41: 's-Hertogenbosch Zuid | D41: 5 | E41: - | F41: 13 | G41: V | H41: 0 | I41: -8
B42: 2021-07-08 | C42: 's-Hertogenbosch Zuid | D42: 7 | E42: - | F42: 8 | G42: V | H42: 0 | I42: -1
B43: 2021-07-08 | C43: 's-Hertogenbosch Zuid | D43: 1 | E43: - | F43: 12 | G43: V | H43: 0 | I43: -11
E44: - | G44: - | H44: - | I44: -
E45: - | G45: - | H45: - | I45: -
E46: - | G46: - | H46: - | I46: -
E47: - | G47: - | H47: - | I47: -
E48: - | G48: - | H48: - | I48: -
E49: - | G49: - | H49: - | I49: -
E50: - | G50: - | H50: - | I50: -
E51: - | G51: - | H51: - | I51: -
E52: - | G52: - | H52: - | I52: -
E53: - | G53: - | H53: - | I53: -
E54: - | G54: - | H54: - | I54: -
E55: - | G55: - | H55: - | I55: -
E56: - | G56: - | H56: - | I56: -

Sheet Jacques Tulkens
B13: Jacques Tulkens
B16: Gespeeld | F16: =COUNTIF(G32:G57,"W")+COUNTIF(G32:G57,"G")+COUNTIF(G32:G57,"V") -> 3
B17: Gewonnen | F17: =COUNTIF(G32:G57,"W") -> 0
B18: Gelijk | F18: =COUNTIF(G32:G57,"G") -> 1
B19: Verloren | F19: =COUNTIF(G32:G57,"V") -> 2 | H19: Wijk van initiële inschrijving (met shirtkleur finaledag)
B20: % gewonnen | F20: =IF(F16=0,0,F17/F16) -> 0
B21: % gelijk | F21: =IF(F16=0,0,F18/F16) -> 0.3333333333
B22: % verloren | F22: =IF(F16=0,0,F19/F16) -> 0.6666666667 | H22: 's-Hertogenbosch Zuid
B23: Wedstrijdpunten | F23: =SUM(H32:H57) -> 2
B24: Saldopunten | F24: =SUM(I32:I57) -> -15
B25: Saldopunten per wedstrijd | F25: =IF(F16=0,0,F24/F16) -> -5
B28: LET OP: alleen wedstrijden die daadwerkelijk gespeeld zijn in de wijk waarvoor jij je hebt ingeschreven tellen mee!
B31: Datum | C31: Locatie | D31: UITSLAGEN | G31: W, V of G? | H31: Wedstrijd-punten | I31: Saldo-punten
B32: 2021-06-15 | C32: Hondsberg (Rosmalen) | D32: 12 | E32: - | F32: 2 | G32: =IF(OR($B$13="",wijk_van_inschrijving=""),"-",IF(OR(wijk_van_inschrijving<>C32,D32="",F32=""),"-",IF(D32>F32,"W",IF(D32=F32,"G",IF(D32<F32,"V","-"))))) -> - | H32: =IF(OR($B$13="",wijk_van_inschrijving=""),"-",IF(OR(wijk_van_inschrijving<>C32,G32="-",G32=""),"-",IF(G32="W",3,IF(G32="G",2,IF(G32="V",0,0))))) -> - | I32: =IF(OR($B$13="",wijk_van_inschrijving=""),"-",IF(wijk_van_inschrijving<>C32,"-",IF(D32>=0,IF(F32="","-",D32-F32)))) -> -
B33: 2021-06-15 | C33: Hondsberg (Rosmalen) | D33: 8 | E33: - | F33: 6 | G33: - | H33: - | I33: -
B34: 2021-06-15 | C34: Hondsberg (Rosmalen) | D34: 5 | E34: - | F34: 13 | G34: - | H34: - | I34: -
B35: 2021-06-18 | C35: 's-Hertogenbosch Zuid | D35: 1 | E35: - | F35: 13 | G35: V | H35: 0 | I35: -12
B36: 2021-06-18 | C36: 's-Hertogenbosch Zuid | D36: 4 | E36: - | F36: 4 | G36: G | H36: 2 | I36: 0
B37: 2021-06-18 | C37: 's-Hertogenbosch Zuid | D37: 6 | E37: - | F37: 9 | G37: V | H37: 0 | I37: -3
E38: - | G38: - | H38: - | I38: -
E39: - | G39: - | H39: - | I39: -
E40: - | G40: - | H40: - | I40: -
E41: - | G41: - | H41: - | I41: -
E42: - | G42: - | H42: - | I42: -
E43: - | G43: - | H43: - | I43: -
E44: - | G44: - | H44: - | I44: -
E45: - | G45: - | H45: - | I45: -
E46: - | G46: - | H46: - | I46: -
E47: - | G47: - | H47: - | I47: -
E48: - | G48: - | H48: - | I48: -
E49: - | G49: - | H49: - | I49: -
E50: - | G50: - | H50: - | I50: -
E51: - | G51: - | H51: - | I51: -
E52: - | G52: - | H52: - | I52: -
E53: - | G53: - | H53: - | I53: -
E54: - | G54: - | H54: - | I54: -
E55: - | G55: - | H55: - | I55: -
E56: - | G56: - | H56: - | I56: -

Sheet Jan Rovers
B13: Jan Rovers
B16: Gespeeld | F16: =COUNTIF(G32:G57,"W")+COUNTIF(G32:G57,"G")+COUNTIF(G32:G57,"V") -> 9
B17: Gewonnen | F17: =COUNTIF(G32:G57,"W") -> 3
B18: Gelijk | F18: =COUNTIF(G32:G57,"G") -> 0
B19: Verloren | F19: =COUNTIF(G32:G57,"V") -> 6 | H19: Wijk van initiële inschrijving (met shirtkleur finaledag)
B20: % gewonnen | F20: =IF(F16=0,0,F17/F16) -> 0.3333333333
B21: % gelijk | F21: =IF(F16=0,0,F18/F16) -> 0
B22: % verloren | F22: =IF(F16=0,0,F19/F16) -> 0.6666666667 | H22: De Hambaken
B23: Wedstrijdpunten | F23: =SUM(H32:H57) -> 9
B24: Saldopunten | F24: =SUM(I32:I57) -> -11
B25: Saldopunten per wedstrijd | F25: =IF(F16=0,0,F24/F16) -> -1.222222222
B28: LET OP: alleen wedstrijden die daadwerkelijk gespeeld zijn in de wijk waarvoor jij je hebt ingeschreven tellen mee!
B31: Datum | C31: Locatie | D31: UITSLAGEN | G31: W, V of G? | H31: Wedstrijd-punten | I31: Saldo-punten
B32: 2021-06-23 | C32: De Hambaken | D32: 13 | E32: - | F32: 8 | G32: =IF(OR($B$13="",wijk_van_inschrijving=""),"-",IF(OR(wijk_van_inschrijving<>C32,D32="",F32=""),"-",IF(D32>F32,"W",IF(D32=F32,"G",IF(D32<F32,"V","-"))))) -> W | H32: =IF(OR($B$13="",wijk_van_inschrijving=""),"-",IF(OR(wijk_van_inschrijving<>C32,G32="-",G32=""),"-",IF(G32="W",3,IF(G32="G",2,IF(G32="V",0,0))))) -> 3 | I32: =IF(OR($B$13="",wijk_van_inschrijving=""),"-",IF(wijk_van_inschrijving<>C32,"-",IF(D32>=0,IF(F32="","-",D32-F32)))) -> 5
B33: 2021-06-23 | C33: De Hambaken | D33: 4 | E33: - | F33: 9 | G33: V | H33: 0 | I33: -5
B34: 2021-06-23 | C34: De Hambaken | D34: 5 | E34: - | F34: 12 | G34: V | H34: 0 | I34: -7
B35: 2021-06-29 | C35: De Hambaken | D35: 10 | E35: - | F35: 4 | G35: W | H35: 3 | I35: 6
B36: 2021-06-29 | C36: De Hambaken | D36: 2 | E36: - | F36: 8 | G36: V | H36: 0 | I36: -6
B37: 2021-06-29 | C37: De Hambaken | D37: 12 | E37: - | F37: 13 | G37: V | H37: 0 | I37: -1
B38: 2021-07-06 | C38: De Hambaken | D38: 11 | E38: - | F38: 13 | G38: V | H38: 0 | I38: -2
B39: 2021-07-06 | C39: De Hambaken | D39: 5 | E39: - | F39: 13 | G39: V | H39: 0 | I39: -8
B40: 2021-07-06 | C40: De Hambaken | D40: 12 | E40: - | F40: 5 | G40: W | H40: 3 | I40: 7
E41: - | G41: - | H41: - | I41: -
E42: - | G42: - | H42: - | I42: -
E43: - | G43: - | H43: - | I43: -
E44: - | G44: - | H44: - | I44: -
E45: - | G45: - | H45: - | I45: -
E46: - | G46: - | H46: - | I46: -
E47: - | G47: - | H47: - | I47: -
E48: - | G48: - | H48: - | I48: -
E49: - | G49: - | H49: - | I49: -
E50: - | G50: - | H50: - | I50: -
E51: - | G51: - | H51: - | I51: -
E52: - | G52: - | H52: - | I52: -
E53: - | G53: - | H53: - | I53: -
E54: - | G54: - | H54: - | I54: -
E55: - | G55: - | H55: - | I55: -
E56: - | G56: - | H56: - | I56: -

Sheet Jan van den Akker
B13: Jan van den Akker
B16: Gespeeld | F16: =COUNTIF(G32:G57,"W")+COUNTIF(G32:G57,"G")+COUNTIF(G32:G57,"V") -> 10
B17: Gewonnen | F17: =COUNTIF(G32:G57,"W") -> 5
B18: Gelijk | F18: =COUNTIF(G32:G57,"G") -> 0
B19: Verloren | F19: =COUNTIF(G32:G57,"V") -> 5 | H19: Wijk van initiële inschrijving (met shirtkleur finaledag)
B20: % gewonnen | F20: =IF(F16=0,0,F17/F16) -> 0.5
B21: % gelijk | F21: =IF(F16=0,0,F18/F16) -> 0
B22: % verloren | F22: =IF(F16=0,0,F19/F16) -> 0.5 | H22: De Schutskamp
B23: Wedstrijdpunten | F23: =SUM(H32:H57) -> 15
B24: Saldopunten | F24: =SUM(I32:I57) -> 6
B25: Saldopunten per wedstrijd | F25: =IF(F16=0,0,F24/F16) -> 0.6
B28: LET OP: alleen wedstrijden die daadwerkelijk gespeeld zijn in de wijk waarvoor jij je hebt ingeschreven tellen mee!
B31: Datum | C31: Locatie | D31: UITSLAGEN | G31: W, V of G? | H31: Wedstrijd-punten | I31: Saldo-punten
B32: 2021-06-14 | C32: De Schutskamp | D32: 13 | E32: - | F32: 7 | G32: =IF(OR($B$13="",wijk_van_inschrijving=""),"-",IF(OR(wijk_van_inschrijving<>C32,D32="",F32=""),"-",IF(D32>F32,"W",IF(D32=F32,"G",IF(D32<F32,"V","-"))))) -> W | H32: =IF(OR($B$13="",wijk_van_inschrijving=""),"-",IF(OR(wijk_van_inschrijving<>C32,G32="-",G32=""),"-",IF(G32="W",3,IF(G32="G",2,IF(G32="V",0,0))))) -> 3 | I32: =IF(OR($B$13="",wijk_van_inschrijving=""),"-",IF(wijk_van_inschrijving<>C32,"-",IF(D32>=0,IF(F32="","-",D32-F32)))) -> 6
B33: 2021-06-14 | C33: De Schutskamp | D33: 4 | E33: - | F33: 7 | G33: V | H33: 0 | I33: -3
B34: 2021-06-14 | C34: De Schutskamp | D34: 4 | E34: - | F34: 9 | G34: V | H34: 0 | I34: -5
B35: 2021-06-24 | C35: De Schutskamp | D35: 6 | E35: - | F35: 10 | G35: V | H35: 0 | I35: -4
B36: 2021-06-28 | C36: De Schutskamp | D36: 13 | E36: - | F36: 3 | G36: W | H36: 3 | I36: 10
B37: 2021-06-28 | C37: De Schutskamp | D37: 10 | E37: - | F37: 7 | G37: W | H37: 3 | I37: 3
B38: 2021-06-28 | C38: De Schutskamp | D38: 12 | E38: - | F38: 6 | G38: W | H38: 3 | I38: 6
B39: 2021-07-05 | C39: De Schutskamp | D39: 6 | E39: - | F39: 13 | G39: V | H39: 0 | I39: -7
B40: 2021-07-05 | C40: De Schutskamp | D40: 3 | E40: - | F40: 9 | G40: V | H40: 0 | I40: -6
B41: 2021-07-05 | C41: De Schutskamp | D41: 9 | E41: - | F41: 3 | G41: W | H41: 3 | I41: 6
E42: - | G42: - | H42: - | I42: -
E43: - | G43: - | H43: - | I43: -
E44: - | G44: - | H44: - | I44: -
E45: - | G45: - | H45: - | I45: -
E46: - | G46: - | H46: - | I46: -
E47: - | G47: - | H47: - | I47: -
E48: - | G48: - | H48: - | I48: -
E49: - | G49: - | H49: - | I49: -
E50: - | G50: - | H50: - | I50: -
E51: - | G51: - | H51: - | I51: -
E52: - | G52: - | H52: - | I52: -
E53: - | G53: - | H53: - | I53: -
E54: - | G54: - | H54: - | I54: -
E55: - | G55: - | H55: - | I55: -
E56: - | G56: - | H56: - | I56: -

Sheet Jan van Alebeek
B13: Jan van Alebeek
B16: Gespeeld | F16: =COUNTIF(G32:G57,"W")+COUNTIF(G32:G57,"G")+COUNTIF(G32:G57,"V") -> 9
B17: Gewonnen | F17: =COUNTIF(G32:G57,"W") -> 6
B18: Gelijk | F18: =COUNTIF(G32:G57,"G") -> 1
B19: Verloren | F19: =COUNTIF(G32:G57,"V") -> 2 | H19: Wijk van initiële inschrijving (met shirtkleur finaledag)
B20: % gewonnen | F20: =IF(F16=0,0,F17/F16) -> 0.6666666667
B21: % gelijk | F21: =IF(F16=0,0,F18/F16) -> 0.1111111111
B22: % verloren | F22: =IF(F16=0,0,F19/F16) -> 0.2222222222 | H22: 's-Hertogenbosch Zuid
B23: Wedstrijdpunten | F23: =SUM(H32:H57) -> 20
B24: Saldopunten | F24: =SUM(I32:I57) -> 28
B25: Saldopunten per wedstrijd | F25: =IF(F16=0,0,F24/F16) -> 3.111111111
B28: LET OP: alleen wedstrijden die daadwerkelijk gespeeld zijn in de wijk waarvoor jij je hebt ingeschreven tellen mee!
B31: Datum | C31: Locatie | D31: UITSLAGEN | G31: W, V of G? | H31: Wedstrijd-punten | I31: Saldo-punten
B32: 2021-06-18 | C32: 's-Hertogenbosch Zuid | D32: 13 | E32: - | F32: 2 | G32: =IF(OR($B$13="",wijk_van_inschrijving=""),"-",IF(OR(wijk_van_inschrijving<>C32,D32="",F32=""),"-",IF(D32>F32,"W",IF(D32=F32,"G",IF(D32<F32,"V","-"))))) -> W | H32: =IF(OR($B$13="",wijk_van_inschrijving=""),"-",IF(OR(wijk_van_inschrijving<>C32,G32="-",G32=""),"-",IF(G32="W",3,IF(G32="G",2,IF(G32="V",0,0))))) -> 3 | I32: =IF(OR($B$13="",wijk_van_inschrijving=""),"-",IF(wijk_van_inschrijving<>C32,"-",IF(D32>=0,IF(F32="","-",D32-F32)))) -> 11
B33: 2021-06-18 | C33: 's-Hertogenbosch Zuid | D33: 4 | E33: - | F33: 4 | G33: G | H33: 2 | I33: 0
B34: 2021-06-18 | C34: 's-Hertogenbosch Zuid | D34: 13 | E34: - | F34: 2 | G34: W | H34: 3 | I34: 11
B35: 2021-07-01 | C35: 's-Hertogenbosch Zuid | D35: 9 | E35: - | F35: 4 | G35: W | H35: 3 | I35: 5
B36: 2021-07-01 | C36: 's-Hertogenbosch Zuid | D36: 11 | E36: - | F36: 3 | G36: W | H36: 3 | I36: 8
B37: 2021-07-01 | C37: 's-Hertogenbosch Zuid | D37: 8 | E37: - | F37: 12 | G37: V | H37: 0 | I37: -4
B38: 2021-07-08 | C38: 's-Hertogenbosch Zuid | D38: 3 | E38: - | F38: 13 | G38: V | H38: 0 | I38: -10
B39: 2021-07-08 | C39: 's-Hertogenbosch Zuid | D39: 11 | E39: - | F39: 5 | G39: W | H39: 3 | I39: 6
B40: 2021-07-08 | C40: 's-Hertogenbosch Zuid | D40: 6 | E40: - | F40: 5 | G40: W | H40: 3 | I40: 1
E41: - | G41: - | H41: - | I41: -
E42: - | G42: - | H42: - | I42: -
E43: - | G43: - | H43: - | I43: -
E44: - | G44: - | H44: - | I44: -
E45: - | G45: - | H45: - | I45: -
E46: - | G46: - | H46: - | I46: -
E47: - | G47: - | H47: - | I47: -
E48: - | G48: - | H48: - | I48: -
E49: - | G49: - | H49: - | I49: -
E50: - | G50: - | H50: - | I50: -
E51: - | G51: - | H51: - | I51: -
E52: - | G52: - | H52: - | I52: -
E53: - | G53: - | H53: - | I53: -
E54: - | G54: - | H54: - | I54: -
E55: - | G55: - | H55: - | I55: -
E56: - | G56: - | H56: - | I56: -

Sheet Jan van den Broek
B13: Jan van den Broek
B16: Gespeeld | F16: =COUNTIF(G32:G57,"W")+COUNTIF(G32:G57,"G")+COUNTIF(G32:G57,"V") -> 7
B17: Gewonnen | F17: =COUNTIF(G32:G57,"W") -> 4
B18: Gelijk | F18: =COUNTIF(G32:G57,"G") -> 1
B19: Verloren | F19: =COUNTIF(G32:G57,"V") -> 2 | H19: Wijk van initiële inschrijving (met shirtkleur finaledag)
B20: % gewonnen | F20: =IF(F16=0,0,F17/F16) -> 0.5714285714
B21: % gelijk | F21: =IF(F16=0,0,F18/F16) -> 0.1428571429
B22: % verloren | F22: =IF(F16=0,0,F19/F16) -> 0.2857142857 | H22: Hondsberg (Rosmalen)
B23: Wedstrijdpunten | F23: =SUM(H32:H57) -> 14
B24: Saldopunten | F24: =SUM(I32:I57) -> 11
B25: Saldopunten per wedstrijd | F25: =IF(F16=0,0,F24/F16) -> 1.571428571
B28: LET OP: alleen wedstrijden die daadwerkelijk gespeeld zijn in de wijk waarvoor jij je hebt ingeschreven tellen mee!
B31: Datum | C31: Locatie | D31: UITSLAGEN | G31: W, V of G? | H31: Wedstrijd-punten | I31: Saldo-punten
B32: 2021-06-15 | C32: Hondsberg (Rosmalen) | D32: 8 | E32: - | F32: 5 | G32: =IF(OR($B$13="",wijk_van_inschrijving=""),"-",IF(OR(wijk_van_inschrijving<>C32,D32="",F32=""),"-",IF(D32>F32,"W",IF(D32=F32,"G",IF(D32<F32,"V","-"))))) -> W | H32: =IF(OR($B$13="",wijk_van_inschrijving=""),"-",IF(OR(wijk_van_inschrijving<>C32,G32="-",G32=""),"-",IF(G32="W",3,IF(G32="G",2,IF(G32="V",0,0))))) -> 3 | I32: =IF(OR($B$13="",wijk_van_inschrijving=""),"-",IF(wijk_van_inschrijving<>C32,"-",IF(D32>=0,IF(F32="","-",D32-F32)))) -> 3
B33: 2021-06-15 | C33: Hondsberg (Rosmalen) | D33: 6 | E33: - | F33: 6 | G33: G | H33: 2 | I33: 0
B34: 2021-06-15 | C34: Hondsberg (Rosmalen) | D34: 13 | E34: - | F34: 5 | G34: W | H34: 3 | I34: 8
B35: 2021-06-22 | C35: Hondsberg (Rosmalen) | D35: 11 | E35: - | F35: 2 | G35: W | H35: 3 | I35: 9
B36: 2021-06-22 | C36: Hondsberg (Rosmalen) | D36: 5 | E36: - | F36: 11 | G36: V | H36: 0 | I36: -6
B37: 2021-06-30 | C37: Hondsberg (Rosmalen) | D37: 5 | E37: - | F37: 13 | G37: V | H37: 0 | I37: -8
B38: 2021-06-30 | C38: Hondsberg (Rosmalen) | D38: 7 | E38: - | F38: 2 | G38: W | H38: 3 | I38: 5
E39: - | G39: - | H39: - | I39: -
E40: - | G40: - | H40: - | I40: -
E41: - | G41: - | H41: - | I41: -
E42: - | G42: - | H42: - | I42: -
E43: - | G43: - | H43: - | I43: -
E44: - | G44: - | H44: - | I44: -
E45: - | G45: - | H45: - | I45: -
E46: - | G46: - | H46: - | I46: -
E47: - | G47: - | H47: - | I47: -
E48: - | G48: - | H48: - | I48: -
E49: - | G49: - | H49: - | I49: -
E50: - | G50: - | H50: - | I50: -
E51: - | G51: - | H51: - | I51: -
E52: - | G52: - | H52: - | I52: -
E53: - | G53: - | H53: - | I53: -
E54: - | G54: - | H54: - | I54: -
E55: - | G55: - | H55: - | I55: -
E56: - | G56: - | H56: - | I56: -

Sheet Jan Wijnhoven
B13: Jan Wijnhoven
B16: Gespeeld | F16: =COUNTIF(G32:G57,"W")+COUNTIF(G32:G57,"G")+COUNTIF(G32:G57,"V") -> 9
B17: Gewonnen | F17: =COUNTIF(G32:G57,"W") -> 3
B18: Gelijk | F18: =COUNTIF(G32:G57,"G") -> 0
B19: Verloren | F19: =COUNTIF(G32:G57,"V") -> 6 | H19: Wijk van initiële inschrijving (met shirtkleur finaledag)
B20: % gewonnen | F20: =IF(F16=0,0,F17/F16) -> 0.3333333333
B21: % gelijk | F21: =IF(F16=0,0,F18/F16) -> 0
B22: % verloren | F22: =IF(F16=0,0,F19/F16) -> 0.6666666667 | H22: De Schutskamp
B23: Wedstrijdpunten | F23: =SUM(H32:H57) -> 9
B24: Saldopunten | F24: =SUM(I32:I57) -> -34
B25: Saldopunten per wedstrijd | F25: =IF(F16=0,0,F24/F16) -> -3.777777778
B28: LET OP: alleen wedstrijden die daadwerkelijk gespeeld zijn in de wijk waarvoor jij je hebt ingeschreven tellen mee!
B31: Datum | C31: Locatie | D31: UITSLAGEN | G31: W, V of G? | H31: Wedstrijd-punten | I31: Saldo-punten
B32: 2021-06-14 | C32: De Schutskamp | D32: 5 | E32: - | F32: 9 | G32: =IF(OR($B$13="",wijk_van_inschrijving=""),"-",IF(OR(wijk_van_inschrijving<>C32,D32="",F32=""),"-",IF(D32>F32,"W",IF(D32=F32,"G",IF(D32<F32,"V","-"))))) -> V | H32: =IF(OR($B$13="",wijk_van_inschrijving=""),"-",IF(OR(wijk_van_inschrijving<>C32,G32="-",G32=""),"-",IF(G32="W",3,IF(G32="G",2,IF(G32="V",0,0))))) -> 0 | I32: =IF(OR($B$13="",wijk_van_inschrijving=""),"-",IF(wijk_van_inschrijving<>C32,"-",IF(D32>=0,IF(F32="","-",D32-F32)))) -> -4
B33: 2021-06-14 | C33: De Schutskamp | D33: 7 | E33: - | F33: 4 | G33: W | H33: 3 | I33: 3
B34: 2021-06-24 | C34: De Schutskamp | D34: 3 | E34: - | F34: 13 | G34: V | H34: 0 | I34: -10
B35: 2021-06-28 | C35: De Schutskamp | D35: 3 | E35: - | F35: 13 | G35: V | H35: 0 | I35: -10
B36: 2021-06-28 | C36: De Schutskamp | D36: 5 | E36: - | F36: 3 | G36: W | H36: 3 | I36: 2
B37: 2021-06-28 | C37: De Schutskamp | D37: 1 | E37: - | F37: 7 | G37: V | H37: 0 | I37: -6
B38: 2021-07-05 | C38: De Schutskamp | D38: 10 | E38: - | F38: 6 | G38: W | H38: 3 | I38: 4
B39: 2021-07-05 | C39: De Schutskamp | D39: 6 | E39: - | F39: 13 | G39: V | H39: 0 | I39: -7
B40: 2021-07-05 | C40: De Schutskamp | D40: 3 | E40: - | F40: 9 | G40: V | H40: 0 | I40: -6
E41: - | G41: - | H41: - | I41: -
E42: - | G42: - | H42: - | I42: -
E43: - | G43: - | H43: - | I43: -
E44: - | G44: - | H44: - | I44: -
E45: - | G45: - | H45: - | I45: -
E46: - | G46: - | H46: - | I46: -
E47: - | G47: - | H47: - | I47: -
E48: - | G48: - | H48: - | I48: -
E49: - | G49: - | H49: - | I49: -
E50: - | G50: - | H50: - | I50: -
E51: - | G51: - | H51: - | I51: -
E52: - | G52: - | H52: - | I52: -
E53: - | G53: - | H53: - | I53: -
E54: - | G54: - | H54: - | I54: -
E55: - | G55: - | H55: - | I55: -
E56: - | G56: - | H56: - | I56: -

Sheet Jilali Hasnaoui
B13: Jilali Hasnaoui
B16: Gespeeld | F16: =COUNTIF(G32:G57,"W")+COUNTIF(G32:G57,"G")+COUNTIF(G32:G57,"V") -> 4
B17: Gewonnen | F17: =COUNTIF(G32:G57,"W") -> 1
B18: Gelijk | F18: =COUNTIF(G32:G57,"G") -> 0
B19: Verloren | F19: =COUNTIF(G32:G57,"V") -> 3 | H19: Wijk van initiële inschrijving (met shirtkleur finaledag)
B20: % gewonnen | F20: =IF(F16=0,0,F17/F16) -> 0.25
B21: % gelijk | F21: =IF(F16=0,0,F18/F16) -> 0
B22: % verloren | F22: =IF(F16=0,0,F19/F16) -> 0.75 | H22: De Schutskamp
B23: Wedstrijdpunten | F23: =SUM(H32:H57) -> 3
B24: Saldopunten | F24: =SUM(I32:I57) -> -6
B25: Saldopunten per wedstrijd | F25: =IF(F16=0,0,F24/F16) -> -1.5
B28: LET OP: alleen wedstrijden die daadwerkelijk gespeeld zijn in de wijk waarvoor jij je hebt ingeschreven tellen mee!
B31: Datum | C31: Locatie | D31: UITSLAGEN | G31: W, V of G? | H31: Wedstrijd-punten | I31: Saldo-punten
B32: 2021-06-28 | C32: De Schutskamp | D32: 7 | E32: - | F32: 8 | G32: =IF(OR($B$13="",wijk_van_inschrijving=""),"-",IF(OR(wijk_van_inschrijving<>C32,D32="",F32=""),"-",IF(D32>F32,"W",IF(D32=F32,"G",IF(D32<F32,"V","-"))))) -> V | H32: =IF(OR($B$13="",wijk_van_inschrijving=""),"-",IF(OR(wijk_van_inschrijving<>C32,G32="-",G32=""),"-",IF(G32="W",3,IF(G32="G",2,IF(G32="V",0,0))))) -> 0 | I32: =IF(OR($B$13="",wijk_van_inschrijving=""),"-",IF(wijk_van_inschrijving<>C32,"-",IF(D32>=0,IF(F32="","-",D32-F32)))) -> -1
B33: 2021-06-28 | C33: De Schutskamp | D33: 7 | E33: - | F33: 8 | G33: V | H33: 0 | I33: -1
B34: 2021-07-05 | C34: De Schutskamp | D34: 3 | E34: - | F34: 9 | G34: V | H34: 0 | I34: -6
B35: 2021-07-05 | C35: De Schutskamp | D35: 8 | E35: - | F35: 6 | G35: W | H35: 3 | I35: 2
E36: - | G36: - | H36: - | I36: -
E37: - | G37: - | H37: - | I37: -
E38: - | G38: - | H38: - | I38: -
E39: - | G39: - | H39: - | I39: -
E40: - | G40: - | H40: - | I40: -
E41: - | G41: - | H41: - | I41: -
E42: - | G42: - | H42: - | I42: -
E43: - | G43: - | H43: - | I43: -
E44: - | G44: - | H44: - | I44: -
E45: - | G45: - | H45: - | I45: -
E46: - | G46: - | H46: - | I46: -
E47: - | G47: - | H47: - | I47: -
E48: - | G48: - | H48: - | I48: -
E49: - | G49: - | H49: - | I49: -
E50: - | G50: - | H50: - | I50: -
E51: - | G51: - | H51: - | I51: -
E52: - | G52: - | H52: - | I52: -
E53: - | G53: - | H53: - | I53: -
E54: - | G54: - | H54: - | I54: -
E55: - | G55: - | H55: - | I55: -
E56: - | G56: - | H56: - | I56: -

Sheet John den Houter
B13: John den Houter
B16: Gespeeld | F16: =COUNTIF(G32:G57,"W")+COUNTIF(G32:G57,"G")+COUNTIF(G32:G57,"V") -> 8
B17: Gewonnen | F17: =COUNTIF(G32:G57,"W") -> 3
B18: Gelijk | F18: =COUNTIF(G32:G57,"G") -> 0
B19: Verloren | F19: =COUNTIF(G32:G57,"V") -> 5 | H19: Wijk van initiële inschrijving (met shirtkleur finaledag)
B20: % gewonnen | F20: =IF(F16=0,0,F17/F16) -> 0.375
B21: % gelijk | F21: =IF(F16=0,0,F18/F16) -> 0
B22: % verloren | F22: =IF(F16=0,0,F19/F16) -> 0.625 | H22: Hondsberg (Rosmalen)
B23: Wedstrijdpunten | F23: =SUM(H32:H57) -> 9
B24: Saldopunten | F24: =SUM(I32:I57) -> -10
B25: Saldopunten per wedstrijd | F25: =IF(F16=0,0,F24/F16) -> -1.25
B28: LET OP: alleen wedstrijden die daadwerkelijk gespeeld zijn in de wijk waarvoor jij je hebt ingeschreven tellen mee!
B31: Datum | C31: Locatie | D31: UITSLAGEN | G31: W, V of G? | H31: Wedstrijd-punten | I31: Saldo-punten
B32: 2021-06-22 | C32: Hondsberg (Rosmalen) | D32: 2 | E32: - | F32: 9 | G32: =IF(OR($B$13="",wijk_van_inschrijving=""),"-",IF(OR(wijk_van_inschrijving<>C32,D32="",F32=""),"-",IF(D32>F32,"W",IF(D32=F32,"G",IF(D32<F32,"V","-"))))) -> V | H32: =IF(OR($B$13="",wijk_van_inschrijving=""),"-",IF(OR(wijk_van_inschrijving<>C32,G32="-",G32=""),"-",IF(G32="W",3,IF(G32="G",2,IF(G32="V",0,0))))) -> 0 | I32: =IF(OR($B$13="",wijk_van_inschrijving=""),"-",IF(wijk_van_inschrijving<>C32,"-",IF(D32>=0,IF(F32="","-",D32-F32)))) -> -7
B33: 2021-06-22 | C33: Hondsberg (Rosmalen) | D33: 13 | E33: - | F33: 6 | G33: W | H33: 3 | I33: 7
B34: 2021-06-30 | C34: Hondsberg (Rosmalen) | D34: 9 | E34: - | F34: 11 | G34: V | H34: 0 | I34: -2
B35: 2021-06-30 | C35: Hondsberg (Rosmalen) | D35: 7 | E35: - | F35: 6 | G35: W | H35: 3 | I35: 1
B36: 2021-06-30 | C36: Hondsberg (Rosmalen) | D36: 5 | E36: - | F36: 13 | G36: V | H36: 0 | I36: -8
B37: 2021-07-07 | C37: Hondsberg (Rosmalen) | D37: 6 | E37: - | F37: 9 | G37: V | H37: 0 | I37: -3
B38: 2021-07-07 | C38: Hondsberg (Rosmalen) | D38: 11 | E38: - | F38: 3 | G38: W | H38: 3 | I38: 8
B39: 2021-07-07 | C39: Hondsberg (Rosmalen) | D39: 1 | E39: - | F39: 7 | G39: V | H39: 0 | I39: -6
E40: - | G40: - | H40: - | I40: -
E41: - | G41: - | H41: - | I41: -
E42: - | G42: - | H42: - | I42: -
E43: - | G43: - | H43: - | I43: -
E44: - | G44: - | H44: - | I44: -
E45: - | G45: - | H45: - | I45: -
E46: - | G46: - | H46: - | I46: -
E47: - | G47: - | H47: - | I47: -
E48: - | G48: - | H48: - | I48: -
E49: - | G49: - | H49: - | I49: -
E50: - | G50: - | H50: - | I50: -
E51: - | G51: - | H51: - | I51: -
E52: - | G52: - | H52: - | I52: -
E53: - | G53: - | H53: - | I53: -
E54: - | G54: - | H54: - | I54: -
E55: - | G55: - | H55: - | I55: -
E56: - | G56: - | H56: - | I56: -

Sheet John Kuijpers
B13: John Kuijpers
B16: Gespeeld | F16: =COUNTIF(G32:G57,"W")+COUNTIF(G32:G57,"G")+COUNTIF(G32:G57,"V") -> 12
B17: Gewonnen | F17: =COUNTIF(G32:G57,"W") -> 9
B18: Gelijk | F18: =COUNTIF(G32:G57,"G") -> 0
B19: Verloren | F19: =COUNTIF(G32:G57,"V") -> 3 | H19: Wijk van initiële inschrijving (met shirtkleur finaledag)
B20: % gewonnen | F20: =IF(F16=0,0,F17/F16) -> 0.75
B21: % gelijk | F21: =IF(F16=0,0,F18/F16) -> 0
B22: % verloren | F22: =IF(F16=0,0,F19/F16) -> 0.25 | H22: De Schutskamp
B23: Wedstrijdpunten | F23: =SUM(H32:H57) -> 27
B24: Saldopunten | F24: =SUM(I32:I57) -> 41
B25: Saldopunten per wedstrijd | F25: =IF(F16=0,0,F24/F16) -> 3.416666667
B28: LET OP: alleen wedstrijden die daadwerkelijk gespeeld zijn in de wijk waarvoor jij je hebt ingeschreven tellen mee!
B31: Datum | C31: Locatie | D31: UITSLAGEN | G31: W, V of G? | H31: Wedstrijd-punten | I31: Saldo-punten
B32: 2021-06-14 | C32: De Schutskamp | D32: 9 | E32: - | F32: 5 | G32: =IF(OR($B$13="",wijk_van_inschrijving=""),"-",IF(OR(wijk_van_inschrijving<>C32,D32="",F32=""),"-",IF(D32>F32,"W",IF(D32=F32,"G",IF(D32<F32,"V","-"))))) -> W | H32: =IF(OR($B$13="",wijk_van_inschrijving=""),"-",IF(OR(wijk_van_inschrijving<>C32,G32="-",G32=""),"-",IF(G32="W",3,IF(G32="G",2,IF(G32="V",0,0))))) -> 3 | I32: =IF(OR($B$13="",wijk_van_inschrijving=""),"-",IF(wijk_van_inschrijving<>C32,"-",IF(D32>=0,IF(F32="","-",D32-F32)))) -> 4
B33: 2021-06-14 | C33: De Schutskamp | D33: 7 | E33: - | F33: 4 | G33: W | H33: 3 | I33: 3
B34: 2021-06-14 | C34: De Schutskamp | D34: 13 | E34: - | F34: 2 | G34: W | H34: 3 | I34: 11
B35: 2021-06-24 | C35: De Schutskamp | D35: 13 | E35: - | F35: 3 | G35: W | H35: 3 | I35: 10
B36: 2021-06-24 | C36: De Schutskamp | D36: 9 | E36: - | F36: 6 | G36: W | H36: 3 | I36: 3
B37: 2021-06-24 | C37: De Schutskamp | D37: 11 | E37: - | F37: 7 | G37: W | H37: 3 | I37: 4
B38: 2021-06-28 | C38: De Schutskamp | D38: 3 | E38: - | F38: 12 | G38: V | H38: 0 | I38: -9
B39: 2021-06-28 | C39: De Schutskamp | D39: 7 | E39: - | F39: 10 | G39: V | H39: 0 | I39: -3
B40: 2021-06-28 | C40: De Schutskamp | D40: 7 | E40: - | F40: 8 | G40: V | H40: 0 | I40: -1
B41: 2021-07-05 | C41: De Schutskamp | D41: 8 | E41: - | F41: 6 | G41: W | H41: 3 | I41: 2
B42: 2021-07-05 | C42: De Schutskamp | D42: 13 | E42: - | F42: 2 | G42: W | H42: 3 | I42: 11
B43: 2021-07-05 | C43: De Schutskamp | D43: 9 | E43: - | F43: 3 | G43: W | H43: 3 | I43: 6
E44: - | G44: - | H44: - | I44: -
E45: - | G45: - | H45: - | I45: -
E46: - | G46: - | H46: - | I46: -
E47: - | G47: - | H47: - | I47: -
E48: - | G48: - | H48: - | I48: -
E49: - | G49: - | H49: - | I49: -
E50: - | G50: - | H50: - | I50: -
E51: - | G51: - | H51: - | I51: -
E52: - | G52: - | H52: - | I52: -
E53: - | G53: - | H53: - | I53: -
E54: - | G54: - | H54: - | I54: -
E55: - | G55: - | H55: - | I55: -
E56: - | G56: - | H56: - | I56: -

Sheet Jonne Schophuizen
B13: Jonne Schophuizen
B16: Gespeeld | F16: =COUNTIF(G32:G57,"W")+COUNTIF(G32:G57,"G")+COUNTIF(G32:G57,"V") -> 9
B17: Gewonnen | F17: =COUNTIF(G32:G57,"W") -> 3
B18: Gelijk | F18: =COUNTIF(G32:G57,"G") -> 2
B19: Verloren | F19: =COUNTIF(G32:G57,"V") -> 4 | H19: Wijk van initiële inschrijving (met shirtkleur finaledag)
B20: % gewonnen | F20: =IF(F16=0,0,F17/F16) -> 0.3333333333
B21: % gelijk | F21: =IF(F16=0,0,F18/F16) -> 0.2222222222
B22: % verloren | F22: =IF(F16=0,0,F19/F16) -> 0.4444444444 | H22: De Schutskamp
B23: Wedstrijdpunten | F23: =SUM(H32:H57) -> 13
B24: Saldopunten | F24: =SUM(I32:I57) -> 1
B25: Saldopunten per wedstrijd | F25: =IF(F16=0,0,F24/F16) -> 0.1111111111
B28: LET OP: alleen wedstrijden die daadwerkelijk gespeeld zijn in de wijk waarvoor jij je hebt ingeschreven tellen mee!
B31: Datum | C31: Locatie | D31: UITSLAGEN | G31: W, V of G? | H31: Wedstrijd-punten | I31: Saldo-punten
B32: 2021-06-24 | C32: De Schutskamp | D32: 7 | E32: - | F32: 11 | G32: =IF(OR($B$13="",wijk_van_inschrijving=""),"-",IF(OR(wijk_van_inschrijving<>C32,D32="",F32=""),"-",IF(D32>F32,"W",IF(D32=F32,"G",IF(D32<F32,"V","-"))))) -> V | H32: =IF(OR($B$13="",wijk_van_inschrijving=""),"-",IF(OR(wijk_van_inschrijving<>C32,G32="-",G32=""),"-",IF(G32="W",3,IF(G32="G",2,IF(G32="V",0,0))))) -> 0 | I32: =IF(OR($B$13="",wijk_van_inschrijving=""),"-",IF(wijk_van_inschrijving<>C32,"-",IF(D32>=0,IF(F32="","-",D32-F32)))) -> -4
B33: 2021-06-24 | C33: De Schutskamp | D33: 9 | E33: - | F33: 6 | G33: W | H33: 3 | I33: 3
B34: 2021-06-24 | C34: De Schutskamp | D34: 11 | E34: - | F34: 11 | G34: G | H34: 2 | I34: 0
B35: 2021-06-28 | C35: De Schutskamp | D35: 5 | E35: - | F35: 13 | G35: V | H35: 0 | I35: -8
B36: 2021-06-28 | C36: De Schutskamp | D36: 7 | E36: - | F36: 10 | G36: V | H36: 0 | I36: -3
B37: 2021-06-28 | C37: De Schutskamp | D37: 9 | E37: - | F37: 9 | G37: G | H37: 2 | I37: 0
B38: 2021-07-05 | C38: De Schutskamp | D38: 13 | E38: - | F38: 6 | G38: W | H38: 3 | I38: 7
B39: 2021-07-05 | C39: De Schutskamp | D39: 8 | E39: - | F39: 12 | G39: V | H39: 0 | I39: -4
B40: 2021-07-05 | C40: De Schutskamp | D40: 13 | E40: - | F40: 3 | G40: W | H40: 3 | I40: 10
E41: - | G41: - | H41: - | I41: -
E42: - | G42: - | H42: - | I42: -
E43: - | G43: - | H43: - | I43: -
E44: - | G44: - | H44: - | I44: -
E45: - | G45: - | H45: - | I45: -
E46: - | G46: - | H46: - | I46: -
E47: - | G47: - | H47: - | I47: -
E48: - | G48: - | H48: - | I48: -
E49: - | G49: - | H49: - | I49: -
E50: - | G50: - | H50: - | I50: -
E51: - | G51: - | H51: - | I51: -
E52: - | G52: - | H52: - | I52: -
E53: - | G53: - | H53: - | I53: -
E54: - | G54: - | H54: - | I54: -
E55: - | G55: - | H55: - | I55: -
E56: - | G56: - | H56: - | I56: -

Sheet Jos de Kort
B13: Jos de Kort
B16: Gespeeld | F16: =COUNTIF(G32:G57,"W")+COUNTIF(G32:G57,"G")+COUNTIF(G32:G57,"V") -> 3
B17: Gewonnen | F17: =COUNTIF(G32:G57,"W") -> 2
B18: Gelijk | F18: =COUNTIF(G32:G57,"G") -> 0
B19: Verloren | F19: =COUNTIF(G32:G57,"V") -> 1 | H19: Wijk van initiële inschrijving (met shirtkleur finaledag)
B20: % gewonnen | F20: =IF(F16=0,0,F17/F16) -> 0.6666666667
B21: % gelijk | F21: =IF(F16=0,0,F18/F16) -> 0
B22: % verloren | F22: =IF(F16=0,0,F19/F16) -> 0.3333333333 | H22: De Schutskamp
B23: Wedstrijdpunten | F23: =SUM(H32:H57) -> 6
B24: Saldopunten | F24: =SUM(I32:I57) -> 5
B25: Saldopunten per wedstrijd | F25: =IF(F16=0,0,F24/F16) -> 1.666666667
B28: LET OP: alleen wedstrijden die daadwerkelijk gespeeld zijn in de wijk waarvoor jij je hebt ingeschreven tellen mee!
B31: Datum | C31: Locatie | D31: UITSLAGEN | G31: W, V of G? | H31: Wedstrijd-punten | I31: Saldo-punten
B32: 2021-06-24 | C32: De Schutskamp | D32: 11 | E32: - | F32: 7 | G32: =IF(OR($B$13="",wijk_van_inschrijving=""),"-",IF(OR(wijk_van_inschrijving<>C32,D32="",F32=""),"-",IF(D32>F32,"W",IF(D32=F32,"G",IF(D32<F32,"V","-"))))) -> W | H32: =IF(OR($B$13="",wijk_van_inschrijving=""),"-",IF(OR(wijk_van_inschrijving<>C32,G32="-",G32=""),"-",IF(G32="W",3,IF(G32="G",2,IF(G32="V",0,0))))) -> 3 | I32: =IF(OR($B$13="",wijk_van_inschrijving=""),"-",IF(wijk_van_inschrijving<>C32,"-",IF(D32>=0,IF(F32="","-",D32-F32)))) -> 4
B33: 2021-06-24 | C33: De Schutskamp | D33: 6 | E33: - | F33: 9 | G33: V | H33: 0 | I33: -3
B34: 2021-06-24 | C34: De Schutskamp | D34: 12 | E34: - | F34: 8 | G34: W | H34: 3 | I34: 4
E35: - | G35: - | H35: - | I35: -
E36: - | G36: - | H36: - | I36: -
E37: - | G37: - | H37: - | I37: -
E38: - | G38: - | H38: - | I38: -
E39: - | G39: - | H39: - | I39: -
E40: - | G40: - | H40: - | I40: -
E41: - | G41: - | H41: - | I41: -
E42: - | G42: - | H42: - | I42: -
E43: - | G43: - | H43: - | I43: -
E44: - | G44: - | H44: - | I44: -
E45: - | G45: - | H45: - | I45: -
E46: - | G46: - | H46: - | I46: -
E47: - | G47: - | H47: - | I47: -
E48: - | G48: - | H48: - | I48: -
E49: - | G49: - | H49: - | I49: -
E50: - | G50: - | H50: - | I50: -
E51: - | G51: - | H51: - | I51: -
E52: - | G52: - | H52: - | I52: -
E53: - | G53: - | H53: - | I53: -
E54: - | G54: - | H54: - | I54: -
E55: - | G55: - | H55: - | I55: -
E56: - | G56: - | H56: - | I56: -

Sheet José van den Broek
B13: José van den Broek
B16: Gespeeld | F16: =COUNTIF(G32:G57,"W")+COUNTIF(G32:G57,"G")+COUNTIF(G32:G57,"V") -> 7
B17: Gewonnen | F17: =COUNTIF(G32:G57,"W") -> 2
B18: Gelijk | F18: =COUNTIF(G32:G57,"G") -> 2
B19: Verloren | F19: =COUNTIF(G32:G57,"V") -> 3 | H19: Wijk van initiële inschrijving (met shirtkleur finaledag)
B20: % gewonnen | F20: =IF(F16=0,0,F17/F16) -> 0.2857142857
B21: % gelijk | F21: =IF(F16=0,0,F18/F16) -> 0.2857142857
B22: % verloren | F22: =IF(F16=0,0,F19/F16) -> 0.4285714286 | H22: Hondsberg (Rosmalen)
B23: Wedstrijdpunten | F23: =SUM(H32:H57) -> 10
B24: Saldopunten | F24: =SUM(I32:I57) -> -13
B25: Saldopunten per wedstrijd | F25: =IF(F16=0,0,F24/F16) -> -1.857142857
B28: LET OP: alleen wedstrijden die daadwerkelijk gespeeld zijn in de wijk waarvoor jij je hebt ingeschreven tellen mee!
B31: Datum | C31: Locatie | D31: UITSLAGEN | G31: W, V of G? | H31: Wedstrijd-punten | I31: Saldo-punten
B32: 2021-06-15 | C32: Hondsberg (Rosmalen) | D32: 9 | E32: - | F32: 7 | G32: =IF(OR($B$13="",wijk_van_inschrijving=""),"-",IF(OR(wijk_van_inschrijving<>C32,D32="",F32=""),"-",IF(D32>F32,"W",IF(D32=F32,"G",IF(D32<F32,"V","-"))))) -> W | H32: =IF(OR($B$13="",wijk_van_inschrijving=""),"-",IF(OR(wijk_van_inschrijving<>C32,G32="-",G32=""),"-",IF(G32="W",3,IF(G32="G",2,IF(G32="V",0,0))))) -> 3 | I32: =IF(OR($B$13="",wijk_van_inschrijving=""),"-",IF(wijk_van_inschrijving<>C32,"-",IF(D32>=0,IF(F32="","-",D32-F32)))) -> 2
B33: 2021-06-15 | C33: Hondsberg (Rosmalen) | D33: 6 | E33: - | F33: 6 | G33: G | H33: 2 | I33: 0
B34: 2021-06-15 | C34: Hondsberg (Rosmalen) | D34: 8 | E34: - | F34: 8 | G34: G | H34: 2 | I34: 0
B35: 2021-06-22 | C35: Hondsberg (Rosmalen) | D35: 2 | E35: - | F35: 9 | G35: V | H35: 0 | I35: -7
B36: 2021-06-22 | C36: Hondsberg (Rosmalen) | D36: 5 | E36: - | F36: 11 | G36: V | H36: 0 | I36: -6
B37: 2021-06-30 | C37: Hondsberg (Rosmalen) | D37: 11 | E37: - | F37: 9 | G37: W | H37: 3 | I37: 2
B38: 2021-06-30 | C38: Hondsberg (Rosmalen) | D38: 5 | E38: - | F38: 9 | G38: V | H38: 0 | I38: -4
E39: - | G39: - | H39: - | I39: -
E40: - | G40: - | H40: - | I40: -
E41: - | G41: - | H41: - | I41: -
E42: - | G42: - | H42: - | I42: -
E43: - | G43: - | H43: - | I43: -
E44: - | G44: - | H44: - | I44: -
E45: - | G45: - | H45: - | I45: -
E46: - | G46: - | H46: - | I46: -
E47: - | G47: - | H47: - | I47: -
E48: - | G48: - | H48: - | I48: -
E49: - | G49: - | H49: - | I49: -
E50: - | G50: - | H50: - | I50: -
E51: - | G51: - | H51: - | I51: -
E52: - | G52: - | H52: - | I52: -
E53: - | G53: - | H53: - | I53: -
E54: - | G54: - | H54: - | I54: -
E55: - | G55: - | H55: - | I55: -
E56: - | G56: - | H56: - | I56: -

Sheet Jürgen Cools
B13: Jürgen Cools
B16: Gespeeld | F16: =COUNTIF(G32:G57,"W")+COUNTIF(G32:G57,"G")+COUNTIF(G32:G57,"V") -> 3
B17: Gewonnen | F17: =COUNTIF(G32:G57,"W") -> 3
B18: Gelijk | F18: =COUNTIF(G32:G57,"G") -> 0
B19: Verloren | F19: =COUNTIF(G32:G57,"V") -> 0 | H19: Wijk van initiële inschrijving (met shirtkleur finaledag)
B20: % gewonnen | F20: =IF(F16=0,0,F17/F16) -> 1
B21: % gelijk | F21: =IF(F16=0,0,F18/F16) -> 0
B22: % verloren | F22: =IF(F16=0,0,F19/F16) -> 0 | H22: De Schutskamp
B23: Wedstrijdpunten | F23: =SUM(H32:H57) -> 9
B24: Saldopunten | F24: =SUM(I32:I57) -> 25
B25: Saldopunten per wedstrijd | F25: =IF(F16=0,0,F24/F16) -> 8.333333333
B28: LET OP: alleen wedstrijden die daadwerkelijk gespeeld zijn in de wijk waarvoor jij je hebt ingeschreven tellen mee!
B31: Datum | C31: Locatie | D31: UITSLAGEN | G31: W, V of G? | H31: Wedstrijd-punten | I31: Saldo-punten
B32: 2021-06-14 | C32: De Schutskamp | D32: 7 | E32: - | F32: 4 | G32: =IF(OR($B$13="",wijk_van_inschrijving=""),"-",IF(OR(wijk_van_inschrijving<>C32,D32="",F32=""),"-",IF(D32>F32,"W",IF(D32=F32,"G",IF(D32<F32,"V","-"))))) -> W | H32: =IF(OR($B$13="",wijk_van_inschrijving=""),"-",IF(OR(wijk_van_inschrijving<>C32,G32="-",G32=""),"-",IF(G32="W",3,IF(G32="G",2,IF(G32="V",0,0))))) -> 3 | I32: =IF(OR($B$13="",wijk_van_inschrijving=""),"-",IF(wijk_van_inschrijving<>C32,"-",IF(D32>=0,IF(F32="","-",D32-F32)))) -> 3
B33: 2021-06-14 | C33: De Schutskamp | D33: 13 | E33: - | F33: 0 | G33: W | H33: 3 | I33: 13
B34: 2021-06-14 | C34: De Schutskamp | D34: 13 | E34: - | F34: 4 | G34: W | H34: 3 | I34: 9
E35: - | G35: - | H35: - | I35: -
E36: - | G36: - | H36: - | I36: -
E37: - | G37: - | H37: - | I37: -
E38: - | G38: - | H38: - | I38: -
E39: - | G39: - | H39: - | I39: -
E40: - | G40: - | H40: - | I40: -
E41: - | G41: - | H41: - | I41: -
E42: - | G42: - | H42: - | I42: -
E43: - | G43: - | H43: - | I43: -
E44: - | G44: - | H44: - | I44: -
E45: - | G45: - | H45: - | I45: -
E46: - | G46: - | H46: - | I46: -
E47: - | G47: - | H47: - | I47: -
E48: - | G48: - | H48: - | I48: -
E49: - | G49: - | H49: - | I49: -
E50: - | G50: - | H50: - | I50: -
E51: - | G51: - | H51: - | I51: -
E52: - | G52: - | H52: - | I52: -
E53: - | G53: - | H53: - | I53: -
E54: - | G54: - | H54: - | I54: -
E55: - | G55: - | H55: - | I55: -
E56: - | G56: - | H56: - | I56: -

Sheet Lenie van Triest - Guijt
B13: Lenie van Triest - Guijt
B16: Gespeeld | F16: =COUNTIF(G32:G57,"W")+COUNTIF(G32:G57,"G")+COUNTIF(G32:G57,"V") -> 7
B17: Gewonnen | F17: =COUNTIF(G32:G57,"W") -> 3
B18: Gelijk | F18: =COUNTIF(G32:G57,"G") -> 0
B19: Verloren | F19: =COUNTIF(G32:G57,"V") -> 4 | H19: Wijk van initiële inschrijving (met shirtkleur finaledag)
B20: % gewonnen | F20: =IF(F16=0,0,F17/F16) -> 0.4285714286
B21: % gelijk | F21: =IF(F16=0,0,F18/F16) -> 0
B22: % verloren | F22: =IF(F16=0,0,F19/F16) -> 0.5714285714 | H22: Hondsberg (Rosmalen)
B23: Wedstrijdpunten | F23: =SUM(H32:H57) -> 9
B24: Saldopunten | F24: =SUM(I32:I57) -> -22
B25: Saldopunten per wedstrijd | F25: =IF(F16=0,0,F24/F16) -> -3.142857143
B28: LET OP: alleen wedstrijden die daadwerkelijk gespeeld zijn in de wijk waarvoor jij je hebt ingeschreven tellen mee!
B31: Datum | C31: Locatie | D31: UITSLAGEN | G31: W, V of G? | H31: Wedstrijd-punten | I31: Saldo-punten
B32: 2021-06-22 | C32: Hondsberg (Rosmalen) | D32: 4 | E32: - | F32: 10 | G32: =IF(OR($B$13="",wijk_van_inschrijving=""),"-",IF(OR(wijk_van_inschrijving<>C32,D32="",F32=""),"-",IF(D32>F32,"W",IF(D32=F32,"G",IF(D32<F32,"V","-"))))) -> V | H32: =IF(OR($B$13="",wijk_van_inschrijving=""),"-",IF(OR(wijk_van_inschrijving<>C32,G32="-",G32=""),"-",IF(G32="W",3,IF(G32="G",2,IF(G32="V",0,0))))) -> 0 | I32: =IF(OR($B$13="",wijk_van_inschrijving=""),"-",IF(wijk_van_inschrijving<>C32,"-",IF(D32>=0,IF(F32="","-",D32-F32)))) -> -6
B33: 2021-06-22 | C33: Hondsberg (Rosmalen) | D33: 5 | E33: - | F33: 11 | G33: V | H33: 0 | I33: -6
B34: 2021-06-30 | C34: Hondsberg (Rosmalen) | D34: 6 | E34: - | F34: 3 | G34: W | H34: 3 | I34: 3
B35: 2021-06-30 | C35: Hondsberg (Rosmalen) | D35: 0 | E35: - | F35: 12 | G35: V | H35: 0 | I35: -12
B36: 2021-07-07 | C36: Hondsberg (Rosmalen) | D36: 5 | E36: - | F36: 3 | G36: W | H36: 3 | I36: 2
B37: 2021-07-07 | C37: Hondsberg (Rosmalen) | D37: 2 | E37: - | F37: 11 | G37: V | H37: 0 | I37: -9
B38: 2021-07-07 | C38: Hondsberg (Rosmalen) | D38: 7 | E38: - | F38: 1 | G38: W | H38: 3 | I38: 6
E39: - | G39: - | H39: - | I39: -
E40: - | G40: - | H40: - | I40: -
E41: - | G41: - | H41: - | I41: -
E42: - | G42: - | H42: - | I42: -
E43: - | G43: - | H43: - | I43: -
E44: - | G44: - | H44: - | I44: -
E45: - | G45: - | H45: - | I45: -
E46: - | G46: - | H46: - | I46: -
E47: - | G47: - | H47: - | I47: -
E48: - | G48: - | H48: - | I48: -
E49: - | G49: - | H49: - | I49: -
E50: - | G50: - | H50: - | I50: -
E51: - | G51: - | H51: - | I51: -
E52: - | G52: - | H52: - | I52: -
E53: - | G53: - | H53: - | I53: -
E54: - | G54: - | H54: - | I54: -
E55: - | G55: - | H55: - | I55: -
E56: - | G56: - | H56: - | I56: -

Sheet Leo Leenders
B13: Leo Leenders
B16: Gespeeld | F16: =COUNTIF(G32:G57,"W")+COUNTIF(G32:G57,"G")+COUNTIF(G32:G57,"V") -> 3
B17: Gewonnen | F17: =COUNTIF(G32:G57,"W") -> 3
B18: Gelijk | F18: =COUNTIF(G32:G57,"G") -> 0
B19: Verloren | F19: =COUNTIF(G32:G57,"V") -> 0 | H19: Wijk van initiële inschrijving (met shirtkleur finaledag)
B20: % gewonnen | F20: =IF(F16=0,0,F17/F16) -> 1
B21: % gelijk | F21: =IF(F16=0,0,F18/F16) -> 0
B22: % verloren | F22: =IF(F16=0,0,F19/F16) -> 0 | H22: De Schutskamp
B23: Wedstrijdpunten | F23: =SUM(H32:H57) -> 9
B24: Saldopunten | F24: =SUM(I32:I57) -> 19
B25: Saldopunten per wedstrijd | F25: =IF(F16=0,0,F24/F16) -> 6.333333333
B28: LET OP: alleen wedstrijden die daadwerkelijk gespeeld zijn in de wijk waarvoor jij je hebt ingeschreven tellen mee!
B31: Datum | C31: Locatie | D31: UITSLAGEN | G31: W, V of G? | H31: Wedstrijd-punten | I31: Saldo-punten
B32: 2021-06-14 | C32: De Schutskamp | D32: 13 | E32: - | F32: 3 | G32: =IF(OR($B$13="",wijk_van_inschrijving=""),"-",IF(OR(wijk_van_inschrijving<>C32,D32="",F32=""),"-",IF(D32>F32,"W",IF(D32=F32,"G",IF(D32<F32,"V","-"))))) -> W | H32: =IF(OR($B$13="",wijk_van_inschrijving=""),"-",IF(OR(wijk_van_inschrijving<>C32,G32="-",G32=""),"-",IF(G32="W",3,IF(G32="G",2,IF(G32="V",0,0))))) -> 3 | I32: =IF(OR($B$13="",wijk_van_inschrijving=""),"-",IF(wijk_van_inschrijving<>C32,"-",IF(D32>=0,IF(F32="","-",D32-F32)))) -> 10
B33: 2021-06-14 | C33: De Schutskamp | D33: 4 | E33: - | F33: 3 | G33: W | H33: 3 | I33: 1
B34: 2021-06-14 | C34: De Schutskamp | D34: 13 | E34: - | F34: 5 | G34: W | H34: 3 | I34: 8
E35: - | G35: - | H35: - | I35: -
E36: - | G36: - | H36: - | I36: -
E37: - | G37: - | H37: - | I37: -
E38: - | G38: - | H38: - | I38: -
E39: - | G39: - | H39: - | I39: -
E40: - | G40: - | H40: - | I40: -
E41: - | G41: - | H41: - | I41: -
E42: - | G42: - | H42: - | I42: -
E43: - | G43: - | H43: - | I43: -
E44: - | G44: - | H44: - | I44: -
E45: - | G45: - | H45: - | I45: -
E46: - | G46: - | H46: - | I46: -
E47: - | G47: - | H47: - | I47: -
E48: - | G48: - | H48: - | I48: -
E49: - | G49: - | H49: - | I49: -
E50: - | G50: - | H50: - | I50: -
E51: - | G51: - | H51: - | I51: -
E52: - | G52: - | H52: - | I52: -
E53: - | G53: - | H53: - | I53: -
E54: - | G54: - | H54: - | I54: -
E55: - | G55: - | H55: - | I55: -
E56: - | G56: - | H56: - | I56: -

Sheet Lia Jansen
B13: Lia Jansen
B16: Gespeeld | F16: =COUNTIF(G32:G57,"W")+COUNTIF(G32:G57,"G")+COUNTIF(G32:G57,"V") -> 7
B17: Gewonnen | F17: =COUNTIF(G32:G57,"W") -> 3
B18: Gelijk | F18: =COUNTIF(G32:G57,"G") -> 0
B19: Verloren | F19: =COUNTIF(G32:G57,"V") -> 4 | H19: Wijk van initiële inschrijving (met shirtkleur finaledag)
B20: % gewonnen | F20: =IF(F16=0,0,F17/F16) -> 0.4285714286
B21: % gelijk | F21: =IF(F16=0,0,F18/F16) -> 0
B22: % verloren | F22: =IF(F16=0,0,F19/F16) -> 0.5714285714 | H22: Hondsberg (Rosmalen)
B23: Wedstrijdpunten | F23: =SUM(H32:H57) -> 9
B24: Saldopunten | F24: =SUM(I32:I57) -> 1
B25: Saldopunten per wedstrijd | F25: =IF(F16=0,0,F24/F16) -> 0.1428571429
B28: LET OP: alleen wedstrijden die daadwerkelijk gespeeld zijn in de wijk waarvoor jij je hebt ingeschreven tellen mee!
B31: Datum | C31: Locatie | D31: UITSLAGEN | G31: W, V of G? | H31: Wedstrijd-punten | I31: Saldo-punten
B32: 2021-06-22 | C32: Hondsberg (Rosmalen) | D32: 10 | E32: - | F32: 4 | G32: =IF(OR($B$13="",wijk_van_inschrijving=""),"-",IF(OR(wijk_van_inschrijving<>C32,D32="",F32=""),"-",IF(D32>F32,"W",IF(D32=F32,"G",IF(D32<F32,"V","-"))))) -> W | H32: =IF(OR($B$13="",wijk_van_inschrijving=""),"-",IF(OR(wijk_van_inschrijving<>C32,G32="-",G32=""),"-",IF(G32="W",3,IF(G32="G",2,IF(G32="V",0,0))))) -> 3 | I32: =IF(OR($B$13="",wijk_van_inschrijving=""),"-",IF(wijk_van_inschrijving<>C32,"-",IF(D32>=0,IF(F32="","-",D32-F32)))) -> 6
B33: 2021-06-22 | C33: Hondsberg (Rosmalen) | D33: 6 | E33: - | F33: 13 | G33: V | H33: 0 | I33: -7
B34: 2021-06-30 | C34: Hondsberg (Rosmalen) | D34: 13 | E34: - | F34: 5 | G34: W | H34: 3 | I34: 8
B35: 2021-06-30 | C35: Hondsberg (Rosmalen) | D35: 5 | E35: - | F35: 9 | G35: V | H35: 0 | I35: -4
B36: 2021-07-07 | C36: Hondsberg (Rosmalen) | D36: 3 | E36: - | F36: 5 | G36: V | H36: 0 | I36: -2
B37: 2021-07-07 | C37: Hondsberg (Rosmalen) | D37: 3 | E37: - | F37: 11 | G37: V | H37: 0 | I37: -8
B38: 2021-07-07 | C38: Hondsberg (Rosmalen) | D38: 11 | E38: - | F38: 3 | G38: W | H38: 3 | I38: 8
E39: - | G39: - | H39: - | I39: -
E40: - | G40: - | H40: - | I40: -
E41: - | G41: - | H41: - | I41: -
E42: - | G42: - | H42: - | I42: -
E43: - | G43: - | H43: - | I43: -
E44: - | G44: - | H44: - | I44: -
E45: - | G45: - | H45: - | I45: -
E46: - | G46: - | H46: - | I46: -
E47: - | G47: - | H47: - | I47: -
E48: - | G48: - | H48: - | I48: -
E49: - | G49: - | H49: - | I49: -
E50: - | G50: - | H50: - | I50: -
E51: - | G51: - | H51: - | I51: -
E52: - | G52: - | H52: - | I52: -
E53: - | G53: - | H53: - | I53: -
E54: - | G54: - | H54: - | I54: -
E55: - | G55: - | H55: - | I55: -
E56: - | G56: - | H56: - | I56: -

Sheet Loek Zweekhorst
B13: Loek Zweekhorst
B16: Gespeeld | F16: =COUNTIF(G32:G57,"W")+COUNTIF(G32:G57,"G")+COUNTIF(G32:G57,"V") -> 5
B17: Gewonnen | F17: =COUNTIF(G32:G57,"W") -> 3
B18: Gelijk | F18: =COUNTIF(G32:G57,"G") -> 0
B19: Verloren | F19: =COUNTIF(G32:G57,"V") -> 2 | H19: Wijk van initiële inschrijving (met shirtkleur finaledag)
B20: % gewonnen | F20: =IF(F16=0,0,F17/F16) -> 0.6
B21: % gelijk | F21: =IF(F16=0,0,F18/F16) -> 0
B22: % verloren | F22: =IF(F16=0,0,F19/F16) -> 0.4 | H22: Hondsberg (Rosmalen)
B23: Wedstrijdpunten | F23: =SUM(H32:H57) -> 9
B24: Saldopunten | F24: =SUM(I32:I57) -> 2
B25: Saldopunten per wedstrijd | F25: =IF(F16=0,0,F24/F16) -> 0.4
B28: LET OP: alleen wedstrijden die daadwerkelijk gespeeld zijn in de wijk waarvoor jij je hebt ingeschreven tellen mee!
B31: Datum | C31: Locatie | D31: UITSLAGEN | G31: W, V of G? | H31: Wedstrijd-punten | I31: Saldo-punten
B32: 2021-06-30 | C32: Hondsberg (Rosmalen) | D32: 6 | E32: - | F32: 3 | G32: =IF(OR($B$13="",wijk_van_inschrijving=""),"-",IF(OR(wijk_van_inschrijving<>C32,D32="",F32=""),"-",IF(D32>F32,"W",IF(D32=F32,"G",IF(D32<F32,"V","-"))))) -> W | H32: =IF(OR($B$13="",wijk_van_inschrijving=""),"-",IF(OR(wijk_van_inschrijving<>C32,G32="-",G32=""),"-",IF(G32="W",3,IF(G32="G",2,IF(G32="V",0,0))))) -> 3 | I32: =IF(OR($B$13="",wijk_van_inschrijving=""),"-",IF(wijk_van_inschrijving<>C32,"-",IF(D32>=0,IF(F32="","-",D32-F32)))) -> 3
B33: 2021-06-30 | C33: Hondsberg (Rosmalen) | D33: 9 | E33: - | F33: 5 | G33: W | H33: 3 | I33: 4
B34: 2021-07-07 | C34: Hondsberg (Rosmalen) | D34: 3 | E34: - | F34: 5 | G34: V | H34: 0 | I34: -2
B35: 2021-07-07 | C35: Hondsberg (Rosmalen) | D35: 6 | E35: - | F35: 10 | G35: V | H35: 0 | I35: -4
B36: 2021-07-07 | C36: Hondsberg (Rosmalen) | D36: 6 | E36: - | F36: 5 | G36: W | H36: 3 | I36: 1
E37: - | G37: - | H37: - | I37: -
E38: - | G38: - | H38: - | I38: -
E39: - | G39: - | H39: - | I39: -
E40: - | G40: - | H40: - | I40: -
E41: - | G41: - | H41: - | I41: -
E42: - | G42: - | H42: - | I42: -
E43: - | G43: - | H43: - | I43: -
E44: - | G44: - | H44: - | I44: -
E45: - | G45: - | H45: - | I45: -
E46: - | G46: - | H46: - | I46: -
E47: - | G47: - | H47: - | I47: -
E48: - | G48: - | H48: - | I48: -
E49: - | G49: - | H49: - | I49: -
E50: - | G50: - | H50: - | I50: -
E51: - | G51: - | H51: - | I51: -
E52: - | G52: - | H52: - | I52: -
E53: - | G53: - | H53: - | I53: -
E54: - | G54: - | H54: - | I54: -
E55: - | G55: - | H55: - | I55: -
E56: - | G56: - | H56: - | I56: -

Sheet Maik van Zutphen
B13: Maik van Zutphen
B16: Gespeeld | F16: =COUNTIF(G32:G57,"W")+COUNTIF(G32:G57,"G")+COUNTIF(G32:G57,"V") -> 3
B17: Gewonnen | F17: =COUNTIF(G32:G57,"W") -> 0
B18: Gelijk | F18: =COUNTIF(G32:G57,"G") -> 0
B19: Verloren | F19: =COUNTIF(G32:G57,"V") -> 3 | H19: Wijk van initiële inschrijving (met shirtkleur finaledag)
B20: % gewonnen | F20: =IF(F16=0,0,F17/F16) -> 0
B21: % gelijk | F21: =IF(F16=0,0,F18/F16) -> 0
B22: % verloren | F22: =IF(F16=0,0,F19/F16) -> 1 | H22: De Schutskamp
B23: Wedstrijdpunten | F23: =SUM(H32:H57) -> 0
B24: Saldopunten | F24: =SUM(I32:I57) -> -12
B25: Saldopunten per wedstrijd | F25: =IF(F16=0,0,F24/F16) -> -4
B28: LET OP: alleen wedstrijden die daadwerkelijk gespeeld zijn in de wijk waarvoor jij je hebt ingeschreven tellen mee!
B31: Datum | C31: Locatie | D31: UITSLAGEN | G31: W, V of G? | H31: Wedstrijd-punten | I31: Saldo-punten
B32: 2021-06-24 | C32: De Schutskamp | D32: 7 | E32: - | F32: 11 | G32: =IF(OR($B$13="",wijk_van_inschrijving=""),"-",IF(OR(wijk_van_inschrijving<>C32,D32="",F32=""),"-",IF(D32>F32,"W",IF(D32=F32,"G",IF(D32<F32,"V","-"))))) -> V | H32: =IF(OR($B$13="",wijk_van_inschrijving=""),"-",IF(OR(wijk_van_inschrijving<>C32,G32="-",G32=""),"-",IF(G32="W",3,IF(G32="G",2,IF(G32="V",0,0))))) -> 0 | I32: =IF(OR($B$13="",wijk_van_inschrijving=""),"-",IF(wijk_van_inschrijving<>C32,"-",IF(D32>=0,IF(F32="","-",D32-F32)))) -> -4
B33: 2021-06-24 | C33: De Schutskamp | D33: 5 | E33: - | F33: 10 | G33: V | H33: 0 | I33: -5
B34: 2021-06-24 | C34: De Schutskamp | D34: 7 | E34: - | F34: 10 | G34: V | H34: 0 | I34: -3
E35: - | G35: - | H35: - | I35: -
E36: - | G36: - | H36: - | I36: -
E37: - | G37: - | H37: - | I37: -
E38: - | G38: - | H38: - | I38: -
E39: - | G39: - | H39: - | I39: -
E40: - | G40: - | H40: - | I40: -
E41: - | G41: - | H41: - | I41: -
E42: - | G42: - | H42: - | I42: -
E43: - | G43: - | H43: - | I43: -
E44: - | G44: - | H44: - | I44: -
E45: - | G45: - | H45: - | I45: -
E46: - | G46: - | H46: - | I46: -
E47: - | G47: - | H47: - | I47: -
E48: - | G48: - | H48: - | I48: -
E49: - | G49: - | H49: - | I49: -
E50: - | G50: - | H50: - | I50: -
E51: - | G51: - | H51: - | I51: -
E52: - | G52: - | H52: - | I52: -
E53: - | G53: - | H53: - | I53: -
E54: - | G54: - | H54: - | I54: -
E55: - | G55: - | H55: - | I55: -
E56: - | G56: - | H56: - | I56: -

Sheet Mari van Kessel
B13: Mari van Kessel
B16: Gespeeld | F16: =COUNTIF(G32:G57,"W")+COUNTIF(G32:G57,"G")+COUNTIF(G32:G57,"V") -> 12
B17: Gewonnen | F17: =COUNTIF(G32:G57,"W") -> 4
B18: Gelijk | F18: =COUNTIF(G32:G57,"G") -> 1
B19: Verloren | F19: =COUNTIF(G32:G57,"V") -> 7 | H19: Wijk van initiële inschrijving (met shirtkleur finaledag)
B20: % gewonnen | F20: =IF(F16=0,0,F17/F16) -> 0.3333333333
B21: % gelijk | F21: =IF(F16=0,0,F18/F16) -> 0.08333333333
B22: % verloren | F22: =IF(F16=0,0,F19/F16) -> 0.5833333333 | H22: 's-Hertogenbosch Zuid
B23: Wedstrijdpunten | F23: =SUM(H32:H57) -> 14
B24: Saldopunten | F24: =SUM(I32:I57) -> 6
B25: Saldopunten per wedstrijd | F25: =IF(F16=0,0,F24/F16) -> 0.5
B28: LET OP: alleen wedstrijden die daadwerkelijk gespeeld zijn in de wijk waarvoor jij je hebt ingeschreven tellen mee!
B31: Datum | C31: Locatie | D31: UITSLAGEN | G31: W, V of G? | H31: Wedstrijd-punten | I31: Saldo-punten
B32: 2021-06-18 | C32: 's-Hertogenbosch Zuid | D32: 13 | E32: - | F32: 1 | G32: =IF(OR($B$13="",wijk_van_inschrijving=""),"-",IF(OR(wijk_van_inschrijving<>C32,D32="",F32=""),"-",IF(D32>F32,"W",IF(D32=F32,"G",IF(D32<F32,"V","-"))))) -> W | H32: =IF(OR($B$13="",wijk_van_inschrijving=""),"-",IF(OR(wijk_van_inschrijving<>C32,G32="-",G32=""),"-",IF(G32="W",3,IF(G32="G",2,IF(G32="V",0,0))))) -> 3 | I32: =IF(OR($B$13="",wijk_van_inschrijving=""),"-",IF(wijk_van_inschrijving<>C32,"-",IF(D32>=0,IF(F32="","-",D32-F32)))) -> 12
B33: 2021-06-18 | C33: 's-Hertogenbosch Zuid | D33: 5 | E33: - | F33: 7 | G33: V | H33: 0 | I33: -2
B34: 2021-06-18 | C34: 's-Hertogenbosch Zuid | D34: 13 | E34: - | F34: 2 | G34: W | H34: 3 | I34: 11
B35: 2021-06-25 | C35: 's-Hertogenbosch Zuid | D35: 5 | E35: - | F35: 9 | G35: V | H35: 0 | I35: -4
B36: 2021-06-25 | C36: 's-Hertogenbosch Zuid | D36: 13 | E36: - | F36: 0 | G36: W | H36: 3 | I36: 13
B37: 2021-06-25 | C37: 's-Hertogenbosch Zuid | D37: 4 | E37: - | F37: 13 | G37: V | H37: 0 | I37: -9
B38: 2021-07-01 | C38: 's-Hertogenbosch Zuid | D38: 7 | E38: - | F38: 7 | G38: G | H38: 2 | I38: 0
B39: 2021-07-01 | C39: 's-Hertogenbosch Zuid | D39: 3 | E39: - | F39: 11 | G39: V | H39: 0 | I39: -8
B40: 2021-07-01 | C40: 's-Hertogenbosch Zuid | D40: 8 | E40: - | F40: 13 | G40: V | H40: 0 | I40: -5
B41: 2021-07-08 | C41: 's-Hertogenbosch Zuid | D41: 5 | E41: - | F41: 13 | G41: V | H41: 0 | I41: -8
B42: 2021-07-08 | C42: 's-Hertogenbosch Zuid | D42: 13 | E42: - | F42: 1 | G42: W | H42: 3 | I42: 12
B43: 2021-07-08 | C43: 's-Hertogenbosch Zuid | D43: 7 | E43: - | F43: 13 | G43: V | H43: 0 | I43: -6
E44: - | G44: - | H44: - | I44: -
E45: - | G45: - | H45: - | I45: -
E46: - | G46: - | H46: - | I46: -
E47: - | G47: - | H47: - | I47: -
E48: - | G48: - | H48: - | I48: -
E49: - | G49: - | H49: - | I49: -
E50: - | G50: - | H50: - | I50: -
E51: - | G51: - | H51: - | I51: -
E52: - | G52: - | H52: - | I52: -
E53: - | G53: - | H53: - | I53: -
E54: - | G54: - | H54: - | I54: -
E55: - | G55: - | H55: - | I55: -
E56: - | G56: - | H56: - | I56: -

Sheet Maria de Zwart
B13: Maria de Zwart
B16: Gespeeld | F16: =COUNTIF(G32:G57,"W")+COUNTIF(G32:G57,"G")+COUNTIF(G32:G57,"V") -> 10
B17: Gewonnen | F17: =COUNTIF(G32:G57,"W") -> 6
B18: Gelijk | F18: =COUNTIF(G32:G57,"G") -> 0
B19: Verloren | F19: =COUNTIF(G32:G57,"V") -> 4 | H19: Wijk van initiële inschrijving (met shirtkleur finaledag)
B20: % gewonnen | F20: =IF(F16=0,0,F17/F16) -> 0.6
B21: % gelijk | F21: =IF(F16=0,0,F18/F16) -> 0
B22: % verloren | F22: =IF(F16=0,0,F19/F16) -> 0.4 | H22: Hondsberg (Rosmalen)
B23: Wedstrijdpunten | F23: =SUM(H32:H57) -> 18
B24: Saldopunten | F24: =SUM(I32:I57) -> 17
B25: Saldopunten per wedstrijd | F25: =IF(F16=0,0,F24/F16) -> 1.7
B28: LET OP: alleen wedstrijden die daadwerkelijk gespeeld zijn in de wijk waarvoor jij je hebt ingeschreven tellen mee!
B31: Datum | C31: Locatie | D31: UITSLAGEN | G31: W, V of G? | H31: Wedstrijd-punten | I31: Saldo-punten
B32: 2021-06-15 | C32: Hondsberg (Rosmalen) | D32: 12 | E32: - | F32: 2 | G32: =IF(OR($B$13="",wijk_van_inschrijving=""),"-",IF(OR(wijk_van_inschrijving<>C32,D32="",F32=""),"-",IF(D32>F32,"W",IF(D32=F32,"G",IF(D32<F32,"V","-"))))) -> W | H32: =IF(OR($B$13="",wijk_van_inschrijving=""),"-",IF(OR(wijk_van_inschrijving<>C32,G32="-",G32=""),"-",IF(G32="W",3,IF(G32="G",2,IF(G32="V",0,0))))) -> 3 | I32: =IF(OR($B$13="",wijk_van_inschrijving=""),"-",IF(wijk_van_inschrijving<>C32,"-",IF(D32>=0,IF(F32="","-",D32-F32)))) -> 10
B33: 2021-06-15 | C33: Hondsberg (Rosmalen) | D33: 8 | E33: - | F33: 5 | G33: W | H33: 3 | I33: 3
B34: 2021-06-15 | C34: Hondsberg (Rosmalen) | D34: 13 | E34: - | F34: 6 | G34: W | H34: 3 | I34: 7
B35: 2021-06-22 | C35: Hondsberg (Rosmalen) | D35: 2 | E35: - | F35: 11 | G35: V | H35: 0 | I35: -9
B36: 2021-06-22 | C36: Hondsberg (Rosmalen) | D36: 11 | E36: - | F36: 5 | G36: W | H36: 3 | I36: 6
B37: 2021-06-30 | C37: Hondsberg (Rosmalen) | D37: 2 | E37: - | F37: 13 | G37: V | H37: 0 | I37: -11
B38: 2021-06-30 | C38: Hondsberg (Rosmalen) | D38: 6 | E38: - | F38: 7 | G38: V | H38: 0 | I38: -1
B39: 2021-07-07 | C39: Hondsberg (Rosmalen) | D39: 3 | E39: - | F39: 5 | G39: V | H39: 0 | I39: -2
B40: 2021-07-07 | C40: Hondsberg (Rosmalen) | D40: 11 | E40: - | F40: 3 | G40: W | H40: 3 | I40: 8
B41: 2021-07-07 | C41: Hondsberg (Rosmalen) | D41: 7 | E41: - | F41: 1 | G41: W | H41: 3 | I41: 6
E42: - | G42: - | H42: - | I42: -
E43: - | G43: - | H43: - | I43: -
E44: - | G44: - | H44: - | I44: -
E45: - | G45: - | H45: - | I45: -
E46: - | G46: - | H46: - | I46: -
E47: - | G47: - | H47: - | I47: -
E48: - | G48: - | H48: - | I48: -
E49: - | G49: - | H49: - | I49: -
E50: - | G50: - | H50: - | I50: -
E51: - | G51: - | H51: - | I51: -
E52: - | G52: - | H52: - | I52: -
E53: - | G53: - | H53: - | I53: -
E54: - | G54: - | H54: - | I54: -
E55: - | G55: - | H55: - | I55: -
E56: - | G56: - | H56: - | I56: -

Sheet Maria Grove
B13: Maria Grove
B16: Gespeeld | F16: =COUNTIF(G32:G57,"W")+COUNTIF(G32:G57,"G")+COUNTIF(G32:G57,"V") -> 6
B17: Gewonnen | F17: =COUNTIF(G32:G57,"W") -> 1
B18: Gelijk | F18: =COUNTIF(G32:G57,"G") -> 0
B19: Verloren | F19: =COUNTIF(G32:G57,"V") -> 5 | H19: Wijk van initiële inschrijving (met shirtkleur finaledag)
B20: % gewonnen | F20: =IF(F16=0,0,F17/F16) -> 0.1666666667
B21: % gelijk | F21: =IF(F16=0,0,F18/F16) -> 0
B22: % verloren | F22: =IF(F16=0,0,F19/F16) -> 0.8333333333 | H22: De Schutskamp
B23: Wedstrijdpunten | F23: =SUM(H32:H57) -> 3
B24: Saldopunten | F24: =SUM(I32:I57) -> -22
B25: Saldopunten per wedstrijd | F25: =IF(F16=0,0,F24/F16) -> -3.666666667
B28: LET OP: alleen wedstrijden die daadwerkelijk gespeeld zijn in de wijk waarvoor jij je hebt ingeschreven tellen mee!
B31: Datum | C31: Locatie | D31: UITSLAGEN | G31: W, V of G? | H31: Wedstrijd-punten | I31: Saldo-punten
B32: 2021-06-14 | C32: De Schutskamp | D32: 2 | E32: - | F32: 13 | G32: =IF(OR($B$13="",wijk_van_inschrijving=""),"-",IF(OR(wijk_van_inschrijving<>C32,D32="",F32=""),"-",IF(D32>F32,"W",IF(D32=F32,"G",IF(D32<F32,"V","-"))))) -> V | H32: =IF(OR($B$13="",wijk_van_inschrijving=""),"-",IF(OR(wijk_van_inschrijving<>C32,G32="-",G32=""),"-",IF(G32="W",3,IF(G32="G",2,IF(G32="V",0,0))))) -> 0 | I32: =IF(OR($B$13="",wijk_van_inschrijving=""),"-",IF(wijk_van_inschrijving<>C32,"-",IF(D32>=0,IF(F32="","-",D32-F32)))) -> -11
B33: 2021-06-14 | C33: De Schutskamp | D33: 1 | E33: - | F33: 8 | G33: V | H33: 0 | I33: -7
B34: 2021-06-14 | C34: De Schutskamp | D34: 2 | E34: - | F34: 13 | G34: V | H34: 0 | I34: -11
B35: 2021-07-05 | C35: De Schutskamp | D35: 5 | E35: - | F35: 7 | G35: V | H35: 0 | I35: -2
B36: 2021-07-05 | C36: De Schutskamp | D36: 13 | E36: - | F36: 2 | G36: W | H36: 3 | I36: 11
B37: 2021-07-05 | C37: De Schutskamp | D37: 6 | E37: - | F37: 8 | G37: V | H37: 0 | I37: -2
E38: - | G38: - | H38: - | I38: -
E39: - | G39: - | H39: - | I39: -
E40: - | G40: - | H40: - | I40: -
E41: - | G41: - | H41: - | I41: -
E42: - | G42: - | H42: - | I42: -
E43: - | G43: - | H43: - | I43: -
E44: - | G44: - | H44: - | I44: -
E45: - | G45: - | H45: - | I45: -
E46: - | G46: - | H46: - | I46: -
E47: - | G47: - | H47: - | I47: -
E48: - | G48: - | H48: - | I48: -
E49: - | G49: - | H49: - | I49: -
E50: - | G50: - | H50: - | I50: -
E51: - | G51: - | H51: - | I51: -
E52: - | G52: - | H52: - | I52: -
E53: - | G53: - | H53: - | I53: -
E54: - | G54: - | H54: - | I54: -
E55: - | G55: - | H55: - | I55: -
E56: - | G56: - | H56: - | I56: -

Sheet Marleen Kampert
B13: Marleen Kampert
B16: Gespeeld | F16: =COUNTIF(G32:G57,"W")+COUNTIF(G32:G57,"G")+COUNTIF(G32:G57,"V") -> 9
B17: Gewonnen | F17: =COUNTIF(G32:G57,"W") -> 5
B18: Gelijk | F18: =COUNTIF(G32:G57,"G") -> 0
B19: Verloren | F19: =COUNTIF(G32:G57,"V") -> 4 | H19: Wijk van initiële inschrijving (met shirtkleur finaledag)
B20: % gewonnen | F20: =IF(F16=0,0,F17/F16) -> 0.5555555556
B21: % gelijk | F21: =IF(F16=0,0,F18/F16) -> 0
B22: % verloren | F22: =IF(F16=0,0,F19/F16) -> 0.4444444444 | H22: De Hambaken
B23: Wedstrijdpunten | F23: =SUM(H32:H57) -> 15
B24: Saldopunten | F24: =SUM(I32:I57) -> 25
B25: Saldopunten per wedstrijd | F25: =IF(F16=0,0,F24/F16) -> 2.777777778
B28: LET OP: alleen wedstrijden die daadwerkelijk gespeeld zijn in de wijk waarvoor jij je hebt ingeschreven tellen mee!
B31: Datum | C31: Locatie | D31: UITSLAGEN | G31: W, V of G? | H31: Wedstrijd-punten | I31: Saldo-punten
B32: 2021-06-23 | C32: De Hambaken | D32: 13 | E32: - | F32: 0 | G32: =IF(OR($B$13="",wijk_van_inschrijving=""),"-",IF(OR(wijk_van_inschrijving<>C32,D32="",F32=""),"-",IF(D32>F32,"W",IF(D32=F32,"G",IF(D32<F32,"V","-"))))) -> W | H32: =IF(OR($B$13="",wijk_van_inschrijving=""),"-",IF(OR(wijk_van_inschrijving<>C32,G32="-",G32=""),"-",IF(G32="W",3,IF(G32="G",2,IF(G32="V",0,0))))) -> 3 | I32: =IF(OR($B$13="",wijk_van_inschrijving=""),"-",IF(wijk_van_inschrijving<>C32,"-",IF(D32>=0,IF(F32="","-",D32-F32)))) -> 13
B33: 2021-06-23 | C33: De Hambaken | D33: 4 | E33: - | F33: 9 | G33: V | H33: 0 | I33: -5
B34: 2021-06-23 | C34: De Hambaken | D34: 12 | E34: - | F34: 5 | G34: W | H34: 3 | I34: 7
B35: 2021-06-29 | C35: De Hambaken | D35: 13 | E35: - | F35: 3 | G35: W | H35: 3 | I35: 10
B36: 2021-06-29 | C36: De Hambaken | D36: 8 | E36: - | F36: 2 | G36: W | H36: 3 | I36: 6
B37: 2021-06-29 | C37: De Hambaken | D37: 13 | E37: - | F37: 4 | G37: W | H37: 3 | I37: 9
B38: 2021-07-06 | C38: De Hambaken | D38: 11 | E38: - | F38: 13 | G38: V | H38: 0 | I38: -2
B39: 2021-07-06 | C39: De Hambaken | D39: 3 | E39: - | F39: 9 | G39: V | H39: 0 | I39: -6
B40: 2021-07-06 | C40: De Hambaken | D40: 5 | E40: - | F40: 12 | G40: V | H40: 0 | I40: -7
E41: - | G41: - | H41: - | I41: -
E42: - | G42: - | H42: - | I42: -
E43: - | G43: - | H43: - | I43: -
E44: - | G44: - | H44: - | I44: -
E45: - | G45: - | H45: - | I45: -
E46: - | G46: - | H46: - | I46: -
E47: - | G47: - | H47: - | I47: -
E48: - | G48: - | H48: - | I48: -
E49: - | G49: - | H49: - | I49: -
E50: - | G50: - | H50: - | I50: -
E51: - | G51: - | H51: - | I51: -
E52: - | G52: - | H52: - | I52: -
E53: - | G53: - | H53: - | I53: -
E54: - | G54: - | H54: - | I54: -
E55: - | G55: - | H55: - | I55: -
E56: - | G56: - | H56: - | I56: -

Sheet Martha Clement
B13: Martha Clement
B16: Gespeeld | F16: =COUNTIF(G32:G57,"W")+COUNTIF(G32:G57,"G")+COUNTIF(G32:G57,"V") -> 3
B17: Gewonnen | F17: =COUNTIF(G32:G57,"W") -> 1
B18: Gelijk | F18: =COUNTIF(G32:G57,"G") -> 0
B19: Verloren | F19: =COUNTIF(G32:G57,"V") -> 2 | H19: Wijk van initiële inschrijving (met shirtkleur finaledag)
B20: % gewonnen | F20: =IF(F16=0,0,F17/F16) -> 0.3333333333
B21: % gelijk | F21: =IF(F16=0,0,F18/F16) -> 0
B22: % verloren | F22: =IF(F16=0,0,F19/F16) -> 0.6666666667 | H22: De Schutskamp
B23: Wedstrijdpunten | F23: =SUM(H32:H57) -> 3
B24: Saldopunten | F24: =SUM(I32:I57) -> -18
B25: Saldopunten per wedstrijd | F25: =IF(F16=0,0,F24/F16) -> -6
B28: LET OP: alleen wedstrijden die daadwerkelijk gespeeld zijn in de wijk waarvoor jij je hebt ingeschreven tellen mee!
B31: Datum | C31: Locatie | D31: UITSLAGEN | G31: W, V of G? | H31: Wedstrijd-punten | I31: Saldo-punten
B32: 2021-06-14 | C32: De Schutskamp | D32: 3 | E32: - | F32: 13 | G32: =IF(OR($B$13="",wijk_van_inschrijving=""),"-",IF(OR(wijk_van_inschrijving<>C32,D32="",F32=""),"-",IF(D32>F32,"W",IF(D32=F32,"G",IF(D32<F32,"V","-"))))) -> V | H32: =IF(OR($B$13="",wijk_van_inschrijving=""),"-",IF(OR(wijk_van_inschrijving<>C32,G32="-",G32=""),"-",IF(G32="W",3,IF(G32="G",2,IF(G32="V",0,0))))) -> 0 | I32: =IF(OR($B$13="",wijk_van_inschrijving=""),"-",IF(wijk_van_inschrijving<>C32,"-",IF(D32>=0,IF(F32="","-",D32-F32)))) -> -10
B33: 2021-06-14 | C33: De Schutskamp | D33: 8 | E33: - | F33: 5 | G33: W | H33: 3 | I33: 3
B34: 2021-06-14 | C34: De Schutskamp | D34: 2 | E34: - | F34: 13 | G34: V | H34: 0 | I34: -11
E35: - | G35: - | H35: - | I35: -
E36: - | G36: - | H36: - | I36: -
E37: - | G37: - | H37: - | I37: -
E38: - | G38: - | H38: - | I38: -
E39: - | G39: - | H39: - | I39: -
E40: - | G40: - | H40: - | I40: -
E41: - | G41: - | H41: - | I41: -
E42: - | G42: - | H42: - | I42: -
E43: - | G43: - | H43: - | I43: -
E44: - | G44: - | H44: - | I44: -
E45: - | G45: - | H45: - | I45: -
E46: - | G46: - | H46: - | I46: -
E47: - | G47: - | H47: - | I47: -
E48: - | G48: - | H48: - | I48: -
E49: - | G49: - | H49: - | I49: -
E50: - | G50: - | H50: - | I50: -
E51: - | G51: - | H51: - | I51: -
E52: - | G52: - | H52: - | I52: -
E53: - | G53: - | H53: - | I53: -
E54: - | G54: - | H54: - | I54: -
E55: - | G55: - | H55: - | I55: -
E56: - | G56: - | H56: - | I56: -

Sheet Maurice Maas
B13: Maurice Maas
B16: Gespeeld | F16: =COUNTIF(G32:G57,"W")+COUNTIF(G32:G57,"G")+COUNTIF(G32:G57,"V") -> 3
B17: Gewonnen | F17: =COUNTIF(G32:G57,"W") -> 0
B18: Gelijk | F18: =COUNTIF(G32:G57,"G") -> 0
B19: Verloren | F19: =COUNTIF(G32:G57,"V") -> 3 | H19: Wijk van initiële inschrijving (met shirtkleur finaledag)
B20: % gewonnen | F20: =IF(F16=0,0,F17/F16) -> 0
B21: % gelijk | F21: =IF(F16=0,0,F18/F16) -> 0
B22: % verloren | F22: =IF(F16=0,0,F19/F16) -> 1 | H22: De Schutskamp
B23: Wedstrijdpunten | F23: =SUM(H32:H57) -> 0
B24: Saldopunten | F24: =SUM(I32:I57) -> -9
B25: Saldopunten per wedstrijd | F25: =IF(F16=0,0,F24/F16) -> -3
B28: LET OP: alleen wedstrijden die daadwerkelijk gespeeld zijn in de wijk waarvoor jij je hebt ingeschreven tellen mee!
B31: Datum | C31: Locatie | D31: UITSLAGEN | G31: W, V of G? | H31: Wedstrijd-punten | I31: Saldo-punten
B32: 2021-07-05 | C32: De Schutskamp | D32: 9 | E32: - | F32: 13 | G32: =IF(OR($B$13="",wijk_van_inschrijving=""),"-",IF(OR(wijk_van_inschrijving<>C32,D32="",F32=""),"-",IF(D32>F32,"W",IF(D32=F32,"G",IF(D32<F32,"V","-"))))) -> V | H32: =IF(OR($B$13="",wijk_van_inschrijving=""),"-",IF(OR(wijk_van_inschrijving<>C32,G32="-",G32=""),"-",IF(G32="W",3,IF(G32="G",2,IF(G32="V",0,0))))) -> 0 | I32: =IF(OR($B$13="",wijk_van_inschrijving=""),"-",IF(wijk_van_inschrijving<>C32,"-",IF(D32>=0,IF(F32="","-",D32-F32)))) -> -4
B33: 2021-07-05 | C33: De Schutskamp | D33: 8 | E33: - | F33: 12 | G33: V | H33: 0 | I33: -4
B34: 2021-07-05 | C34: De Schutskamp | D34: 5 | E34: - | F34: 6 | G34: V | H34: 0 | I34: -1
E35: - | G35: - | H35: - | I35: -
E36: - | G36: - | H36: - | I36: -
E37: - | G37: - | H37: - | I37: -
E38: - | G38: - | H38: - | I38: -
E39: - | G39: - | H39: - | I39: -
E40: - | G40: - | H40: - | I40: -
E41: - | G41: - | H41: - | I41: -
E42: - | G42: - | H42: - | I42: -
E43: - | G43: - | H43: - | I43: -
E44: - | G44: - | H44: - | I44: -
E45: - | G45: - | H45: - | I45: -
E46: - | G46: - | H46: - | I46: -
E47: - | G47: - | H47: - | I47: -
E48: - | G48: - | H48: - | I48: -
E49: - | G49: - | H49: - | I49: -
E50: - | G50: - | H50: - | I50: -
E51: - | G51: - | H51: - | I51: -
E52: - | G52: - | H52: - | I52: -
E53: - | G53: - | H53: - | I53: -
E54: - | G54: - | H54: - | I54: -
E55: - | G55: - | H55: - | I55: -
E56: - | G56: - | H56: - | I56: -

Sheet Mecheline Heijmans
B13: Mecheline Heijmans
B16: Gespeeld | F16: =COUNTIF(G32:G57,"W")+COUNTIF(G32:G57,"G")+COUNTIF(G32:G57,"V") -> 7
B17: Gewonnen | F17: =COUNTIF(G32:G57,"W") -> 4
B18: Gelijk | F18: =COUNTIF(G32:G57,"G") -> 1
B19: Verloren | F19: =COUNTIF(G32:G57,"V") -> 2 | H19: Wijk van initiële inschrijving (met shirtkleur finaledag)
B20: % gewonnen | F20: =IF(F16=0,0,F17/F16) -> 0.5714285714
B21: % gelijk | F21: =IF(F16=0,0,F18/F16) -> 0.1428571429
B22: % verloren | F22: =IF(F16=0,0,F19/F16) -> 0.2857142857 | H22: Hondsberg (Rosmalen)
B23: Wedstrijdpunten | F23: =SUM(H32:H57) -> 14
B24: Saldopunten | F24: =SUM(I32:I57) -> 6
B25: Saldopunten per wedstrijd | F25: =IF(F16=0,0,F24/F16) -> 0.8571428571
B28: LET OP: alleen wedstrijden die daadwerkelijk gespeeld zijn in de wijk waarvoor jij je hebt ingeschreven tellen mee!
B31: Datum | C31: Locatie | D31: UITSLAGEN | G31: W, V of G? | H31: Wedstrijd-punten | I31: Saldo-punten
B32: 2021-06-15 | C32: Hondsberg (Rosmalen) | D32: 2 | E32: - | F32: 12 | G32: =IF(OR($B$13="",wijk_van_inschrijving=""),"-",IF(OR(wijk_van_inschrijving<>C32,D32="",F32=""),"-",IF(D32>F32,"W",IF(D32=F32,"G",IF(D32<F32,"V","-"))))) -> V | H32: =IF(OR($B$13="",wijk_van_inschrijving=""),"-",IF(OR(wijk_van_inschrijving<>C32,G32="-",G32=""),"-",IF(G32="W",3,IF(G32="G",2,IF(G32="V",0,0))))) -> 0 | I32: =IF(OR($B$13="",wijk_van_inschrijving=""),"-",IF(wijk_van_inschrijving<>C32,"-",IF(D32>=0,IF(F32="","-",D32-F32)))) -> -10
B33: 2021-06-15 | C33: Hondsberg (Rosmalen) | D33: 6 | E33: - | F33: 6 | G33: G | H33: 2 | I33: 0
B34: 2021-06-15 | C34: Hondsberg (Rosmalen) | D34: 13 | E34: - | F34: 6 | G34: W | H34: 3 | I34: 7
B35: 2021-06-22 | C35: Hondsberg (Rosmalen) | D35: 2 | E35: - | F35: 9 | G35: V | H35: 0 | I35: -7
B36: 2021-06-22 | C36: Hondsberg (Rosmalen) | D36: 7 | E36: - | F36: 3 | G36: W | H36: 3 | I36: 4
B37: 2021-06-30 | C37: Hondsberg (Rosmalen) | D37: 13 | E37: - | F37: 5 | G37: W | H37: 3 | I37: 8
B38: 2021-06-30 | C38: Hondsberg (Rosmalen) | D38: 9 | E38: - | F38: 5 | G38: W | H38: 3 | I38: 4
E39: - | G39: - | H39: - | I39: -
E40: - | G40: - | H40: - | I40: -
E41: - | G41: - | H41: - | I41: -
E42: - | G42: - | H42: - | I42: -
E43: - | G43: - | H43: - | I43: -
E44: - | G44: - | H44: - | I44: -
E45: - | G45: - | H45: - | I45: -
E46: - | G46: - | H46: - | I46: -
E47: - | G47: - | H47: - | I47: -
E48: - | G48: - | H48: - | I48: -
E49: - | G49: - | H49: - | I49: -
E50: - | G50: - | H50: - | I50: -
E51: - | G51: - | H51: - | I51: -
E52: - | G52: - | H52: - | I52: -
E53: - | G53: - | H53: - | I53: -
E54: - | G54: - | H54: - | I54: -
E55: - | G55: - | H55: - | I55: -
E56: - | G56: - | H56: - | I56: -

Sheet Mels van der Doelen
B13: Mels van der Doelen
B16: Gespeeld | F16: =COUNTIF(G32:G57,"W")+COUNTIF(G32:G57,"G")+COUNTIF(G32:G57,"V") -> 2
B17: Gewonnen | F17: =COUNTIF(G32:G57,"W") -> 0
B18: Gelijk | F18: =COUNTIF(G32:G57,"G") -> 0
B19: Verloren | F19: =COUNTIF(G32:G57,"V") -> 2 | H19: Wijk van initiële inschrijving (met shirtkleur finaledag)
B20: % gewonnen | F20: =IF(F16=0,0,F17/F16) -> 0
B21: % gelijk | F21: =IF(F16=0,0,F18/F16) -> 0
B22: % verloren | F22: =IF(F16=0,0,F19/F16) -> 1 | H22: Hondsberg (Rosmalen)
B23: Wedstrijdpunten | F23: =SUM(H32:H57) -> 0
B24: Saldopunten | F24: =SUM(I32:I57) -> -13
B25: Saldopunten per wedstrijd | F25: =IF(F16=0,0,F24/F16) -> -6.5
B28: LET OP: alleen wedstrijden die daadwerkelijk gespeeld zijn in de wijk waarvoor jij je hebt ingeschreven tellen mee!
B31: Datum | C31: Locatie | D31: UITSLAGEN | G31: W, V of G? | H31: Wedstrijd-punten | I31: Saldo-punten
B32: 2021-06-22 | C32: Hondsberg (Rosmalen) | D32: 2 | E32: - | F32: 11 | G32: =IF(OR($B$13="",wijk_van_inschrijving=""),"-",IF(OR(wijk_van_inschrijving<>C32,D32="",F32=""),"-",IF(D32>F32,"W",IF(D32=F32,"G",IF(D32<F32,"V","-"))))) -> V | H32: =IF(OR($B$13="",wijk_van_inschrijving=""),"-",IF(OR(wijk_van_inschrijving<>C32,G32="-",G32=""),"-",IF(G32="W",3,IF(G32="G",2,IF(G32="V",0,0))))) -> 0 | I32: =IF(OR($B$13="",wijk_van_inschrijving=""),"-",IF(wijk_van_inschrijving<>C32,"-",IF(D32>=0,IF(F32="","-",D32-F32)))) -> -9
B33: 2021-06-22 | C33: Hondsberg (Rosmalen) | D33: 3 | E33: - | F33: 7 | G33: V | H33: 0 | I33: -4
E34: - | G34: - | H34: - | I34: -
E35: - | G35: - | H35: - | I35: -
E36: - | G36: - | H36: - | I36: -
E37: - | G37: - | H37: - | I37: -
E38: - | G38: - | H38: - | I38: -
E39: - | G39: - | H39: - | I39: -
E40: - | G40: - | H40: - | I40: -
E41: - | G41: - | H41: - | I41: -
E42: - | G42: - | H42: - | I42: -
E43: - | G43: - | H43: - | I43: -
E44: - | G44: - | H44: - | I44: -
E45: - | G45: - | H45: - | I45: -
E46: - | G46: - | H46: - | I46: -
E47: - | G47: - | H47: - | I47: -
E48: - | G48: - | H48: - | I48: -
E49: - | G49: - | H49: - | I49: -
E50: - | G50: - | H50: - | I50: -
E51: - | G51: - | H51: - | I51: -
E52: - | G52: - | H52: - | I52: -
E53: - | G53: - | H53: - | I53: -
E54: - | G54: - | H54: - | I54: -
E55: - | G55: - | H55: - | I55: -
E56: - | G56: - | H56: - | I56: -

Sheet Mieke Lakwijk
B13: Mieke Lakwijk
B16: Gespeeld | F16: =COUNTIF(G32:G57,"W")+COUNTIF(G32:G57,"G")+COUNTIF(G32:G57,"V") -> 9
B17: Gewonnen | F17: =COUNTIF(G32:G57,"W") -> 3
B18: Gelijk | F18: =COUNTIF(G32:G57,"G") -> 1
B19: Verloren | F19: =COUNTIF(G32:G57,"V") -> 5 | H19: Wijk van initiële inschrijving (met shirtkleur finaledag)
B20: % gewonnen | F20: =IF(F16=0,0,F17/F16) -> 0.3333333333
B21: % gelijk | F21: =IF(F16=0,0,F18/F16) -> 0.1111111111
B22: % verloren | F22: =IF(F16=0,0,F19/F16) -> 0.5555555556 | H22: De Schutskamp
B23: Wedstrijdpunten | F23: =SUM(H32:H57) -> 11
B24: Saldopunten | F24: =SUM(I32:I57) -> -41
B25: Saldopunten per wedstrijd | F25: =IF(F16=0,0,F24/F16) -> -4.555555556
B28: LET OP: alleen wedstrijden die daadwerkelijk gespeeld zijn in de wijk waarvoor jij je hebt ingeschreven tellen mee!
B31: Datum | C31: Locatie | D31: UITSLAGEN | G31: W, V of G? | H31: Wedstrijd-punten | I31: Saldo-punten
B32: 2021-06-14 | C32: De Schutskamp | D32: 7 | E32: - | F32: 13 | G32: =IF(OR($B$13="",wijk_van_inschrijving=""),"-",IF(OR(wijk_van_inschrijving<>C32,D32="",F32=""),"-",IF(D32>F32,"W",IF(D32=F32,"G",IF(D32<F32,"V","-"))))) -> V | H32: =IF(OR($B$13="",wijk_van_inschrijving=""),"-",IF(OR(wijk_van_inschrijving<>C32,G32="-",G32=""),"-",IF(G32="W",3,IF(G32="G",2,IF(G32="V",0,0))))) -> 0 | I32: =IF(OR($B$13="",wijk_van_inschrijving=""),"-",IF(wijk_van_inschrijving<>C32,"-",IF(D32>=0,IF(F32="","-",D32-F32)))) -> -6
B33: 2021-06-14 | C33: De Schutskamp | D33: 4 | E33: - | F33: 3 | G33: W | H33: 3 | I33: 1
B34: 2021-06-14 | C34: De Schutskamp | D34: 12 | E34: - | F34: 7 | G34: W | H34: 3 | I34: 5
B35: 2021-06-28 | C35: De Schutskamp | D35: 3 | E35: - | F35: 13 | G35: V | H35: 0 | I35: -10
B36: 2021-06-28 | C36: De Schutskamp | D36: 1 | E36: - | F36: 13 | G36: V | H36: 0 | I36: -12
B37: 2021-06-28 | C37: De Schutskamp | D37: 9 | E37: - | F37: 9 | G37: G | H37: 2 | I37: 0
B38: 2021-07-05 | C38: De Schutskamp | D38: 8 | E38: - | F38: 6 | G38: W | H38: 3 | I38: 2
B39: 2021-07-05 | C39: De Schutskamp | D39: 2 | E39: - | F39: 13 | G39: V | H39: 0 | I39: -11
B40: 2021-07-05 | C40: De Schutskamp | D40: 3 | E40: - | F40: 13 | G40: V | H40: 0 | I40: -10
E41: - | G41: - | H41: - | I41: -
E42: - | G42: - | H42: - | I42: -
E43: - | G43: - | H43: - | I43: -
E44: - | G44: - | H44: - | I44: -
E45: - | G45: - | H45: - | I45: -
E46: - | G46: - | H46: - | I46: -
E47: - | G47: - | H47: - | I47: -
E48: - | G48: - | H48: - | I48: -
E49: - | G49: - | H49: - | I49: -
E50: - | G50: - | H50: - | I50: -
E51: - | G51: - | H51: - | I51: -
E52: - | G52: - | H52: - | I52: -
E53: - | G53: - | H53: - | I53: -
E54: - | G54: - | H54: - | I54: -
E55: - | G55: - | H55: - | I55: -
E56: - | G56: - | H56: - | I56: -

Sheet Mien van Tilburg
B13: Mien van Tilburg
B16: Gespeeld | F16: =COUNTIF(G32:G57,"W")+COUNTIF(G32:G57,"G")+COUNTIF(G32:G57,"V") -> 12
B17: Gewonnen | F17: =COUNTIF(G32:G57,"W") -> 4
B18: Gelijk | F18: =COUNTIF(G32:G57,"G") -> 1
B19: Verloren | F19: =COUNTIF(G32:G57,"V") -> 7 | H19: Wijk van initiële inschrijving (met shirtkleur finaledag)
B20: % gewonnen | F20: =IF(F16=0,0,F17/F16) -> 0.3333333333
B21: % gelijk | F21: =IF(F16=0,0,F18/F16) -> 0.08333333333
B22: % verloren | F22: =IF(F16=0,0,F19/F16) -> 0.5833333333 | H22: De Schutskamp
B23: Wedstrijdpunten | F23: =SUM(H32:H57) -> 14
B24: Saldopunten | F24: =SUM(I32:I57) -> -31
B25: Saldopunten per wedstrijd | F25: =IF(F16=0,0,F24/F16) -> -2.583333333
B28: LET OP: alleen wedstrijden die daadwerkelijk gespeeld zijn in de wijk waarvoor jij je hebt ingeschreven tellen mee!
B31: Datum | C31: Locatie | D31: UITSLAGEN | G31: W, V of G? | H31: Wedstrijd-punten | I31: Saldo-punten
B32: 2021-06-14 | C32: De Schutskamp | D32: 0 | E32: - | F32: 13 | G32: =IF(OR($B$13="",wijk_van_inschrijving=""),"-",IF(OR(wijk_van_inschrijving<>C32,D32="",F32=""),"-",IF(D32>F32,"W",IF(D32=F32,"G",IF(D32<F32,"V","-"))))) -> V | H32: =IF(OR($B$13="",wijk_van_inschrijving=""),"-",IF(OR(wijk_van_inschrijving<>C32,G32="-",G32=""),"-",IF(G32="W",3,IF(G32="G",2,IF(G32="V",0,0))))) -> 0 | I32: =IF(OR($B$13="",wijk_van_inschrijving=""),"-",IF(wijk_van_inschrijving<>C32,"-",IF(D32>=0,IF(F32="","-",D32-F32)))) -> -13
B33: 2021-06-14 | C33: De Schutskamp | D33: 1 | E33: - | F33: 8 | G33: V | H33: 0 | I33: -7
B34: 2021-06-14 | C34: De Schutskamp | D34: 5 | E34: - | F34: 13 | G34: V | H34: 0 | I34: -8
B35: 2021-06-24 | C35: De Schutskamp | D35: 8 | E35: - | F35: 13 | G35: V | H35: 0 | I35: -5
B36: 2021-06-24 | C36: De Schutskamp | D36: 10 | E36: - | F36: 6 | G36: W | H36: 3 | I36: 4
B37: 2021-06-24 | C37: De Schutskamp | D37: 8 | E37: - | F37: 9 | G37: V | H37: 0 | I37: -1
B38: 2021-06-28 | C38: De Schutskamp | D38: 8 | E38: - | F38: 4 | G38: W | H38: 3 | I38: 4
B39: 2021-06-28 | C39: De Schutskamp | D39: 4 | E39: - | F39: 13 | G39: V | H39: 0 | I39: -9
B40: 2021-06-28 | C40: De Schutskamp | D40: 9 | E40: - | F40: 9 | G40: G | H40: 2 | I40: 0
B41: 2021-07-05 | C41: De Schutskamp | D41: 6 | E41: - | F41: 10 | G41: V | H41: 0 | I41: -4
B42: 2021-07-05 | C42: De Schutskamp | D42: 13 | E42: - | F42: 6 | G42: W | H42: 3 | I42: 7
B43: 2021-07-05 | C43: De Schutskamp | D43: 6 | E43: - | F43: 5 | G43: W | H43: 3 | I43: 1
E44: - | G44: - | H44: - | I44: -
E45: - | G45: - | H45: - | I45: -
E46: - | G46: - | H46: - | I46: -
E47: - | G47: - | H47: - | I47: -
E48: - | G48: - | H48: - | I48: -
E49: - | G49: - | H49: - | I49: -
E50: - | G50: - | H50: - | I50: -
E51: - | G51: - | H51: - | I51: -
E52: - | G52: - | H52: - | I52: -
E53: - | G53: - | H53: - | I53: -
E54: - | G54: - | H54: - | I54: -
E55: - | G55: - | H55: - | I55: -
E56: - | G56: - | H56: - | I56: -

Sheet Mohammed Nazih
B13: Mohammed Nazih
B16: Gespeeld | F16: =COUNTIF(G32:G57,"W")+COUNTIF(G32:G57,"G")+COUNTIF(G32:G57,"V") -> 6
B17: Gewonnen | F17: =COUNTIF(G32:G57,"W") -> 3
B18: Gelijk | F18: =COUNTIF(G32:G57,"G") -> 0
B19: Verloren | F19: =COUNTIF(G32:G57,"V") -> 3 | H19: Wijk van initiële inschrijving (met shirtkleur finaledag)
B20: % gewonnen | F20: =IF(F16=0,0,F17/F16) -> 0.5
B21: % gelijk | F21: =IF(F16=0,0,F18/F16) -> 0
B22: % verloren | F22: =IF(F16=0,0,F19/F16) -> 0.5 | H22: De Schutskamp
B23: Wedstrijdpunten | F23: =SUM(H32:H57) -> 9
B24: Saldopunten | F24: =SUM(I32:I57) -> -6
B25: Saldopunten per wedstrijd | F25: =IF(F16=0,0,F24/F16) -> -1
B28: LET OP: alleen wedstrijden die daadwerkelijk gespeeld zijn in de wijk waarvoor jij je hebt ingeschreven tellen mee!
B31: Datum | C31: Locatie | D31: UITSLAGEN | G31: W, V of G? | H31: Wedstrijd-punten | I31: Saldo-punten
B32: 2021-06-14 | C32: De Schutskamp | D32: 3 | E32: - | F32: 13 | G32: =IF(OR($B$13="",wijk_van_inschrijving=""),"-",IF(OR(wijk_van_inschrijving<>C32,D32="",F32=""),"-",IF(D32>F32,"W",IF(D32=F32,"G",IF(D32<F32,"V","-"))))) -> V | H32: =IF(OR($B$13="",wijk_van_inschrijving=""),"-",IF(OR(wijk_van_inschrijving<>C32,G32="-",G32=""),"-",IF(G32="W",3,IF(G32="G",2,IF(G32="V",0,0))))) -> 0 | I32: =IF(OR($B$13="",wijk_van_inschrijving=""),"-",IF(wijk_van_inschrijving<>C32,"-",IF(D32>=0,IF(F32="","-",D32-F32)))) -> -10
B33: 2021-06-14 | C33: De Schutskamp | D33: 7 | E33: - | F33: 4 | G33: W | H33: 3 | I33: 3
B34: 2021-06-14 | C34: De Schutskamp | D34: 7 | E34: - | F34: 12 | G34: V | H34: 0 | I34: -5
B35: 2021-07-05 | C35: De Schutskamp | D35: 10 | E35: - | F35: 6 | G35: W | H35: 3 | I35: 4
B36: 2021-07-05 | C36: De Schutskamp | D36: 2 | E36: - | F36: 13 | G36: V | H36: 0 | I36: -11
B37: 2021-07-05 | C37: De Schutskamp | D37: 13 | E37: - | F37: 0 | G37: W | H37: 3 | I37: 13
E38: - | G38: - | H38: - | I38: -
E39: - | G39: - | H39: - | I39: -
E40: - | G40: - | H40: - | I40: -
E41: - | G41: - | H41: - | I41: -
E42: - | G42: - | H42: - | I42: -
E43: - | G43: - | H43: - | I43: -
E44: - | G44: - | H44: - | I44: -
E45: - | G45: - | H45: - | I45: -
E46: - | G46: - | H46: - | I46: -
E47: - | G47: - | H47: - | I47: -
E48: - | G48: - | H48: - | I48: -
E49: - | G49: - | H49: - | I49: -
E50: - | G50: - | H50: - | I50: -
E51: - | G51: - | H51: - | I51: -
E52: - | G52: - | H52: - | I52: -
E53: - | G53: - | H53: - | I53: -
E54: - | G54: - | H54: - | I54: -
E55: - | G55: - | H55: - | I55: -
E56: - | G56: - | H56: - | I56: -

Sheet Mohammed Serraji
B13: Mohammed Serraji
B16: Gespeeld | F16: =COUNTIF(G32:G57,"W")+COUNTIF(G32:G57,"G")+COUNTIF(G32:G57,"V") -> 12
B17: Gewonnen | F17: =COUNTIF(G32:G57,"W") -> 6
B18: Gelijk | F18: =COUNTIF(G32:G57,"G") -> 1
B19: Verloren | F19: =COUNTIF(G32:G57,"V") -> 5 | H19: Wijk van initiële inschrijving (met shirtkleur finaledag)
B20: % gewonnen | F20: =IF(F16=0,0,F17/F16) -> 0.5
B21: % gelijk | F21: =IF(F16=0,0,F18/F16) -> 0.08333333333
B22: % verloren | F22: =IF(F16=0,0,F19/F16) -> 0.4166666667 | H22: De Schutskamp
B23: Wedstrijdpunten | F23: =SUM(H32:H57) -> 20
B24: Saldopunten | F24: =SUM(I32:I57) -> 0
B25: Saldopunten per wedstrijd | F25: =IF(F16=0,0,F24/F16) -> 0
B28: LET OP: alleen wedstrijden die daadwerkelijk gespeeld zijn in de wijk waarvoor jij je hebt ingeschreven tellen mee!
B31: Datum | C31: Locatie | D31: UITSLAGEN | G31: W, V of G? | H31: Wedstrijd-punten | I31: Saldo-punten
B32: 2021-06-14 | C32: De Schutskamp | D32: 4 | E32: - | F32: 8 | G32: =IF(OR($B$13="",wijk_van_inschrijving=""),"-",IF(OR(wijk_van_inschrijving<>C32,D32="",F32=""),"-",IF(D32>F32,"W",IF(D32=F32,"G",IF(D32<F32,"V","-"))))) -> V | H32: =IF(OR($B$13="",wijk_van_inschrijving=""),"-",IF(OR(wijk_van_inschrijving<>C32,G32="-",G32=""),"-",IF(G32="W",3,IF(G32="G",2,IF(G32="V",0,0))))) -> 0 | I32: =IF(OR($B$13="",wijk_van_inschrijving=""),"-",IF(wijk_van_inschrijving<>C32,"-",IF(D32>=0,IF(F32="","-",D32-F32)))) -> -4
B33: 2021-06-14 | C33: De Schutskamp | D33: 3 | E33: - | F33: 4 | G33: V | H33: 0 | I33: -1
B34: 2021-06-14 | C34: De Schutskamp | D34: 5 | E34: - | F34: 13 | G34: V | H34: 0 | I34: -8
B35: 2021-06-24 | C35: De Schutskamp | D35: 5 | E35: - | F35: 5 | G35: G | H35: 2 | I35: 0
B36: 2021-06-24 | C36: De Schutskamp | D36: 13 | E36: - | F36: 3 | G36: W | H36: 3 | I36: 10
B37: 2021-06-24 | C37: De Schutskamp | D37: 9 | E37: - | F37: 8 | G37: W | H37: 3 | I37: 1
B38: 2021-06-28 | C38: De Schutskamp | D38: 8 | E38: - | F38: 4 | G38: W | H38: 3 | I38: 4
B39: 2021-06-28 | C39: De Schutskamp | D39: 5 | E39: - | F39: 3 | G39: W | H39: 3 | I39: 2
B40: 2021-06-28 | C40: De Schutskamp | D40: 2 | E40: - | F40: 13 | G40: V | H40: 0 | I40: -11
B41: 2021-07-05 | C41: De Schutskamp | D41: 5 | E41: - | F41: 7 | G41: V | H41: 0 | I41: -2
B42: 2021-07-05 | C42: De Schutskamp | D42: 13 | E42: - | F42: 6 | G42: W | H42: 3 | I42: 7
B43: 2021-07-05 | C43: De Schutskamp | D43: 8 | E43: - | F43: 6 | G43: W | H43: 3 | I43: 2
E44: - | G44: - | H44: - | I44: -
E45: - | G45: - | H45: - | I45: -
E46: - | G46: - | H46: - | I46: -
E47: - | G47: - | H47: - | I47: -
E48: - | G48: - | H48: - | I48: -
E49: - | G49: - | H49: - | I49: -
E50: - | G50: - | H50: - | I50: -
E51: - | G51: - | H51: - | I51: -
E52: - | G52: - | H52: - | I52: -
E53: - | G53: - | H53: - | I53: -
E54: - | G54: - | H54: - | I54: -
E55: - | G55: - | H55: - | I55: -
E56: - | G56: - | H56: - | I56: -

Sheet Monique van Steeden
B13: Monique van Steeden
B16: Gespeeld | F16: =COUNTIF(G32:G57,"W")+COUNTIF(G32:G57,"G")+COUNTIF(G32:G57,"V") -> 9
B17: Gewonnen | F17: =COUNTIF(G32:G57,"W") -> 4
B18: Gelijk | F18: =COUNTIF(G32:G57,"G") -> 1
B19: Verloren | F19: =COUNTIF(G32:G57,"V") -> 4 | H19: Wijk van initiële inschrijving (met shirtkleur finaledag)
B20: % gewonnen | F20: =IF(F16=0,0,F17/F16) -> 0.4444444444
B21: % gelijk | F21: =IF(F16=0,0,F18/F16) -> 0.1111111111
B22: % verloren | F22: =IF(F16=0,0,F19/F16) -> 0.4444444444 | H22: 's-Hertogenbosch Zuid
B23: Wedstrijdpunten | F23: =SUM(H32:H57) -> 14
B24: Saldopunten | F24: =SUM(I32:I57) -> 3
B25: Saldopunten per wedstrijd | F25: =IF(F16=0,0,F24/F16) -> 0.3333333333
B28: LET OP: alleen wedstrijden die daadwerkelijk gespeeld zijn in de wijk waarvoor jij je hebt ingeschreven tellen mee!
B31: Datum | C31: Locatie | D31: UITSLAGEN | G31: W, V of G? | H31: Wedstrijd-punten | I31: Saldo-punten
B32: 2021-06-14 | C32: De Schutskamp | D32: 5 | E32: - | F32: 9 | G32: =IF(OR($B$13="",wijk_van_inschrijving=""),"-",IF(OR(wijk_van_inschrijving<>C32,D32="",F32=""),"-",IF(D32>F32,"W",IF(D32=F32,"G",IF(D32<F32,"V","-"))))) -> - | H32: =IF(OR($B$13="",wijk_van_inschrijving=""),"-",IF(OR(wijk_van_inschrijving<>C32,G32="-",G32=""),"-",IF(G32="W",3,IF(G32="G",2,IF(G32="V",0,0))))) -> - | I32: =IF(OR($B$13="",wijk_van_inschrijving=""),"-",IF(wijk_van_inschrijving<>C32,"-",IF(D32>=0,IF(F32="","-",D32-F32)))) -> -
B33: 2021-06-14 | C33: De Schutskamp | D33: 4 | E33: - | F33: 7 | G33: - | H33: - | I33: -
B34: 2021-06-14 | C34: De Schutskamp | D34: 9 | E34: - | F34: 4 | G34: - | H34: - | I34: -
B35: 2021-06-25 | C35: 's-Hertogenbosch Zuid | D35: 9 | E35: - | F35: 9 | G35: G | H35: 2 | I35: 0
B36: 2021-06-25 | C36: 's-Hertogenbosch Zuid | D36: 12 | E36: - | F36: 5 | G36: W | H36: 3 | I36: 7
B37: 2021-06-25 | C37: 's-Hertogenbosch Zuid | D37: 12 | E37: - | F37: 5 | G37: W | H37: 3 | I37: 7
B38: 2021-07-01 | C38: 's-Hertogenbosch Zuid | D38: 13 | E38: - | F38: 0 | G38: W | H38: 3 | I38: 13
B39: 2021-07-01 | C39: 's-Hertogenbosch Zuid | D39: 6 | E39: - | F39: 8 | G39: V | H39: 0 | I39: -2
B40: 2021-07-01 | C40: 's-Hertogenbosch Zuid | D40: 9 | E40: - | F40: 8 | G40: W | H40: 3 | I40: 1
B41: 2021-07-08 | C41: 's-Hertogenbosch Zuid | D41: 3 | E41: - | F41: 13 | G41: V | H41: 0 | I41: -10
B42: 2021-07-08 | C42: 's-Hertogenbosch Zuid | D42: 1 | E42: - | F42: 13 | G42: V | H42: 0 | I42: -12
B43: 2021-07-08 | C43: 's-Hertogenbosch Zuid | D43: 5 | E43: - | F43: 6 | G43: V | H43: 0 | I43: -1
E44: - | G44: - | H44: - | I44: -
E45: - | G45: - | H45: - | I45: -
E46: - | G46: - | H46: - | I46: -
E47: - | G47: - | H47: - | I47: -
E48: - | G48: - | H48: - | I48: -
E49: - | G49: - | H49: - | I49: -
E50: - | G50: - | H50: - | I50: -
E51: - | G51: - | H51: - | I51: -
E52: - | G52: - | H52: - | I52: -
E53: - | G53: - | H53: - | I53: -
E54: - | G54: - | H54: - | I54: -
E55: - | G55: - | H55: - | I55: -
E56: - | G56: - | H56: - | I56: -

Sheet Mustafa El Amouri
B13: Mustafa El Amouri
B16: Gespeeld | F16: =COUNTIF(G32:G57,"W")+COUNTIF(G32:G57,"G")+COUNTIF(G32:G57,"V") -> 3
B17: Gewonnen | F17: =COUNTIF(G32:G57,"W") -> 1
B18: Gelijk | F18: =COUNTIF(G32:G57,"G") -> 0
B19: Verloren | F19: =COUNTIF(G32:G57,"V") -> 2 | H19: Wijk van initiële inschrijving (met shirtkleur finaledag)
B20: % gewonnen | F20: =IF(F16=0,0,F17/F16) -> 0.3333333333
B21: % gelijk | F21: =IF(F16=0,0,F18/F16) -> 0
B22: % verloren | F22: =IF(F16=0,0,F19/F16) -> 0.6666666667 | H22: De Schutskamp
B23: Wedstrijdpunten | F23: =SUM(H32:H57) -> 3
B24: Saldopunten | F24: =SUM(I32:I57) -> -11
B25: Saldopunten per wedstrijd | F25: =IF(F16=0,0,F24/F16) -> -3.666666667
B28: LET OP: alleen wedstrijden die daadwerkelijk gespeeld zijn in de wijk waarvoor jij je hebt ingeschreven tellen mee!
B31: Datum | C31: Locatie | D31: UITSLAGEN | G31: W, V of G? | H31: Wedstrijd-punten | I31: Saldo-punten
B32: 2021-06-24 | C32: De Schutskamp | D32: 6 | E32: - | F32: 8 | G32: =IF(OR($B$13="",wijk_van_inschrijving=""),"-",IF(OR(wijk_van_inschrijving<>C32,D32="",F32=""),"-",IF(D32>F32,"W",IF(D32=F32,"G",IF(D32<F32,"V","-"))))) -> V | H32: =IF(OR($B$13="",wijk_van_inschrijving=""),"-",IF(OR(wijk_van_inschrijving<>C32,G32="-",G32=""),"-",IF(G32="W",3,IF(G32="G",2,IF(G32="V",0,0))))) -> 0 | I32: =IF(OR($B$13="",wijk_van_inschrijving=""),"-",IF(wijk_van_inschrijving<>C32,"-",IF(D32>=0,IF(F32="","-",D32-F32)))) -> -2
B33: 2021-06-24 | C33: De Schutskamp | D33: 3 | E33: - | F33: 13 | G33: V | H33: 0 | I33: -10
B34: 2021-06-24 | C34: De Schutskamp | D34: 13 | E34: - | F34: 12 | G34: W | H34: 3 | I34: 1
E35: - | G35: - | H35: - | I35: -
E36: - | G36: - | H36: - | I36: -
E37: - | G37: - | H37: - | I37: -
E38: - | G38: - | H38: - | I38: -
E39: - | G39: - | H39: - | I39: -
E40: - | G40: - | H40: - | I40: -
E41: - | G41: - | H41: - | I41: -
E42: - | G42: - | H42: - | I42: -
E43: - | G43: - | H43: - | I43: -
E44: - | G44: - | H44: - | I44: -
E45: - | G45: - | H45: - | I45: -
E46: - | G46: - | H46: - | I46: -
E47: - | G47: - | H47: - | I47: -
E48: - | G48: - | H48: - | I48: -
E49: - | G49: - | H49: - | I49: -
E50: - | G50: - | H50: - | I50: -
E51: - | G51: - | H51: - | I51: -
E52: - | G52: - | H52: - | I52: -
E53: - | G53: - | H53: - | I53: -
E54: - | G54: - | H54: - | I54: -
E55: - | G55: - | H55: - | I55: -
E56: - | G56: - | H56: - | I56: -

Sheet Mustapha Soussi
B13: Mustapha Soussi
B16: Gespeeld | F16: =COUNTIF(G32:G57,"W")+COUNTIF(G32:G57,"G")+COUNTIF(G32:G57,"V") -> 3
B17: Gewonnen | F17: =COUNTIF(G32:G57,"W") -> 2
B18: Gelijk | F18: =COUNTIF(G32:G57,"G") -> 0
B19: Verloren | F19: =COUNTIF(G32:G57,"V") -> 1 | H19: Wijk van initiële inschrijving (met shirtkleur finaledag)
B20: % gewonnen | F20: =IF(F16=0,0,F17/F16) -> 0.6666666667
B21: % gelijk | F21: =IF(F16=0,0,F18/F16) -> 0
B22: % verloren | F22: =IF(F16=0,0,F19/F16) -> 0.3333333333 | H22: De Schutskamp
B23: Wedstrijdpunten | F23: =SUM(H32:H57) -> 6
B24: Saldopunten | F24: =SUM(I32:I57) -> 6
B25: Saldopunten per wedstrijd | F25: =IF(F16=0,0,F24/F16) -> 2
B28: LET OP: alleen wedstrijden die daadwerkelijk gespeeld zijn in de wijk waarvoor jij je hebt ingeschreven tellen mee!
B31: Datum | C31: Locatie | D31: UITSLAGEN | G31: W, V of G? | H31: Wedstrijd-punten | I31: Saldo-punten
B32: 2021-07-05 | C32: De Schutskamp | D32: 13 | E32: - | F32: 9 | G32: =IF(OR($B$13="",wijk_van_inschrijving=""),"-",IF(OR(wijk_van_inschrijving<>C32,D32="",F32=""),"-",IF(D32>F32,"W",IF(D32=F32,"G",IF(D32<F32,"V","-"))))) -> W | H32: =IF(OR($B$13="",wijk_van_inschrijving=""),"-",IF(OR(wijk_van_inschrijving<>C32,G32="-",G32=""),"-",IF(G32="W",3,IF(G32="G",2,IF(G32="V",0,0))))) -> 3 | I32: =IF(OR($B$13="",wijk_van_inschrijving=""),"-",IF(wijk_van_inschrijving<>C32,"-",IF(D32>=0,IF(F32="","-",D32-F32)))) -> 4
B33: 2021-07-05 | C33: De Schutskamp | D33: 12 | E33: - | F33: 8 | G33: W | H33: 3 | I33: 4
B34: 2021-07-05 | C34: De Schutskamp | D34: 6 | E34: - | F34: 8 | G34: V | H34: 0 | I34: -2
E35: - | G35: - | H35: - | I35: -
E36: - | G36: - | H36: - | I36: -
E37: - | G37: - | H37: - | I37: -
E38: - | G38: - | H38: - | I38: -
E39: - | G39: - | H39: - | I39: -
E40: - | G40: - | H40: - | I40: -
E41: - | G41: - | H41: - | I41: -
E42: - | G42: - | H42: - | I42: -
E43: - | G43: - | H43: - | I43: -
E44: - | G44: - | H44: - | I44: -
E45: - | G45: - | H45: - | I45: -
E46: - | G46: - | H46: - | I46: -
E47: - | G47: - | H47: - | I47: -
E48: - | G48: - | H48: - | I48: -
E49: - | G49: - | H49: - | I49: -
E50: - | G50: - | H50: - | I50: -
E51: - | G51: - | H51: - | I51: -
E52: - | G52: - | H52: - | I52: -
E53: - | G53: - | H53: - | I53: -
E54: - | G54: - | H54: - | I54: -
E55: - | G55: - | H55: - | I55: -
E56: - | G56: - | H56: - | I56: -

Sheet Paul van den Merkhof
B13: Paul van den Merkhof
B16: Gespeeld | F16: =COUNTIF(G32:G57,"W")+COUNTIF(G32:G57,"G")+COUNTIF(G32:G57,"V") -> 9
B17: Gewonnen | F17: =COUNTIF(G32:G57,"W") -> 5
B18: Gelijk | F18: =COUNTIF(G32:G57,"G") -> 0
B19: Verloren | F19: =COUNTIF(G32:G57,"V") -> 4 | H19: Wijk van initiële inschrijving (met shirtkleur finaledag)
B20: % gewonnen | F20: =IF(F16=0,0,F17/F16) -> 0.5555555556
B21: % gelijk | F21: =IF(F16=0,0,F18/F16) -> 0
B22: % verloren | F22: =IF(F16=0,0,F19/F16) -> 0.4444444444 | H22: 's-Hertogenbosch Zuid
B23: Wedstrijdpunten | F23: =SUM(H32:H57) -> 15
B24: Saldopunten | F24: =SUM(I32:I57) -> 16
B25: Saldopunten per wedstrijd | F25: =IF(F16=0,0,F24/F16) -> 1.777777778
B28: LET OP: alleen wedstrijden die daadwerkelijk gespeeld zijn in de wijk waarvoor jij je hebt ingeschreven tellen mee!
B31: Datum | C31: Locatie | D31: UITSLAGEN | G31: W, V of G? | H31: Wedstrijd-punten | I31: Saldo-punten
B32: 2021-06-25 | C32: 's-Hertogenbosch Zuid | D32: 13 | E32: - | F32: 4 | G32: =IF(OR($B$13="",wijk_van_inschrijving=""),"-",IF(OR(wijk_van_inschrijving<>C32,D32="",F32=""),"-",IF(D32>F32,"W",IF(D32=F32,"G",IF(D32<F32,"V","-"))))) -> W | H32: =IF(OR($B$13="",wijk_van_inschrijving=""),"-",IF(OR(wijk_van_inschrijving<>C32,G32="-",G32=""),"-",IF(G32="W",3,IF(G32="G",2,IF(G32="V",0,0))))) -> 3 | I32: =IF(OR($B$13="",wijk_van_inschrijving=""),"-",IF(wijk_van_inschrijving<>C32,"-",IF(D32>=0,IF(F32="","-",D32-F32)))) -> 9
B33: 2021-06-25 | C33: 's-Hertogenbosch Zuid | D33: 5 | E33: - | F33: 12 | G33: V | H33: 0 | I33: -7
B34: 2021-06-25 | C34: 's-Hertogenbosch Zuid | D34: 13 | E34: - | F34: 4 | G34: W | H34: 3 | I34: 9
B35: 2021-07-01 | C35: 's-Hertogenbosch Zuid | D35: 13 | E35: - | F35: 5 | G35: W | H35: 3 | I35: 8
B36: 2021-07-01 | C36: 's-Hertogenbosch Zuid | D36: 5 | E36: - | F36: 9 | G36: V | H36: 0 | I36: -4
B37: 2021-07-01 | C37: 's-Hertogenbosch Zuid | D37: 1 | E37: - | F37: 13 | G37: V | H37: 0 | I37: -12
B38: 2021-07-08 | C38: 's-Hertogenbosch Zuid | D38: 13 | E38: - | F38: 5 | G38: W | H38: 3 | I38: 8
B39: 2021-07-08 | C39: 's-Hertogenbosch Zuid | D39: 11 | E39: - | F39: 5 | G39: W | H39: 3 | I39: 6
B40: 2021-07-08 | C40: 's-Hertogenbosch Zuid | D40: 5 | E40: - | F40: 6 | G40: V | H40: 0 | I40: -1
E41: - | G41: - | H41: - | I41: -
E42: - | G42: - | H42: - | I42: -
E43: - | G43: - | H43: - | I43: -
E44: - | G44: - | H44: - | I44: -
E45: - | G45: - | H45: - | I45: -
E46: - | G46: - | H46: - | I46: -
E47: - | G47: - | H47: - | I47: -
E48: - | G48: - | H48: - | I48: -
E49: - | G49: - | H49: - | I49: -
E50: - | G50: - | H50: - | I50: -
E51: - | G51: - | H51: - | I51: -
E52: - | G52: - | H52: - | I52: -
E53: - | G53: - | H53: - | I53: -
E54: - | G54: - | H54: - | I54: -
E55: - | G55: - | H55: - | I55: -
E56: - | G56: - | H56: - | I56: -

Sheet Peggy Roelofsen
B13: Peggy Roelofsen
B16: Gespeeld | F16: =COUNTIF(G32:G57,"W")+COUNTIF(G32:G57,"G")+COUNTIF(G32:G57,"V") -> 3
B17: Gewonnen | F17: =COUNTIF(G32:G57,"W") -> 2
B18: Gelijk | F18: =COUNTIF(G32:G57,"G") -> 0
B19: Verloren | F19: =COUNTIF(G32:G57,"V") -> 1 | H19: Wijk van initiële inschrijving (met shirtkleur finaledag)
B20: % gewonnen | F20: =IF(F16=0,0,F17/F16) -> 0.6666666667
B21: % gelijk | F21: =IF(F16=0,0,F18/F16) -> 0
B22: % verloren | F22: =IF(F16=0,0,F19/F16) -> 0.3333333333 | H22: De Schutskamp
B23: Wedstrijdpunten | F23: =SUM(H32:H57) -> 6
B24: Saldopunten | F24: =SUM(I32:I57) -> 5
B25: Saldopunten per wedstrijd | F25: =IF(F16=0,0,F24/F16) -> 1.666666667
B28: LET OP: alleen wedstrijden die daadwerkelijk gespeeld zijn in de wijk waarvoor jij je hebt ingeschreven tellen mee!
B31: Datum | C31: Locatie | D31: UITSLAGEN | G31: W, V of G? | H31: Wedstrijd-punten | I31: Saldo-punten
B32: 2021-06-28 | C32: De Schutskamp | D32: 4 | E32: - | F32: 8 | G32: =IF(OR($B$13="",wijk_van_inschrijving=""),"-",IF(OR(wijk_van_inschrijving<>C32,D32="",F32=""),"-",IF(D32>F32,"W",IF(D32=F32,"G",IF(D32<F32,"V","-"))))) -> V | H32: =IF(OR($B$13="",wijk_van_inschrijving=""),"-",IF(OR(wijk_van_inschrijving<>C32,G32="-",G32=""),"-",IF(G32="W",3,IF(G32="G",2,IF(G32="V",0,0))))) -> 0 | I32: =IF(OR($B$13="",wijk_van_inschrijving=""),"-",IF(wijk_van_inschrijving<>C32,"-",IF(D32>=0,IF(F32="","-",D32-F32)))) -> -4
B33: 2021-06-28 | C33: De Schutskamp | D33: 10 | E33: - | F33: 7 | G33: W | H33: 3 | I33: 3
B34: 2021-06-28 | C34: De Schutskamp | D34: 7 | E34: - | F34: 1 | G34: W | H34: 3 | I34: 6
E35: - | G35: - | H35: - | I35: -
E36: - | G36: - | H36: - | I36: -
E37: - | G37: - | H37: - | I37: -
E38: - | G38: - | H38: - | I38: -
E39: - | G39: - | H39: - | I39: -
E40: - | G40: - | H40: - | I40: -
E41: - | G41: - | H41: - | I41: -
E42: - | G42: - | H42: - | I42: -
E43: - | G43: - | H43: - | I43: -
E44: - | G44: - | H44: - | I44: -
E45: - | G45: - | H45: - | I45: -
E46: - | G46: - | H46: - | I46: -
E47: - | G47: - | H47: - | I47: -
E48: - | G48: - | H48: - | I48: -
E49: - | G49: - | H49: - | I49: -
E50: - | G50: - | H50: - | I50: -
E51: - | G51: - | H51: - | I51: -
E52: - | G52: - | H52: - | I52: -
E53: - | G53: - | H53: - | I53: -
E54: - | G54: - | H54: - | I54: -
E55: - | G55: - | H55: - | I55: -
E56: - | G56: - | H56: - | I56: -

Sheet Pepijn de Leeuwen
B13: Pepijn de Leeuwen
B16: Gespeeld | F16: =COUNTIF(G32:G57,"W")+COUNTIF(G32:G57,"G")+COUNTIF(G32:G57,"V") -> 2
B17: Gewonnen | F17: =COUNTIF(G32:G57,"W") -> 1
B18: Gelijk | F18: =COUNTIF(G32:G57,"G") -> 0
B19: Verloren | F19: =COUNTIF(G32:G57,"V") -> 1 | H19: Wijk van initiële inschrijving (met shirtkleur finaledag)
B20: % gewonnen | F20: =IF(F16=0,0,F17/F16) -> 0.5
B21: % gelijk | F21: =IF(F16=0,0,F18/F16) -> 0
B22: % verloren | F22: =IF(F16=0,0,F19/F16) -> 0.5 | H22: Hondsberg (Rosmalen)
B23: Wedstrijdpunten | F23: =SUM(H32:H57) -> 3
B24: Saldopunten | F24: =SUM(I32:I57) -> -5
B25: Saldopunten per wedstrijd | F25: =IF(F16=0,0,F24/F16) -> -2.5
B28: LET OP: alleen wedstrijden die daadwerkelijk gespeeld zijn in de wijk waarvoor jij je hebt ingeschreven tellen mee!
B31: Datum | C31: Locatie | D31: UITSLAGEN | G31: W, V of G? | H31: Wedstrijd-punten | I31: Saldo-punten
B32: 2021-06-22 | C32: Hondsberg (Rosmalen) | D32: 9 | E32: - | F32: 7 | G32: =IF(OR($B$13="",wijk_van_inschrijving=""),"-",IF(OR(wijk_van_inschrijving<>C32,D32="",F32=""),"-",IF(D32>F32,"W",IF(D32=F32,"G",IF(D32<F32,"V","-"))))) -> W | H32: =IF(OR($B$13="",wijk_van_inschrijving=""),"-",IF(OR(wijk_van_inschrijving<>C32,G32="-",G32=""),"-",IF(G32="W",3,IF(G32="G",2,IF(G32="V",0,0))))) -> 3 | I32: =IF(OR($B$13="",wijk_van_inschrijving=""),"-",IF(wijk_van_inschrijving<>C32,"-",IF(D32>=0,IF(F32="","-",D32-F32)))) -> 2
B33: 2021-06-22 | C33: Hondsberg (Rosmalen) | D33: 6 | E33: - | F33: 13 | G33: V | H33: 0 | I33: -7
E34: - | G34: - | H34: - | I34: -
E35: - | G35: - | H35: - | I35: -
E36: - | G36: - | H36: - | I36: -
E37: - | G37: - | H37: - | I37: -
E38: - | G38: - | H38: - | I38: -
E39: - | G39: - | H39: - | I39: -
E40: - | G40: - | H40: - | I40: -
E41: - | G41: - | H41: - | I41: -
E42: - | G42: - | H42: - | I42: -
E43: - | G43: - | H43: - | I43: -
E44: - | G44: - | H44: - | I44: -
E45: - | G45: - | H45: - | I45: -
E46: - | G46: - | H46: - | I46: -
E47: - | G47: - | H47: - | I47: -
E48: - | G48: - | H48: - | I48: -
E49: - | G49: - | H49: - | I49: -
E50: - | G50: - | H50: - | I50: -
E51: - | G51: - | H51: - | I51: -
E52: - | G52: - | H52: - | I52: -
E53: - | G53: - | H53: - | I53: -
E54: - | G54: - | H54: - | I54: -
E55: - | G55: - | H55: - | I55: -
E56: - | G56: - | H56: - | I56: -

Sheet Peter Ondersteijn
B13: Peter Ondersteijn
B16: Gespeeld | F16: =COUNTIF(G32:G57,"W")+COUNTIF(G32:G57,"G")+COUNTIF(G32:G57,"V") -> 9
B17: Gewonnen | F17: =COUNTIF(G32:G57,"W") -> 5
B18: Gelijk | F18: =COUNTIF(G32:G57,"G") -> 1
B19: Verloren | F19: =COUNTIF(G32:G57,"V") -> 3 | H19: Wijk van initiële inschrijving (met shirtkleur finaledag)
B20: % gewonnen | F20: =IF(F16=0,0,F17/F16) -> 0.5555555556
B21: % gelijk | F21: =IF(F16=0,0,F18/F16) -> 0.1111111111
B22: % verloren | F22: =IF(F16=0,0,F19/F16) -> 0.3333333333 | H22: 's-Hertogenbosch Zuid
B23: Wedstrijdpunten | F23: =SUM(H32:H57) -> 17
B24: Saldopunten | F24: =SUM(I32:I57) -> 4
B25: Saldopunten per wedstrijd | F25: =IF(F16=0,0,F24/F16) -> 0.4444444444
B28: LET OP: alleen wedstrijden die daadwerkelijk gespeeld zijn in de wijk waarvoor jij je hebt ingeschreven tellen mee!
B31: Datum | C31: Locatie | D31: UITSLAGEN | G31: W, V of G? | H31: Wedstrijd-punten | I31: Saldo-punten
B32: 2021-06-25 | C32: 's-Hertogenbosch Zuid | D32: 8 | E32: - | F32: 5 | G32: =IF(OR($B$13="",wijk_van_inschrijving=""),"-",IF(OR(wijk_van_inschrijving<>C32,D32="",F32=""),"-",IF(D32>F32,"W",IF(D32=F32,"G",IF(D32<F32,"V","-"))))) -> W | H32: =IF(OR($B$13="",wijk_van_inschrijving=""),"-",IF(OR(wijk_van_inschrijving<>C32,G32="-",G32=""),"-",IF(G32="W",3,IF(G32="G",2,IF(G32="V",0,0))))) -> 3 | I32: =IF(OR($B$13="",wijk_van_inschrijving=""),"-",IF(wijk_van_inschrijving<>C32,"-",IF(D32>=0,IF(F32="","-",D32-F32)))) -> 3
B33: 2021-06-25 | C33: 's-Hertogenbosch Zuid | D33: 5 | E33: - | F33: 12 | G33: V | H33: 0 | I33: -7
B34: 2021-06-25 | C34: 's-Hertogenbosch Zuid | D34: 4 | E34: - | F34: 9 | G34: V | H34: 0 | I34: -5
B35: 2021-07-01 | C35: 's-Hertogenbosch Zuid | D35: 7 | E35: - | F35: 7 | G35: G | H35: 2 | I35: 0
B36: 2021-07-01 | C36: 's-Hertogenbosch Zuid | D36: 9 | E36: - | F36: 5 | G36: W | H36: 3 | I36: 4
B37: 2021-07-01 | C37: 's-Hertogenbosch Zuid | D37: 9 | E37: - | F37: 8 | G37: W | H37: 3 | I37: 1
B38: 2021-07-08 | C38: 's-Hertogenbosch Zuid | D38: 11 | E38: - | F38: 3 | G38: W | H38: 3 | I38: 8
B39: 2021-07-08 | C39: 's-Hertogenbosch Zuid | D39: 8 | E39: - | F39: 7 | G39: W | H39: 3 | I39: 1
B40: 2021-07-08 | C40: 's-Hertogenbosch Zuid | D40: 5 | E40: - | F40: 6 | G40: V | H40: 0 | I40: -1
E41: - | G41: - | H41: - | I41: -
E42: - | G42: - | H42: - | I42: -
E43: - | G43: - | H43: - | I43: -
E44: - | G44: - | H44: - | I44: -
E45: - | G45: - | H45: - | I45: -
E46: - | G46: - | H46: - | I46: -
E47: - | G47: - | H47: - | I47: -
E48: - | G48: - | H48: - | I48: -
E49: - | G49: - | H49: - | I49: -
E50: - | G50: - | H50: - | I50: -
E51: - | G51: - | H51: - | I51: -
E52: - | G52: - | H52: - | I52: -
E53: - | G53: - | H53: - | I53: -
E54: - | G54: - | H54: - | I54: -
E55: - | G55: - | H55: - | I55: -
E56: - | G56: - | H56: - | I56: -

Sheet Petra Schepers
B13: Petra Schepers
B16: Gespeeld | F16: =COUNTIF(G32:G57,"W")+COUNTIF(G32:G57,"G")+COUNTIF(G32:G57,"V") -> 3
B17: Gewonnen | F17: =COUNTIF(G32:G57,"W") -> 1
B18: Gelijk | F18: =COUNTIF(G32:G57,"G") -> 1
B19: Verloren | F19: =COUNTIF(G32:G57,"V") -> 1 | H19: Wijk van initiële inschrijving (met shirtkleur finaledag)
B20: % gewonnen | F20: =IF(F16=0,0,F17/F16) -> 0.3333333333
B21: % gelijk | F21: =IF(F16=0,0,F18/F16) -> 0.3333333333
B22: % verloren | F22: =IF(F16=0,0,F19/F16) -> 0.3333333333 | H22: 's-Hertogenbosch Zuid
B23: Wedstrijdpunten | F23: =SUM(H32:H57) -> 5
B24: Saldopunten | F24: =SUM(I32:I57) -> 8
B25: Saldopunten per wedstrijd | F25: =IF(F16=0,0,F24/F16) -> 2.666666667
B28: LET OP: alleen wedstrijden die daadwerkelijk gespeeld zijn in de wijk waarvoor jij je hebt ingeschreven tellen mee!
B31: Datum | C31: Locatie | D31: UITSLAGEN | G31: W, V of G? | H31: Wedstrijd-punten | I31: Saldo-punten
B32: 2021-06-18 | C32: 's-Hertogenbosch Zuid | D32: 13 | E32: - | F32: 4 | G32: =IF(OR($B$13="",wijk_van_inschrijving=""),"-",IF(OR(wijk_van_inschrijving<>C32,D32="",F32=""),"-",IF(D32>F32,"W",IF(D32=F32,"G",IF(D32<F32,"V","-"))))) -> W | H32: =IF(OR($B$13="",wijk_van_inschrijving=""),"-",IF(OR(wijk_van_inschrijving<>C32,G32="-",G32=""),"-",IF(G32="W",3,IF(G32="G",2,IF(G32="V",0,0))))) -> 3 | I32: =IF(OR($B$13="",wijk_van_inschrijving=""),"-",IF(wijk_van_inschrijving<>C32,"-",IF(D32>=0,IF(F32="","-",D32-F32)))) -> 9
B33: 2021-06-18 | C33: 's-Hertogenbosch Zuid | D33: 4 | E33: - | F33: 4 | G33: G | H33: 2 | I33: 0
B34: 2021-06-18 | C34: 's-Hertogenbosch Zuid | D34: 10 | E34: - | F34: 11 | G34: V | H34: 0 | I34: -1
E35: - | G35: - | H35: - | I35: -
E36: - | G36: - | H36: - | I36: -
E37: - | G37: - | H37: - | I37: -
E38: - | G38: - | H38: - | I38: -
E39: - | G39: - | H39: - | I39: -
E40: - | G40: - | H40: - | I40: -
E41: - | G41: - | H41: - | I41: -
E42: - | G42: - | H42: - | I42: -
E43: - | G43: - | H43: - | I43: -
E44: - | G44: - | H44: - | I44: -
E45: - | G45: - | H45: - | I45: -
E46: - | G46: - | H46: - | I46: -
E47: - | G47: - | H47: - | I47: -
E48: - | G48: - | H48: - | I48: -
E49: - | G49: - | H49: - | I49: -
E50: - | G50: - | H50: - | I50: -
E51: - | G51: - | H51: - | I51: -
E52: - | G52: - | H52: - | I52: -
E53: - | G53: - | H53: - | I53: -
E54: - | G54: - | H54: - | I54: -
E55: - | G55: - | H55: - | I55: -
E56: - | G56: - | H56: - | I56: -

Sheet Phil Roothans
B13: Phil Roothans
B16: Gespeeld | F16: =COUNTIF(G32:G57,"W")+COUNTIF(G32:G57,"G")+COUNTIF(G32:G57,"V") -> 2
B17: Gewonnen | F17: =COUNTIF(G32:G57,"W") -> 1
B18: Gelijk | F18: =COUNTIF(G32:G57,"G") -> 0
B19: Verloren | F19: =COUNTIF(G32:G57,"V") -> 1 | H19: Wijk van initiële inschrijving (met shirtkleur finaledag)
B20: % gewonnen | F20: =IF(F16=0,0,F17/F16) -> 0.5
B21: % gelijk | F21: =IF(F16=0,0,F18/F16) -> 0
B22: % verloren | F22: =IF(F16=0,0,F19/F16) -> 0.5 | H22: De Hambaken
B23: Wedstrijdpunten | F23: =SUM(H32:H57) -> 3
B24: Saldopunten | F24: =SUM(I32:I57) -> -4
B25: Saldopunten per wedstrijd | F25: =IF(F16=0,0,F24/F16) -> -2
B28: LET OP: alleen wedstrijden die daadwerkelijk gespeeld zijn in de wijk waarvoor jij je hebt ingeschreven tellen mee!
B31: Datum | C31: Locatie | D31: UITSLAGEN | G31: W, V of G? | H31: Wedstrijd-punten | I31: Saldo-punten
B32: 2021-06-16 | C32: De Hambaken | D32: 4 | E32: - | F32: 9 | G32: =IF(OR($B$13="",wijk_van_inschrijving=""),"-",IF(OR(wijk_van_inschrijving<>C32,D32="",F32=""),"-",IF(D32>F32,"W",IF(D32=F32,"G",IF(D32<F32,"V","-"))))) -> V | H32: =IF(OR($B$13="",wijk_van_inschrijving=""),"-",IF(OR(wijk_van_inschrijving<>C32,G32="-",G32=""),"-",IF(G32="W",3,IF(G32="G",2,IF(G32="V",0,0))))) -> 0 | I32: =IF(OR($B$13="",wijk_van_inschrijving=""),"-",IF(wijk_van_inschrijving<>C32,"-",IF(D32>=0,IF(F32="","-",D32-F32)))) -> -5
B33: 2021-06-16 | C33: De Hambaken | D33: 7 | E33: - | F33: 6 | G33: W | H33: 3 | I33: 1
B34: 2021-06-24 | C34: De Schutskamp | D34: 6 | E34: - | F34: 10 | G34: - | H34: - | I34: -
B35: 2021-06-24 | C35: De Schutskamp | D35: 6 | E35: - | F35: 9 | G35: - | H35: - | I35: -
B36: 2021-06-24 | C36: De Schutskamp | D36: 11 | E36: - | F36: 7 | G36: - | H36: - | I36: -
B37: 2021-07-08 | C37: 's-Hertogenbosch Zuid | D37: 1 | E37: - | F37: 13 | G37: - | H37: - | I37: -
B38: 2021-07-08 | C38: 's-Hertogenbosch Zuid | D38: 6 | E38: - | F38: 5 | G38: - | H38: - | I38: -
E39: - | G39: - | H39: - | I39: -
E40: - | G40: - | H40: - | I40: -
E41: - | G41: - | H41: - | I41: -
E42: - | G42: - | H42: - | I42: -
E43: - | G43: - | H43: - | I43: -
E44: - | G44: - | H44: - | I44: -
E45: - | G45: - | H45: - | I45: -
E46: - | G46: - | H46: - | I46: -
E47: - | G47: - | H47: - | I47: -
E48: - | G48: - | H48: - | I48: -
E49: - | G49: - | H49: - | I49: -
E50: - | G50: - | H50: - | I50: -
E51: - | G51: - | H51: - | I51: -
E52: - | G52: - | H52: - | I52: -
E53: - | G53: - | H53: - | I53: -
E54: - | G54: - | H54: - | I54: -
E55: - | G55: - | H55: - | I55: -
E56: - | G56: - | H56: - | I56: -

Sheet Pierre Kisters
B13: Pierre Kisters
B16: Gespeeld | F16: =COUNTIF(G32:G57,"W")+COUNTIF(G32:G57,"G")+COUNTIF(G32:G57,"V") -> 11
B17: Gewonnen | F17: =COUNTIF(G32:G57,"W") -> 5
B18: Gelijk | F18: =COUNTIF(G32:G57,"G") -> 1
B19: Verloren | F19: =COUNTIF(G32:G57,"V") -> 5 | H19: Wijk van initiële inschrijving (met shirtkleur finaledag)
B20: % gewonnen | F20: =IF(F16=0,0,F17/F16) -> 0.4545454545
B21: % gelijk | F21: =IF(F16=0,0,F18/F16) -> 0.09090909091
B22: % verloren | F22: =IF(F16=0,0,F19/F16) -> 0.4545454545 | H22: Hondsberg (Rosmalen)
B23: Wedstrijdpunten | F23: =SUM(H32:H57) -> 17
B24: Saldopunten | F24: =SUM(I32:I57) -> -2
B25: Saldopunten per wedstrijd | F25: =IF(F16=0,0,F24/F16) -> -0.1818181818
B28: LET OP: alleen wedstrijden die daadwerkelijk gespeeld zijn in de wijk waarvoor jij je hebt ingeschreven tellen mee!
B31: Datum | C31: Locatie | D31: UITSLAGEN | G31: W, V of G? | H31: Wedstrijd-punten | I31: Saldo-punten
B32: 2021-06-15 | C32: Hondsberg (Rosmalen) | D32: 2 | E32: - | F32: 12 | G32: =IF(OR($B$13="",wijk_van_inschrijving=""),"-",IF(OR(wijk_van_inschrijving<>C32,D32="",F32=""),"-",IF(D32>F32,"W",IF(D32=F32,"G",IF(D32<F32,"V","-"))))) -> V | H32: =IF(OR($B$13="",wijk_van_inschrijving=""),"-",IF(OR(wijk_van_inschrijving<>C32,G32="-",G32=""),"-",IF(G32="W",3,IF(G32="G",2,IF(G32="V",0,0))))) -> 0 | I32: =IF(OR($B$13="",wijk_van_inschrijving=""),"-",IF(wijk_van_inschrijving<>C32,"-",IF(D32>=0,IF(F32="","-",D32-F32)))) -> -10
B33: 2021-06-15 | C33: Hondsberg (Rosmalen) | D33: 6 | E33: - | F33: 6 | G33: G | H33: 2 | I33: 0
B34: 2021-06-15 | C34: Hondsberg (Rosmalen) | D34: 13 | E34: - | F34: 5 | G34: W | H34: 3 | I34: 8
B35: 2021-06-22 | C35: Hondsberg (Rosmalen) | D35: 10 | E35: - | F35: 4 | G35: W | H35: 3 | I35: 6
B36: 2021-06-22 | C36: Hondsberg (Rosmalen) | D36: 13 | E36: - | F36: 6 | G36: W | H36: 3 | I36: 7
B37: 2021-06-30 | C37: Hondsberg (Rosmalen) | D37: 5 | E37: - | F37: 13 | G37: V | H37: 0 | I37: -8
B38: 2021-06-30 | C38: Hondsberg (Rosmalen) | D38: 12 | E38: - | F38: 0 | G38: W | H38: 3 | I38: 12
B39: 2021-06-30 | C39: Hondsberg (Rosmalen) | D39: 5 | E39: - | F39: 13 | G39: V | H39: 0 | I39: -8
B40: 2021-07-07 | C40: Hondsberg (Rosmalen) | D40: 5 | E40: - | F40: 12 | G40: V | H40: 0 | I40: -7
B41: 2021-07-07 | C41: Hondsberg (Rosmalen) | D41: 10 | E41: - | F41: 6 | G41: W | H41: 3 | I41: 4
B42: 2021-07-07 | C42: Hondsberg (Rosmalen) | D42: 1 | E42: - | F42: 7 | G42: V | H42: 0 | I42: -6
E43: - | G43: - | H43: - | I43: -
E44: - | G44: - | H44: - | I44: -
E45: - | G45: - | H45: - | I45: -
E46: - | G46: - | H46: - | I46: -
E47: - | G47: - | H47: - | I47: -
E48: - | G48: - | H48: - | I48: -
E49: - | G49: - | H49: - | I49: -
E50: - | G50: - | H50: - | I50: -
E51: - | G51: - | H51: - | I51: -
E52: - | G52: - | H52: - | I52: -
E53: - | G53: - | H53: - | I53: -
E54: - | G54: - | H54: - | I54: -
E55: - | G55: - | H55: - | I55: -
E56: - | G56: - | H56: - | I56: -

Sheet Raymond Nijsten
B13: Raymond Nijsten
B16: Gespeeld | F16: =COUNTIF(G32:G57,"W")+COUNTIF(G32:G57,"G")+COUNTIF(G32:G57,"V") -> 9
B17: Gewonnen | F17: =COUNTIF(G32:G57,"W") -> 3
B18: Gelijk | F18: =COUNTIF(G32:G57,"G") -> 0
B19: Verloren | F19: =COUNTIF(G32:G57,"V") -> 6 | H19: Wijk van initiële inschrijving (met shirtkleur finaledag)
B20: % gewonnen | F20: =IF(F16=0,0,F17/F16) -> 0.3333333333
B21: % gelijk | F21: =IF(F16=0,0,F18/F16) -> 0
B22: % verloren | F22: =IF(F16=0,0,F19/F16) -> 0.6666666667 | H22: De Schutskamp
B23: Wedstrijdpunten | F23: =SUM(H32:H57) -> 9
B24: Saldopunten | F24: =SUM(I32:I57) -> -27
B25: Saldopunten per wedstrijd | F25: =IF(F16=0,0,F24/F16) -> -3
B28: LET OP: alleen wedstrijden die daadwerkelijk gespeeld zijn in de wijk waarvoor jij je hebt ingeschreven tellen mee!
B31: Datum | C31: Locatie | D31: UITSLAGEN | G31: W, V of G? | H31: Wedstrijd-punten | I31: Saldo-punten
B32: 2021-06-24 | C32: De Schutskamp | D32: 10 | E32: - | F32: 6 | G32: =IF(OR($B$13="",wijk_van_inschrijving=""),"-",IF(OR(wijk_van_inschrijving<>C32,D32="",F32=""),"-",IF(D32>F32,"W",IF(D32=F32,"G",IF(D32<F32,"V","-"))))) -> W | H32: =IF(OR($B$13="",wijk_van_inschrijving=""),"-",IF(OR(wijk_van_inschrijving<>C32,G32="-",G32=""),"-",IF(G32="W",3,IF(G32="G",2,IF(G32="V",0,0))))) -> 3 | I32: =IF(OR($B$13="",wijk_van_inschrijving=""),"-",IF(wijk_van_inschrijving<>C32,"-",IF(D32>=0,IF(F32="","-",D32-F32)))) -> 4
B33: 2021-06-24 | C33: De Schutskamp | D33: 1 | E33: - | F33: 13 | G33: V | H33: 0 | I33: -12
B34: 2021-06-24 | C34: De Schutskamp | D34: 12 | E34: - | F34: 8 | G34: W | H34: 3 | I34: 4
B35: 2021-06-28 | C35: De Schutskamp | D35: 5 | E35: - | F35: 13 | G35: V | H35: 0 | I35: -8
B36: 2021-06-28 | C36: De Schutskamp | D36: 7 | E36: - | F36: 8 | G36: V | H36: 0 | I36: -1
B37: 2021-06-28 | C37: De Schutskamp | D37: 12 | E37: - | F37: 6 | G37: W | H37: 3 | I37: 6
B38: 2021-07-05 | C38: De Schutskamp | D38: 6 | E38: - | F38: 13 | G38: V | H38: 0 | I38: -7
B39: 2021-07-05 | C39: De Schutskamp | D39: 6 | E39: - | F39: 13 | G39: V | H39: 0 | I39: -7
B40: 2021-07-05 | C40: De Schutskamp | D40: 3 | E40: - | F40: 9 | G40: V | H40: 0 | I40: -6
E41: - | G41: - | H41: - | I41: -
E42: - | G42: - | H42: - | I42: -
E43: - | G43: - | H43: - | I43: -
E44: - | G44: - | H44: - | I44: -
E45: - | G45: - | H45: - | I45: -
E46: - | G46: - | H46: - | I46: -
E47: - | G47: - | H47: - | I47: -
E48: - | G48: - | H48: - | I48: -
E49: - | G49: - | H49: - | I49: -
E50: - | G50: - | H50: - | I50: -
E51: - | G51: - | H51: - | I51: -
E52: - | G52: - | H52: - | I52: -
E53: - | G53: - | H53: - | I53: -
E54: - | G54: - | H54: - | I54: -
E55: - | G55: - | H55: - | I55: -
E56: - | G56: - | H56: - | I56: -

Sheet Ria de Kort
B13: Ria de Kort
B16: Gespeeld | F16: =COUNTIF(G32:G57,"W")+COUNTIF(G32:G57,"G")+COUNTIF(G32:G57,"V") -> 10
B17: Gewonnen | F17: =COUNTIF(G32:G57,"W") -> 5
B18: Gelijk | F18: =COUNTIF(G32:G57,"G") -> 1
B19: Verloren | F19: =COUNTIF(G32:G57,"V") -> 4 | H19: Wijk van initiële inschrijving (met shirtkleur finaledag)
B20: % gewonnen | F20: =IF(F16=0,0,F17/F16) -> 0.5
B21: % gelijk | F21: =IF(F16=0,0,F18/F16) -> 0.1
B22: % verloren | F22: =IF(F16=0,0,F19/F16) -> 0.4 | H22: Hondsberg (Rosmalen)
B23: Wedstrijdpunten | F23: =SUM(H32:H57) -> 17
B24: Saldopunten | F24: =SUM(I32:I57) -> -7
B25: Saldopunten per wedstrijd | F25: =IF(F16=0,0,F24/F16) -> -0.7
B28: LET OP: alleen wedstrijden die daadwerkelijk gespeeld zijn in de wijk waarvoor jij je hebt ingeschreven tellen mee!
B31: Datum | C31: Locatie | D31: UITSLAGEN | G31: W, V of G? | H31: Wedstrijd-punten | I31: Saldo-punten
B32: 2021-06-15 | C32: Hondsberg (Rosmalen) | D32: 2 | E32: - | F32: 12 | G32: =IF(OR($B$13="",wijk_van_inschrijving=""),"-",IF(OR(wijk_van_inschrijving<>C32,D32="",F32=""),"-",IF(D32>F32,"W",IF(D32=F32,"G",IF(D32<F32,"V","-"))))) -> V | H32: =IF(OR($B$13="",wijk_van_inschrijving=""),"-",IF(OR(wijk_van_inschrijving<>C32,G32="-",G32=""),"-",IF(G32="W",3,IF(G32="G",2,IF(G32="V",0,0))))) -> 0 | I32: =IF(OR($B$13="",wijk_van_inschrijving=""),"-",IF(wijk_van_inschrijving<>C32,"-",IF(D32>=0,IF(F32="","-",D32-F32)))) -> -10
B33: 2021-06-15 | C33: Hondsberg (Rosmalen) | D33: 8 | E33: - | F33: 6 | G33: W | H33: 3 | I33: 2
B34: 2021-06-15 | C34: Hondsberg (Rosmalen) | D34: 8 | E34: - | F34: 8 | G34: G | H34: 2 | I34: 0
B35: 2021-06-22 | C35: Hondsberg (Rosmalen) | D35: 11 | E35: - | F35: 2 | G35: W | H35: 3 | I35: 9
B36: 2021-06-22 | C36: Hondsberg (Rosmalen) | D36: 3 | E36: - | F36: 7 | G36: V | H36: 0 | I36: -4
B37: 2021-06-30 | C37: Hondsberg (Rosmalen) | D37: 2 | E37: - | F37: 13 | G37: V | H37: 0 | I37: -11
B38: 2021-06-30 | C38: Hondsberg (Rosmalen) | D38: 7 | E38: - | F38: 6 | G38: W | H38: 3 | I38: 1
B39: 2021-07-07 | C39: Hondsberg (Rosmalen) | D39: 5 | E39: - | F39: 3 | G39: W | H39: 3 | I39: 2
B40: 2021-07-07 | C40: Hondsberg (Rosmalen) | D40: 6 | E40: - | F40: 10 | G40: V | H40: 0 | I40: -4
B41: 2021-07-07 | C41: Hondsberg (Rosmalen) | D41: 11 | E41: - | F41: 3 | G41: W | H41: 3 | I41: 8
E42: - | G42: - | H42: - | I42: -
E43: - | G43: - | H43: - | I43: -
E44: - | G44: - | H44: - | I44: -
E45: - | G45: - | H45: - | I45: -
E46: - | G46: - | H46: - | I46: -
E47: - | G47: - | H47: - | I47: -
E48: - | G48: - | H48: - | I48: -
E49: - | G49: - | H49: - | I49: -
E50: - | G50: - | H50: - | I50: -
E51: - | G51: - | H51: - | I51: -
E52: - | G52: - | H52: - | I52: -
E53: - | G53: - | H53: - | I53: -
E54: - | G54: - | H54: - | I54: -
E55: - | G55: - | H55: - | I55: -
E56: - | G56: - | H56: - | I56: -

Sheet Riet Geerts
B13: Riet Geerts
B16: Gespeeld | F16: =COUNTIF(G32:G57,"W")+COUNTIF(G32:G57,"G")+COUNTIF(G32:G57,"V") -> 10
B17: Gewonnen | F17: =COUNTIF(G32:G57,"W") -> 3
B18: Gelijk | F18: =COUNTIF(G32:G57,"G") -> 1
B19: Verloren | F19: =COUNTIF(G32:G57,"V") -> 6 | H19: Wijk van initiële inschrijving (met shirtkleur finaledag)
B20: % gewonnen | F20: =IF(F16=0,0,F17/F16) -> 0.3
B21: % gelijk | F21: =IF(F16=0,0,F18/F16) -> 0.1
B22: % verloren | F22: =IF(F16=0,0,F19/F16) -> 0.6 | H22: Hondsberg (Rosmalen)
B23: Wedstrijdpunten | F23: =SUM(H32:H57) -> 11
B24: Saldopunten | F24: =SUM(I32:I57) -> -26
B25: Saldopunten per wedstrijd | F25: =IF(F16=0,0,F24/F16) -> -2.6
B28: LET OP: alleen wedstrijden die daadwerkelijk gespeeld zijn in de wijk waarvoor jij je hebt ingeschreven tellen mee!
B31: Datum | C31: Locatie | D31: UITSLAGEN | G31: W, V of G? | H31: Wedstrijd-punten | I31: Saldo-punten
B32: 2021-06-15 | C32: Hondsberg (Rosmalen) | D32: 9 | E32: - | F32: 7 | G32: =IF(OR($B$13="",wijk_van_inschrijving=""),"-",IF(OR(wijk_van_inschrijving<>C32,D32="",F32=""),"-",IF(D32>F32,"W",IF(D32=F32,"G",IF(D32<F32,"V","-"))))) -> W | H32: =IF(OR($B$13="",wijk_van_inschrijving=""),"-",IF(OR(wijk_van_inschrijving<>C32,G32="-",G32=""),"-",IF(G32="W",3,IF(G32="G",2,IF(G32="V",0,0))))) -> 3 | I32: =IF(OR($B$13="",wijk_van_inschrijving=""),"-",IF(wijk_van_inschrijving<>C32,"-",IF(D32>=0,IF(F32="","-",D32-F32)))) -> 2
B33: 2021-06-15 | C33: Hondsberg (Rosmalen) | D33: 6 | E33: - | F33: 6 | G33: G | H33: 2 | I33: 0
B34: 2021-06-15 | C34: Hondsberg (Rosmalen) | D34: 5 | E34: - | F34: 13 | G34: V | H34: 0 | I34: -8
B35: 2021-06-22 | C35: Hondsberg (Rosmalen) | D35: 9 | E35: - | F35: 2 | G35: W | H35: 3 | I35: 7
B36: 2021-06-22 | C36: Hondsberg (Rosmalen) | D36: 7 | E36: - | F36: 3 | G36: W | H36: 3 | I36: 4
B37: 2021-06-30 | C37: Hondsberg (Rosmalen) | D37: 9 | E37: - | F37: 11 | G37: V | H37: 0 | I37: -2
B38: 2021-06-30 | C38: Hondsberg (Rosmalen) | D38: 2 | E38: - | F38: 7 | G38: V | H38: 0 | I38: -5
B39: 2021-07-07 | C39: Hondsberg (Rosmalen) | D39: 5 | E39: - | F39: 12 | G39: V | H39: 0 | I39: -7
B40: 2021-07-07 | C40: Hondsberg (Rosmalen) | D40: 2 | E40: - | F40: 11 | G40: V | H40: 0 | I40: -9
B41: 2021-07-07 | C41: Hondsberg (Rosmalen) | D41: 3 | E41: - | F41: 11 | G41: V | H41: 0 | I41: -8
E42: - | G42: - | H42: - | I42: -
E43: - | G43: - | H43: - | I43: -
E44: - | G44: - | H44: - | I44: -
E45: - | G45: - | H45: - | I45: -
E46: - | G46: - | H46: - | I46: -
E47: - | G47: - | H47: - | I47: -
E48: - | G48: - | H48: - | I48: -
E49: - | G49: - | H49: - | I49: -
E50: - | G50: - | H50: - | I50: -
E51: - | G51: - | H51: - | I51: -
E52: - | G52: - | H52: - | I52: -
E53: - | G53: - | H53: - | I53: -
E54: - | G54: - | H54: - | I54: -
E55: - | G55: - | H55: - | I55: -
E56: - | G56: - | H56: - | I56: -

Sheet Rikie van der Laar
B13: Rikie van der Laar
B16: Gespeeld | F16: =COUNTIF(G32:G57,"W")+COUNTIF(G32:G57,"G")+COUNTIF(G32:G57,"V") -> 3
B17: Gewonnen | F17: =COUNTIF(G32:G57,"W") -> 1
B18: Gelijk | F18: =COUNTIF(G32:G57,"G") -> 0
B19: Verloren | F19: =COUNTIF(G32:G57,"V") -> 2 | H19: Wijk van initiële inschrijving (met shirtkleur finaledag)
B20: % gewonnen | F20: =IF(F16=0,0,F17/F16) -> 0.3333333333
B21: % gelijk | F21: =IF(F16=0,0,F18/F16) -> 0
B22: % verloren | F22: =IF(F16=0,0,F19/F16) -> 0.6666666667 | H22: De Hambaken
B23: Wedstrijdpunten | F23: =SUM(H32:H57) -> 3
B24: Saldopunten | F24: =SUM(I32:I57) -> -5
B25: Saldopunten per wedstrijd | F25: =IF(F16=0,0,F24/F16) -> -1.666666667
B28: LET OP: alleen wedstrijden die daadwerkelijk gespeeld zijn in de wijk waarvoor jij je hebt ingeschreven tellen mee!
B31: Datum | C31: Locatie | D31: UITSLAGEN | G31: W, V of G? | H31: Wedstrijd-punten | I31: Saldo-punten
B32: 2021-06-16 | C32: De Hambaken | D32: 4 | E32: - | F32: 9 | G32: =IF(OR($B$13="",wijk_van_inschrijving=""),"-",IF(OR(wijk_van_inschrijving<>C32,D32="",F32=""),"-",IF(D32>F32,"W",IF(D32=F32,"G",IF(D32<F32,"V","-"))))) -> V | H32: =IF(OR($B$13="",wijk_van_inschrijving=""),"-",IF(OR(wijk_van_inschrijving<>C32,G32="-",G32=""),"-",IF(G32="W",3,IF(G32="G",2,IF(G32="V",0,0))))) -> 0 | I32: =IF(OR($B$13="",wijk_van_inschrijving=""),"-",IF(wijk_van_inschrijving<>C32,"-",IF(D32>=0,IF(F32="","-",D32-F32)))) -> -5
B33: 2021-06-16 | C33: De Hambaken | D33: 7 | E33: - | F33: 6 | G33: W | H33: 3 | I33: 1
B34: 2021-06-16 | C34: De Hambaken | D34: 6 | E34: - | F34: 7 | G34: V | H34: 0 | I34: -1
E35: - | G35: - | H35: - | I35: -
E36: - | G36: - | H36: - | I36: -
E37: - | G37: - | H37: - | I37: -
E38: - | G38: - | H38: - | I38: -
E39: - | G39: - | H39: - | I39: -
E40: - | G40: - | H40: - | I40: -
E41: - | G41: - | H41: - | I41: -
E42: - | G42: - | H42: - | I42: -
E43: - | G43: - | H43: - | I43: -
E44: - | G44: - | H44: - | I44: -
E45: - | G45: - | H45: - | I45: -
E46: - | G46: - | H46: - | I46: -
E47: - | G47: - | H47: - | I47: -
E48: - | G48: - | H48: - | I48: -
E49: - | G49: - | H49: - | I49: -
E50: - | G50: - | H50: - | I50: -
E51: - | G51: - | H51: - | I51: -
E52: - | G52: - | H52: - | I52: -
E53: - | G53: - | H53: - | I53: -
E54: - | G54: - | H54: - | I54: -
E55: - | G55: - | H55: - | I55: -
E56: - | G56: - | H56: - | I56: -

Sheet Rikkie van der Wielen
B13: Rikkie van der Wielen
B16: Gespeeld | F16: =COUNTIF(G32:G57,"W")+COUNTIF(G32:G57,"G")+COUNTIF(G32:G57,"V") -> 1
B17: Gewonnen | F17: =COUNTIF(G32:G57,"W") -> 1
B18: Gelijk | F18: =COUNTIF(G32:G57,"G") -> 0
B19: Verloren | F19: =COUNTIF(G32:G57,"V") -> 0 | H19: Wijk van initiële inschrijving (met shirtkleur finaledag)
B20: % gewonnen | F20: =IF(F16=0,0,F17/F16) -> 1
B21: % gelijk | F21: =IF(F16=0,0,F18/F16) -> 0
B22: % verloren | F22: =IF(F16=0,0,F19/F16) -> 0 | H22: De Schutskamp
B23: Wedstrijdpunten | F23: =SUM(H32:H57) -> 3
B24: Saldopunten | F24: =SUM(I32:I57) -> 4
B25: Saldopunten per wedstrijd | F25: =IF(F16=0,0,F24/F16) -> 4
B28: LET OP: alleen wedstrijden die daadwerkelijk gespeeld zijn in de wijk waarvoor jij je hebt ingeschreven tellen mee!
B31: Datum | C31: Locatie | D31: UITSLAGEN | G31: W, V of G? | H31: Wedstrijd-punten | I31: Saldo-punten
B32: 2021-06-14 | C32: De Schutskamp | D32: 9 | E32: - | F32: 5 | G32: =IF(OR($B$13="",wijk_van_inschrijving=""),"-",IF(OR(wijk_van_inschrijving<>C32,D32="",F32=""),"-",IF(D32>F32,"W",IF(D32=F32,"G",IF(D32<F32,"V","-"))))) -> W | H32: =IF(OR($B$13="",wijk_van_inschrijving=""),"-",IF(OR(wijk_van_inschrijving<>C32,G32="-",G32=""),"-",IF(G32="W",3,IF(G32="G",2,IF(G32="V",0,0))))) -> 3 | I32: =IF(OR($B$13="",wijk_van_inschrijving=""),"-",IF(wijk_van_inschrijving<>C32,"-",IF(D32>=0,IF(F32="","-",D32-F32)))) -> 4
E33: - | G33: - | H33: - | I33: -
E34: - | G34: - | H34: - | I34: -
E35: - | G35: - | H35: - | I35: -
E36: - | G36: - | H36: - | I36: -
E37: - | G37: - | H37: - | I37: -
E38: - | G38: - | H38: - | I38: -
E39: - | G39: - | H39: - | I39: -
E40: - | G40: - | H40: - | I40: -
E41: - | G41: - | H41: - | I41: -
E42: - | G42: - | H42: - | I42: -
E43: - | G43: - | H43: - | I43: -
E44: - | G44: - | H44: - | I44: -
E45: - | G45: - | H45: - | I45: -
E46: - | G46: - | H46: - | I46: -
E47: - | G47: - | H47: - | I47: -
E48: - | G48: - | H48: - | I48: -
E49: - | G49: - | H49: - | I49: -
E50: - | G50: - | H50: - | I50: -
E51: - | G51: - | H51: - | I51: -
E52: - | G52: - | H52: - | I52: -
E53: - | G53: - | H53: - | I53: -
E54: - | G54: - | H54: - | I54: -
E55: - | G55: - | H55: - | I55: -
E56: - | G56: - | H56: - | I56: -

Sheet Ronald Schoo
B13: Ronald Schoo
B16: Gespeeld | F16: =COUNTIF(G32:G57,"W")+COUNTIF(G32:G57,"G")+COUNTIF(G32:G57,"V") -> 12
B17: Gewonnen | F17: =COUNTIF(G32:G57,"W") -> 6
B18: Gelijk | F18: =COUNTIF(G32:G57,"G") -> 0
B19: Verloren | F19: =COUNTIF(G32:G57,"V") -> 6 | H19: Wijk van initiële inschrijving (met shirtkleur finaledag)
B20: % gewonnen | F20: =IF(F16=0,0,F17/F16) -> 0.5
B21: % gelijk | F21: =IF(F16=0,0,F18/F16) -> 0
B22: % verloren | F22: =IF(F16=0,0,F19/F16) -> 0.5 | H22: 's-Hertogenbosch Zuid
B23: Wedstrijdpunten | F23: =SUM(H32:H57) -> 18
B24: Saldopunten | F24: =SUM(I32:I57) -> 13
B25: Saldopunten per wedstrijd | F25: =IF(F16=0,0,F24/F16) -> 1.083333333
B28: LET OP: alleen wedstrijden die daadwerkelijk gespeeld zijn in de wijk waarvoor jij je hebt ingeschreven tellen mee!
B31: Datum | C31: Locatie | D31: UITSLAGEN | G31: W, V of G? | H31: Wedstrijd-punten | I31: Saldo-punten
B32: 2021-06-18 | C32: 's-Hertogenbosch Zuid | D32: 4 | E32: - | F32: 13 | G32: =IF(OR($B$13="",wijk_van_inschrijving=""),"-",IF(OR(wijk_van_inschrijving<>C32,D32="",F32=""),"-",IF(D32>F32,"W",IF(D32=F32,"G",IF(D32<F32,"V","-"))))) -> V | H32: =IF(OR($B$13="",wijk_van_inschrijving=""),"-",IF(OR(wijk_van_inschrijving<>C32,G32="-",G32=""),"-",IF(G32="W",3,IF(G32="G",2,IF(G32="V",0,0))))) -> 0 | I32: =IF(OR($B$13="",wijk_van_inschrijving=""),"-",IF(wijk_van_inschrijving<>C32,"-",IF(D32>=0,IF(F32="","-",D32-F32)))) -> -9
B33: 2021-06-18 | C33: 's-Hertogenbosch Zuid | D33: 2 | E33: - | F33: 6 | G33: V | H33: 0 | I33: -4
B34: 2021-06-18 | C34: 's-Hertogenbosch Zuid | D34: 6 | E34: - | F34: 9 | G34: V | H34: 0 | I34: -3
B35: 2021-06-25 | C35: 's-Hertogenbosch Zuid | D35: 8 | E35: - | F35: 5 | G35: W | H35: 3 | I35: 3
B36: 2021-06-25 | C36: 's-Hertogenbosch Zuid | D36: 3 | E36: - | F36: 8 | G36: V | H36: 0 | I36: -5
B37: 2021-06-25 | C37: 's-Hertogenbosch Zuid | D37: 12 | E37: - | F37: 5 | G37: W | H37: 3 | I37: 7
B38: 2021-07-01 | C38: 's-Hertogenbosch Zuid | D38: 12 | E38: - | F38: 7 | G38: W | H38: 3 | I38: 5
B39: 2021-07-01 | C39: 's-Hertogenbosch Zuid | D39: 3 | E39: - | F39: 11 | G39: V | H39: 0 | I39: -8
B40: 2021-07-01 | C40: 's-Hertogenbosch Zuid | D40: 8 | E40: - | F40: 9 | G40: V | H40: 0 | I40: -1
B41: 2021-07-08 | C41: 's-Hertogenbosch Zuid | D41: 13 | E41: - | F41: 3 | G41: W | H41: 3 | I41: 10
B42: 2021-07-08 | C42: 's-Hertogenbosch Zuid | D42: 10 | E42: - | F42: 3 | G42: W | H42: 3 | I42: 7
B43: 2021-07-08 | C43: 's-Hertogenbosch Zuid | D43: 12 | E43: - | F43: 1 | G43: W | H43: 3 | I43: 11
E44: - | G44: - | H44: - | I44: -
E45: - | G45: - | H45: - | I45: -
E46: - | G46: - | H46: - | I46: -
E47: - | G47: - | H47: - | I47: -
E48: - | G48: - | H48: - | I48: -
E49: - | G49: - | H49: - | I49: -
E50: - | G50: - | H50: - | I50: -
E51: - | G51: - | H51: - | I51: -
E52: - | G52: - | H52: - | I52: -
E53: - | G53: - | H53: - | I53: -
E54: - | G54: - | H54: - | I54: -
E55: - | G55: - | H55: - | I55: -
E56: - | G56: - | H56: - | I56: -

Sheet Roy van de Brink
B13: Roy van de Brink
B16: Gespeeld | F16: =COUNTIF(G32:G57,"W")+COUNTIF(G32:G57,"G")+COUNTIF(G32:G57,"V") -> 12
B17: Gewonnen | F17: =COUNTIF(G32:G57,"W") -> 6
B18: Gelijk | F18: =COUNTIF(G32:G57,"G") -> 1
B19: Verloren | F19: =COUNTIF(G32:G57,"V") -> 5 | H19: Wijk van initiële inschrijving (met shirtkleur finaledag)
B20: % gewonnen | F20: =IF(F16=0,0,F17/F16) -> 0.5
B21: % gelijk | F21: =IF(F16=0,0,F18/F16) -> 0.08333333333
B22: % verloren | F22: =IF(F16=0,0,F19/F16) -> 0.4166666667 | H22: 's-Hertogenbosch Zuid
B23: Wedstrijdpunten | F23: =SUM(H32:H57) -> 20
B24: Saldopunten | F24: =SUM(I32:I57) -> 0
B25: Saldopunten per wedstrijd | F25: =IF(F16=0,0,F24/F16) -> 0
B28: LET OP: alleen wedstrijden die daadwerkelijk gespeeld zijn in de wijk waarvoor jij je hebt ingeschreven tellen mee!
B31: Datum | C31: Locatie | D31: UITSLAGEN | G31: W, V of G? | H31: Wedstrijd-punten | I31: Saldo-punten
B32: 2021-06-18 | C32: 's-Hertogenbosch Zuid | D32: 13 | E32: - | F32: 1 | G32: =IF(OR($B$13="",wijk_van_inschrijving=""),"-",IF(OR(wijk_van_inschrijving<>C32,D32="",F32=""),"-",IF(D32>F32,"W",IF(D32=F32,"G",IF(D32<F32,"V","-"))))) -> W | H32: =IF(OR($B$13="",wijk_van_inschrijving=""),"-",IF(OR(wijk_van_inschrijving<>C32,G32="-",G32=""),"-",IF(G32="W",3,IF(G32="G",2,IF(G32="V",0,0))))) -> 3 | I32: =IF(OR($B$13="",wijk_van_inschrijving=""),"-",IF(wijk_van_inschrijving<>C32,"-",IF(D32>=0,IF(F32="","-",D32-F32)))) -> 12
B33: 2021-06-18 | C33: 's-Hertogenbosch Zuid | D33: 6 | E33: - | F33: 2 | G33: W | H33: 3 | I33: 4
B34: 2021-06-18 | C34: 's-Hertogenbosch Zuid | D34: 2 | E34: - | F34: 13 | G34: V | H34: 0 | I34: -11
B35: 2021-06-25 | C35: 's-Hertogenbosch Zuid | D35: 5 | E35: - | F35: 8 | G35: V | H35: 0 | I35: -3
B36: 2021-06-25 | C36: 's-Hertogenbosch Zuid | D36: 0 | E36: - | F36: 13 | G36: V | H36: 0 | I36: -13
B37: 2021-06-25 | C37: 's-Hertogenbosch Zuid | D37: 3 | E37: - | F37: 13 | G37: V | H37: 0 | I37: -10
B38: 2021-07-01 | C38: 's-Hertogenbosch Zuid | D38: 7 | E38: - | F38: 7 | G38: G | H38: 2 | I38: 0
B39: 2021-07-01 | C39: 's-Hertogenbosch Zuid | D39: 13 | E39: - | F39: 5 | G39: W | H39: 3 | I39: 8
B40: 2021-07-01 | C40: 's-Hertogenbosch Zuid | D40: 12 | E40: - | F40: 8 | G40: W | H40: 3 | I40: 4
B41: 2021-07-08 | C41: 's-Hertogenbosch Zuid | D41: 10 | E41: - | F41: 2 | G41: W | H41: 3 | I41: 8
B42: 2021-07-08 | C42: 's-Hertogenbosch Zuid | D42: 13 | E42: - | F42: 1 | G42: W | H42: 3 | I42: 12
B43: 2021-07-08 | C43: 's-Hertogenbosch Zuid | D43: 1 | E43: - | F43: 12 | G43: V | H43: 0 | I43: -11
E44: - | G44: - | H44: - | I44: -
E45: - | G45: - | H45: - | I45: -
E46: - | G46: - | H46: - | I46: -
E47: - | G47: - | H47: - | I47: -
E48: - | G48: - | H48: - | I48: -
E49: - | G49: - | H49: - | I49: -
E50: - | G50: - | H50: - | I50: -
E51: - | G51: - | H51: - | I51: -
E52: - | G52: - | H52: - | I52: -
E53: - | G53: - | H53: - | I53: -
E54: - | G54: - | H54: - | I54: -
E55: - | G55: - | H55: - | I55: -
E56: - | G56: - | H56: - | I56: -

Sheet Ruud van Hintum
B13: Ruud van Hintum
B16: Gespeeld | F16: =COUNTIF(G32:G57,"W")+COUNTIF(G32:G57,"G")+COUNTIF(G32:G57,"V") -> 3
B17: Gewonnen | F17: =COUNTIF(G32:G57,"W") -> 3
B18: Gelijk | F18: =COUNTIF(G32:G57,"G") -> 0
B19: Verloren | F19: =COUNTIF(G32:G57,"V") -> 0 | H19: Wijk van initiële inschrijving (met shirtkleur finaledag)
B20: % gewonnen | F20: =IF(F16=0,0,F17/F16) -> 1
B21: % gelijk | F21: =IF(F16=0,0,F18/F16) -> 0
B22: % verloren | F22: =IF(F16=0,0,F19/F16) -> 0 | H22: De Hambaken
B23: Wedstrijdpunten | F23: =SUM(H32:H57) -> 9
B24: Saldopunten | F24: =SUM(I32:I57) -> 13
B25: Saldopunten per wedstrijd | F25: =IF(F16=0,0,F24/F16) -> 4.333333333
B28: LET OP: alleen wedstrijden die daadwerkelijk gespeeld zijn in de wijk waarvoor jij je hebt ingeschreven tellen mee!
B31: Datum | C31: Locatie | D31: UITSLAGEN | G31: W, V of G? | H31: Wedstrijd-punten | I31: Saldo-punten
B32: 2021-07-06 | C32: De Hambaken | D32: 13 | E32: - | F32: 11 | G32: =IF(OR($B$13="",wijk_van_inschrijving=""),"-",IF(OR(wijk_van_inschrijving<>C32,D32="",F32=""),"-",IF(D32>F32,"W",IF(D32=F32,"G",IF(D32<F32,"V","-"))))) -> W | H32: =IF(OR($B$13="",wijk_van_inschrijving=""),"-",IF(OR(wijk_van_inschrijving<>C32,G32="-",G32=""),"-",IF(G32="W",3,IF(G32="G",2,IF(G32="V",0,0))))) -> 3 | I32: =IF(OR($B$13="",wijk_van_inschrijving=""),"-",IF(wijk_van_inschrijving<>C32,"-",IF(D32>=0,IF(F32="","-",D32-F32)))) -> 2
B33: 2021-07-06 | C33: De Hambaken | D33: 13 | E33: - | F33: 5 | G33: W | H33: 3 | I33: 8
B34: 2021-07-06 | C34: De Hambaken | D34: 9 | E34: - | F34: 6 | G34: W | H34: 3 | I34: 3
E35: - | G35: - | H35: - | I35: -
E36: - | G36: - | H36: - | I36: -
E37: - | G37: - | H37: - | I37: -
E38: - | G38: - | H38: - | I38: -
E39: - | G39: - | H39: - | I39: -
E40: - | G40: - | H40: - | I40: -
E41: - | G41: - | H41: - | I41: -
E42: - | G42: - | H42: - | I42: -
E43: - | G43: - | H43: - | I43: -
E44: - | G44: - | H44: - | I44: -
E45: - | G45: - | H45: - | I45: -
E46: - | G46: - | H46: - | I46: -
E47: - | G47: - | H47: - | I47: -
E48: - | G48: - | H48: - | I48: -
E49: - | G49: - | H49: - | I49: -
E50: - | G50: - | H50: - | I50: -
E51: - | G51: - | H51: - | I51: -
E52: - | G52: - | H52: - | I52: -
E53: - | G53: - | H53: - | I53: -
E54: - | G54: - | H54: - | I54: -
E55: - | G55: - | H55: - | I55: -
E56: - | G56: - | H56: - | I56: -

Sheet Sjan Ondersteijn
B13: Sjan Ondersteijn
B16: Gespeeld | F16: =COUNTIF(G32:G57,"W")+COUNTIF(G32:G57,"G")+COUNTIF(G32:G57,"V") -> 12
B17: Gewonnen | F17: =COUNTIF(G32:G57,"W") -> 7
B18: Gelijk | F18: =COUNTIF(G32:G57,"G") -> 1
B19: Verloren | F19: =COUNTIF(G32:G57,"V") -> 4 | H19: Wijk van initiële inschrijving (met shirtkleur finaledag)
B20: % gewonnen | F20: =IF(F16=0,0,F17/F16) -> 0.5833333333
B21: % gelijk | F21: =IF(F16=0,0,F18/F16) -> 0.08333333333
B22: % verloren | F22: =IF(F16=0,0,F19/F16) -> 0.3333333333 | H22: 's-Hertogenbosch Zuid
B23: Wedstrijdpunten | F23: =SUM(H32:H57) -> 23
B24: Saldopunten | F24: =SUM(I32:I57) -> 26
B25: Saldopunten per wedstrijd | F25: =IF(F16=0,0,F24/F16) -> 2.166666667
B28: LET OP: alleen wedstrijden die daadwerkelijk gespeeld zijn in de wijk waarvoor jij je hebt ingeschreven tellen mee!
B31: Datum | C31: Locatie | D31: UITSLAGEN | G31: W, V of G? | H31: Wedstrijd-punten | I31: Saldo-punten
B32: 2021-06-18 | C32: 's-Hertogenbosch Zuid | D32: 13 | E32: - | F32: 2 | G32: =IF(OR($B$13="",wijk_van_inschrijving=""),"-",IF(OR(wijk_van_inschrijving<>C32,D32="",F32=""),"-",IF(D32>F32,"W",IF(D32=F32,"G",IF(D32<F32,"V","-"))))) -> W | H32: =IF(OR($B$13="",wijk_van_inschrijving=""),"-",IF(OR(wijk_van_inschrijving<>C32,G32="-",G32=""),"-",IF(G32="W",3,IF(G32="G",2,IF(G32="V",0,0))))) -> 3 | I32: =IF(OR($B$13="",wijk_van_inschrijving=""),"-",IF(wijk_van_inschrijving<>C32,"-",IF(D32>=0,IF(F32="","-",D32-F32)))) -> 11
B33: 2021-06-18 | C33: 's-Hertogenbosch Zuid | D33: 7 | E33: - | F33: 5 | G33: W | H33: 3 | I33: 2
B34: 2021-06-18 | C34: 's-Hertogenbosch Zuid | D34: 9 | E34: - | F34: 6 | G34: W | H34: 3 | I34: 3
B35: 2021-06-25 | C35: 's-Hertogenbosch Zuid | D35: 9 | E35: - | F35: 9 | G35: G | H35: 2 | I35: 0
B36: 2021-06-25 | C36: 's-Hertogenbosch Zuid | D36: 12 | E36: - | F36: 5 | G36: W | H36: 3 | I36: 7
B37: 2021-06-25 | C37: 's-Hertogenbosch Zuid | D37: 13 | E37: - | F37: 3 | G37: W | H37: 3 | I37: 10
B38: 2021-07-01 | C38: 's-Hertogenbosch Zuid | D38: 5 | E38: - | F38: 13 | G38: V | H38: 0 | I38: -8
B39: 2021-07-01 | C39: 's-Hertogenbosch Zuid | D39: 13 | E39: - | F39: 4 | G39: W | H39: 3 | I39: 9
B40: 2021-07-01 | C40: 's-Hertogenbosch Zuid | D40: 8 | E40: - | F40: 12 | G40: V | H40: 0 | I40: -4
B41: 2021-07-08 | C41: 's-Hertogenbosch Zuid | D41: 3 | E41: - | F41: 11 | G41: V | H41: 0 | I41: -8
B42: 2021-07-08 | C42: 's-Hertogenbosch Zuid | D42: 3 | E42: - | F42: 10 | G42: V | H42: 0 | I42: -7
B43: 2021-07-08 | C43: 's-Hertogenbosch Zuid | D43: 12 | E43: - | F43: 1 | G43: W | H43: 3 | I43: 11
E44: - | G44: - | H44: - | I44: -
E45: - | G45: - | H45: - | I45: -
E46: - | G46: - | H46: - | I46: -
E47: - | G47: - | H47: - | I47: -
E48: - | G48: - | H48: - | I48: -
E49: - | G49: - | H49: - | I49: -
E50: - | G50: - | H50: - | I50: -
E51: - | G51: - | H51: - | I51: -
E52: - | G52: - | H52: - | I52: -
E53: - | G53: - | H53: - | I53: -
E54: - | G54: - | H54: - | I54: -
E55: - | G55: - | H55: - | I55: -
E56: - | G56: - | H56: - | I56: -

Sheet Sylvester …
B13: Sylvester …
B16: Gespeeld | F16: =COUNTIF(G32:G57,"W")+COUNTIF(G32:G57,"G")+COUNTIF(G32:G57,"V") -> 3
B17: Gewonnen | F17: =COUNTIF(G32:G57,"W") -> 2
B18: Gelijk | F18: =COUNTIF(G32:G57,"G") -> 0
B19: Verloren | F19: =COUNTIF(G32:G57,"V") -> 1 | H19: Wijk van initiële inschrijving (met shirtkleur finaledag)
B20: % gewonnen | F20: =IF(F16=0,0,F17/F16) -> 0.6666666667
B21: % gelijk | F21: =IF(F16=0,0,F18/F16) -> 0
B22: % verloren | F22: =IF(F16=0,0,F19/F16) -> 0.3333333333 | H22: De Schutskamp
B23: Wedstrijdpunten | F23: =SUM(H32:H57) -> 6
B24: Saldopunten | F24: =SUM(I32:I57) -> -6
B25: Saldopunten per wedstrijd | F25: =IF(F16=0,0,F24/F16) -> -2
B28: LET OP: alleen wedstrijden die daadwerkelijk gespeeld zijn in de wijk waarvoor jij je hebt ingeschreven tellen mee!
B31: Datum | C31: Locatie | D31: UITSLAGEN | G31: W, V of G? | H31: Wedstrijd-punten | I31: Saldo-punten
B32: 2021-06-14 | C32: De Schutskamp | D32: 7 | E32: - | F32: 4 | G32: =IF(OR($B$13="",wijk_van_inschrijving=""),"-",IF(OR(wijk_van_inschrijving<>C32,D32="",F32=""),"-",IF(D32>F32,"W",IF(D32=F32,"G",IF(D32<F32,"V","-"))))) -> W | H32: =IF(OR($B$13="",wijk_van_inschrijving=""),"-",IF(OR(wijk_van_inschrijving<>C32,G32="-",G32=""),"-",IF(G32="W",3,IF(G32="G",2,IF(G32="V",0,0))))) -> 3 | I32: =IF(OR($B$13="",wijk_van_inschrijving=""),"-",IF(wijk_van_inschrijving<>C32,"-",IF(D32>=0,IF(F32="","-",D32-F32)))) -> 3
B33: 2021-06-14 | C33: De Schutskamp | D33: 0 | E33: - | F33: 13 | G33: V | H33: 0 | I33: -13
B34: 2021-06-14 | C34: De Schutskamp | D34: 9 | E34: - | F34: 5 | G34: W | H34: 3 | I34: 4
E35: - | G35: - | H35: - | I35: -
E36: - | G36: - | H36: - | I36: -
E37: - | G37: - | H37: - | I37: -
E38: - | G38: - | H38: - | I38: -
E39: - | G39: - | H39: - | I39: -
E40: - | G40: - | H40: - | I40: -
E41: - | G41: - | H41: - | I41: -
E42: - | G42: - | H42: - | I42: -
E43: - | G43: - | H43: - | I43: -
E44: - | G44: - | H44: - | I44: -
E45: - | G45: - | H45: - | I45: -
E46: - | G46: - | H46: - | I46: -
E47: - | G47: - | H47: - | I47: -
E48: - | G48: - | H48: - | I48: -
E49: - | G49: - | H49: - | I49: -
E50: - | G50: - | H50: - | I50: -
E51: - | G51: - | H51: - | I51: -
E52: - | G52: - | H52: - | I52: -
E53: - | G53: - | H53: - | I53: -
E54: - | G54: - | H54: - | I54: -
E55: - | G55: - | H55: - | I55: -
E56: - | G56: - | H56: - | I56: -

Sheet Tara van der Heijden
B13: Tara van der Heijden
B16: Gespeeld | F16: =COUNTIF(G32:G57,"W")+COUNTIF(G32:G57,"G")+COUNTIF(G32:G57,"V") -> 3
B17: Gewonnen | F17: =COUNTIF(G32:G57,"W") -> 1
B18: Gelijk | F18: =COUNTIF(G32:G57,"G") -> 0
B19: Verloren | F19: =COUNTIF(G32:G57,"V") -> 2 | H19: Wijk van initiële inschrijving (met shirtkleur finaledag)
B20: % gewonnen | F20: =IF(F16=0,0,F17/F16) -> 0.3333333333
B21: % gelijk | F21: =IF(F16=0,0,F18/F16) -> 0
B22: % verloren | F22: =IF(F16=0,0,F19/F16) -> 0.6666666667 | H22: De Schutskamp
B23: Wedstrijdpunten | F23: =SUM(H32:H57) -> 3
B24: Saldopunten | F24: =SUM(I32:I57) -> -9
B25: Saldopunten per wedstrijd | F25: =IF(F16=0,0,F24/F16) -> -3
B28: LET OP: alleen wedstrijden die daadwerkelijk gespeeld zijn in de wijk waarvoor jij je hebt ingeschreven tellen mee!
B31: Datum | C31: Locatie | D31: UITSLAGEN | G31: W, V of G? | H31: Wedstrijd-punten | I31: Saldo-punten
B32: 2021-06-24 | C32: De Schutskamp | D32: 11 | E32: - | F32: 7 | G32: =IF(OR($B$13="",wijk_van_inschrijving=""),"-",IF(OR(wijk_van_inschrijving<>C32,D32="",F32=""),"-",IF(D32>F32,"W",IF(D32=F32,"G",IF(D32<F32,"V","-"))))) -> W | H32: =IF(OR($B$13="",wijk_van_inschrijving=""),"-",IF(OR(wijk_van_inschrijving<>C32,G32="-",G32=""),"-",IF(G32="W",3,IF(G32="G",2,IF(G32="V",0,0))))) -> 3 | I32: =IF(OR($B$13="",wijk_van_inschrijving=""),"-",IF(wijk_van_inschrijving<>C32,"-",IF(D32>=0,IF(F32="","-",D32-F32)))) -> 4
B33: 2021-06-24 | C33: De Schutskamp | D33: 1 | E33: - | F33: 13 | G33: V | H33: 0 | I33: -12
B34: 2021-06-24 | C34: De Schutskamp | D34: 12 | E34: - | F34: 13 | G34: V | H34: 0 | I34: -1
E35: - | G35: - | H35: - | I35: -
E36: - | G36: - | H36: - | I36: -
E37: - | G37: - | H37: - | I37: -
E38: - | G38: - | H38: - | I38: -
E39: - | G39: - | H39: - | I39: -
E40: - | G40: - | H40: - | I40: -
E41: - | G41: - | H41: - | I41: -
E42: - | G42: - | H42: - | I42: -
E43: - | G43: - | H43: - | I43: -
E44: - | G44: - | H44: - | I44: -
E45: - | G45: - | H45: - | I45: -
E46: - | G46: - | H46: - | I46: -
E47: - | G47: - | H47: - | I47: -
E48: - | G48: - | H48: - | I48: -
E49: - | G49: - | H49: - | I49: -
E50: - | G50: - | H50: - | I50: -
E51: - | G51: - | H51: - | I51: -
E52: - | G52: - | H52: - | I52: -
E53: - | G53: - | H53: - | I53: -
E54: - | G54: - | H54: - | I54: -
E55: - | G55: - | H55: - | I55: -
E56: - | G56: - | H56: - | I56: -

Sheet Theo Craane
B13: Theo Craane
B16: Gespeeld | F16: =COUNTIF(G32:G57,"W")+COUNTIF(G32:G57,"G")+COUNTIF(G32:G57,"V") -> 10
B17: Gewonnen | F17: =COUNTIF(G32:G57,"W") -> 3
B18: Gelijk | F18: =COUNTIF(G32:G57,"G") -> 1
B19: Verloren | F19: =COUNTIF(G32:G57,"V") -> 6 | H19: Wijk van initiële inschrijving (met shirtkleur finaledag)
B20: % gewonnen | F20: =IF(F16=0,0,F17/F16) -> 0.3
B21: % gelijk | F21: =IF(F16=0,0,F18/F16) -> 0.1
B22: % verloren | F22: =IF(F16=0,0,F19/F16) -> 0.6 | H22: Hondsberg (Rosmalen)
B23: Wedstrijdpunten | F23: =SUM(H32:H57) -> 11
B24: Saldopunten | F24: =SUM(I32:I57) -> -1
B25: Saldopunten per wedstrijd | F25: =IF(F16=0,0,F24/F16) -> -0.1
B28: LET OP: alleen wedstrijden die daadwerkelijk gespeeld zijn in de wijk waarvoor jij je hebt ingeschreven tellen mee!
B31: Datum | C31: Locatie | D31: UITSLAGEN | G31: W, V of G? | H31: Wedstrijd-punten | I31: Saldo-punten
B32: 2021-06-15 | C32: Hondsberg (Rosmalen) | D32: 5 | E32: - | F32: 8 | G32: =IF(OR($B$13="",wijk_van_inschrijving=""),"-",IF(OR(wijk_van_inschrijving<>C32,D32="",F32=""),"-",IF(D32>F32,"W",IF(D32=F32,"G",IF(D32<F32,"V","-"))))) -> V | H32: =IF(OR($B$13="",wijk_van_inschrijving=""),"-",IF(OR(wijk_van_inschrijving<>C32,G32="-",G32=""),"-",IF(G32="W",3,IF(G32="G",2,IF(G32="V",0,0))))) -> 0 | I32: =IF(OR($B$13="",wijk_van_inschrijving=""),"-",IF(wijk_van_inschrijving<>C32,"-",IF(D32>=0,IF(F32="","-",D32-F32)))) -> -3
B33: 2021-06-15 | C33: Hondsberg (Rosmalen) | D33: 6 | E33: - | F33: 8 | G33: V | H33: 0 | I33: -2
B34: 2021-06-15 | C34: Hondsberg (Rosmalen) | D34: 8 | E34: - | F34: 8 | G34: G | H34: 2 | I34: 0
B35: 2021-06-22 | C35: Hondsberg (Rosmalen) | D35: 4 | E35: - | F35: 10 | G35: V | H35: 0 | I35: -6
B36: 2021-06-22 | C36: Hondsberg (Rosmalen) | D36: 6 | E36: - | F36: 13 | G36: V | H36: 0 | I36: -7
B37: 2021-06-30 | C37: Hondsberg (Rosmalen) | D37: 13 | E37: - | F37: 2 | G37: W | H37: 3 | I37: 11
B38: 2021-06-30 | C38: Hondsberg (Rosmalen) | D38: 7 | E38: - | F38: 2 | G38: W | H38: 3 | I38: 5
B39: 2021-07-07 | C39: Hondsberg (Rosmalen) | D39: 5 | E39: - | F39: 12 | G39: V | H39: 0 | I39: -7
B40: 2021-07-07 | C40: Hondsberg (Rosmalen) | D40: 11 | E40: - | F40: 2 | G40: W | H40: 3 | I40: 9
B41: 2021-07-07 | C41: Hondsberg (Rosmalen) | D41: 5 | E41: - | F41: 6 | G41: V | H41: 0 | I41: -1
E42: - | G42: - | H42: - | I42: -
E43: - | G43: - | H43: - | I43: -
E44: - | G44: - | H44: - | I44: -
E45: - | G45: - | H45: - | I45: -
E46: - | G46: - | H46: - | I46: -
E47: - | G47: - | H47: - | I47: -
E48: - | G48: - | H48: - | I48: -
E49: - | G49: - | H49: - | I49: -
E50: - | G50: - | H50: - | I50: -
E51: - | G51: - | H51: - | I51: -
E52: - | G52: - | H52: - | I52: -
E53: - | G53: - | H53: - | I53: -
E54: - | G54: - | H54: - | I54: -
E55: - | G55: - | H55: - | I55: -
E56: - | G56: - | H56: - | I56: -

Sheet Tijs Verbruggen
B13: Tijs Verbruggen
B16: Gespeeld | F16: =COUNTIF(G32:G57,"W")+COUNTIF(G32:G57,"G")+COUNTIF(G32:G57,"V") -> 6
B17: Gewonnen | F17: =COUNTIF(G32:G57,"W") -> 1
B18: Gelijk | F18: =COUNTIF(G32:G57,"G") -> 0
B19: Verloren | F19: =COUNTIF(G32:G57,"V") -> 5 | H19: Wijk van initiële inschrijving (met shirtkleur finaledag)
B20: % gewonnen | F20: =IF(F16=0,0,F17/F16) -> 0.1666666667
B21: % gelijk | F21: =IF(F16=0,0,F18/F16) -> 0
B22: % verloren | F22: =IF(F16=0,0,F19/F16) -> 0.8333333333 | H22: 's-Hertogenbosch Zuid
B23: Wedstrijdpunten | F23: =SUM(H32:H57) -> 3
B24: Saldopunten | F24: =SUM(I32:I57) -> -44
B25: Saldopunten per wedstrijd | F25: =IF(F16=0,0,F24/F16) -> -7.333333333
B28: LET OP: alleen wedstrijden die daadwerkelijk gespeeld zijn in de wijk waarvoor jij je hebt ingeschreven tellen mee!
B31: Datum | C31: Locatie | D31: UITSLAGEN | G31: W, V of G? | H31: Wedstrijd-punten | I31: Saldo-punten
B32: 2021-06-18 | C32: 's-Hertogenbosch Zuid | D32: 2 | E32: - | F32: 13 | G32: =IF(OR($B$13="",wijk_van_inschrijving=""),"-",IF(OR(wijk_van_inschrijving<>C32,D32="",F32=""),"-",IF(D32>F32,"W",IF(D32=F32,"G",IF(D32<F32,"V","-"))))) -> V | H32: =IF(OR($B$13="",wijk_van_inschrijving=""),"-",IF(OR(wijk_van_inschrijving<>C32,G32="-",G32=""),"-",IF(G32="W",3,IF(G32="G",2,IF(G32="V",0,0))))) -> 0 | I32: =IF(OR($B$13="",wijk_van_inschrijving=""),"-",IF(wijk_van_inschrijving<>C32,"-",IF(D32>=0,IF(F32="","-",D32-F32)))) -> -11
B33: 2021-06-18 | C33: 's-Hertogenbosch Zuid | D33: 1 | E33: - | F33: 12 | G33: V | H33: 0 | I33: -11
B34: 2021-06-18 | C34: 's-Hertogenbosch Zuid | D34: 13 | E34: - | F34: 1 | G34: W | H34: 3 | I34: 12
B35: 2021-06-29 | C35: De Hambaken | D35: 3 | E35: - | F35: 13 | G35: - | H35: - | I35: -
B36: 2021-06-29 | C36: De Hambaken | D36: 13 | E36: - | F36: 2 | G36: - | H36: - | I36: -
B37: 2021-06-29 | C37: De Hambaken | D37: 13 | E37: - | F37: 4 | G37: - | H37: - | I37: -
B38: 2021-06-30 | C38: Hondsberg (Rosmalen) | D38: 11 | E38: - | F38: 9 | G38: - | H38: - | I38: -
B39: 2021-06-30 | C39: Hondsberg (Rosmalen) | D39: 0 | E39: - | F39: 12 | G39: - | H39: - | I39: -
B40: 2021-06-30 | C40: Hondsberg (Rosmalen) | D40: 13 | E40: - | F40: 5 | G40: - | H40: - | I40: -
B41: 2021-07-01 | C41: 's-Hertogenbosch Zuid | D41: 0 | E41: - | F41: 13 | G41: V | H41: 0 | I41: -13
B42: 2021-07-01 | C42: 's-Hertogenbosch Zuid | D42: 5 | E42: - | F42: 13 | G42: V | H42: 0 | I42: -8
B43: 2021-07-01 | C43: 's-Hertogenbosch Zuid | D43: 0 | E43: - | F43: 13 | G43: V | H43: 0 | I43: -13
B44: 2021-07-05 | C44: De Schutskamp | D44: 7 | E44: - | F44: 5 | G44: - | H44: - | I44: -
B45: 2021-07-05 | C45: De Schutskamp | D45: 13 | E45: - | F45: 2 | G45: - | H45: - | I45: -
B46: 2021-07-05 | C46: De Schutskamp | D46: 13 | E46: - | F46: 3 | G46: - | H46: - | I46: -
E47: - | G47: - | H47: - | I47: -
E48: - | G48: - | H48: - | I48: -
E49: - | G49: - | H49: - | I49: -
E50: - | G50: - | H50: - | I50: -
E51: - | G51: - | H51: - | I51: -
E52: - | G52: - | H52: - | I52: -
E53: - | G53: - | H53: - | I53: -
E54: - | G54: - | H54: - | I54: -
E55: - | G55: - | H55: - | I55: -
E56: - | G56: - | H56: - | I56: -

Sheet Tiny Heijmans
B13: Tiny Heijmans
B16: Gespeeld | F16: =COUNTIF(G32:G57,"W")+COUNTIF(G32:G57,"G")+COUNTIF(G32:G57,"V") -> 5
B17: Gewonnen | F17: =COUNTIF(G32:G57,"W") -> 3
B18: Gelijk | F18: =COUNTIF(G32:G57,"G") -> 1
B19: Verloren | F19: =COUNTIF(G32:G57,"V") -> 1 | H19: Wijk van initiële inschrijving (met shirtkleur finaledag)
B20: % gewonnen | F20: =IF(F16=0,0,F17/F16) -> 0.6
B21: % gelijk | F21: =IF(F16=0,0,F18/F16) -> 0.2
B22: % verloren | F22: =IF(F16=0,0,F19/F16) -> 0.2 | H22: Hondsberg (Rosmalen)
B23: Wedstrijdpunten | F23: =SUM(H32:H57) -> 11
B24: Saldopunten | F24: =SUM(I32:I57) -> 30
B25: Saldopunten per wedstrijd | F25: =IF(F16=0,0,F24/F16) -> 6
B28: LET OP: alleen wedstrijden die daadwerkelijk gespeeld zijn in de wijk waarvoor jij je hebt ingeschreven tellen mee!
B31: Datum | C31: Locatie | D31: UITSLAGEN | G31: W, V of G? | H31: Wedstrijd-punten | I31: Saldo-punten
B32: 2021-06-15 | C32: Hondsberg (Rosmalen) | D32: 12 | E32: - | F32: 2 | G32: =IF(OR($B$13="",wijk_van_inschrijving=""),"-",IF(OR(wijk_van_inschrijving<>C32,D32="",F32=""),"-",IF(D32>F32,"W",IF(D32=F32,"G",IF(D32<F32,"V","-"))))) -> W | H32: =IF(OR($B$13="",wijk_van_inschrijving=""),"-",IF(OR(wijk_van_inschrijving<>C32,G32="-",G32=""),"-",IF(G32="W",3,IF(G32="G",2,IF(G32="V",0,0))))) -> 3 | I32: =IF(OR($B$13="",wijk_van_inschrijving=""),"-",IF(wijk_van_inschrijving<>C32,"-",IF(D32>=0,IF(F32="","-",D32-F32)))) -> 10
B33: 2021-06-15 | C33: Hondsberg (Rosmalen) | D33: 5 | E33: - | F33: 8 | G33: V | H33: 0 | I33: -3
B34: 2021-06-15 | C34: Hondsberg (Rosmalen) | D34: 8 | E34: - | F34: 8 | G34: G | H34: 2 | I34: 0
B35: 2021-06-30 | C35: Hondsberg (Rosmalen) | D35: 13 | E35: - | F35: 2 | G35: W | H35: 3 | I35: 11
B36: 2021-06-30 | C36: Hondsberg (Rosmalen) | D36: 12 | E36: - | F36: 0 | G36: W | H36: 3 | I36: 12
E37: - | G37: - | H37: - | I37: -
E38: - | G38: - | H38: - | I38: -
E39: - | G39: - | H39: - | I39: -
E40: - | G40: - | H40: - | I40: -
E41: - | G41: - | H41: - | I41: -
E42: - | G42: - | H42: - | I42: -
E43: - | G43: - | H43: - | I43: -
E44: - | G44: - | H44: - | I44: -
E45: - | G45: - | H45: - | I45: -
E46: - | G46: - | H46: - | I46: -
E47: - | G47: - | H47: - | I47: -
E48: - | G48: - | H48: - | I48: -
E49: - | G49: - | H49: - | I49: -
E50: - | G50: - | H50: - | I50: -
E51: - | G51: - | H51: - | I51: -
E52: - | G52: - | H52: - | I52: -
E53: - | G53: - | H53: - | I53: -
E54: - | G54: - | H54: - | I54: -
E55: - | G55: - | H55: - | I55: -
E56: - | G56: - | H56: - | I56: -

Sheet Tiny Smits
B13: Tiny Smits
B16: Gespeeld | F16: =COUNTIF(G32:G57,"W")+COUNTIF(G32:G57,"G")+COUNTIF(G32:G57,"V") -> 6
B17: Gewonnen | F17: =COUNTIF(G32:G57,"W") -> 3
B18: Gelijk | F18: =COUNTIF(G32:G57,"G") -> 0
B19: Verloren | F19: =COUNTIF(G32:G57,"V") -> 3 | H19: Wijk van initiële inschrijving (met shirtkleur finaledag)
B20: % gewonnen | F20: =IF(F16=0,0,F17/F16) -> 0.5
B21: % gelijk | F21: =IF(F16=0,0,F18/F16) -> 0
B22: % verloren | F22: =IF(F16=0,0,F19/F16) -> 0.5 | H22: De Hambaken
B23: Wedstrijdpunten | F23: =SUM(H32:H57) -> 9
B24: Saldopunten | F24: =SUM(I32:I57) -> -15
B25: Saldopunten per wedstrijd | F25: =IF(F16=0,0,F24/F16) -> -2.5
B28: LET OP: alleen wedstrijden die daadwerkelijk gespeeld zijn in de wijk waarvoor jij je hebt ingeschreven tellen mee!
B31: Datum | C31: Locatie | D31: UITSLAGEN | G31: W, V of G? | H31: Wedstrijd-punten | I31: Saldo-punten
B32: 2021-06-29 | C32: De Hambaken | D32: 3 | E32: - | F32: 13 | G32: =IF(OR($B$13="",wijk_van_inschrijving=""),"-",IF(OR(wijk_van_inschrijving<>C32,D32="",F32=""),"-",IF(D32>F32,"W",IF(D32=F32,"G",IF(D32<F32,"V","-"))))) -> V | H32: =IF(OR($B$13="",wijk_van_inschrijving=""),"-",IF(OR(wijk_van_inschrijving<>C32,G32="-",G32=""),"-",IF(G32="W",3,IF(G32="G",2,IF(G32="V",0,0))))) -> 0 | I32: =IF(OR($B$13="",wijk_van_inschrijving=""),"-",IF(wijk_van_inschrijving<>C32,"-",IF(D32>=0,IF(F32="","-",D32-F32)))) -> -10
B33: 2021-06-29 | C33: De Hambaken | D33: 2 | E33: - | F33: 13 | G33: V | H33: 0 | I33: -11
B34: 2021-06-29 | C34: De Hambaken | D34: 13 | E34: - | F34: 12 | G34: W | H34: 3 | I34: 1
B35: 2021-07-06 | C35: De Hambaken | D35: 13 | E35: - | F35: 11 | G35: W | H35: 3 | I35: 2
B36: 2021-07-06 | C36: De Hambaken | D36: 9 | E36: - | F36: 3 | G36: W | H36: 3 | I36: 6
B37: 2021-07-06 | C37: De Hambaken | D37: 6 | E37: - | F37: 9 | G37: V | H37: 0 | I37: -3
E38: - | G38: - | H38: - | I38: -
E39: - | G39: - | H39: - | I39: -
E40: - | G40: - | H40: - | I40: -
E41: - | G41: - | H41: - | I41: -
E42: - | G42: - | H42: - | I42: -
E43: - | G43: - | H43: - | I43: -
E44: - | G44: - | H44: - | I44: -
E45: - | G45: - | H45: - | I45: -
E46: - | G46: - | H46: - | I46: -
E47: - | G47: - | H47: - | I47: -
E48: - | G48: - | H48: - | I48: -
E49: - | G49: - | H49: - | I49: -
E50: - | G50: - | H50: - | I50: -
E51: - | G51: - | H51: - | I51: -
E52: - | G52: - | H52: - | I52: -
E53: - | G53: - | H53: - | I53: -
E54: - | G54: - | H54: - | I54: -
E55: - | G55: - | H55: - | I55: -
E56: - | G56: - | H56: - | I56: -

Sheet Ton van der Wel
B13: Ton van der Wel
B16: Gespeeld | F16: =COUNTIF(G32:G57,"W")+COUNTIF(G32:G57,"G")+COUNTIF(G32:G57,"V") -> 3
B17: Gewonnen | F17: =COUNTIF(G32:G57,"W") -> 2
B18: Gelijk | F18: =COUNTIF(G32:G57,"G") -> 0
B19: Verloren | F19: =COUNTIF(G32:G57,"V") -> 1 | H19: Wijk van initiële inschrijving (met shirtkleur finaledag)
B20: % gewonnen | F20: =IF(F16=0,0,F17/F16) -> 0.6666666667
B21: % gelijk | F21: =IF(F16=0,0,F18/F16) -> 0
B22: % verloren | F22: =IF(F16=0,0,F19/F16) -> 0.3333333333 | H22: De Schutskamp
B23: Wedstrijdpunten | F23: =SUM(H32:H57) -> 6
B24: Saldopunten | F24: =SUM(I32:I57) -> 15
B25: Saldopunten per wedstrijd | F25: =IF(F16=0,0,F24/F16) -> 5
B28: LET OP: alleen wedstrijden die daadwerkelijk gespeeld zijn in de wijk waarvoor jij je hebt ingeschreven tellen mee!
B31: Datum | C31: Locatie | D31: UITSLAGEN | G31: W, V of G? | H31: Wedstrijd-punten | I31: Saldo-punten
B32: 2021-06-14 | C32: De Schutskamp | D32: 13 | E32: - | F32: 0 | G32: =IF(OR($B$13="",wijk_van_inschrijving=""),"-",IF(OR(wijk_van_inschrijving<>C32,D32="",F32=""),"-",IF(D32>F32,"W",IF(D32=F32,"G",IF(D32<F32,"V","-"))))) -> W | H32: =IF(OR($B$13="",wijk_van_inschrijving=""),"-",IF(OR(wijk_van_inschrijving<>C32,G32="-",G32=""),"-",IF(G32="W",3,IF(G32="G",2,IF(G32="V",0,0))))) -> 3 | I32: =IF(OR($B$13="",wijk_van_inschrijving=""),"-",IF(wijk_van_inschrijving<>C32,"-",IF(D32>=0,IF(F32="","-",D32-F32)))) -> 13
B33: 2021-06-14 | C33: De Schutskamp | D33: 4 | E33: - | F33: 7 | G33: V | H33: 0 | I33: -3
B34: 2021-06-14 | C34: De Schutskamp | D34: 9 | E34: - | F34: 4 | G34: W | H34: 3 | I34: 5
E35: - | G35: - | H35: - | I35: -
E36: - | G36: - | H36: - | I36: -
E37: - | G37: - | H37: - | I37: -
E38: - | G38: - | H38: - | I38: -
E39: - | G39: - | H39: - | I39: -
E40: - | G40: - | H40: - | I40: -
E41: - | G41: - | H41: - | I41: -
E42: - | G42: - | H42: - | I42: -
E43: - | G43: - | H43: - | I43: -
E44: - | G44: - | H44: - | I44: -
E45: - | G45: - | H45: - | I45: -
E46: - | G46: - | H46: - | I46: -
E47: - | G47: - | H47: - | I47: -
E48: - | G48: - | H48: - | I48: -
E49: - | G49: - | H49: - | I49: -
E50: - | G50: - | H50: - | I50: -
E51: - | G51: - | H51: - | I51: -
E52: - | G52: - | H52: - | I52: -
E53: - | G53: - | H53: - | I53: -
E54: - | G54: - | H54: - | I54: -
E55: - | G55: - | H55: - | I55: -
E56: - | G56: - | H56: - | I56: -

Sheet Ton van Huijstee
B13: Ton van Huijstee
B16: Gespeeld | F16: =COUNTIF(G32:G57,"W")+COUNTIF(G32:G57,"G")+COUNTIF(G32:G57,"V") -> 3
B17: Gewonnen | F17: =COUNTIF(G32:G57,"W") -> 0
B18: Gelijk | F18: =COUNTIF(G32:G57,"G") -> 0
B19: Verloren | F19: =COUNTIF(G32:G57,"V") -> 3 | H19: Wijk van initiële inschrijving (met shirtkleur finaledag)
B20: % gewonnen | F20: =IF(F16=0,0,F17/F16) -> 0
B21: % gelijk | F21: =IF(F16=0,0,F18/F16) -> 0
B22: % verloren | F22: =IF(F16=0,0,F19/F16) -> 1 | H22: De Hambaken
B23: Wedstrijdpunten | F23: =SUM(H32:H57) -> 0
B24: Saldopunten | F24: =SUM(I32:I57) -> -7
B25: Saldopunten per wedstrijd | F25: =IF(F16=0,0,F24/F16) -> -2.333333333
B28: LET OP: alleen wedstrijden die daadwerkelijk gespeeld zijn in de wijk waarvoor jij je hebt ingeschreven tellen mee!
B31: Datum | C31: Locatie | D31: UITSLAGEN | G31: W, V of G? | H31: Wedstrijd-punten | I31: Saldo-punten
B32: 2021-06-16 | C32: De Hambaken | D32: 4 | E32: - | F32: 9 | G32: =IF(OR($B$13="",wijk_van_inschrijving=""),"-",IF(OR(wijk_van_inschrijving<>C32,D32="",F32=""),"-",IF(D32>F32,"W",IF(D32=F32,"G",IF(D32<F32,"V","-"))))) -> V | H32: =IF(OR($B$13="",wijk_van_inschrijving=""),"-",IF(OR(wijk_van_inschrijving<>C32,G32="-",G32=""),"-",IF(G32="W",3,IF(G32="G",2,IF(G32="V",0,0))))) -> 0 | I32: =IF(OR($B$13="",wijk_van_inschrijving=""),"-",IF(wijk_van_inschrijving<>C32,"-",IF(D32>=0,IF(F32="","-",D32-F32)))) -> -5
B33: 2021-06-16 | C33: De Hambaken | D33: 6 | E33: - | F33: 7 | G33: V | H33: 0 | I33: -1
B34: 2021-06-16 | C34: De Hambaken | D34: 6 | E34: - | F34: 7 | G34: V | H34: 0 | I34: -1
E35: - | G35: - | H35: - | I35: -
E36: - | G36: - | H36: - | I36: -
E37: - | G37: - | H37: - | I37: -
E38: - | G38: - | H38: - | I38: -
E39: - | G39: - | H39: - | I39: -
E40: - | G40: - | H40: - | I40: -
E41: - | G41: - | H41: - | I41: -
E42: - | G42: - | H42: - | I42: -
E43: - | G43: - | H43: - | I43: -
E44: - | G44: - | H44: - | I44: -
E45: - | G45: - | H45: - | I45: -
E46: - | G46: - | H46: - | I46: -
E47: - | G47: - | H47: - | I47: -
E48: - | G48: - | H48: - | I48: -
E49: - | G49: - | H49: - | I49: -
E50: - | G50: - | H50: - | I50: -
E51: - | G51: - | H51: - | I51: -
E52: - | G52: - | H52: - | I52: -
E53: - | G53: - | H53: - | I53: -
E54: - | G54: - | H54: - | I54: -
E55: - | G55: - | H55: - | I55: -
E56: - | G56: - | H56: - | I56: -

Sheet Vera Beunk - Veeken
B13: Vera Beunk - Veeken
B16: Gespeeld | F16: =COUNTIF(G32:G57,"W")+COUNTIF(G32:G57,"G")+COUNTIF(G32:G57,"V") -> 9
B17: Gewonnen | F17: =COUNTIF(G32:G57,"W") -> 7
B18: Gelijk | F18: =COUNTIF(G32:G57,"G") -> 0
B19: Verloren | F19: =COUNTIF(G32:G57,"V") -> 2 | H19: Wijk van initiële inschrijving (met shirtkleur finaledag)
B20: % gewonnen | F20: =IF(F16=0,0,F17/F16) -> 0.7777777778
B21: % gelijk | F21: =IF(F16=0,0,F18/F16) -> 0
B22: % verloren | F22: =IF(F16=0,0,F19/F16) -> 0.2222222222 | H22: De Hambaken
B23: Wedstrijdpunten | F23: =SUM(H32:H57) -> 21
B24: Saldopunten | F24: =SUM(I32:I57) -> 25
B25: Saldopunten per wedstrijd | F25: =IF(F16=0,0,F24/F16) -> 2.777777778
B28: LET OP: alleen wedstrijden die daadwerkelijk gespeeld zijn in de wijk waarvoor jij je hebt ingeschreven tellen mee!
B31: Datum | C31: Locatie | D31: UITSLAGEN | G31: W, V of G? | H31: Wedstrijd-punten | I31: Saldo-punten
B32: 2021-06-23 | C32: De Hambaken | D32: 13 | E32: - | F32: 8 | G32: =IF(OR($B$13="",wijk_van_inschrijving=""),"-",IF(OR(wijk_van_inschrijving<>C32,D32="",F32=""),"-",IF(D32>F32,"W",IF(D32=F32,"G",IF(D32<F32,"V","-"))))) -> W | H32: =IF(OR($B$13="",wijk_van_inschrijving=""),"-",IF(OR(wijk_van_inschrijving<>C32,G32="-",G32=""),"-",IF(G32="W",3,IF(G32="G",2,IF(G32="V",0,0))))) -> 3 | I32: =IF(OR($B$13="",wijk_van_inschrijving=""),"-",IF(wijk_van_inschrijving<>C32,"-",IF(D32>=0,IF(F32="","-",D32-F32)))) -> 5
B33: 2021-06-23 | C33: De Hambaken | D33: 9 | E33: - | F33: 4 | G33: W | H33: 3 | I33: 5
B34: 2021-06-23 | C34: De Hambaken | D34: 12 | E34: - | F34: 5 | G34: W | H34: 3 | I34: 7
B35: 2021-06-29 | C35: De Hambaken | D35: 13 | E35: - | F35: 3 | G35: W | H35: 3 | I35: 10
B36: 2021-06-29 | C36: De Hambaken | D36: 8 | E36: - | F36: 2 | G36: W | H36: 3 | I36: 6
B37: 2021-06-29 | C37: De Hambaken | D37: 4 | E37: - | F37: 13 | G37: V | H37: 0 | I37: -9
B38: 2021-07-06 | C38: De Hambaken | D38: 5 | E38: - | F38: 13 | G38: V | H38: 0 | I38: -8
B39: 2021-07-06 | C39: De Hambaken | D39: 9 | E39: - | F39: 3 | G39: W | H39: 3 | I39: 6
B40: 2021-07-06 | C40: De Hambaken | D40: 9 | E40: - | F40: 6 | G40: W | H40: 3 | I40: 3
E41: - | G41: - | H41: - | I41: -
E42: - | G42: - | H42: - | I42: -
E43: - | G43: - | H43: - | I43: -
E44: - | G44: - | H44: - | I44: -
E45: - | G45: - | H45: - | I45: -
E46: - | G46: - | H46: - | I46: -
E47: - | G47: - | H47: - | I47: -
E48: - | G48: - | H48: - | I48: -
E49: - | G49: - | H49: - | I49: -
E50: - | G50: - | H50: - | I50: -
E51: - | G51: - | H51: - | I51: -
E52: - | G52: - | H52: - | I52: -
E53: - | G53: - | H53: - | I53: -
E54: - | G54: - | H54: - | I54: -
E55: - | G55: - | H55: - | I55: -
E56: - | G56: - | H56: - | I56: -

Sheet Willem Hartman
B13: Willem Hartman
B16: Gespeeld | F16: =COUNTIF(G32:G57,"W")+COUNTIF(G32:G57,"G")+COUNTIF(G32:G57,"V") -> 5
B17: Gewonnen | F17: =COUNTIF(G32:G57,"W") -> 4
B18: Gelijk | F18: =COUNTIF(G32:G57,"G") -> 1
B19: Verloren | F19: =COUNTIF(G32:G57,"V") -> 0 | H19: Wijk van initiële inschrijving (met shirtkleur finaledag)
B20: % gewonnen | F20: =IF(F16=0,0,F17/F16) -> 0.8
B21: % gelijk | F21: =IF(F16=0,0,F18/F16) -> 0.2
B22: % verloren | F22: =IF(F16=0,0,F19/F16) -> 0 | H22: De Schutskamp
B23: Wedstrijdpunten | F23: =SUM(H32:H57) -> 14
B24: Saldopunten | F24: =SUM(I32:I57) -> 17
B25: Saldopunten per wedstrijd | F25: =IF(F16=0,0,F24/F16) -> 3.4
B28: LET OP: alleen wedstrijden die daadwerkelijk gespeeld zijn in de wijk waarvoor jij je hebt ingeschreven tellen mee!
B31: Datum | C31: Locatie | D31: UITSLAGEN | G31: W, V of G? | H31: Wedstrijd-punten | I31: Saldo-punten
B32: 2021-06-24 | C32: De Schutskamp | D32: 10 | E32: - | F32: 6 | G32: =IF(OR($B$13="",wijk_van_inschrijving=""),"-",IF(OR(wijk_van_inschrijving<>C32,D32="",F32=""),"-",IF(D32>F32,"W",IF(D32=F32,"G",IF(D32<F32,"V","-"))))) -> W | H32: =IF(OR($B$13="",wijk_van_inschrijving=""),"-",IF(OR(wijk_van_inschrijving<>C32,G32="-",G32=""),"-",IF(G32="W",3,IF(G32="G",2,IF(G32="V",0,0))))) -> 3 | I32: =IF(OR($B$13="",wijk_van_inschrijving=""),"-",IF(wijk_van_inschrijving<>C32,"-",IF(D32>=0,IF(F32="","-",D32-F32)))) -> 4
B33: 2021-06-24 | C33: De Schutskamp | D33: 9 | E33: - | F33: 6 | G33: W | H33: 3 | I33: 3
B34: 2021-06-24 | C34: De Schutskamp | D34: 11 | E34: - | F34: 11 | G34: G | H34: 2 | I34: 0
B35: 2021-06-28 | C35: De Schutskamp | D35: 13 | E35: - | F35: 4 | G35: W | H35: 3 | I35: 9
B36: 2021-06-28 | C36: De Schutskamp | D36: 8 | E36: - | F36: 7 | G36: W | H36: 3 | I36: 1
E37: - | G37: - | H37: - | I37: -
E38: - | G38: - | H38: - | I38: -
E39: - | G39: - | H39: - | I39: -
E40: - | G40: - | H40: - | I40: -
E41: - | G41: - | H41: - | I41: -
E42: - | G42: - | H42: - | I42: -
E43: - | G43: - | H43: - | I43: -
E44: - | G44: - | H44: - | I44: -
E45: - | G45: - | H45: - | I45: -
E46: - | G46: - | H46: - | I46: -
E47: - | G47: - | H47: - | I47: -
E48: - | G48: - | H48: - | I48: -
E49: - | G49: - | H49: - | I49: -
E50: - | G50: - | H50: - | I50: -
E51: - | G51: - | H51: - | I51: -
E52: - | G52: - | H52: - | I52: -
E53: - | G53: - | H53: - | I53: -
E54: - | G54: - | H54: - | I54: -
E55: - | G55: - | H55: - | I55: -
E56: - | G56: - | H56: - | I56: -

Sheet Willem Warnaar
B13: Willem Warnaar
B16: Gespeeld | F16: =COUNTIF(G32:G57,"W")+COUNTIF(G32:G57,"G")+COUNTIF(G32:G57,"V") -> 9
B17: Gewonnen | F17: =COUNTIF(G32:G57,"W") -> 3
B18: Gelijk | F18: =COUNTIF(G32:G57,"G") -> 0
